Workbook

Sheet Title Page
A1: U.S. EPA Office of Ground Water and Drinking Water
A2: Work Breakdown Structure (WBS) Model for Multi-Stage Bubble Aeration (MSBA) Treatment
A3: Release Date: December 30, 2017
A4: · This model is designed to assist EPA in estimating national compliance costs for drinking water regulations.
A5: · As such, the costs are intended to be representative of typical facilities.
A6: · The costs, however, do not account for all of the site-specific factors that could affect the cost of any given individual facility.
A7: · Use of this model requires Excel 2007 or later.
A8: · The model should be opened as Read-only, so that any changes you make are saved under a new file name.
A9: · To function properly, macros ("active content") must be enabled. If a security warning appears, click "options" and "enable this content."
A10: · For further information see the following document distributed with this file:
A11: USEPA. 2017. Work Breakdown Structure-Based Cost Model for Multi-Stage Bubble Aeration (MSBA) Drinking Water Treatment. Office of Water.
A12: · To begin using the model, go to the INPUT sheet.

Sheet Index
A1: INDEX
A2: This page provides an index to all user-adjustable inputs and assumptions. Click on a variable name to go directly to the adjustable cells.
A4: User-adjustable Input or Assumption | B4: Variable Name and Link
A5: Access space per pump/blower for custom designed systems | B5: space_pumps_cust
A6: Access space per pump/blower for pre-engineered packages | B6: space_pumps_pre
A7: Additional blower head above water depth | B7: add_blow_head
A8: Additional building after… | B8: add_2nd_building
A9: Administrative LOE as a percent of average technical labor | B9: Clerical_percent
A10: Air conditioning EER | B10: EER
A11: Air to water ratio | B11: air_water_ratio
A12: Always include NEPA compliance costs? | B12: include_NEPA
A13: Annual cooling degree days | B13: cool_DD
A14: Annual heating degree days | B14: heat_DD
A15: Average Flow | B15: average_flow_I
A16: Basin excavation depth above which deeper boreholes are needed | B16: deep_bore_need
A17: Bedding depth below pipe | B17: bedding_depth
A18: Bedding depth surrounding the pipe | B18: bedding_pct
A19: Blower efficiency | B19: blower_effcy
A20: Blower safety factor | B20: blower_safety_factor
A21: Borehole depth (package systems) | B21: bore_depth_p
A22: Borehole depth for deep basins | B22: bore_depth_max
A23: Borehole depth for shallow basins | B23: bore_depth_min
A24: Borehole needed every x square feet | B24: hole_per_sf
A25: Boreholes per job | B25: hole_per_job
A26: Buffer space around other sides of buildings | B26: non_fire_buffer
A27: Builder's risk insurance percentage | B27: br_ins_pct
A28: Building height | B28: Building_height
A29: Coefficient of passive pressure | B29: Coeff_Kp
A30: Component level | B30: component_level_I
A31: Computer workstations per x operators | B31: workstation_ratio
A32: Concrete pad thickness | B32: pad_thick
A33: Concrete pad thickness for small systems | B33: pad_thick_small
A34: Concrete thickness | B34: conc_thick
A35: Cooling table for buildings 500 square feet or greater | B35: cooling_table
A36: Cooling table for buildings less than 500 ft2 | B36: cooling_table_shed
A37: Cooling ventilation/infiltration load | B37: cool_viload
A38: Cost for parts & maintenance for pumps and blowers | B38: pump_maint_rate
A39: Density of air | B39: PA
A40: Design Flow | B40: design_flow_I
A41: Design safety factor for standby power | B41: std_safety_factor
A42: Design Type | B42: design_type_I
A43: Diffuser access space | B43: diffuser_access_space
A44: Drive controllers per blower | B44: S_blower
A45: Drive controllers per booster pump | B45: S_booster_pump
A46: Drive controllers per catalytic oxidizer | B46: S_CO
A47: Drive controllers per thermal oxidizer | B47: S_TO
A48: Efficiency of pumps | B48: pump_effcy
A49: Electric resistance heating efficiency | B49: resist_eff
A50: Electrical percentage | B50: elect_pct
A51: Engineering percentage for large systems | B51: eng_pct_large
A52: Engineering percentage for medium systems | B52: eng_pct_medium
A53: Engineering percentage for small systems | B53: eng_pct_small
A54: Ethernet modules | B54: plc_ethernet
A55: Excess air required | B55: CO_ex_air
A56: Excess air required | B56: TO_ex_air
A57: External air piping | B57: air_pipe_add
A58: Financing percentage | B58: finance_pct
A59: Financing percentage for small systems | B59: finance_pct_small
A60: Fire truck buffer requirements | B60: fire_buffer
A61: Flow meters for air line per contact basin | B61: fm_air
A62: Flow meters for influent and treated water line | B62: tot_fm_in
A63: Flow meters for process line per contact basin | B63: fm_proc
A64: Freeboard | B64: freeboard
A65: Frost depth | B65: frost
A66: GAC bed life | B66: og_opt3
A67: GAC Density | B67: GAC_density
A68: Heat pump cooling mode EER | B68: hp_EER
A69: Heat pump heating coefficient of performance | B69: COP
A70: Heat recovery type | B70: og_opt1_I
A71: Heating Oil Heat Content | B71: diesel_heat_content
A72: Heating table for buildings 500 square feet or greater | B72: heating_table
A73: Heating table for buildings less than 500 ft2 | B73: heating_table_shed
A74: Heating ventilation/infiltration load | B74: heat_viload
A75: High/Low alarms per contact basin | B75: alarm_basin
A76: I/O port table | B76: port_table
A77: Include architectural fee for small systems? | B77: include_arch_small
A78: Include architectural fee? | B78: include_arch
A79: Include buildings in total capital cost? | B79: include_buildings
A80: Include concrete pad in total capital cost? | B80: include_pad
A81: Include construction management cost for pre-engineered packages? | B81: include_cm_pre
A82: Include construction management cost? | B82: include_cm
A83: Include contingency costs for high cost systems? | B83: include_conting_high
A84: Include contingency costs for low cost systems? | B84: include_conting_low
A85: Include contingency costs for medium cost systems? | B85: include_conting_medium
A86: Include cooling in standby power | B86: need_cool
A87: Include geotechnical costs for high cost custom systems? | B87: include_geo_high_g
A88: Include geotechnical costs for high cost systems? | B88: include_geo_high
A89: Include geotechnical costs for low cost custom systems? | B89: include_geo_low_g
A90: Include geotechnical costs for low cost systems? | B90: include_geo_low
A91: Include geotechnical costs for medium cost custom systems? | B91: include_geo_medium_g
A92: Include geotechnical costs for medium cost systems? | B92: include_geo_medium
A93: Include heating in standby power | B93: need_heat
A94: Include land costs? | B94: include_land
A95: Include performance bond cost? | B95: include_bond
A96: Include permit costs? | B96: include_permits
A97: Include pilot study costs? | B97: include_pilot
A98: Include sitework costs? | B98: include_sitework
A99: Include standby power costs for small systems? | B99: include_standby_small
A100: Include standby power costs? | B100: include_standby
A101: Include yard piping costs? | B101: include_yardpipe
A102: Influent water concentration | B102: influent_conc
A103: Installation, Transportatation, and O&P percentage | B103: inst_pct
A104: Instrumentation and control percentage | B104: i_c_pct
A105: Legal percentage | B105: legal_pct
A106: Lighting power per sf, high-quality buildings | B106: lighting_power_high
A107: Lighting power per sf, low-quality buildings and sheds | B107: lighting_power_low
A108: Lighting power per sf, mid-quality buildings | B108: lighting_power_mid
A109: Linear feet bored per day | B109: hole_per_day
A110: Maintenance LOE for instruments (includes calibration) | B110: uloe_inst_maint
A111: Maintenance LOE for pumps | B111: uloe_pump_maint
A112: Maintenance LOE for valves | B112: uloe_valve_maint
A113: Makeup carbon for off-site regeneration | B113: makeup_rate_off
A114: Mangerial LOE as a percent of average technical labor | B114: Manager_percent
A115: Maximum access space per vessel or tank for custom designed systems | B115: max_space_vessels_cust
A116: Maximum access space per vessel or tank for pre-engineered systems | B116: max_space_vessels_pre
A117: Maximum air surface loading intensity | B117: max_air_load
A118: Maximum basin length (custom design) | B118: max_length_custom
A119: Maximum basin length (pre-engineered package) | B119: max_length_package
A120: Maximum water depth | B120: max_h2odepth
A121: Mid-efficiency oil furnace efficiency | B121: diesel_eff
A122: Miles to non-hazardous solid waste disposal site | B122: non_haz_miles
A123: Minimum average flow as percentage of design | B123: min_avg_flow
A124: Minimum basin length to width ratio | B124: max_ratio
A125: Minimum number of boreholes | B125: min_holes
A126: Minimum standby power generator size | B126: min_standby
A127: Minimum trench depth to top of pipe | B127: min_trench_depth
A128: Miscellaneous allowance percentage | B128: misc_pct
A129: Mobilization percentage for large systems | B129: mob_pct_large
A130: Mobilization percentage for medium systems | B130: mob_pct_medium
A131: Mobilization percentage for pre-engineered packages | B131: mob_pct_pre
A132: Mobilization percentage for small systems | B132: mob_pct_small
A133: Natural gas condensing furnace efficiency | B133: gas_eff
A134: Natural gas non-condensing furnace efficiency | B134: gas_non_eff
A135: Number of blowers | B135: num_blowers_I
A136: Number of booster pumps | B136: num_pumps_I
A137: Number of check valves on bypass line | B137: tot_bp_chv
A138: Number of check valves on process line per booster pump | B138: proc_chv_pump
A139: Number of check valves on treated water line | B139: tot_in_chv
A140: Number of CPUs | B140: plc_cpu
A141: Number of electrical enclosures | B141: elec_encl
A142: Number of manual valves on influent and treated water line | B142: tot_man_valves
A143: Number of mechanical ventilation days per year 2nd building (large system) | B143: fan_days_build2_large
A144: Number of mechanical ventilation days per year 2nd building (medium system) | B144: fan_days_build2_medium
A145: Number of mechanical ventilation days per year 2nd building (small system) | B145: fan_days_build2_small
A146: Number of mechanical ventilation days per year first building (large system) | B146: fan_days_build1_large
A147: Number of mechanical ventilation days per year first building (medium system) | B147: fan_days_build1_medium
A148: Number of mechanical ventilation days per year first building (small system) | B148: fan_days_build1_small
A149: Number of operating basins | B149: num_op_tanks
A150: Number of pressure gauges per blower | B150: gauges_blower
A151: Number of redundant basins | B151: NRD_tanks
A152: Number of redundant basins to be added | B152: NRD_I
A153: Number of redundant blowers | B153: NRD_blowers
A154: Number of redundant pumps | B154: NRD_pumps
A155: Number of shifts | B155: shifts_day
A156: Number of stages | B156: stages
A157: Off-gas pollution control technology | B157: Offgas_Tech_I
A158: Office space per employee | B158: space_office
A159: Office space per employee | B159: space_office_small
A160: Operatin gLOE, minutes per valve per week | B160: uloe_valve
A161: Operating LOE, hours per media changeout | B161: uloe_throwaway
A162: Operating LOE, minutes per 100 sf per day | B162: uloe_fp
A163: Operating LOE, minutes per instrument per day | B163: uloe_inst
A164: Operating LOE, minutes per pump, blower, and offgas unit per day | B164: uloe_pump
A165: Operating LOE, recording operating paramenters for automated systems | B165: uloe_inst_auto
A166: Operating temperature | B166: T
A167: Operator interfaces | B167: plc_interface
A168: Overexcavation for concrete basins | B168: overexcavate
A169: Oxidation loss during on-site regeneration | B169: GHG_GAC_oxidation_loss
A170: Percent of Total Flow that is Bypassed | B170: bp_pct
A171: Percent removal | B171: P_REM_I
A172: pH_meters | B172: tot_ph
A173: Pilot air intensity | B173: pilot_phi
A174: Pilot rate constant | B174: pilot_k
A175: Pipe length from water source to the boundary of the 10 foot buffer | B175: yard_in
A176: Pipe length the boundary of the 10 foot buffer to distribution network | B176: yard_out
A177: Pressure drop across the fan | B177: Fan_pressure_drop
A178: Printers per x computer workstations | B178: printer_ratio
A179: Pump head | B179: pump_head
A180: Quiescent chamber length as a proportion of stage length | B180: qchamber_ratio
A181: Recuperative system heat recovery | B181: CO_rec_eff
A182: Recuperative system heat recovery | B182: TO_rec_eff
A183: Reduction factor | B183: Reduction
A184: Redundant CO units | B184: NRD_CO
A185: Redundant GAC beds | B185: NRD_GAC
A186: Redundant TO units | B186: NRD_TO
A187: Regenerative system heat recovery | B187: CO_reg_eff
A188: Regenerative system heat recovery | B188: TO_reg_eff
A189: R-value for ceilings | B189: R_ceiling
A190: R-value for walls | B190: R_wall
A191: Safety factor for pumps | B191: pump_safety_factor
A192: Sales tax percentage | B192: tax_pct
A193: Soil density | B193: soil_dens
A194: Specific heat of air | B194: cpa
A195: Spent GAC regeneration | B195: og_opt2_I
A196: Standard oil furnace efficiency | B196: diesel_non_eff
A197: System automation | B197: manual_I
A198: Technology complexity factor | B198: complexity
A199: Technology footprint above which boreholes are needed | B199: bore_need
A200: Test pit depth | B200: pit_depth
A201: Test pit length | B201: pit_length
... 10 more rows

Sheet INPUT
A1: MULTI-STAGE BUBBLE AERATION SYSTEM DESIGN AND COST INPUT
E3: STEP 1
E4: Select Contaminant | H4: =IF(contam<>1,"For VOCs, default designs available up to 1 MGD only, because information on using MSBA for these contaminants in larger systems is limited","") -> 
E6: STEP 2: | H6: =IF(OR('Standard Inputs'!AA9,'Standard Inputs'!AA17,'Standard Inputs'!AA25,'Standard Inputs'!AA33,'Standard Inputs'!AA41,'Standard Inputs'!AA49,'Standard Inputs'!AA57,'Standard Inputs'!AA65,'Standard Inputs'!AA73,'Standard Inputs'!AA81,'Standard Inputs'!AA89,'Standard Inputs'!AA97,'Standard Inputs'!AA105,'Standard Inputs'!AA113,'Standard Inputs'!AA121),"<- Using this design",IF(OR('Standard Inputs'!AB9,'Standard Inputs'!AB17,'Standard Inputs'!AB25,'Standard Inputs'!AB33,'Standard Inputs'!AB41,'Standard Inputs'!AB49,'Standard Inputs'!AB57,'Standard Inputs'!AB65,'Standard Inputs'!AB73,'Standard Inputs'!AB81,'Standard Inputs'!AB97,'Standard Inputs'!AB105,'Standard Inputs'!AB113,'Standard Inputs'!AB121),"<- You modified this design","")) ->  | I6: =IF(contam=10," Note: standard designs not defined for other contaminants. Use manual input or set designs on Standard Inputs page.","") -> 
E7: Select one of the eight standard designs at right | H7: =IF(OR('Standard Inputs'!AA10,'Standard Inputs'!AA18,'Standard Inputs'!AA26,'Standard Inputs'!AA34,'Standard Inputs'!AA42,'Standard Inputs'!AA50,'Standard Inputs'!AA58,'Standard Inputs'!AA66,'Standard Inputs'!AA74,'Standard Inputs'!AA82,'Standard Inputs'!AA90,'Standard Inputs'!AA98,'Standard Inputs'!AA106,'Standard Inputs'!AA114,'Standard Inputs'!AA122),"<- Using this design",IF(OR('Standard Inputs'!AB10,'Standard Inputs'!AB18,'Standard Inputs'!AB26,'Standard Inputs'!AB34,'Standard Inputs'!AB42,'Standard Inputs'!AB50,'Standard Inputs'!AB58,'Standard Inputs'!AB66,'Standard Inputs'!AB74,'Standard Inputs'!AB82,'Standard Inputs'!AB98,'Standard Inputs'!AB106,'Standard Inputs'!AB114,'Standard Inputs'!AB122),"<- You modified this design","")) -> 
H8: =IF(OR('Standard Inputs'!AA11,'Standard Inputs'!AA19,'Standard Inputs'!AA27,'Standard Inputs'!AA35,'Standard Inputs'!AA43,'Standard Inputs'!AA51,'Standard Inputs'!AA59,'Standard Inputs'!AA67,'Standard Inputs'!AA75,'Standard Inputs'!AA83,'Standard Inputs'!AA91,'Standard Inputs'!AA99,'Standard Inputs'!AA107,'Standard Inputs'!AA115,'Standard Inputs'!AA123),"<- Using this design",IF(OR('Standard Inputs'!AB11,'Standard Inputs'!AB19,'Standard Inputs'!AB27,'Standard Inputs'!AB35,'Standard Inputs'!AB43,'Standard Inputs'!AB51,'Standard Inputs'!AB59,'Standard Inputs'!AB67,'Standard Inputs'!AB75,'Standard Inputs'!AB83,'Standard Inputs'!AB99,'Standard Inputs'!AB107,'Standard Inputs'!AB115,'Standard Inputs'!AB123),"<- You modified this design","")) -> <- Using this design
E9: OR | H9: =IF(OR('Standard Inputs'!AA12,'Standard Inputs'!AA20,'Standard Inputs'!AA28,'Standard Inputs'!AA36,'Standard Inputs'!AA44,'Standard Inputs'!AA52,'Standard Inputs'!AA60,'Standard Inputs'!AA68,'Standard Inputs'!AA76,'Standard Inputs'!AA84,'Standard Inputs'!AA92,'Standard Inputs'!AA100,'Standard Inputs'!AA108,'Standard Inputs'!AA116,'Standard Inputs'!AA124),"<- Using this design",IF(OR('Standard Inputs'!AB12,'Standard Inputs'!AB20,'Standard Inputs'!AB28,'Standard Inputs'!AB36,'Standard Inputs'!AB44,'Standard Inputs'!AB52,'Standard Inputs'!AB60,'Standard Inputs'!AB68,'Standard Inputs'!AB76,'Standard Inputs'!AB84,'Standard Inputs'!AB100,'Standard Inputs'!AB108,'Standard Inputs'!AB116,'Standard Inputs'!AB124),"<- You modified this design","")) -> 
H10: =IF(OR('Standard Inputs'!AA13,'Standard Inputs'!AA21,'Standard Inputs'!AA29,'Standard Inputs'!AA37,'Standard Inputs'!AA45,'Standard Inputs'!AA53,'Standard Inputs'!AA61,'Standard Inputs'!AA69,'Standard Inputs'!AA77,'Standard Inputs'!AA85,'Standard Inputs'!AA93,'Standard Inputs'!AA101,'Standard Inputs'!AA109,'Standard Inputs'!AA117,'Standard Inputs'!AA125),"<- Using this design",IF(OR('Standard Inputs'!AB13,'Standard Inputs'!AB21,'Standard Inputs'!AB29,'Standard Inputs'!AB37,'Standard Inputs'!AB45,'Standard Inputs'!AB53,'Standard Inputs'!AB61,'Standard Inputs'!AB69,'Standard Inputs'!AB77,'Standard Inputs'!AB85,'Standard Inputs'!AB101,'Standard Inputs'!AB109,'Standard Inputs'!AB117,'Standard Inputs'!AB125),"<- You modified this design","")) ->  | I10: See model documentation for more information on standard designs
E11: Select "CLEAR FOR MANUAL ENTRY" | H11: =IF(OR('Standard Inputs'!AA14,'Standard Inputs'!AA22,'Standard Inputs'!AA30,'Standard Inputs'!AA38,'Standard Inputs'!AA46,'Standard Inputs'!AA54,'Standard Inputs'!AA62,'Standard Inputs'!AA70,'Standard Inputs'!AA78,'Standard Inputs'!AA86,'Standard Inputs'!AA94,'Standard Inputs'!AA102,'Standard Inputs'!AA110,'Standard Inputs'!AA118,'Standard Inputs'!AA126),"<- Using this design",IF(OR('Standard Inputs'!AB14,'Standard Inputs'!AB22,'Standard Inputs'!AB30,'Standard Inputs'!AB38,'Standard Inputs'!AB46,'Standard Inputs'!AB54,'Standard Inputs'!AB62,'Standard Inputs'!AB70,'Standard Inputs'!AB78,'Standard Inputs'!AB86,'Standard Inputs'!AB102,'Standard Inputs'!AB110,'Standard Inputs'!AB118,'Standard Inputs'!AB126),"<- You modified this design","")) -> 
H12: =IF(OR('Standard Inputs'!AA15,'Standard Inputs'!AA23,'Standard Inputs'!AA31,'Standard Inputs'!AA39,'Standard Inputs'!AA47,'Standard Inputs'!AA55,'Standard Inputs'!AA63,'Standard Inputs'!AA71,'Standard Inputs'!AA79,'Standard Inputs'!AA87,'Standard Inputs'!AA95,'Standard Inputs'!AA103,'Standard Inputs'!AA111,'Standard Inputs'!AA119,'Standard Inputs'!AA127),"<- Using this design",IF(OR('Standard Inputs'!AB15,'Standard Inputs'!AB23,'Standard Inputs'!AB31,'Standard Inputs'!AB39,'Standard Inputs'!AB47,'Standard Inputs'!AB55,'Standard Inputs'!AB63,'Standard Inputs'!AB71,'Standard Inputs'!AB79,'Standard Inputs'!AB87,'Standard Inputs'!AB103,'Standard Inputs'!AB111,'Standard Inputs'!AB119,'Standard Inputs'!AB127),"<- You modified this design","")) -> 
H13: =IF(OR('Standard Inputs'!AA16,'Standard Inputs'!AA24,'Standard Inputs'!AA32,'Standard Inputs'!AA40,'Standard Inputs'!AA48,'Standard Inputs'!AA56,'Standard Inputs'!AA64,'Standard Inputs'!AA72,'Standard Inputs'!AA80,'Standard Inputs'!AA88,'Standard Inputs'!AA96,'Standard Inputs'!AA104,'Standard Inputs'!AA112,'Standard Inputs'!AA120,'Standard Inputs'!AA128),"<- Using this design",IF(OR('Standard Inputs'!AB16,'Standard Inputs'!AB24,'Standard Inputs'!AB32,'Standard Inputs'!AB40,'Standard Inputs'!AB48,'Standard Inputs'!AB56,'Standard Inputs'!AB64,'Standard Inputs'!AB72,'Standard Inputs'!AB80,'Standard Inputs'!AB88,'Standard Inputs'!AB104,'Standard Inputs'!AB112,'Standard Inputs'!AB120,'Standard Inputs'!AB128),"<- You modified this design","")) -> 
H14: =IF(COUNTIF(H6:H13,"")=8,"Using a manual design","") -> 
B15: Used? | C15: Valid Input? | D15: Invalid Reason
E16: STEP 3:
E17: (Optional for standard designs) | G17: =IF(C18,IF('Standard Inputs'!AA131,"Input Complete -- Results Ready","Input Complete -- Press 'Generate Results'"),"Input Incomplete -- Check for Error Messages Below") -> Input Complete -- Results Ready
C18: =AND(C19:C76) -> TRUE | E18: Enter or change values in the gold and blue cells below, under "Manual Inputs"
E20: STEP 4: | I20: Results summary (see OUTPUT sheet for details)
I21: ="Direct Capital Cost: " & IF(input_status<>"input complete -- results ready","Input incomplete",IF(Missing_Cost,"Missing cost!",IF(cost_buildup_error,"Cost buildup error!",IF(ISERROR(direct_cost),"Calculation error!",TEXT(direct_cost,"$0,0"))))) -> Direct Capital Cost: $143,345
E22: =IF(G17="input complete -- results ready","Results are ready (no need to click button)","Click here to generate results -->") -> Results are ready (no need to click button) | I22: ="Total Capital Cost: " & IF(input_status<>"input complete -- results ready","Input incomplete",IF(Missing_Cost,"Missing cost!",IF(cost_buildup_error,"Cost buildup error!",IF(ISERROR(system_cost),"Calculation error!",TEXT(system_cost,"$0,0"))))) -> Total Capital Cost: $226,052
I23: ="Annual O&M Cost: "&IF(G17="input complete -- results ready",IF(ISERROR(om_cost),"Calculation error!",TEXT(om_cost,"$0,0")),"Input incomplete") -> Annual O&M Cost: $22,608
I24: ="Annualized Cost: "&IF(input_status<>"input complete -- results ready","Input incomplete",IF(Missing_Cost,"Missing Price!",IF(cost_buildup_error,"Cost buildup error!",IF(ISERROR(Annualized_Cost),"Calculation error!",TEXT(Annualized_Cost,"$0,0")&" ("&useful_life&" years at "&Discount_rate*100&"%)")))) -> Annualized Cost: $44,423 (19.1 years at 7%)
E25: MANUAL INPUTS | I25: =IF(input_status="Input Incomplete -- check for error messages below","",IF(Missing_Cost,"A price is not available for at least one required component. See Use? column on OUTPUT sheet.",IF(cost_buildup_error,"There is an Excel error in the price for at least one component. Please see the Use? column on OUTPUT sheet.",""))) -> 
E26: Cells in gold are required; cells in blue are optional
H27: Select units
E28: Design Flow | F28: design_flow_I | G28: 0.305 | H28: MGD
E29: Average Flow | F29: average_flow_I | G29: 0.094 | H29: MGD
E30: For information:
E31: Treatment system design flow | G31: =IF(ISERROR(design_flow),"",IF(df_units="gpm",design_flow_rate, design_flow)) -> 0.305 | H31: =IF(df_units="","",df_units) -> MGD
E32: Bypass design flow | G32: =IF(ISERROR(design_flow),"",IF(df_units="gpm",bp_flow_rate, bp_flow_rate*60*24/10^6)) -> 0 | H32: =IF(df_units="","",df_units) -> MGD | I32: ="Current bypass percentage is "&TEXT(bp_pct,"0%")&". Go to Critical Design Assumptions to change this value." -> Current bypass percentage is 0%. Go to Critical Design Assumptions to change this value.
C33: =IF(OR(df_units="",af_units=""),FALSE,IF(OR(average_flow<min_avg_flow * design_flow,average_flow>design_flow),FALSE,IF(OR(design_flow_I=0,average_flow_I=0),FALSE,TRUE))) -> TRUE | D33: =IF(OR(df_units="",af_units=""),"Choose units for design and average flow",IF(average_flow>design_flow,"The average flow should not be greater than the design flow",IF(average_flow<design_flow*min_avg_flow,"The average flow must be at least " & min_avg_flow & " times design flow",IF(OR(design_flow_I=0,average_flow_I=0),"Input incomplete","OK")))) -> OK | H33: =IF(C33,"Flow Input OK",D33) -> Flow Input OK | I33: Adjust bypass percentage
C35: =IF(design_type_I="",FALSE,TRUE) -> TRUE | E35: Design Type | F35: design_type_I | G35: pre-engineered package | H35: <--- pick one | I35: =IF(design_type=1,"Vendor packages include aboveground stainless steel, plastic, or fiberglass basins and typically are used by small systems",IF(design_type=2,"Custom designs use in-ground concrete basins and typically are applicable for large systems","")) -> Vendor packages include aboveground stainless steel, plastic, or fiberglass basins and typically are used by small systems
C36: =IF(num_op_tanks="",FALSE,TRUE) -> TRUE | E36: Number of operating basins | F36: num_op_tanks | G36: 1 | H36: units
C37: =IF(air_water_ratio="",FALSE,TRUE) -> TRUE | E37: Air to water ratio | F37: air_water_ratio | G37: 20 | I37: =IF(contam=1,"Gudiance: air to water ratios between 11:1 and 30:1 needed to obtain high radon removals (Drago, 2000). 3:1 to 30:1 will cover removal rates from 70% to 99.9% (Lowry peer review comments)","Guidance: For VOCs, typical air to water ratios are between 10:1 and 300:1") -> Gudiance: air to water ratios between 11:1 and 30:1 needed to obtain high radon removals (Drago, 2000). 3:1 to 30:1 will cover removal rates from 70% to 99.9% (Lowry peer review comments)
C38: =IF(max_h2odepth="",FALSE,TRUE) -> TRUE | E38: Maximum water depth | F38: max_h2odepth | G38: 3 | H38: feet | I38: =IF(contam=1,"Guidance: practical water depths for radon removal are 2 to 3 feet; 4 feet can increase removal, but is less economical (Lowry peer review comments)","Guidance: VOCs require no more than 2 to 3 feet water depth, beyond this depth no significant gain is realized (Lowry peer review comments)") -> Guidance: practical water depths for radon removal are 2 to 3 feet; 4 feet can increase removal, but is less economical (Lowry peer review comments)
C39: =IF(stages="",FALSE,TRUE) -> TRUE | E39: Number of stages | F39: stages | G39: 6 | I39: =IF(contam=1,"Guidance: practical designs for radon removal use 3 to 8 stages; recommend 6 stages (Lowry and Drago peer review comments)","Guidance: for VOCs, minimum of 6 stages, maximum of 12 stages, vendor uses 8 stages for most applications (Lowry peer review comments)") -> Guidance: practical designs for radon removal use 3 to 8 stages; recommend 6 stages (Lowry and Drago peer review comments)
E40: Pilot rate constant | F40: pilot_k | H40: 1/min
E41: Pilot air intensity | F41: pilot_phi | H41: cfm/cubic ft
E42: For information:
E43: Theoretical Percent Removal | G43: =IF(NOT(C51),"",p_rem) -> 0.9956933551 | I43: =IF(AND(contam<>1,OR(pilot_k="",pilot_phi="")),"Enter pilot rate constant and air intensity to estimate percent removal","Estimate only, based on "&IF(contam=1,"equation presented in Drago (2000)","pilot rate constant and air intensity")&". To increase, increase air to water ratio and/or number of stages") -> Estimate only, based on equation presented in Drago (2000). To increase, increase air to water ratio and/or number of stages
E44: Number of Basins (including redundancy) | G44: =IF(NOT(C51),"",num_tanks) -> 1 | H44: units
E45: Basin Length (including quiescent chamber) | G45: =IF(NOT(C51),"",tank_length) -> 8 | H45: feet
E46: Basin Width | G46: =IF(NOT(C51),"",tank_width) -> 5 | H46: feet
E47: Basin Height (including freeboard) | G47: =IF(NOT(C51),"",tank_depth) -> 5 | H47: feet | I47: Adjust freeboard
E48: Diffusers per stage | G48: =IF(NOT(C51),"",diffusers_per_stage) -> 3 | H48: units
E49: Total diffusers | G49: =IF(NOT(C51),"",total_diffusers) -> 18 | H49: units
C50: =IF(design_type_I="","",IF(ISERROR(tank_length),"",IF(tank_length>max_length,FALSE,TRUE))) -> TRUE | D50: =IF(NOT(AND(C35:C39)),"",IF(NOT(C50),"Hint:"&IF(design_type=1," use custom design or","")&" increase number of basins or decrease air to water ratio","")) ->  | H50: =D50 ->  | I50: Adjust basin length constraints
C51: =AND(C35:C50) -> TRUE | D51: =IF(NOT(AND(C35:C39)),"Basin inputs incomplete",IF(NOT(C50),"Warning: basins too long","OK")) -> OK | H51: =IF(C51,"Basin Inputs OK",D51) -> Basin Inputs OK | I51: Adjust diffuser access space requirements
C53: =IF(contam=1,TRUE,NOT(influent_conc="")) -> TRUE | E53: Influent water concentration | F53: influent_conc | H53: =IF(contam=1,"not required","ug/L") -> not required | I53: Used only to determine whether air pollution control might be required; not part of system design
C54: =IF(contam=1,TRUE,OR(P_REM_I<>"",AND(pilot_k<>"",pilot_phi<>""))) -> TRUE | E54: Percent removal | F54: P_REM_I | H54: =IF(OR(contam=1,AND(pilot_k<>"",pilot_phi<>"")),"not required","") -> not required | I54: =IF(H54="not required","Using theoretical removal from above","Used only to determine whether air pollution control might be required; not part of system design") -> Using theoretical removal from above
C55: =IF(contam=1,TRUE,NOT(max_VOC_release="")) -> TRUE | E55: VOC release at which air pollution control system is needed | F55: max_VOC_release | H55: =IF(contam=1,"not required","lbs/day") -> not required | I55: CMRP (2000) states this is the maximum emission level for all VOCs for California South Coast AQMD, but other districts may require different emissions standards based on location of the site and regional ambient air quality.
E56: For information: | G56: =IF(contam=1,"Available off-gas control options not relevant for radon",IF(max_VOC_release="","",IF(VOC_Release>max_VOC_release,"Off-gas control system may be required if contaminant is a VOC","Off-gas control system may not be required"))) -> Available off-gas control options not relevant for radon
C58: =IF(contam=1,TRUE,NOT(Offgas_Tech_I="")) -> TRUE | E58: Off-gas pollution control technology | F58: Offgas_Tech_I | H58: =IF(contam=1,"not required","<--- pick one") -> not required
B59: =OR(Offgas_Tech=2,Offgas_Tech=3) -> FALSE | C59: =IF(B59,NOT(og_opt1_I=""),TRUE) -> TRUE | E59: Heat recovery type | F59: og_opt1_I | H59: =IF(NOT(B59),"not required","<--- pick one") -> not required
B60: =Offgas_Tech=1 -> FALSE | C60: =IF(B60,NOT(og_opt2_I=""),TRUE) -> TRUE | E60: Spent GAC regeneration | F60: og_opt2_I | H60: =IF(NOT(B60),"not required","<--- pick one") -> not required
B61: =Offgas_Tech=1 -> FALSE | C61: =IF(B60,NOT(og_opt3=""),TRUE) -> TRUE | E61: GAC bed life | F61: og_opt3 | H61: =IF(NOT(B61),"not required","months") -> not required
C62: =IF(NOT(AND(C53:C55,C58:C61)),FALSE,TRUE) -> TRUE | D62: =IF(NOT(C62),"Offgas Inputs Incomplete","OK") -> OK | H62: =IF(C62,"Off-gas Inputs OK",D62) -> Off-gas Inputs OK
E64: Number of booster pumps | F64: num_pumps_I | H64: pumps | I64: Enter 0 to exclude booster pumps (i.e., use existing pumps). Clear cell to accept model defaults (included for all sizes in this technology)
C65: =IF(ISERROR(pump_rating),FALSE,IF(pump_rating>max_pump_size,FALSE,TRUE)) -> TRUE | D65: =IF(NOT(C65),"Warning: insufficient number of pumps","") ->  | E65: For information: # of booster pumps | G65: =IF(ISERROR(total_pumps),"",total_pumps) -> 2 | H65: pumps
E66: Number of blowers | F66: num_blowers_I | H66: blowers | I66: Designs should always include at least one blower. Leave blank to accept model default calculations.
C67: =IF(ISERROR(blower_rating),FALSE,IF(blower_rating>max_blow_size,FALSE,TRUE)) -> TRUE | D67: =IF(NOT(C67),"Warning: insufficient number of blowers","") ->  | E67: For information: # of blowers (including redundancy) | G67: =IF(ISERROR(total_blowers),"",total_blowers) -> 2 | H67: blowers | I67: Adjust number of redundant blowers
E68: Number of redundant basins to be added | F68: NRD_I | H68: units | I68: Leave blank to accept redundancy specified in critical design assumptions
E69: For information: Redundant basins | G69: =IF(NRD_I="",NRD_tanks,NRD_I) -> 0 | H69: units
E70: Component level | F70: component_level_I | H70: <-- pick or leave blank | I70: Leave blank to use low cost components
E71: System automation | F71: manual_I | H71: <-- pick or leave blank | I71: Leave blank to allow model to pick based on component level
E72: For information: Component level | G72: =IF(component_level=2,"high cost",IF(component_level=1,"mid cost","low cost")) -> low cost
E73: Automation | G73: =IF(manual=1,"manual",IF(manual=2,"semi-automated",IF(manual=3,"fully automated"))) -> manual
H74: =D65 -> 
H75: =D67 -> 
C76: =IF(NOT(AND(C65,C67)),FALSE,TRUE) -> TRUE | D76: =IF(NOT(C76),"Optional Inputs Incomplete","OK") -> OK | H76: =IF(C76,"Optional Inputs OK",D76) -> Optional Inputs OK

Sheet OUTPUT
A1: OUTPUT SUMMARY
B2: Parameter | C2: Value | D2: Units
B3: Technology | C3: MSBA
B4: Contaminant Type | C4: =VLOOKUP(contam,contaminant_lookup,2,FALSE) -> Radon
B5: System Size Category | C5: =IF(design_flow<1,"small","large") -> small
B6: Design Flow | C6: =design_flow -> 0.305 | D6: MGD (excludes bypass flow)
B7: Average Flow | C7: =average_flow -> 0.094 | D7: MGD (excludes bypass flow)
B8: Number of Basins | C8: =num_tanks -> 1 | D8: units
B9: Number of Stages per Basin | C9: =stages -> 6 | D9: stages
B10: Basin Length | C10: =tank_length -> 8 | D10: feet
B11: Basin Width | C11: =tank_width -> 5 | D11: feet
B12: Basin Height | C12: =tank_depth -> 5 | D12: feet
B13: Diffusers per Stage | C13: =diffusers_per_stage -> 3 | D13: units
B14: Total diffusers | C14: =total_diffusers -> 18 | D14: units
B15: Off-Gas Treatment | C15: =IF(Offgas_Tech_I="","none",Offgas_Tech_I) -> none
B16: ="Resulting Costs (in year "&TEXT(current_year_cl,0)&" dollars)" -> Resulting Costs (in year 2016 dollars)
B17: Direct Capital Cost | C17: =IF(input_status<>"input complete -- results ready","Input incomplete",IF(Missing_Cost,"Missing cost!",IF(cost_buildup_error,"Error in buildup!",direct_cost))) -> 143345.2855 | D17: Details
B18: Add-on Cost | C18: =IF(input_status<>"input complete -- results ready","Input incomplete",addon_cost) -> 16305.90003 | D18: Details
B19: Indirect Capital Cost | C19: =IF(input_status<>"input complete -- results ready","Input incomplete",C216) -> 66400.91346 | D19: Details
B20: Total Capital Cost | C20: =IF(input_status<>"input complete -- results ready","Input incomplete",IF(Missing_Cost,"Missing cost!",IF(cost_buildup_error,"Error in buildup!",C226))) -> 226052.099 | D20: Details
B21: Annual O&M Cost | C21: =IF(input_status<>"input complete -- results ready","Input incomplete",om_cost) -> 22608.07784 | D21: Details
B22: ="Annualized Cost "&IF(OR(input_status<>"input complete -- results ready",Missing_Cost,cost_buildup_error),"","("&useful_life&" years at "&Discount_rate*100&"%)") -> Annualized Cost (19.1 years at 7%) | C22: =IF(input_status<>"input complete -- results ready","Input incomplete",IF(Missing_Cost,"Missing cost!",IF(cost_buildup_error,"Error in buildup!",Annualized_Cost))) -> 44422.9933 | D22: Details
B23: Per 1,000 gallons average flow | C23: =IF(input_status<>"input complete -- results ready","Input incomplete",IF(Missing_Cost,"Missing cost!",IF(cost_buildup_error,"Error in buildup!",C273))) -> 1.294753521
B24: Per household per year | C24: =IF(input_status<>"input complete -- results ready","Input incomplete",IF(Missing_Cost,"Missing cost!",IF(cost_buildup_error,"Error in buildup!",C274))) -> 154.7416669
A27: Direct Capital Cost Details (items in italics, without a 1 in the "Use?" column, represent alternate costs and are excluded from total)
A28: WBS # | B28: Item | C28: Design Quantity | E28: Design Size | G28: Size used in estimate | I28: Unit Cost | J28: Total Cost | K28: Useful Life | L28: Use? | M28: Full Line Item Name | N28: Priority selection | W28: Useful Life
N29: Small (<1 mgd) | Q29: Medium (1-10 mgd) | T29: Large (>10 mgd)
N30: Low | O30: Mid | P30: High | Q30: Low | R30: Mid | S30: High | T30: Low | U30: Mid | V30: High | W30: Count? | X30: Depreciation
A31: 1. | B31: Aeration Basins
A32: 1.1 | B32: Custom Designed
A33: 1.1.1 | B33: Concrete | C33: =IF(design_type=1,0,num_tanks) -> 0 | D33: units | E33: =IF(C33=0,"NA",tank_vol) -> NA | F33: =IF(C33=0,"","gal/basin") ->  | G33: =IF(C33=0,"NA",tank_vol) -> NA | H33: =IF(C33=0,"","gal/basin") ->  | I33: =IF(C33=0,"NA",conc_volume/num_tanks*VLOOKUP(0,conc_basin_cost_cl,3)) -> NA | J33: =IF(C33=0,"--",IF(I33="contact vendor","--",C33*I33)) -> -- | K33: =IF(C33=0,"NA",VLOOKUP(0,conc_basin_cost_cl,IF(ss_cat="large",4,5))) -> NA | M33: =$B$31&" - "&$B$32&" - "&B33 -> Aeration Basins - Custom Designed - Concrete | N33: 1 | O33: 1 | P33: 1 | Q33: 1 | R33: 1 | S33: 1 | T33: 1 | U33: 1 | V33: 1 | W33: =IF(ISERROR(K33*L33),0,IF(K33<1,0,L33)) -> 0 | X33: =IF(W33,J33/K33,0) -> 0
A34: 1.1.2 | B34: Excavation | C34: =IF(design_type=1,0,excavation_vol) -> 0 | D34: cy | E34: NA | G34: NA | I34: =IF(C34=0,"NA",VLOOKUP(0,excavate_cost_cl,3)) -> NA | J34: =IF(C34=0,"--",IF(I34="contact vendor","--",C34*I34)) -> -- | K34: =IF(C34=0,"NA",VLOOKUP(0,conc_basin_cost_cl,IF(ss_cat="large",4,5))) -> NA | M34: =$B$31&" - "&$B$32&" - "&B34 -> Aeration Basins - Custom Designed - Excavation | N34: 1 | O34: 1 | P34: 1 | Q34: 1 | R34: 1 | S34: 1 | T34: 1 | U34: 1 | V34: 1 | W34: 0 | X34: 0
A35: 1.1.3 | B35: Backfill and Compaction | C35: =IF(design_type=1,0,backfill_vol) -> 0 | D35: cy | E35: NA | G35: NA | I35: =IF(C35=0,"NA",VLOOKUP(0,backfill_cost_cl,3)) -> NA | J35: =IF(C35=0,"--",IF(I35="contact vendor","--",C35*I35)) -> -- | K35: =IF(C35=0,"NA",VLOOKUP(0,conc_basin_cost_cl,IF(ss_cat="large",4,5))) -> NA | M35: =$B$31&" - "&$B$32&" - "&B35 -> Aeration Basins - Custom Designed - Backfill and Compaction | N35: 1 | O35: 1 | P35: 1 | Q35: 1 | R35: 1 | S35: 1 | T35: 1 | U35: 1 | V35: 1 | W35: 0 | X35: 0
A36: 1.1.4 | B36: Steel Cover | C36: =IF(design_type=1,0,cover_sf) -> 0 | D36: sf | E36: NA | G36: NA | I36: =IF(C36=0,"NA",VLOOKUP("checkered plate platform",metal_cost_cl,3)) -> NA | J36: =IF(C36=0,"--",IF(I36="contact vendor","--",C36*I36)) -> -- | K36: =IF(C36=0,"NA",VLOOKUP("checkered plate platform",metal_cost_cl,IF(ss_cat="large",4,5))) -> NA | M36: =$B$31&" - "&$B$32&" - "&B36 -> Aeration Basins - Custom Designed - Steel Cover | N36: 1 | O36: 1 | P36: 1 | Q36: 1 | R36: 1 | S36: 1 | T36: 1 | U36: 1 | V36: 1 | W36: 0 | X36: 0
A37: 1.1.5 | B37: Membrane Baffles | C37: =IF(design_type=1,0,num_baffles) -> 0 | D37: units | E37: =IF(C37=0,"NA",baffle_area) -> NA | F37: =IF($C37=0,"","sf/baffle") ->  | G37: =IF(C37=0,"NA",IF(curve=1,baffle_area,VLOOKUP(baffle_area,baffle_cost_cl,2))) -> NA | H37: =IF($C37=0,"","sf/baffle") ->  | I37: =IF(C37=0,"NA",IF(curve=1,baffle_eq,VLOOKUP(baffle_area,baffle_cost_cl,3))) -> NA | J37: =IF(C37=0,"--",IF(I37="contact vendor","--",C37*I37)) -> -- | K37: =IF(C37=0,"NA",VLOOKUP(baffle_area,baffle_cost_cl,IF(ss_cat="large",4,5))) -> NA | M37: =$B$31&" - "&$B$32&" - "&B37 -> Aeration Basins - Custom Designed - Membrane Baffles | N37: 1 | O37: 1 | P37: 1 | Q37: 1 | R37: 1 | S37: 1 | T37: 1 | U37: 1 | V37: 1 | W37: =IF(ISERROR(K37*L37),0,IF(K37<1,0,L37)) -> 0 | X37: =IF(W37,J37/K37,0) -> 0
A38: 1.2 | B38: Pre-engineered Package | W38: 0 | X38: 0
A39: 1.2.1 | B39: Stainless Steel | C39: =IF(design_type=1,num_tanks,0) -> 1 | D39: units | E39: =IF(C39=0,"NA",tank_sf) -> 360 | F39: =IF(C39=0,"","sf") -> sf | G39: =IF(C39=0,"NA",IF(curve=1,tank_sf,VLOOKUP(tank_sf,ss_basin_cost_cl,2))) -> 360 | H39: =IF(C39=0,"","sf") -> sf | I39: =IF(C39=0,"NA",IF(curve=1,ss_tank_eq,VLOOKUP(tank_sf,ss_basin_cost_cl,3))) -> 34947.51164 | J39: =IF(C39=0,"--",IF(I39="contact vendor","--",C39*I39)) -> 34947.51164 | K39: =IF(C39=0,"NA",VLOOKUP(tank_sf,ss_basin_cost_cl,IF(ss_cat="large",4,5))) -> 30 | L39: 0 | M39: =$B$31&" - "&$B$38&" - "&B39 -> Aeration Basins - Pre-engineered Package - Stainless Steel | N39: 3 | O39: 2 | P39: 1 | Q39: 3 | R39: 2 | S39: 1 | T39: 3 | U39: 2 | V39: 1 | W39: 0 | X39: 0
A40: 1.2.1 | B40: Plastic | C40: =IF(design_type=1,num_tanks,0) -> 1 | D40: units | E40: =IF(C40=0,"NA",tank_sf) -> 360 | F40: =IF(C40=0,"","sf") -> sf | G40: =IF(C40=0,"NA",IF(curve=1,tank_sf,VLOOKUP(tank_sf,pl_basin_cost_cl,2))) -> 360 | H40: =IF(C40=0,"","sf") -> sf | I40: =IF(C40=0,"NA",IF(curve=1,pl_tank_eq,VLOOKUP(tank_sf,pl_basin_cost_cl,3))) -> contact vendor | J40: -- | K40: =IF(C40=0,"NA",VLOOKUP(tank_sf,pl_basin_cost_cl,IF(ss_cat="large",4,5))) -> 20 | L40: 0 | M40: =$B$31&" - "&$B$38&" - "&B40 -> Aeration Basins - Pre-engineered Package - Plastic | N40: 1 | O40: 3 | P40: 3 | Q40: 1 | R40: 3 | S40: 3 | T40: 1 | U40: 3 | V40: 3 | W40: 0 | X40: 0
A41: 1.2.1 | B41: Fiberglass | C41: =IF(design_type=1,num_tanks,0) -> 1 | D41: units | E41: =IF(C41=0,"NA",tank_sf) -> 360 | F41: sf | G41: =IF(C41=0,"NA",IF(curve=1,tank_sf,VLOOKUP(tank_vol,fg_basin_cost_cl,2))) -> 360 | H41: sf | I41: =IF(C41=0,"NA",IF(curve=1,fg_tank_eq,VLOOKUP(tank_sf,fg_basin_cost_cl,3))) -> 17989.94938 | J41: 17989.94938 | K41: =IF(C41=0,"NA",VLOOKUP(tank_sf,fg_basin_cost_cl,IF(ss_cat="large",4,5))) -> 20 | L41: 1 | M41: =$B$31&" - "&$B$38&" - "&B41 -> Aeration Basins - Pre-engineered Package - Fiberglass | N41: 2 | O41: 1 | P41: 2 | Q41: 2 | R41: 1 | S41: 2 | T41: 2 | U41: 1 | V41: 2 | W41: 1 | X41: 899.497469
A42: 1.3 | B42: Aerators | W42: 0 | X42: 0
A43: 1.3.1 | B43: Diffusers | C43: =total_diffusers -> 18 | D43: units | E43: =diffuser_size -> 31.46250083 | F43: cfm | G43: =IF(curve=1,diffuser_size,VLOOKUP(diffuser_size,diffuser_cost_cl,2)) -> 31.46250083 | H43: cfm | I43: =IF(curve=1,diffuser_eq,VLOOKUP(diffuser_size,diffuser_cost_cl,3)) -> 55.47102214 | J43: =IF(C43=0,"--",IF(I43="contact vendor","--",C43*I43)) -> 998.4783985 | K43: =VLOOKUP(diffuser_size,diffuser_cost_cl,IF(ss_cat="large",4,5)) -> 10 | L43: 1 | M43: =$B$31&" - "&$B$42&" - "&B43 -> Aeration Basins - Aerators - Diffusers | N43: 1 | O43: 1 | P43: 1 | Q43: 1 | R43: 1 | S43: 1 | T43: 1 | U43: 1 | V43: 1 | W43: 1 | X43: 99.84783985
A44: 2. | B44: Pumps and Blowers | W44: 0 | X44: 0
A45: 2.1 | B45: Booster Pumps | C45: =total_pumps -> 2 | D45: units | E45: =IF(C45=0,"NA",pump_rating) -> 132.3784722 | F45: =IF(C45=0,"","gpm") -> gpm | G45: =IF(C45=0,"NA",IF(curve=1,pump_rating,VLOOKUP(pump_rating,dis75_pump_cost_cl,2))) -> 132.3784722 | H45: =IF(C45=0,"","gpm") -> gpm | I45: =IF(C45=0,"NA",IF(curve=1,pump_eq,VLOOKUP(pump_rating,dis75_pump_cost_cl,3))) -> 7411.614025 | J45: =IF(C45=0,"--",IF(I45="contact vendor","--",C45*I45)) -> 14823.22805 | K45: =IF(C45=0,"NA",VLOOKUP(pump_rating,dis75_pump_cost_cl,IF(ss_cat="large",4,5))) -> 17 | L45: 1 | M45: =B44&" - "&B45 -> Pumps and Blowers - Booster Pumps | N45: 1 | O45: 1 | P45: 1 | Q45: 1 | R45: 1 | S45: 1 | T45: 1 | U45: 1 | V45: 1 | W45: 1 | X45: 871.9545912
A46: 2.2 | B46: Centrifugal Blowers | C46: =total_blowers -> 2 | D46: units | E46: =blower_rating -> 707.9062686 | F46: cfm | G46: =IF(curve=1,blower_rating,VLOOKUP(blower_rating,cent_blow_cost_cl,2)) -> 707.9062686 | H46: cfm | I46: =IF(curve=1,cent_blow_eq,VLOOKUP(blower_rating,cent_blow_cost_cl,3)) -> 39675.07184 | J46: 79350.14367 | K46: =VLOOKUP(blower_rating,cent_blow_cost_cl,IF(ss_cat="large",4,5)) -> 20 | L46: 1 | M46: =B44&" - "&B46 -> Pumps and Blowers - Centrifugal Blowers | N46: 1 | O46: 1 | P46: 1 | Q46: 1 | R46: 1 | S46: 1 | T46: 1 | U46: 1 | V46: 1 | W46: 1 | X46: 3967.507184
A47: 3. | B47: Piping | W47: 0 | X47: 0
A48: 3.1 | B48: Process Piping | W48: 0 | X48: 0
A49: 3.1.1 | B49: Ductile Iron | C49: =h2o_pipe_length -> 40 | D49: lf | E49: =h2o_pipe_diam -> 4 | F49: in. diam | G49: =IF(curve=1,h2o_pipe_diam,VLOOKUP(h2o_pipe_diam,di_pipe_cost_cl,2)) -> 4 | H49: in. diam | I49: =IF(curve=1,di_pipe_eq_h2o,VLOOKUP(h2o_pipe_diam,di_pipe_cost_cl,3)) -> 32.40624467 | J49: =IF(C49=0,"--",IF(I49="contact vendor","--",C49*I49)) -> 1296.249787 | K49: =VLOOKUP(h2o_pipe_diam,di_pipe_cost_cl,IF(ss_cat="large",4,5)) -> 35 | L49: 0 | M49: =$B$48&" - "&B49 -> Process Piping - Ductile Iron | N49: 3 | O49: 3 | P49: 3 | Q49: 3 | R49: 3 | S49: 3 | T49: 3 | U49: 3 | V49: 3 | W49: 0 | X49: 0
A50: 3.1.1 | B50: CPVC | C50: =h2o_pipe_length -> 40 | D50: lf | E50: =h2o_pipe_diam -> 4 | F50: in. diam | G50: =IF(curve=1,h2o_pipe_diam,VLOOKUP(h2o_pipe_diam,cpvc_pipe_cost_cl,2)) -> 4 | H50: in. diam | I50: =IF(curve=1,cpvc_pipe_eq_h2o,VLOOKUP(h2o_pipe_diam,cpvc_pipe_cost_cl,3)) -> 22.32621518 | J50: 893.0486072 | K50: =VLOOKUP(h2o_pipe_diam,cpvc_pipe_cost_cl,IF(ss_cat="large",4,5)) -> 17 | L50: 0 | M50: =$B$48&" - "&B50 -> Process Piping - CPVC | N50: 2 | O50: 1 | P50: 4 | Q50: 2 | R50: 1 | S50: 4 | T50: 2 | U50: 1 | V50: 4 | W50: 0 | X50: 0
A51: 3.1.1 | B51: PVC | C51: =h2o_pipe_length -> 40 | D51: lf | E51: =h2o_pipe_diam -> 4 | F51: in. diam | G51: =IF(curve=1,h2o_pipe_diam,VLOOKUP(h2o_pipe_diam,pvc_pipe_cost_cl,2)) -> 4 | H51: in. diam | I51: =IF(curve=1,pvc_pipe_eq_h2o,VLOOKUP(h2o_pipe_diam,pvc_pipe_cost_cl,3)) -> 4.795500109 | J51: 191.8200044 | K51: =VLOOKUP(h2o_pipe_diam,pvc_pipe_cost_cl,IF(ss_cat="large",4,5)) -> 17 | L51: 1 | M51: =$B$48&" - "&B51 -> Process Piping - PVC | N51: 1 | O51: 2 | P51: 5 | Q51: 1 | R51: 2 | S51: 5 | T51: 1 | U51: 2 | V51: 5 | W51: 1 | X51: 11.28352967
A52: 3.1.1 | B52: Stainless Steel | C52: =h2o_pipe_length -> 40 | D52: lf | E52: =h2o_pipe_diam -> 4 | F52: in. diam | G52: =IF(curve=1,h2o_pipe_diam,VLOOKUP(h2o_pipe_diam,ss_pipe_cost_cl,2)) -> 4 | H52: in. diam | I52: =IF(curve=1,ss_pipe_eq_h2o,VLOOKUP(h2o_pipe_diam,ss_pipe_cost_cl,3)) -> 119.1310618 | J52: 4765.242474 | K52: =VLOOKUP(h2o_pipe_diam,ss_pipe_cost_cl,IF(ss_cat="large",4,5)) -> 40 | L52: 0 | M52: =$B$48&" - "&B52 -> Process Piping - Stainless Steel | N52: 5 | O52: 5 | P52: 1 | Q52: 5 | R52: 5 | S52: 1 | T52: 5 | U52: 5 | V52: 1 | W52: 0 | X52: 0
A53: 3.1.1 | B53: Steel | C53: =h2o_pipe_length -> 40 | D53: lf | E53: =h2o_pipe_diam -> 4 | F53: in. diam | G53: =IF(curve=1,h2o_pipe_diam,VLOOKUP(h2o_pipe_diam,st_pipe_cost_cl,2)) -> 4 | H53: in. diam | I53: =IF(curve=1,st_pipe_eq_h2o,VLOOKUP(h2o_pipe_diam,st_pipe_cost_cl,3)) -> 69.32333845 | J53: 2772.933538 | K53: =VLOOKUP(h2o_pipe_diam,st_pipe_cost_cl,IF(ss_cat="large",4,5)) -> 33 | L53: 0 | M53: =$B$48&" - "&B53 -> Process Piping - Steel | N53: 4 | O53: 4 | P53: 2 | Q53: 4 | R53: 4 | S53: 2 | T53: 4 | U53: 4 | V53: 2 | W53: 0 | X53: 0
A54: 3.2 | B54: Air Piping | W54: 0 | X54: 0
A55: 3.2.1 | B55: Ductile Iron | C55: =air_pipe_length -> 82 | D55: lf | E55: =air_pipe_diam -> 4 | F55: in. diam | G55: =IF(curve=1,air_pipe_diam,VLOOKUP(air_pipe_diam,di_pipe_cost_cl,2)) -> 4 | H55: in. diam | I55: =IF(curve=1,di_pipe_eq_air,VLOOKUP(air_pipe_diam,di_pipe_cost_cl,3)) -> 32.40624467 | J55: =IF(C55=0,"--",IF(I55="contact vendor","--",C55*I55)) -> 2657.312063 | K55: =VLOOKUP(air_pipe_diam,di_pipe_cost_cl,IF(ss_cat="large",4,5)) -> 35 | L55: 0 | M55: =$B$54&" - "&B55 -> Air Piping - Ductile Iron | N55: 3 | O55: 3 | P55: 3 | Q55: 3 | R55: 3 | S55: 3 | T55: 3 | U55: 3 | V55: 3 | W55: 0 | X55: 0
A56: 3.2.1 | B56: CPVC | C56: =air_pipe_length -> 82 | D56: lf | E56: =air_pipe_diam -> 4 | F56: in. diam | G56: =IF(curve=1,air_pipe_diam,VLOOKUP(air_pipe_diam,cpvc_pipe_cost_cl,2)) -> 4 | H56: in. diam | I56: =IF(curve=1,cpvc_pipe_eq_air,VLOOKUP(air_pipe_diam,cpvc_pipe_cost_cl,3)) -> 22.32621518 | J56: 1830.749645 | K56: =VLOOKUP(air_pipe_diam,cpvc_pipe_cost_cl,IF(ss_cat="large",4,5)) -> 17 | L56: 0 | M56: =$B$54&" - "&B56 -> Air Piping - CPVC | N56: 2 | O56: 1 | P56: 4 | Q56: 2 | R56: 1 | S56: 4 | T56: 2 | U56: 1 | V56: 4 | W56: 0 | X56: 0
A57: 3.2.1 | B57: PVC | C57: =air_pipe_length -> 82 | D57: lf | E57: =air_pipe_diam -> 4 | F57: in. diam | G57: =IF(curve=1,air_pipe_diam,VLOOKUP(air_pipe_diam,pvc_pipe_cost_cl,2)) -> 4 | H57: in. diam | I57: =IF(curve=1,pvc_pipe_eq_air,VLOOKUP(air_pipe_diam,pvc_pipe_cost_cl,3)) -> 4.795500109 | J57: 393.2310089 | K57: =VLOOKUP(air_pipe_diam,pvc_pipe_cost_cl,IF(ss_cat="large",4,5)) -> 17 | L57: 1 | M57: =$B$54&" - "&B57 -> Air Piping - PVC | N57: 1 | O57: 2 | P57: 5 | Q57: 1 | R57: 2 | S57: 5 | T57: 1 | U57: 2 | V57: 5 | W57: 1 | X57: 23.13123582
A58: 3.2.1 | B58: Stainless Steel | C58: =air_pipe_length -> 82 | D58: lf | E58: =air_pipe_diam -> 4 | F58: in. diam | G58: =IF(curve=1,air_pipe_diam,VLOOKUP(air_pipe_diam,ss_pipe_cost_cl,2)) -> 4 | H58: in. diam | I58: =IF(curve=1,ss_pipe_eq_air,VLOOKUP(air_pipe_diam,ss_pipe_cost_cl,3)) -> 119.1310618 | J58: 9768.747071 | K58: =VLOOKUP(air_pipe_diam,ss_pipe_cost_cl,IF(ss_cat="large",4,5)) -> 40 | L58: 0 | M58: =$B$54&" - "&B58 -> Air Piping - Stainless Steel | N58: 5 | O58: 5 | P58: 1 | Q58: 5 | R58: 5 | S58: 1 | T58: 5 | U58: 5 | V58: 1 | W58: 0 | X58: 0
A59: 3.2.1 | B59: Steel | C59: =air_pipe_length -> 82 | D59: lf | E59: =air_pipe_diam -> 4 | F59: in. diam | G59: =IF(curve=1,air_pipe_diam,VLOOKUP(air_pipe_diam,st_pipe_cost_cl,2)) -> 4 | H59: in. diam | I59: =IF(curve=1,st_pipe_eq_air,VLOOKUP(air_pipe_diam,st_pipe_cost_cl,3)) -> 69.32333845 | J59: 5684.513753 | K59: =VLOOKUP(air_pipe_diam,st_pipe_cost_cl,IF(ss_cat="large",4,5)) -> 33 | L59: 0 | M59: =$B$54&" - "&B59 -> Air Piping - Steel | N59: 4 | O59: 4 | P59: 2 | Q59: 4 | R59: 4 | S59: 2 | T59: 4 | U59: 4 | V59: 2 | W59: 0 | X59: 0
A60: 3.3 | B60: Inlet and Outlet Piping | W60: 0 | X60: 0
A61: 3.3.1 | B61: Ductile Iron | C61: =in_out_pipe_length -> 40 | D61: lf | E61: =in_out_pipe_diam -> 4 | F61: in. diam | G61: =IF(curve=1,in_out_pipe_diam,VLOOKUP(in_out_pipe_diam,di_pipe_cost_cl,2)) -> 4 | H61: in. diam | I61: =IF(curve=1,di_pipe_eq_in_out,VLOOKUP(in_out_pipe_diam,di_pipe_cost_cl,3)) -> 32.40624467 | J61: =IF(C61=0,"--",IF(I61="contact vendor","--",C61*I61)) -> 1296.249787 | K61: =VLOOKUP(in_out_pipe_diam,di_pipe_cost_cl,IF(ss_cat="large",4,5)) -> 35 | L61: 0 | M61: =$B$60&" - "&B61 -> Inlet and Outlet Piping - Ductile Iron | N61: 3 | O61: 3 | P61: 3 | Q61: 3 | R61: 3 | S61: 3 | T61: 3 | U61: 3 | V61: 3 | W61: 0 | X61: 0
A62: 3.3.1 | B62: CPVC | C62: =in_out_pipe_length -> 40 | D62: lf | E62: =in_out_pipe_diam -> 4 | F62: in. diam | G62: =IF(curve=1,in_out_pipe_diam,VLOOKUP(in_out_pipe_diam,cpvc_pipe_cost_cl,2)) -> 4 | H62: in. diam | I62: =IF(curve=1,cpvc_pipe_eq_in_out,VLOOKUP(in_out_pipe_diam,cpvc_pipe_cost_cl,3)) -> 22.32621518 | J62: 893.0486072 | K62: =VLOOKUP(in_out_pipe_diam,cpvc_pipe_cost_cl,IF(ss_cat="large",4,5)) -> 17 | L62: 0 | M62: =$B$60&" - "&B62 -> Inlet and Outlet Piping - CPVC | N62: 2 | O62: 1 | P62: 4 | Q62: 2 | R62: 1 | S62: 4 | T62: 2 | U62: 1 | V62: 4 | W62: 0 | X62: 0
A63: 3.3.1 | B63: PVC | C63: =in_out_pipe_length -> 40 | D63: lf | E63: =in_out_pipe_diam -> 4 | F63: in. diam | G63: =IF(curve=1,in_out_pipe_diam,VLOOKUP(in_out_pipe_diam,pvc_pipe_cost_cl,2)) -> 4 | H63: in. diam | I63: =IF(curve=1,pvc_pipe_eq_in_out,VLOOKUP(in_out_pipe_diam,pvc_pipe_cost_cl,3)) -> 4.795500109 | J63: 191.8200044 | K63: =VLOOKUP(in_out_pipe_diam,pvc_pipe_cost_cl,IF(ss_cat="large",4,5)) -> 17 | L63: 1 | M63: =$B$60&" - "&B63 -> Inlet and Outlet Piping - PVC | N63: 1 | O63: 2 | P63: 5 | Q63: 1 | R63: 2 | S63: 5 | T63: 1 | U63: 2 | V63: 5 | W63: 1 | X63: 11.28352967
A64: 3.3.1 | B64: Stainless Steel | C64: =in_out_pipe_length -> 40 | D64: lf | E64: =in_out_pipe_diam -> 4 | F64: in. diam | G64: =IF(curve=1,in_out_pipe_diam,VLOOKUP(in_out_pipe_diam,ss_pipe_cost_cl,2)) -> 4 | H64: in. diam | I64: =IF(curve=1,ss_pipe_eq_in_out,VLOOKUP(in_out_pipe_diam,ss_pipe_cost_cl,3)) -> 119.1310618 | J64: 4765.242474 | K64: =VLOOKUP(in_out_pipe_diam,ss_pipe_cost_cl,IF(ss_cat="large",4,5)) -> 40 | L64: 0 | M64: =$B$60&" - "&B64 -> Inlet and Outlet Piping - Stainless Steel | N64: 5 | O64: 5 | P64: 1 | Q64: 5 | R64: 5 | S64: 1 | T64: 5 | U64: 5 | V64: 1 | W64: =IF(ISERROR(K64*L64),0,IF(K64<1,0,L64)) -> 0 | X64: =IF(W64,J64/K64,0) -> 0
A65: 3.3.1 | B65: Steel | C65: =in_out_pipe_length -> 40 | D65: lf | E65: =in_out_pipe_diam -> 4 | F65: in. diam | G65: =IF(curve=1,in_out_pipe_diam,VLOOKUP(in_out_pipe_diam,st_pipe_cost_cl,2)) -> 4 | H65: in. diam | I65: =IF(curve=1,st_pipe_eq_in_out,VLOOKUP(in_out_pipe_diam,st_pipe_cost_cl,3)) -> 69.32333845 | J65: 2772.933538 | K65: =VLOOKUP(in_out_pipe_diam,st_pipe_cost_cl,IF(ss_cat="large",4,5)) -> 33 | L65: 0 | M65: =$B$60&" - "&B65 -> Inlet and Outlet Piping - Steel | N65: 4 | O65: 4 | P65: 2 | Q65: 4 | R65: 4 | S65: 2 | T65: 4 | U65: 4 | V65: 2 | W65: 0 | X65: 0
A66: 3.4 | B66: Bypass Piping | W66: 0 | X66: 0
A67: 3.4.1 | B67: Ductile Iron | C67: =bp_pipe_length -> 0 | D67: lf | E67: =IF(C67=0,"NA",bp_pipe_diam) -> NA | F67: =IF(C67=0,"","in. diam") ->  | G67: =IF(C67=0,"NA",IF(curve=1,bp_pipe_diam,VLOOKUP(bp_pipe_diam,di_pipe_cost_cl,2))) -> NA | H67: =IF(C67=0,"","in. diam") ->  | I67: =IF(C67=0,"NA",IF(curve=1,di_pipe_eq_bp,VLOOKUP(bp_pipe_diam,di_pipe_cost_cl,3))) -> NA | J67: =IF(C67=0,"--",IF(I67="contact vendor","--",C67*I67)) -> -- | K67: =IF(C67=0,"NA",VLOOKUP(bp_pipe_diam,di_pipe_cost_cl,IF(ss_cat="large",4,5))) -> NA | M67: =$B$66&" - "&B67 -> Bypass Piping - Ductile Iron | N67: 3 | O67: 3 | P67: 3 | Q67: 3 | R67: 3 | S67: 3 | T67: 3 | U67: 3 | V67: 3 | W67: 0 | X67: 0
A68: 3.4.1 | B68: CPVC | C68: =bp_pipe_length -> 0 | D68: lf | E68: =IF(C68=0,"NA",bp_pipe_diam) -> NA | F68: =IF(C68=0,"","in. diam") ->  | G68: =IF(C68=0,"NA",IF(curve=1,bp_pipe_diam,VLOOKUP(bp_pipe_diam,cpvc_pipe_cost_cl,2))) -> NA | H68: =IF(C68=0,"","in. diam") ->  | I68: =IF(C68=0,"NA",IF(curve=1,cpvc_pipe_eq_bp,VLOOKUP(bp_pipe_diam,cpvc_pipe_cost_cl,3))) -> NA | J68: -- | K68: =IF(C68=0,"NA",VLOOKUP(bp_pipe_diam,cpvc_pipe_cost_cl,IF(ss_cat="large",4,5))) -> NA | M68: =$B$66&" - "&B68 -> Bypass Piping - CPVC | N68: 2 | O68: 1 | P68: 4 | Q68: 2 | R68: 1 | S68: 4 | T68: 2 | U68: 1 | V68: 4 | W68: 0 | X68: 0
A69: 3.4.1 | B69: PVC | C69: =bp_pipe_length -> 0 | D69: lf | E69: =IF(C69=0,"NA",bp_pipe_diam) -> NA | G69: =IF(C69=0,"NA",IF(curve=1,bp_pipe_diam,VLOOKUP(bp_pipe_diam,pvc_pipe_cost_cl,2))) -> NA | H69: =IF(C69=0,"","in. diam") ->  | I69: =IF(C69=0,"NA",IF(curve=1,pvc_pipe_eq_bp,VLOOKUP(bp_pipe_diam,pvc_pipe_cost_cl,3))) -> NA | J69: -- | K69: =IF(C69=0,"NA",VLOOKUP(bp_pipe_diam,pvc_pipe_cost_cl,IF(ss_cat="large",4,5))) -> NA | M69: =$B$66&" - "&B69 -> Bypass Piping - PVC | N69: 1 | O69: 2 | P69: 5 | Q69: 1 | R69: 2 | S69: 5 | T69: 1 | U69: 2 | V69: 5 | W69: 0 | X69: 0
A70: 3.4.1 | B70: Stainless Steel | C70: =bp_pipe_length -> 0 | D70: lf | E70: =IF(C70=0,"NA",bp_pipe_diam) -> NA | G70: =IF(C70=0,"NA",IF(curve=1,bp_pipe_diam,VLOOKUP(bp_pipe_diam,ss_pipe_cost_cl,2))) -> NA | H70: =IF(C70=0,"","in. diam") ->  | I70: =IF(C70=0,"NA",IF(curve=1,ss_pipe_eq_bp,VLOOKUP(bp_pipe_diam,ss_pipe_cost_cl,3))) -> NA | J70: -- | K70: =IF(C70=0,"NA",VLOOKUP(bp_pipe_diam,ss_pipe_cost_cl,IF(ss_cat="large",4,5))) -> NA | M70: =$B$66&" - "&B70 -> Bypass Piping - Stainless Steel | N70: 5 | O70: 5 | P70: 1 | Q70: 5 | R70: 5 | S70: 1 | T70: 5 | U70: 5 | V70: 1 | W70: 0 | X70: 0
A71: 3.4.1 | B71: Steel | C71: =bp_pipe_length -> 0 | D71: lf | E71: =IF(C71=0,"NA",bp_pipe_diam) -> NA | G71: =IF(C71=0,"NA",IF(curve=1,bp_pipe_diam,VLOOKUP(bp_pipe_diam,st_pipe_cost_cl,2))) -> NA | H71: =IF(C71=0,"","in. diam") ->  | I71: =IF(C71=0,"NA",IF(curve=1,st_pipe_eq_bp,VLOOKUP(bp_pipe_diam,st_pipe_cost_cl,3))) -> NA | J71: -- | K71: =IF(C71=0,"NA",VLOOKUP(bp_pipe_diam,st_pipe_cost_cl,IF(ss_cat="large",4,5))) -> NA | M71: =$B$66&" - "&B71 -> Bypass Piping - Steel | N71: 4 | O71: 4 | P71: 2 | Q71: 4 | R71: 4 | S71: 2 | T71: 4 | U71: 4 | V71: 2 | W71: 0 | X71: 0
A72: 4. | B72: Valves | W72: 0 | X72: 0
A73: 4.1 | B73: Motor/Air Operated | W73: 0 | X73: 0
A74: 4.1.1 | B74: Process - Polypropylene/PVC | C74: =tot_proc_MOVs -> 0 | D74: units | E74: =IF(C74=0,"NA",tank_valve_size) -> NA | F74: =IF($C74=0,"","in. diam") ->  | G74: =IF(C74=0,"NA",IF(curve=1,tank_valve_size,VLOOKUP(tank_valve_size,pp_mov_cost_cl,2))) -> NA | H74: =IF($C74=0,"","in. diam") ->  | I74: =IF(C74=0,"NA",IF(curve=1,pp_mov_eq_tank,VLOOKUP(tank_valve_size,pp_mov_cost_cl,3))) -> NA | J74: =IF(C74=0,"--",IF(I74="contact vendor","--",C74*I74)) -> -- | K74: =IF(C74=0,"NA",VLOOKUP(tank_valve_size,pp_mov_cost_cl,IF(ss_cat="large",4,5))) -> NA | M74: =$B$72&" - "&$B$73&" - "&B74 -> Valves - Motor/Air Operated - Process - Polypropylene/PVC | N74: 1 | O74: 2 | P74: 3 | Q74: 1 | R74: 2 | S74: 3 | T74: 1 | U74: 2 | V74: 3 | W74: 0 | X74: 0
A75: 4.1.1 | B75: Process - Stainless Steel | C75: =tot_proc_MOVs -> 0 | D75: units | E75: =IF(C75=0,"NA",tank_valve_size) -> NA | F75: =IF($C75=0,"","in. diam") ->  | G75: =IF(C75=0,"NA",IF(curve=1,tank_valve_size,VLOOKUP(tank_valve_size,ss_mov_cost_cl,2))) -> NA | I75: =IF(C75=0,"NA",IF(curve=1,ss_mov_eq_tank,VLOOKUP(tank_valve_size,ss_mov_cost_cl,3))) -> NA | J75: -- | K75: =IF(C75=0,"NA",VLOOKUP(tank_valve_size,ss_mov_cost_cl,IF(ss_cat="large",4,5))) -> NA | M75: Valves - Motor/Air Operated - Process - Stainless Steel | N75: 3 | O75: 3 | P75: 1 | Q75: 3 | R75: 3 | S75: 1 | T75: 3 | U75: 3 | V75: 1 | W75: 0 | X75: 0
A76: 4.1.1 | B76: Process - Cast Iron | C76: =tot_proc_MOVs -> 0 | D76: units | E76: =IF(C76=0,"NA",tank_valve_size) -> NA | G76: =IF(C76=0,"NA",IF(curve=1,tank_valve_size,VLOOKUP(tank_valve_size,ci_mov_cost_cl,2))) -> NA | I76: =IF(C76=0,"NA",IF(curve=1,ci_mov_eq_tank,VLOOKUP(tank_valve_size,ci_mov_cost_cl,3))) -> NA | J76: -- | K76: =IF(C76=0,"NA",VLOOKUP(tank_valve_size,ci_mov_cost_cl,IF(ss_cat="large",4,5))) -> NA | M76: Valves - Motor/Air Operated - Process - Cast Iron | N76: 2 | O76: 1 | P76: 2 | Q76: 2 | R76: 1 | S76: 2 | T76: 2 | U76: 1 | V76: 2 | W76: 0 | X76: 0
A77: 4.1.2 | B77: Air - Polypropylene/PVC | C77: =tot_air_MOVs -> 0 | D77: units | E77: =IF(C77=0,"NA",air_valve_size) -> NA | G77: =IF(C77=0,"NA",IF(curve=1,air_valve_size,VLOOKUP(air_valve_size,pp_mov_cost_cl,2))) -> NA | I77: =IF(C77=0,"NA",IF(curve=1,pp_mov_eq_air,VLOOKUP(air_valve_size,pp_mov_cost_cl,3))) -> NA | J77: -- | K77: =IF(C77=0,"NA",VLOOKUP(air_valve_size,pp_mov_cost_cl,IF(ss_cat="large",4,5))) -> NA | M77: Valves - Motor/Air Operated - Air - Polypropylene/PVC | N77: 1 | O77: 2 | P77: 3 | Q77: 1 | R77: 2 | S77: 3 | T77: 1 | U77: 2 | V77: 3 | W77: 0 | X77: 0
A78: 4.1.2 | B78: Air - Stainless Steel | C78: =tot_air_MOVs -> 0 | D78: units | E78: =IF(C78=0,"NA",air_valve_size) -> NA | G78: =IF(C78=0,"NA",IF(curve=1,air_valve_size,VLOOKUP(air_valve_size,ss_mov_cost_cl,2))) -> NA | I78: =IF(C78=0,"NA",IF(curve=1,ss_mov_eq_air,VLOOKUP(air_valve_size,ss_mov_cost_cl,3))) -> NA | J78: -- | K78: =IF(C78=0,"NA",VLOOKUP(air_valve_size,ss_mov_cost_cl,IF(ss_cat="large",4,5))) -> NA | M78: Valves - Motor/Air Operated - Air - Stainless Steel | N78: 3 | O78: 3 | P78: 1 | Q78: 3 | R78: 3 | S78: 1 | T78: 3 | U78: 3 | V78: 1 | W78: 0 | X78: 0
A79: 4.1.2 | B79: Air - Cast Iron | C79: =tot_air_MOVs -> 0 | D79: units | E79: =IF(C79=0,"NA",air_valve_size) -> NA | G79: =IF(C79=0,"NA",IF(curve=1,air_valve_size,VLOOKUP(air_valve_size,ci_mov_cost_cl,2))) -> NA | I79: =IF(C79=0,"NA",IF(curve=1,ci_mov_eq_air,VLOOKUP(air_valve_size,ci_mov_cost_cl,3))) -> NA | J79: -- | K79: =IF(C79=0,"NA",VLOOKUP(air_valve_size,ci_mov_cost_cl,IF(ss_cat="large",4,5))) -> NA | M79: Valves - Motor/Air Operated - Air - Cast Iron | N79: 2 | O79: 1 | P79: 2 | Q79: 2 | R79: 1 | S79: 2 | T79: 2 | U79: 1 | V79: 2 | W79: 0 | X79: 0
A80: 4.1.3 | B80: Bypass - Polypropylene/PVC | C80: =tot_bp_MOVs -> 0 | D80: units | E80: =IF(C80=0,"NA",bypass_valve_size) -> NA | G80: =IF(C80=0,"NA",IF(curve=1,bypass_valve_size,VLOOKUP(bypass_valve_size,pp_mov_cost_cl,2))) -> NA | I80: =IF(C80=0,"NA",IF(curve=1,pp_mov_eq_bp,VLOOKUP(bypass_valve_size,pp_mov_cost_cl,3))) -> NA | J80: -- | K80: =IF(C80=0,"NA",VLOOKUP(bypass_valve_size,pp_mov_cost_cl,IF(ss_cat="large",4,5))) -> NA | M80: =$B$72&" - "&$B$73&" - "&B80 -> Valves - Motor/Air Operated - Bypass - Polypropylene/PVC | N80: 1 | O80: 2 | P80: 3 | Q80: 1 | R80: 2 | S80: 3 | T80: 1 | U80: 2 | V80: 3 | W80: 0 | X80: 0
A81: 4.1.3 | B81: Bypass - Stainless Steel | C81: =tot_bp_MOVs -> 0 | D81: units | E81: =IF(C81=0,"NA",bypass_valve_size) -> NA | G81: =IF(C81=0,"NA",IF(curve=1,bypass_valve_size,VLOOKUP(bypass_valve_size,ss_mov_cost_cl,2))) -> NA | I81: =IF(C81=0,"NA",IF(curve=1,ss_mov_eq_bp,VLOOKUP(bypass_valve_size,ss_mov_cost_cl,3))) -> NA | J81: -- | K81: =IF(C81=0,"NA",VLOOKUP(bypass_valve_size,ss_mov_cost_cl,IF(ss_cat="large",4,5))) -> NA | M81: =$B$72&" - "&$B$73&" - "&B81 -> Valves - Motor/Air Operated - Bypass - Stainless Steel | N81: 3 | O81: 3 | P81: 1 | Q81: 3 | R81: 3 | S81: 1 | T81: 3 | U81: 3 | V81: 1 | W81: 0 | X81: 0
A82: 4.1.3 | B82: Bypass - Cast Iron | C82: =tot_bp_MOVs -> 0 | D82: units | E82: =IF(C82=0,"NA",bypass_valve_size) -> NA | G82: =IF(C82=0,"NA",IF(curve=1,bypass_valve_size,VLOOKUP(bypass_valve_size,ci_mov_cost_cl,2))) -> NA | I82: =IF(C82=0,"NA",IF(curve=1,ci_mov_eq_bp,VLOOKUP(bypass_valve_size,ci_mov_cost_cl,3))) -> NA | J82: -- | K82: =IF(C82=0,"NA",VLOOKUP(bypass_valve_size,ci_mov_cost_cl,IF(ss_cat="large",4,5))) -> NA | M82: =$B$72&" - "&$B$73&" - "&B82 -> Valves - Motor/Air Operated - Bypass - Cast Iron | N82: 2 | O82: 1 | P82: 2 | Q82: 2 | R82: 1 | S82: 2 | T82: 2 | U82: 1 | V82: 2 | W82: 0 | X82: 0
A83: 4.2 | B83: Manual | W83: 0 | X83: 0
A84: 4.2.1 | B84: Inlet and outlet - Polypropylene/PVC | C84: =tot_man_valves -> 2 | D84: units | E84: =in_valve_size -> 4 | F84: in. diam | G84: =IF(curve=1,in_valve_size,VLOOKUP(in_valve_size,pp_man_cost_cl,2)) -> 4 | H84: in. diam | I84: =IF(curve=1,pp_man_eq,VLOOKUP(in_valve_size,pp_man_cost_cl,3)) -> 445.9825708 | J84: =IF(C84=0,"--",IF(I84="contact vendor","--",C84*I84)) -> 891.9651416 | K84: =VLOOKUP(in_valve_size,pp_man_cost_cl,IF(ss_cat="large",4,5)) -> 20 | L84: 1 | M84: =$B$72&" - "&$B$83&" - "&B84 -> Valves - Manual - Inlet and outlet - Polypropylene/PVC | N84: 1 | O84: 2 | P84: 3 | Q84: 1 | R84: 2 | S84: 3 | T84: 1 | U84: 2 | V84: 3 | W84: 1 | X84: 44.59825708
A85: 4.2.1 | B85: Inlet and outlet - Stainless Steel | C85: =tot_man_valves -> 2 | D85: units | E85: =in_valve_size -> 4 | F85: in. diam | G85: =IF(curve=1,in_valve_size,VLOOKUP(in_valve_size,ss_man_cost_cl,2)) -> 4 | H85: in. diam | I85: =IF(curve=1,ss_man_eq,VLOOKUP(in_valve_size,ss_man_cost_cl,3)) -> 2273.066221 | J85: 4546.132442 | K85: =VLOOKUP(in_valve_size,ss_man_cost_cl,IF(ss_cat="large",4,5)) -> 20 | L85: 0 | M85: =$B$72&" - "&$B$83&" - "&B85 -> Valves - Manual - Inlet and outlet - Stainless Steel | N85: 3 | O85: 3 | P85: 1 | Q85: 3 | R85: 3 | S85: 1 | T85: 3 | U85: 3 | V85: 1 | W85: 0 | X85: 0
A86: 4.2.1 | B86: Inlet and outlet - Cast Iron | C86: =tot_man_valves -> 2 | D86: units | E86: =in_valve_size -> 4 | F86: in. diam | G86: =IF(curve=1,in_valve_size,VLOOKUP(in_valve_size,ci_bfv_cost_cl,2)) -> 4 | H86: in. diam | I86: =IF(curve=1,ci_bfv_eq,VLOOKUP(in_valve_size,ci_bfv_cost_cl,3)) -> 692.6912178 | J86: 1385.382436 | K86: =VLOOKUP(in_valve_size,ci_bfv_cost_cl,IF(ss_cat="large",4,5)) -> 20 | L86: 0 | M86: =$B$72&" - "&$B$83&" - "&B86 -> Valves - Manual - Inlet and outlet - Cast Iron | N86: 2 | O86: 1 | P86: 2 | Q86: 2 | R86: 1 | S86: 2 | T86: 2 | U86: 1 | V86: 2 | W86: 0 | X86: 0
A87: 4.2.2 | B87: Process - Polypropylene/PVC | C87: =tot_proc_man -> 6 | D87: units | E87: =IF(C87=0,"NA",tank_valve_size) -> 4 | F87: =IF($C87=0,"","in. diam") -> in. diam | G87: =IF(C87=0,"NA",IF(curve=1,tank_valve_size,VLOOKUP(tank_valve_size,pp_man_cost_cl,2))) -> 4 | H87: =IF($C87=0,"","in. diam") -> in. diam | I87: =IF(C87=0,"NA",IF(curve=1,pp_man_eq_tank,VLOOKUP(tank_valve_size,pp_man_cost_cl,3))) -> 445.9825708 | J87: 2675.895425 | K87: =IF(C87=0,"NA",VLOOKUP(tank_valve_size,pp_man_cost_cl,IF(ss_cat="large",4,5))) -> 20 | L87: 1 | M87: =$B$72&" - "&$B$83&" - "&B87 -> Valves - Manual - Process - Polypropylene/PVC | N87: 1 | O87: 2 | P87: 3 | Q87: 1 | R87: 2 | S87: 3 | T87: 1 | U87: 2 | V87: 3 | W87: 1 | X87: 133.7947712
A88: 4.2.2 | B88: Process - Stainless Steel | C88: =tot_proc_man -> 6 | D88: units | E88: =IF(C88=0,"NA",tank_valve_size) -> 4 | F88: =IF($C88=0,"","in. diam") -> in. diam | G88: =IF(C88=0,"NA",IF(curve=1,tank_valve_size,VLOOKUP(tank_valve_size,ss_man_cost_cl,2))) -> 4 | H88: in. diam | I88: =IF(C88=0,"NA",IF(curve=1,ss_man_eq_tank,VLOOKUP(tank_valve_size,ss_man_cost_cl,3))) -> 2273.066221 | J88: 13638.39733 | K88: =IF(C88=0,"NA",VLOOKUP(tank_valve_size,ss_man_cost_cl,IF(ss_cat="large",4,5))) -> 20 | L88: 0 | M88: Valves - Manual - Process - Stainless Steel | N88: 3 | O88: 3 | P88: 1 | Q88: 3 | R88: 3 | S88: 1 | T88: 3 | U88: 3 | V88: 1 | W88: 0 | X88: 0
A89: 4.2.2 | B89: Process - Cast Iron | C89: =tot_proc_man -> 6 | D89: units | E89: =IF(C89=0,"NA",tank_valve_size) -> 4 | F89: in. diam | G89: =IF(C89=0,"NA",IF(curve=1,tank_valve_size,VLOOKUP(tank_valve_size,ci_bfv_cost_cl,2))) -> 4 | H89: in. diam | I89: =IF(C89=0,"NA",IF(curve=1,ci_bfv_eq_tank,VLOOKUP(tank_valve_size,ci_bfv_cost_cl,3))) -> 692.6912178 | J89: 4156.147307 | K89: =IF(C89=0,"NA",VLOOKUP(tank_valve_size,ci_bfv_cost_cl,IF(ss_cat="large",4,5))) -> 20 | L89: 0 | M89: Valves - Manual - Process - Cast Iron | N89: 2 | O89: 1 | P89: 2 | Q89: 2 | R89: 1 | S89: 2 | T89: 2 | U89: 1 | V89: 2 | W89: 0 | X89: 0
A90: 4.2.3 | B90: Air - Polypropylene/PVC | C90: =tot_air_man -> 2 | D90: units | E90: =IF(C90=0,"NA",air_valve_size) -> 4 | F90: in. diam | G90: =IF(C90=0,"NA",IF(curve=1,air_valve_size,VLOOKUP(air_valve_size,pp_man_cost_cl,2))) -> 4 | H90: in. diam | I90: =IF(C90=0,"NA",IF(curve=1,pp_man_eq_air,VLOOKUP(air_valve_size,pp_man_cost_cl,3))) -> 445.9825708 | J90: 891.9651416 | K90: =IF(C90=0,"NA",VLOOKUP(air_valve_size,pp_man_cost_cl,IF(ss_cat="large",4,5))) -> 20 | L90: 1 | M90: Valves - Manual - Air - Polypropylene/PVC | N90: 1 | O90: 2 | P90: 3 | Q90: 1 | R90: 2 | S90: 3 | T90: 1 | U90: 2 | V90: 3 | W90: 1 | X90: 44.59825708
A91: 4.2.3 | B91: Air - Stainless Steel | C91: =tot_air_man -> 2 | D91: units | E91: =IF(C91=0,"NA",air_valve_size) -> 4 | F91: in. diam | G91: =IF(C91=0,"NA",IF(curve=1,air_valve_size,VLOOKUP(air_valve_size,ss_man_cost_cl,2))) -> 4 | H91: in. diam | I91: =IF(C91=0,"NA",IF(curve=1,ss_man_eq_air,VLOOKUP(air_valve_size,ss_man_cost_cl,3))) -> 2273.066221 | J91: 4546.132442 | K91: =IF(C91=0,"NA",VLOOKUP(air_valve_size,ss_man_cost_cl,IF(ss_cat="large",4,5))) -> 20 | L91: 0 | M91: Valves - Manual - Air - Stainless Steel | N91: 3 | O91: 3 | P91: 1 | Q91: 3 | R91: 3 | S91: 1 | T91: 3 | U91: 3 | V91: 1 | W91: 0 | X91: 0
A92: 4.2.3 | B92: Air - Cast Iron | C92: =tot_air_man -> 2 | D92: units | E92: =IF(C92=0,"NA",air_valve_size) -> 4 | F92: in. diam | G92: =IF(C92=0,"NA",IF(curve=1,air_valve_size,VLOOKUP(air_valve_size,ci_bfv_cost_cl,2))) -> 4 | H92: in. diam | I92: =IF(C92=0,"NA",IF(curve=1,ci_bfv_eq_air,VLOOKUP(air_valve_size,ci_bfv_cost_cl,3))) -> 692.6912178 | J92: 1385.382436 | K92: =IF(C92=0,"NA",VLOOKUP(air_valve_size,ci_bfv_cost_cl,IF(ss_cat="large",4,5))) -> 20 | L92: 0 | M92: Valves - Manual - Air - Cast Iron | N92: 2 | O92: 1 | P92: 2 | Q92: 2 | R92: 1 | S92: 2 | T92: 2 | U92: 1 | V92: 2 | W92: 0 | X92: 0
A93: 4.2.4 | B93: Bypass - Polypropylene/PVC | C93: =tot_bp_man -> 0 | D93: units | E93: =IF(C93=0,"NA",bypass_valve_size) -> NA | G93: =IF(C93=0,"NA",IF(curve=1,bypass_valve_size,VLOOKUP(bypass_valve_size,pp_man_cost_cl,2))) -> NA | I93: =IF(C93=0,"NA",IF(curve=1,pp_man_eq_bp,VLOOKUP(bypass_valve_size,pp_man_cost_cl,3))) -> NA | J93: -- | K93: =IF(C93=0,"NA",VLOOKUP(bypass_valve_size,pp_man_cost_cl,IF(ss_cat="large",4,5))) -> NA | M93: =$B$72&" - "&$B$83&" - "&B93 -> Valves - Manual - Bypass - Polypropylene/PVC | N93: 1 | O93: 2 | P93: 3 | Q93: 1 | R93: 2 | S93: 3 | T93: 1 | U93: 2 | V93: 3 | W93: 0 | X93: 0
A94: 4.2.4 | B94: Bypass - Stainless Steel | C94: =tot_bp_man -> 0 | D94: units | E94: =IF(C94=0,"NA",bypass_valve_size) -> NA | G94: =IF(C94=0,"NA",IF(curve=1,bypass_valve_size,VLOOKUP(bypass_valve_size,ss_man_cost_cl,2))) -> NA | I94: =IF(C94=0,"NA",IF(curve=1,ss_man_eq_bp,VLOOKUP(bypass_valve_size,ss_man_cost_cl,3))) -> NA | J94: -- | K94: =IF(C94=0,"NA",VLOOKUP(bypass_valve_size,ss_man_cost_cl,IF(ss_cat="large",4,5))) -> NA | M94: =$B$72&" - "&$B$83&" - "&B94 -> Valves - Manual - Bypass - Stainless Steel | N94: 3 | O94: 3 | P94: 1 | Q94: 3 | R94: 3 | S94: 1 | T94: 3 | U94: 3 | V94: 1 | W94: 0 | X94: 0
A95: 4.2.4 | B95: Bypass - Cast Iron | C95: =tot_bp_man -> 0 | D95: units | E95: =IF(C95=0,"NA",bypass_valve_size) -> NA | G95: =IF(C95=0,"NA",IF(curve=1,bypass_valve_size,VLOOKUP(bypass_valve_size,ci_bfv_cost_cl,2))) -> NA | I95: =IF(C95=0,"NA",IF(curve=1,ci_man_eq_bp,VLOOKUP(bypass_valve_size,ci_bfv_cost_cl,3))) -> NA | J95: -- | K95: =IF(C95=0,"NA",VLOOKUP(bypass_valve_size,ci_bfv_cost_cl,IF(ss_cat="large",4,5))) -> NA | M95: =$B$72&" - "&$B$83&" - "&B95 -> Valves - Manual - Bypass - Cast Iron | N95: 2 | O95: 1 | P95: 2 | Q95: 2 | R95: 1 | S95: 2 | T95: 2 | U95: 1 | V95: 2 | W95: 0 | X95: 0
A96: 4.3 | B96: Check Valves | W96: =IF(ISERROR(K96*L96),0,IF(K96<1,0,L96)) -> 0 | X96: =IF(W96,J96/K96,0) -> 0
A97: 4.3.1 | B97: Outlet - Polypropylene/PVC | C97: =tot_in_chv -> 1 | D97: units | E97: =in_valve_size -> 4 | F97: in. diam | G97: =IF(curve=1,in_valve_size,VLOOKUP(in_valve_size,pp_chv_cost_cl,2)) -> 4 | H97: in. diam | I97: =IF(curve=1,pp_chv_eq,VLOOKUP(in_valve_size,pp_chv_cost_cl,3)) -> 671.5356291 | J97: 671.5356291 | K97: =VLOOKUP(in_valve_size,pp_chv_cost_cl,IF(ss_cat="large",4,5)) -> 20 | L97: 1 | M97: =$B$72&" - "&$B$96&" - "&B97 -> Valves - Check Valves - Outlet - Polypropylene/PVC | N97: 1 | O97: 2 | P97: 3 | Q97: 1 | R97: 2 | S97: 3 | T97: 1 | U97: 2 | V97: 3 | W97: 1 | X97: 33.57678145
A98: 4.3.1 | B98: Outlet - Stainless Steel | C98: =tot_in_chv -> 1 | D98: units | E98: =in_valve_size -> 4 | F98: in. diam | G98: =IF(curve=1,in_valve_size,VLOOKUP(in_valve_size,ss_chv_cost_cl,2)) -> 4 | H98: in. diam | I98: =IF(curve=1,ss_chv_eq,VLOOKUP(in_valve_size,ss_chv_cost_cl,3)) -> 1798.496048 | J98: 1798.496048 | K98: =VLOOKUP(in_valve_size,ss_chv_cost_cl,IF(ss_cat="large",4,5)) -> 20 | L98: 0 | M98: =$B$72&" - "&$B$96&" - "&B98 -> Valves - Check Valves - Outlet - Stainless Steel | N98: 3 | O98: 3 | P98: 1 | Q98: 3 | R98: 3 | S98: 1 | T98: 3 | U98: 3 | V98: 1 | W98: 0 | X98: 0
A99: 4.3.1 | B99: Outlet - Cast Iron | C99: =tot_in_chv -> 1 | D99: units | E99: =in_valve_size -> 4 | F99: in. diam | G99: =IF(curve=1,in_valve_size,VLOOKUP(in_valve_size,ci_chv_cost_cl,2)) -> 4 | H99: in. diam | I99: =IF(curve=1,ci_chv_eq,VLOOKUP(in_valve_size,ci_chv_cost_cl,3)) -> 1066.736968 | J99: 1066.736968 | K99: =VLOOKUP(in_valve_size,ci_chv_cost_cl,IF(ss_cat="large",4,5)) -> 20 | L99: 0 | M99: Valves - Check Valves - Outlet - Cast Iron | N99: 2 | O99: 1 | P99: 2 | Q99: 2 | R99: 1 | S99: 2 | T99: 2 | U99: 1 | V99: 2 | W99: 0 | X99: 0
A100: 4.3.2 | B100: Process - Polypropylene/PVC | C100: =tot_proc_chv -> 2 | D100: units | E100: =IF(C100=0,"NA",tank_valve_size) -> 4 | F100: =IF($C100=0,"","in. diam") -> in. diam | G100: =IF(C100=0,"NA",IF(curve=1,tank_valve_size,VLOOKUP(tank_valve_size,pp_chv_cost_cl,2))) -> 4 | H100: =IF($C100=0,"","in. diam") -> in. diam | I100: =IF(C100=0,"NA",IF(curve=1,pp_chv_eq_proc,VLOOKUP(tank_valve_size,pp_chv_cost_cl,3))) -> 671.5356291 | J100: 1343.071258 | K100: =IF(C100=0,"NA",VLOOKUP(tank_valve_size,pp_chv_cost_cl,IF(ss_cat="large",4,5))) -> 20 | L100: 1 | M100: Valves - Check Valves - Process - Polypropylene/PVC | N100: 1 | O100: 2 | P100: 3 | Q100: 1 | R100: 2 | S100: 3 | T100: 1 | U100: 2 | V100: 3 | W100: 1 | X100: 67.15356291
A101: 4.3.2 | B101: Process - Stainless Steel | C101: =tot_proc_chv -> 2 | D101: units | E101: =IF(C101=0,"NA",tank_valve_size) -> 4 | F101: =IF($C101=0,"","in. diam") -> in. diam | G101: =IF(C101=0,"NA",IF(curve=1,tank_valve_size,VLOOKUP(tank_valve_size,ss_chv_cost_cl,2))) -> 4 | H101: =IF($C101=0,"","in. diam") -> in. diam | I101: =IF(C101=0,"NA",IF(curve=1,ss_chv_eq_proc,VLOOKUP(tank_valve_size,ss_chv_cost_cl,3))) -> 1798.496048 | J101: 3596.992095 | K101: =IF(C101=0,"NA",VLOOKUP(tank_valve_size,ss_chv_cost_cl,IF(ss_cat="large",4,5))) -> 20 | L101: 0 | M101: Valves - Check Valves - Process - Stainless Steel | N101: 3 | O101: 3 | P101: 1 | Q101: 3 | R101: 3 | S101: 1 | T101: 3 | U101: 3 | V101: 1 | W101: 0 | X101: 0
A102: 4.3.2 | B102: Process - Cast Iron | C102: =tot_proc_chv -> 2 | D102: units | E102: =IF(C102=0,"NA",tank_valve_size) -> 4 | F102: =IF($C102=0,"","in. diam") -> in. diam | G102: =IF(C102=0,"NA",IF(curve=1,tank_valve_size,VLOOKUP(tank_valve_size,ci_chv_cost_cl,2))) -> 4 | H102: =IF($C102=0,"","in. diam") -> in. diam | I102: =IF(C102=0,"NA",IF(curve=1,ci_chv_eq_proc,VLOOKUP(tank_valve_size,ci_chv_cost_cl,3))) -> 1066.736968 | J102: 2133.473936 | K102: =IF(C102=0,"NA",VLOOKUP(tank_valve_size,ci_chv_cost_cl,IF(ss_cat="large",4,5))) -> 20 | L102: 0 | M102: Valves - Check Valves - Process - Cast Iron | N102: 2 | O102: 1 | P102: 2 | Q102: 2 | R102: 1 | S102: 2 | T102: 2 | U102: 1 | V102: 2 | W102: 0 | X102: 0
A103: 4.3.3 | B103: Bypass - Polypropylene/PVC | C103: =IF(bp_pct=0,0,tot_bp_chv) -> 0 | D103: units | E103: =IF(bp_pct=0,"NA",bypass_valve_size) -> NA | F103: =IF(bp_pct=0," ","in. diam") ->  | G103: =IF(bp_pct=0,"NA",(IF(curve=1,bypass_valve_size,VLOOKUP(bypass_valve_size,pp_chv_cost_cl,2)))) -> NA | H103: =IF(bp_pct=0," ","in. diam") ->  | I103: =IF(bp_pct=0,"NA",(IF(curve=1,pp_chv_eq_bp,VLOOKUP(bypass_valve_size,pp_chv_cost_cl,3)))) -> NA | J103: -- | K103: =IF(C103=0,"NA",VLOOKUP(E103,pp_chv_cost_cl,IF(ss_cat="large",4,5))) -> NA | M103: Valves - Check Valves - Bypass - Polypropylene/PVC | N103: 1 | O103: 2 | P103: 3 | Q103: 1 | R103: 2 | S103: 3 | T103: 1 | U103: 2 | V103: 3 | W103: 0 | X103: 0
A104: 4.3.3 | B104: Bypass - Stainless Steel | C104: =IF(bp_pct=0,0,tot_bp_chv) -> 0 | D104: units | E104: =IF(bp_pct=0,"NA",bypass_valve_size) -> NA | F104: =IF(bp_pct=0," ","in. diam") ->  | G104: =IF(bp_pct=0,"NA",(IF(curve=1,bypass_valve_size,VLOOKUP(bypass_valve_size,ss_chv_cost_cl,2)))) -> NA | H104: =IF(bp_pct=0," ","in. diam") ->  | I104: =IF(bp_pct=0,"NA",(IF(curve=1,ss_chv_eq_bp,VLOOKUP(bypass_valve_size,ss_chv_cost_cl,3)))) -> NA | J104: -- | K104: =IF(C104=0,"NA",VLOOKUP(E104,ss_chv_cost_cl,IF(ss_cat="large",4,5))) -> NA | M104: Valves - Check Valves - Bypass - Stainless Steel | N104: 3 | O104: 3 | P104: 1 | Q104: 3 | R104: 3 | S104: 1 | T104: 3 | U104: 3 | V104: 1 | W104: 0 | X104: 0
A105: 4.3.3 | B105: Bypass - Cast Iron | C105: =IF(bp_pct=0,0,tot_bp_chv) -> 0 | D105: units | E105: =IF(bp_pct=0,"NA",bypass_valve_size) -> NA | F105: =IF(bp_pct=0," ","in. diam") ->  | G105: =IF(bp_pct=0,"NA",(IF(curve=1,bypass_valve_size,VLOOKUP(bypass_valve_size,ci_chv_cost_cl,2)))) -> NA | H105: =IF(bp_pct=0," ","in. diam") ->  | I105: =IF(bp_pct=0,"NA",(IF(curve=1,ci_chv_eq_bp,VLOOKUP(bypass_valve_size,ci_chv_cost_cl,3)))) -> NA | J105: -- | K105: =IF(C105=0,"NA",VLOOKUP(E105,ci_chv_cost_cl,IF(ss_cat="large",4,5))) -> NA | M105: Valves - Check Valves - Bypass - Cast Iron | N105: 2 | O105: 1 | P105: 2 | Q105: 2 | R105: 1 | S105: 2 | T105: 2 | U105: 1 | V105: 2 | W105: 0 | X105: 0
A106: 5. | B106: Instrumentation | W106: 0 | X106: 0
A107: 5.1 | B107: Flow Meters - Inlet and Outlet | W107: 0 | X107: 0
A108: 5.1.1 | B108: Orifice Plate | C108: =tot_fm_in -> 1 | D108: units | E108: =in_meter_size -> 4 | F108: in. diam | G108: =IF(curve=1,in_meter_size,VLOOKUP(in_meter_size,op_fm_cost_cl,2)) -> 4 | H108: in. diam | I108: =IF(curve=1,op_fm_eq_in,VLOOKUP(in_meter_size,op_fm_cost_cl,3)) -> 3896.676865 | J108: =IF(I108="contact vendor","--",C108*I108) -> 3896.676865 | K108: =VLOOKUP(in_meter_size,op_fm_cost_cl,IF(ss_cat="large",4,5)) -> 14 | L108: 0 | M108: =$B$106&" - "&$B$107&" - "&B108 -> Instrumentation - Flow Meters - Inlet and Outlet - Orifice Plate | N108: 3 | O108: 4 | P108: 4 | Q108: 3 | R108: 4 | S108: 4 | T108: 3 | U108: 3 | V108: 4 | W108: 0 | X108: 0
A109: 5.1.1 | B109: Propeller | C109: =tot_fm_in -> 1 | D109: units | E109: =in_meter_size -> 4 | F109: in. diam | G109: =IF(curve=1,in_meter_size,VLOOKUP(in_meter_size,prop_fm_cost_cl,2)) -> 4 | H109: in. diam | I109: =IF(curve=1,prop_fm_eq_in,VLOOKUP(in_meter_size,prop_fm_cost_cl,3)) -> 3570.984261 | J109: =IF(I109="contact vendor","--",C109*I109) -> 3570.984261 | K109: =VLOOKUP(in_meter_size,prop_fm_cost_cl,IF(ss_cat="large",4,5)) -> 14 | L109: 1 | M109: =$B$106&" - "&$B$107&" - "&B109 -> Instrumentation - Flow Meters - Inlet and Outlet - Propeller | N109: 1 | O109: 2 | P109: 3 | Q109: 1 | R109: 2 | S109: 3 | T109: 4 | U109: 4 | V109: 2 | W109: 1 | X109: 255.0703044
A110: 5.1.1 | B110: Venturi | C110: =tot_fm_in -> 1 | D110: units | E110: =in_meter_size -> 4 | F110: in. diam | G110: =IF(curve=1,in_meter_size,VLOOKUP(in_meter_size,ven_fm_cost_cl,2)) -> 4 | H110: in. diam | I110: =IF(curve=1,ven_fm_eq_in,VLOOKUP(in_meter_size,ven_fm_cost_cl,3)) -> 9485.852485 | J110: =IF(I110="contact vendor","--",C110*I110) -> 9485.852485 | K110: =VLOOKUP(in_meter_size,ven_fm_cost_cl,IF(ss_cat="large",4,5)) -> 14 | L110: 0 | M110: =$B$106&" - "&$B$107&" - "&B110 -> Instrumentation - Flow Meters - Inlet and Outlet - Venturi | N110: 2 | O110: 1 | P110: 2 | Q110: 2 | R110: 1 | S110: 2 | T110: 1 | U110: 2 | V110: 3 | W110: 0 | X110: 0
A111: 5.1.1 | B111: Magnetic | C111: =tot_fm_in -> 1 | D111: units | E111: =in_meter_size -> 4 | F111: in. diam | G111: =IF(curve=1,in_meter_size,VLOOKUP(in_meter_size,mag_fm_cost_cl,2)) -> 4 | H111: in. diam | I111: =IF(curve=1,mag_fm_eq_in,VLOOKUP(in_meter_size,mag_fm_cost_cl,3)) -> 5194.119959 | J111: =IF(I111="contact vendor","--",C111*I111) -> 5194.119959 | K111: =VLOOKUP(in_meter_size,mag_fm_cost_cl,IF(ss_cat="large",4,5)) -> 14 | L111: 0 | M111: =$B$106&" - "&$B$107&" - "&B111 -> Instrumentation - Flow Meters - Inlet and Outlet - Magnetic | N111: 4 | O111: 3 | P111: 1 | Q111: 4 | R111: 3 | S111: 1 | T111: 2 | U111: 1 | V111: 1 | W111: 0 | X111: 0
A112: 5.2 | B112: Flow Meters - Process | W112: 0 | X112: 0
A113: 5.2.1 | B113: Orifice Plate | C113: =tot_fm_proc -> 1 | D113: units | E113: =proc_meter_size -> 4 | F113: in. diam | G113: =IF(curve=1,proc_meter_size,VLOOKUP(proc_meter_size,op_fm_cost_cl,2)) -> 4 | H113: in. diam | I113: =IF(curve=1,op_fm_eq_proc,VLOOKUP(proc_meter_size,op_fm_cost_cl,3)) -> 3896.676865 | J113: =IF(I113="contact vendor","--",C113*I113) -> 3896.676865 | K113: =VLOOKUP(proc_meter_size,op_fm_cost_cl,IF(ss_cat="large",4,5)) -> 14 | L113: 0 | M113: =$B$106&" - "&$B$112&" - "&B113 -> Instrumentation - Flow Meters - Process - Orifice Plate | N113: 3 | O113: 4 | P113: 4 | Q113: 3 | R113: 4 | S113: 4 | T113: 3 | U113: 3 | V113: 4 | W113: 0 | X113: 0
A114: 5.2.1 | B114: Propeller | C114: =tot_fm_proc -> 1 | D114: units | E114: =proc_meter_size -> 4 | F114: in. diam | G114: =IF(curve=1,proc_meter_size,VLOOKUP(proc_meter_size,prop_fm_cost_cl,2)) -> 4 | H114: in. diam | I114: =IF(curve=1,prop_fm_eq_proc,VLOOKUP(proc_meter_size,prop_fm_cost_cl,3)) -> 3570.984261 | J114: =IF(I114="contact vendor","--",C114*I114) -> 3570.984261 | K114: =VLOOKUP(proc_meter_size,prop_fm_cost_cl,IF(ss_cat="large",4,5)) -> 14 | L114: 1 | M114: =$B$106&" - "&$B$112&" - "&B114 -> Instrumentation - Flow Meters - Process - Propeller | N114: 1 | O114: 2 | P114: 3 | Q114: 1 | R114: 2 | S114: 3 | T114: 4 | U114: 4 | V114: 2 | W114: 1 | X114: 255.0703044
A115: 5.2.1 | B115: Venturi | C115: =tot_fm_proc -> 1 | D115: units | E115: =proc_meter_size -> 4 | F115: in. diam | G115: =IF(curve=1,proc_meter_size,VLOOKUP(proc_meter_size,ven_fm_cost_cl,2)) -> 4 | H115: in. diam | I115: =IF(curve=1,ven_fm_eq_proc,VLOOKUP(proc_meter_size,ven_fm_cost_cl,3)) -> 9485.852485 | J115: =IF(I115="contact vendor","--",C115*I115) -> 9485.852485 | K115: =VLOOKUP(proc_meter_size,ven_fm_cost_cl,IF(ss_cat="large",4,5)) -> 14 | L115: 0 | M115: =$B$106&" - "&$B$112&" - "&B115 -> Instrumentation - Flow Meters - Process - Venturi | N115: 2 | O115: 1 | P115: 2 | Q115: 2 | R115: 1 | S115: 2 | T115: 1 | U115: 2 | V115: 3 | W115: 0 | X115: 0
A116: 5.2.1 | B116: Magnetic | C116: =tot_fm_proc -> 1 | D116: units | E116: =proc_meter_size -> 4 | F116: in. diam | G116: =IF(curve=1,proc_meter_size,VLOOKUP(proc_meter_size,mag_fm_cost_cl,2)) -> 4 | H116: in. diam | I116: =IF(curve=1,mag_fm_eq_proc,VLOOKUP(proc_meter_size,mag_fm_cost_cl,3)) -> 5194.119959 | J116: =IF(I116="contact vendor","--",C116*I116) -> 5194.119959 | K116: =VLOOKUP(proc_meter_size,mag_fm_cost_cl,IF(ss_cat="large",4,5)) -> 14 | L116: 0 | M116: =$B$106&" - "&$B$112&" - "&B116 -> Instrumentation - Flow Meters - Process - Magnetic | N116: 4 | O116: 3 | P116: 1 | Q116: 4 | R116: 3 | S116: 1 | T116: 2 | U116: 1 | V116: 1 | W116: 0 | X116: 0
A117: 5.3 | B117: Air Flow Meters | W117: 0 | X117: 0
A118: 5.3.1 | B118: Rotameter | C118: =tot_fm_air -> 1 | D118: units | E118: NA | G118: NA | I118: =VLOOKUP(0,gas_fm_cost_cl,3) -> 2320.986672 | J118: =IF(I118="contact vendor","--",C118*I118) -> 2320.986672 | K118: =VLOOKUP(0,gas_fm_cost_cl,IF(ss_cat="large",4,5)) -> 14 | L118: 1 | M118: =$B$106&" - "&$B$117&" - "&B118 -> Instrumentation - Air Flow Meters - Rotameter | N118: 1 | O118: 1 | P118: 1 | Q118: 1 | R118: 1 | S118: 1 | T118: 1 | U118: 1 | V118: 1 | W118: 1 | X118: 165.7847623
A119: 5.4 | B119: High/low alarms (for contact basins) | C119: =tot_basin_alarm -> 1 | D119: units | E119: NA | G119: NA | I119: =VLOOKUP(0,alarm_cost_cl,3) -> 580.5871131 | J119: =IF(I119="contact vendor","--",C119*I119) -> 580.5871131 | K119: =VLOOKUP(0,alarm_cost_cl,IF(ss_cat="large",4,5)) -> 14 | L119: 1 | M119: =$B$106&" - "&B119 -> Instrumentation - High/low alarms (for contact basins) | N119: 1 | O119: 1 | P119: 1 | Q119: 1 | R119: 1 | S119: 1 | T119: 1 | U119: 1 | V119: 1 | W119: 1 | X119: 41.47050808
A120: 5.5 | B120: pH Meters | C120: =tot_ph -> 2 | D120: units | E120: NA | G120: NA | I120: =IF(C120=0,"NA",VLOOKUP(0,pH_meter_cost_cl,3)) -> 2579.265877 | J120: =IF(OR(I120="contact vendor",I120="NA"),"--",C120*I120) -> 5158.531755 | K120: =IF(C120=0,"NA",VLOOKUP(0,pH_meter_cost_cl,IF(ss_cat="large",4,5))) -> 14 | L120: 1 | M120: =$B$106&" - "&B120 -> Instrumentation - pH Meters | N120: 1 | O120: 1 | P120: 1 | Q120: 1 | R120: 1 | S120: 1 | T120: 1 | U120: 1 | V120: 1 | W120: 1 | X120: 368.4665539
A121: 5.6 | B121: Pressure Gauges | C121: =tot_gauges -> 4 | D121: units | E121: NA | G121: NA | I121: =IF(C121=0,"NA",VLOOKUP(0,gauge_cost_cl,3)) -> 282.8233199 | J121: =IF(OR(I121="contact vendor",I121="NA"),"--",C121*I121) -> 1131.29328 | K121: =IF(C121=0,"NA",VLOOKUP(0,gauge_cost_cl,IF(ss_cat="large",4,5))) -> 14 | L121: 1 | M121: =$B$106&" - "&B121 -> Instrumentation - Pressure Gauges | N121: 1 | O121: 1 | P121: 1 | Q121: 1 | R121: 1 | S121: 1 | T121: 1 | U121: 1 | V121: 1 | W121: 1 | X121: 80.80666283
A122: 5.7 | B122: Electrical Enclosure | C122: =elec_encl -> 0 | D122: units | E122: NA | G122: NA | I122: =IF(C122=0,"NA",VLOOKUP(0,elec_encl_cost_cl,3)) -> NA | J122: =IF(C122=0,"--",IF(I122="contact vendor","--",C122*I122)) -> -- | K122: =IF(C122=0,"NA",VLOOKUP(0,elec_encl_cost_cl,IF(ss_cat="large",4,5))) -> NA | M122: =$B$106&" - "&B122 -> Instrumentation - Electrical Enclosure | N122: 1 | O122: 1 | P122: 1 | Q122: 1 | R122: 1 | S122: 1 | T122: 1 | U122: 1 | V122: 1 | W122: 0 | X122: 0
A123: 6. | B123: System Controls | W123: 0 | X123: 0
A124: 6.1 | B124: PLC Units | W124: 0 | X124: 0
A125: 6.1.1 | B125: PLC racks/power supplies | C125: =IF(manual=1,0,plc_rack) -> 0 | D125: units | E125: NA | G125: NA | I125: =IF(C125=0,"NA",VLOOKUP(0,plc_rack_cost_cl,3)) -> NA | J125: =IF(C125=0,"--",IF(I125="contact vendor","--",C125*I125)) -> -- | K125: =IF(C125=0,"NA",VLOOKUP(0,plc_rack_cost_cl,IF(ss_cat="large",4,5))) -> NA | M125: =$B$123&" - "&$B$124&" - "&B125 -> System Controls - PLC Units - PLC racks/power supplies | N125: 1 | O125: 1 | P125: 1 | Q125: 1 | R125: 1 | S125: 1 | T125: 1 | U125: 1 | V125: 1 | W125: 0 | X125: 0
A126: 6.1.2 | B126: CPUs | C126: =IF(manual=1,0,plc_cpu) -> 0 | D126: units | E126: NA | G126: NA | I126: =IF(C126=0,"NA",VLOOKUP(0,plc_cpu_cost_cl,3)) -> NA | J126: -- | K126: =IF(C126=0,"NA",VLOOKUP(0,plc_cpu_cost_cl,IF(ss_cat="large",4,5))) -> NA | M126: =$B$123&" - "&$B$124&" - "&B126 -> System Controls - PLC Units - CPUs | N126: 1 | O126: 1 | P126: 1 | Q126: 1 | R126: 1 | S126: 1 | T126: 1 | U126: 1 | V126: 1 | W126: 0 | X126: 0
A127: 6.1.3 | B127: I/O discrete input modules | C127: =IF(manual=1,0,plc_discrete_input) -> 0 | D127: units | E127: NA | G127: NA | I127: =IF(C127=0,"NA",VLOOKUP(0,plc_discrete_input_cost_cl,3)) -> NA | J127: -- | K127: =IF(C127=0,"NA",VLOOKUP(0,plc_discrete_input_cost_cl,IF(ss_cat="large",4,5))) -> NA | M127: System Controls - PLC Units - I/O discrete input modules | N127: 1 | O127: 1 | P127: 1 | Q127: 1 | R127: 1 | S127: 1 | T127: 1 | U127: 1 | V127: 1 | W127: 0 | X127: 0
A128: 6.1.4 | B128: I/O discrete output modules | C128: =IF(manual=1,0,plc_discrete_output) -> 0 | D128: units | E128: NA | G128: NA | I128: =IF(C128=0,"NA",VLOOKUP(0,plc_discrete_output_cost_cl,3)) -> NA | J128: -- | K128: =IF(C128=0,"NA",VLOOKUP(0,plc_discrete_output_cost_cl,IF(ss_cat="large",4,5))) -> NA | M128: System Controls - PLC Units - I/O discrete output modules | N128: 1 | O128: 1 | P128: 1 | Q128: 1 | R128: 1 | S128: 1 | T128: 1 | U128: 1 | V128: 1 | W128: =IF(ISERROR(K128*L128),0,IF(K128<1,0,L128)) -> 0 | X128: =IF(W128,J128/K128,0) -> 0
A129: 6.1.5 | B129: I/O combination analog modules | C129: =IF(manual=1,0,plc_combination_analog) -> 0 | D129: units | E129: NA | G129: NA | I129: =IF(C129=0,"NA",VLOOKUP(0,plc_combination_analog_cost_cl,3)) -> NA | J129: -- | K129: =IF(C129=0,"NA",VLOOKUP(0,plc_combination_analog_cost_cl,IF(ss_cat="large",4,5))) -> NA | M129: System Controls - PLC Units - I/O combination analog modules | N129: 1 | O129: 1 | P129: 1 | Q129: 1 | R129: 1 | S129: 1 | T129: 1 | U129: 1 | V129: 1 | W129: 0 | X129: 0
A130: 6.1.6 | B130: Ethernet modules | C130: =IF(manual=1,0,plc_ethernet) -> 0 | D130: units | E130: NA | G130: NA | I130: =IF(C130=0,"NA",VLOOKUP(0,plc_ethernet_cost_cl,3)) -> NA | J130: -- | K130: =IF(C130=0,"NA",VLOOKUP(0,plc_ethernet_cost_cl,IF(ss_cat="large",4,5))) -> NA | M130: System Controls - PLC Units - Ethernet modules | N130: 1 | O130: 1 | P130: 1 | Q130: 1 | R130: 1 | S130: 1 | T130: 1 | U130: 1 | V130: 1 | W130: 0 | X130: 0
A131: 6.1.7 | B131: Base expansion modules | C131: =IF(manual=1,0,plc_base_expansion) -> 0 | D131: units | E131: NA | G131: NA | I131: =IF(C131=0,"NA",VLOOKUP(0,plc_base_expansion_cost_cl,3)) -> NA | J131: -- | K131: =IF(C131=0,"NA",VLOOKUP(0,plc_base_expansion_cost_cl,IF(ss_cat="large",4,5))) -> NA | M131: System Controls - PLC Units - Base expansion modules | N131: 1 | O131: 1 | P131: 1 | Q131: 1 | R131: 1 | S131: 1 | T131: 1 | U131: 1 | V131: 1 | W131: 0 | X131: 0
A132: 6.1.8 | B132: Base expansion controller modules | C132: =IF(manual=1,0,plc_base_expansion_controller) -> 0 | D132: units | E132: NA | G132: NA | I132: =IF(C132=0,"NA",VLOOKUP(0,plc_base_expansion_controller_cost_cl,3)) -> NA | J132: -- | K132: =IF(C132=0,"NA",VLOOKUP(0,plc_base_expansion_controller_cost_cl,IF(ss_cat="large",4,5))) -> NA | M132: System Controls - PLC Units - Base expansion controller modules | N132: 1 | O132: 1 | P132: 1 | Q132: 1 | R132: 1 | S132: 1 | T132: 1 | U132: 1 | V132: 1 | W132: 0 | X132: 0
A133: 6.1.9 | B133: UPSs | C133: =IF(manual=1,0,ups) -> 0 | D133: units | E133: NA | G133: NA | I133: =IF(C133=0,"NA",VLOOKUP(0,ups_cost_cl,3)) -> NA | J133: -- | K133: =IF(C133=0,"NA",VLOOKUP(0,ups_cost_cl,IF(ss_cat="large",4,5))) -> NA | M133: System Controls - PLC Units - UPSs | N133: 1 | O133: 1 | P133: 1 | Q133: 1 | R133: 1 | S133: 1 | T133: 1 | U133: 1 | V133: 1 | W133: 0 | X133: 0
A134: 6.2 | B134: Operator equipment | W134: 0 | X134: 0
A135: 6.2.1 | B135: Drive controllers | C135: =IF(manual=1,0,tot_switches) -> 0 | D135: units | E135: NA | G135: NA | I135: =IF(C135=0,"NA",VLOOKUP(0,switch_cost_cl,3)) -> NA | J135: =IF(C135=0,"--",IF(I135="contact vendor","--",C135*I135)) -> -- | K135: =IF(C135=0,"NA",VLOOKUP(0,switch_cost_cl,IF(ss_cat="large",4,5))) -> NA | M135: =$B$123&" - "&$B$134&" - "&B135 -> System Controls - Operator equipment - Drive controllers | N135: 1 | O135: 1 | P135: 1 | Q135: 1 | R135: 1 | S135: 1 | T135: 1 | U135: 1 | V135: 1 | W135: 0 | X135: 0
A136: 6.2.2 | B136: Operator interface units | C136: =IF(manual=1,0,plc_interface) -> 0 | D136: units | E136: NA | G136: NA | I136: =IF(C136=0,"NA",VLOOKUP(ss_cat,plc_op_interface_cost_cl,3,FALSE)) -> NA | J136: -- | K136: =IF(C136=0,"NA",VLOOKUP(ss_cat,plc_op_interface_cost_cl,IF(ss_cat="large",4,5),FALSE)) -> NA | M136: =$B$123&" - "&$B$134&" - "&B136 -> System Controls - Operator equipment - Operator interface units | N136: 1 | O136: 1 | P136: 1 | Q136: 1 | R136: 1 | S136: 1 | T136: 1 | U136: 1 | V136: 1 | W136: 0 | X136: 0
A137: 6.2.3 | B137: PC Workstations | C137: =IF(OR(manual=1,ss_cat="small"),0,workstations) -> 0 | D137: units | E137: NA | G137: NA | I137: =IF(C137=0,"NA",VLOOKUP(0,pc_workstation_cost_cl,3)) -> NA | J137: -- | K137: =IF(C137=0,"NA",VLOOKUP(0,pc_workstation_cost_cl,IF(ss_cat="large",4,5))) -> NA | M137: =$B$123&" - "&$B$134&" - "&B137 -> System Controls - Operator equipment - PC Workstations | N137: 1 | O137: 1 | P137: 1 | Q137: 1 | R137: 1 | S137: 1 | T137: 1 | U137: 1 | V137: 1 | W137: 0 | X137: 0
A138: 6.2.4 | B138: Printers - laser jet | C138: =IF(OR(manual=1,ss_cat="small"),0,printers) -> 0 | D138: units | E138: NA | G138: NA | I138: =IF(C138=0,"NA",VLOOKUP(0,laser_printer_cost_cl,3)) -> NA | J138: -- | K138: =IF(C138=0,"NA",VLOOKUP(0,laser_printer_cost_cl,IF(ss_cat="large",4,5))) -> NA | M138: =$B$123&" - "&$B$134&" - "&B138 -> System Controls - Operator equipment - Printers - laser jet | N138: 1 | O138: 1 | P138: 1 | Q138: 1 | R138: 1 | S138: 1 | T138: 1 | U138: 1 | V138: 1 | W138: 0 | X138: 0
A139: 6.2.5 | B139: Printers - dot matrix | C139: =IF(OR(manual=1,ss_cat="small"),0,printers) -> 0 | D139: units | E139: NA | G139: NA | I139: =IF(C139=0,"NA",VLOOKUP(0,dotmatrix_printer_cost_cl,3)) -> NA | J139: -- | K139: =IF(C139=0,"NA",VLOOKUP(0,dotmatrix_printer_cost_cl,IF(ss_cat="large",4,5))) -> NA | M139: =$B$123&" - "&$B$134&" - "&B139 -> System Controls - Operator equipment - Printers - dot matrix | N139: 1 | O139: 1 | P139: 1 | Q139: 1 | R139: 1 | S139: 1 | T139: 1 | U139: 1 | V139: 1 | W139: 0 | X139: 0
A140: 6.3 | B140: Controls Software | W140: 0 | X140: 0
A141: 6.3.1 | B141: Operator interface software | C141: =IF(OR(manual=1,ss_cat="small"),0,plc_interface) -> 0 | D141: units | E141: NA | G141: NA | I141: =IF(C141=0,"NA",VLOOKUP(0,op_interface_software_cost_cl,3)) -> NA | J141: =IF(C141=0,"--",IF(I141="contact vendor","--",C141*I141)) -> -- | K141: =IF(C141=0,"NA",VLOOKUP(0,op_interface_software_cost_cl,IF(ss_cat="large",4,5))) -> NA | M141: =$B$123&" - "&$B$140&" - "&B141 -> System Controls - Controls Software - Operator interface software | N141: 1 | O141: 1 | P141: 1 | Q141: 1 | R141: 1 | S141: 1 | T141: 1 | U141: 1 | V141: 1 | W141: 0 | X141: 0
A142: 6.3.2 | B142: PLC programming software | C142: =IF(OR(manual=1,ss_cat="small"),0,workstations) -> 0 | D142: units | E142: NA | G142: NA | I142: =IF(C142=0,"NA",VLOOKUP(0,plc_software_cost_cl,3)) -> NA | J142: -- | K142: =IF(C142=0,"NA",VLOOKUP(0,plc_software_cost_cl,IF(ss_cat="large",4,5))) -> NA | M142: =$B$123&" - "&$B$140&" - "&B142 -> System Controls - Controls Software - PLC programming software | N142: 1 | O142: 1 | P142: 1 | Q142: 1 | R142: 1 | S142: 1 | T142: 1 | U142: 1 | V142: 1 | W142: 0 | X142: 0
A143: 6.3.3 | B143: PLC data collection software | C143: =IF(OR(manual=1,ss_cat="small"),0,workstations) -> 0 | D143: units | E143: NA | G143: NA | I143: =IF(C143=0,"NA",VLOOKUP(0,plc_data_software_cost_cl,3)) -> NA | J143: -- | K143: =IF(C143=0,"NA",VLOOKUP(0,plc_data_software_cost_cl,IF(ss_cat="large",4,5))) -> NA | M143: =$B$123&" - "&$B$140&" - "&B143 -> System Controls - Controls Software - PLC data collection software | N143: 1 | O143: 1 | P143: 1 | Q143: 1 | R143: 1 | S143: 1 | T143: 1 | U143: 1 | V143: 1 | W143: 0 | X143: 0
A144: 6.3.4 | B144: Plant intelligence software | C144: =IF(OR(manual=1,ss_cat="small"),0,workstations) -> 0 | D144: units | E144: NA | G144: NA | I144: =IF(C144=0,"NA",VLOOKUP(0,plant_intel_software_cost_cl,3)) -> NA | J144: -- | K144: =IF(C144=0,"NA",VLOOKUP(0,plant_intel_software_cost_cl,IF(ss_cat="large",4,5))) -> NA | M144: =$B$123&" - "&$B$140&" - "&B144 -> System Controls - Controls Software - Plant intelligence software | N144: 1 | O144: 1 | P144: 1 | Q144: 1 | R144: 1 | S144: 1 | T144: 1 | U144: 1 | V144: 1 | W144: 0 | X144: 0
A145: 7. | B145: Offgas Pollution Control Equipment | W145: 0 | X145: 0
A146: 7.1 | B146: Thermal Oxidizer - No Heat Recovery | C146: =IF(og_opt1<>0,0,tot_TOs) -> 0 | D146: units | E146: =IF(C146=0,"NA",TO_size) -> NA | F146: =IF(C146=0,"","cfm") ->  | G146: =IF(C146=0,"NA",IF(curve=1,TO_size,VLOOKUP(TO_size,og_to_cost_cl,2))) -> NA | H146: =IF(C146=0,"","cfm") ->  | I146: =IF(C146=0,"NA",IF(curve=1,og_TO_eq,VLOOKUP(TO_size,og_to_cost_cl,3))) -> NA | J146: =IF(C146=0,"--",IF(I146="contact vendor","--",C146*I146)) -> -- | K146: =IF(C146=0,"NA",VLOOKUP(TO_size,og_to_cost_cl,IF(ss_cat="large",4,5))) -> NA | M146: =$B$145&" - "&B146 -> Offgas Pollution Control Equipment - Thermal Oxidizer - No Heat Recovery | N146: 1 | O146: 1 | P146: 1 | Q146: 1 | R146: 1 | S146: 1 | T146: 1 | U146: 1 | V146: 1 | W146: 0 | X146: 0
A147: 7.1 | B147: Thermal Oxidizer - Recuperative | C147: =IF(og_opt1<>1,0,tot_TOs) -> 0 | D147: units | E147: =IF(C147=0,"NA",TO_size) -> NA | G147: =IF(C147=0,"NA",IF(curve=1,TO_size,VLOOKUP(TO_size,og_torec_cost_cl,2))) -> NA | I147: =IF(C147=0,"NA",IF(curve=1,og_torec_eq,VLOOKUP(TO_size,og_torec_cost_cl,3))) -> NA | J147: -- | K147: =IF(C147=0,"NA",VLOOKUP(TO_size,og_torec_cost_cl,IF(ss_cat="large",4,5))) -> NA | M147: Offgas Pollution Control Equipment - Thermal Oxidizer - Recuperative | N147: 1 | O147: 1 | P147: 1 | Q147: 1 | R147: 1 | S147: 1 | T147: 1 | U147: 1 | V147: 1 | W147: 0 | X147: 0
A148: 7.1 | B148: Thermal Oxidizer - Regenerative/Flameless | C148: =IF(og_opt1<>2,0,tot_TOs) -> 0 | D148: units | E148: =IF(C148=0,"NA",TO_size) -> NA | G148: =IF(C148=0,"NA",IF(curve=1,TO_size,VLOOKUP(TO_size,og_toreg_cost_cl,2))) -> NA | I148: =IF(C148=0,"NA",IF(curve=1,og_toreg_eq,VLOOKUP(TO_size,og_toreg_cost_cl,3))) -> NA | J148: -- | K148: =IF(C148=0,"NA",VLOOKUP(TO_size,og_toreg_cost_cl,IF(ss_cat="large",4,5))) -> NA | M148: Offgas Pollution Control Equipment - Thermal Oxidizer - Regenerative/Flameless | N148: 1 | O148: 1 | P148: 1 | Q148: 1 | R148: 1 | S148: 1 | T148: 1 | U148: 1 | V148: 1 | W148: 0 | X148: 0
A149: 7.1 | B149: Catalytic Oxidizer - No Heat Recovery | C149: =IF(og_opt1<>0,0,tot_COs) -> 0 | D149: units | E149: =IF(C149=0,"NA",CO_size) -> NA | G149: =IF(C149=0,"NA",IF(curve=1,CO_size,VLOOKUP(CO_size,og_co_cost_cl,2))) -> NA | I149: =IF(C149=0,"NA",IF(curve=1,og_co_eq,VLOOKUP(CO_size,og_co_cost_cl,3))) -> NA | J149: -- | K149: =IF(C149=0,"NA",VLOOKUP(CO_size,og_co_cost_cl,IF(ss_cat="large",4,5))) -> NA | M149: Offgas Pollution Control Equipment - Catalytic Oxidizer - No Heat Recovery | N149: 1 | O149: 1 | P149: 1 | Q149: 1 | R149: 1 | S149: 1 | T149: 1 | U149: 1 | V149: 1 | W149: 0 | X149: 0
A150: 7.1 | B150: Catalytic Oxidizer - Recuperative | C150: =IF(og_opt1<>1,0,tot_COs) -> 0 | D150: units | E150: =IF(C150=0,"NA",CO_size) -> NA | G150: =IF(C150=0,"NA",IF(curve=1,CO_size,VLOOKUP(CO_size,og_corec_cost_cl,2))) -> NA | I150: =IF(C150=0,"NA",IF(curve=1,og_corec_eq,VLOOKUP(CO_size,og_corec_cost_cl,3))) -> NA | J150: -- | K150: =IF(C150=0,"NA",VLOOKUP(CO_size,og_corec_cost_cl,IF(ss_cat="large",4,5))) -> NA | M150: Offgas Pollution Control Equipment - Catalytic Oxidizer - Recuperative | N150: 1 | O150: 1 | P150: 1 | Q150: 1 | R150: 1 | S150: 1 | T150: 1 | U150: 1 | V150: 1 | W150: 0 | X150: 0
A151: 7.1 | B151: Catalytic Oxidizer - Regenerative | C151: =IF(og_opt1<>2,0,tot_COs) -> 0 | D151: units | E151: =IF(C151=0,"NA",CO_size) -> NA | G151: =IF(C151=0,"NA",IF(curve=1,CO_size,VLOOKUP(CO_size,og_coreg_cost_cl,2))) -> NA | I151: =IF(C151=0,"NA",IF(curve=1,og_coreg_eq,VLOOKUP(CO_size,og_coreg_cost_cl,3))) -> NA | J151: -- | K151: =IF(C151=0,"NA",VLOOKUP(CO_size,og_coreg_cost_cl,IF(ss_cat="large",4,5))) -> NA | M151: Offgas Pollution Control Equipment - Catalytic Oxidizer - Regenerative | N151: 1 | O151: 1 | P151: 1 | Q151: 1 | R151: 1 | S151: 1 | T151: 1 | U151: 1 | V151: 1 | W151: 0 | X151: 0
A152: 7.1 | B152: Gas-phase GAC Adsorber | C152: =tot_GAC_beds -> 0 | D152: units | E152: =IF(C152=0,"NA",GAC_bed_size) -> NA | F152: =IF(C152=0,"","cu. ft") ->  | G152: =IF(C152=0,"NA",IF(curve=1,GAC_bed_size,VLOOKUP(GAC_bed_size,og_gac_cost_cl,2))) -> NA | H152: =IF(C152=0,"","cu. ft") ->  | I152: =IF(C152=0,"NA",IF(curve=1,og_gac_eq,VLOOKUP(GAC_bed_size,og_gac_cost_cl,3))) -> NA | J152: -- | K152: =IF(C152=0,"NA",VLOOKUP(GAC_bed_size,og_gac_cost_cl,IF(ss_cat="large",4,5))) -> NA | M152: =$B$145&" - "&B152 -> Offgas Pollution Control Equipment - Gas-phase GAC Adsorber | N152: 1 | O152: 1 | P152: 1 | Q152: 1 | R152: 1 | S152: 1 | T152: 1 | U152: 1 | V152: 1 | W152: =IF(ISERROR(K152*L152),0,IF(K152<1,0,L152)) -> 0 | X152: =IF(W152,J152/K152,0) -> 0
A153: 7.2 | B153: Initial GAC Charge | C153: =GAC -> 0 | D153: lbs | E153: NA | G153: NA | I153: =IF(C153=0,"NA",IF(curve=1,gac_eq,VLOOKUP(GAC,gac_cost_cl,3))) -> NA | J153: -- | K153: =IF(C153=0,"NA",VLOOKUP(GAC,gac_cost_cl,IF(ss_cat="large",4,5))) -> NA | M153: =$B$145&" - "&B153 -> Offgas Pollution Control Equipment - Initial GAC Charge | N153: 1 | O153: 1 | P153: 1 | Q153: 1 | R153: 1 | S153: 1 | T153: 1 | U153: 1 | V153: 1 | W153: =IF(ISERROR(K153*L153),0,IF(K153<1,0,L153)) -> 0 | X153: =IF(W153,J153/K153,0) -> 0
A154: 8. | B154: Building Structures and HVAC | W154: 0 | X154: 0
A155: 8.1 | B155: Building 1 | W155: 0 | X155: 0
A156: 8.1.1 | B156: Small Low Cost Shed | C156: =IF(AND(build1_fp>0,build1_fp<500),1,0) -> 1 | D156: units | E156: =build1_fp -> 120 | F156: sf | G156: =build1_fp -> 120 | H156: sf | I156: =IF(C156=0,"NA",VLOOKUP(build1_fp,bldg_shed_cost_cl,3)) -> 44.53504901 | J156: =IF(OR(I156="NA",I156="contact vendor"),"--",G156*I156) -> 5344.205881 | K156: =IF($C156=0,"N/A",VLOOKUP(build1_fp,bldg_shed_cost_cl,IF(ss_cat="large",4,5))) -> 20 | L156: 1 | M156: =B154&" - "&B155&" - "&B156 -> Building Structures and HVAC - Building 1 - Small Low Cost Shed | N156: =IF(include_buildings=1,2,0) -> 2 | O156: 2 | P156: 2 | Q156: 2 | R156: 2 | S156: 2 | T156: 2 | U156: 2 | V156: 2 | W156: 1 | X156: 267.2102941 | Y156: =IF(W156,K156,0) -> 20
A157: 8.1.1 | B157: Low Quality | C157: =IF(build1_fp>=500,1,0) -> 0 | D157: units | E157: =build1_fp -> 120 | F157: sf | G157: =build1_fp -> 120 | H157: sf | I157: =IF(C157=0,"NA",IF(curve=1,bldg_lo_eq_1,VLOOKUP(build1_fp, bldg_lo_cost_cl,3))) -> NA | J157: =IF(OR(I157="NA",I157="contact vendor"),"--",G157*I157) -> -- | K157: =IF($C157=0,"N/A",VLOOKUP(build1_fp,bldg_lo_cost_cl,IF(ss_cat="large",4,5))) -> N/A | L157: 0 | M157: =B154&" - "&B155&" - "&B157 -> Building Structures and HVAC - Building 1 - Low Quality | N157: =include_buildings -> 1 | Q157: =include_buildings -> 1 | T157: =include_buildings -> 1 | W157: 0 | X157: 0 | Y157: =IF(W157,K157,0) -> 0
A158: 8.1.1 | B158: Medium Quality | C158: =IF(build1_fp>=500,1,0) -> 0 | D158: units | E158: =build1_fp -> 120 | F158: sf | G158: =build1_fp -> 120 | H158: sf | I158: =IF(C158=0,"NA",IF(curve=1,bldg_mid_eq_1,VLOOKUP(build1_fp, bldg_mid_cost_cl,3))) -> NA | J158: =IF(OR(I158="NA",I158="contact vendor"),"--",G158*I158) -> -- | K158: =IF($C158=0,"N/A",VLOOKUP(build1_fp,bldg_mid_cost_cl,IF(ss_cat="large",4,5))) -> N/A | L158: 0 | M158: =B154&" - "&B155&" - "&B158 -> Building Structures and HVAC - Building 1 - Medium Quality | O158: =include_buildings -> 1 | R158: =include_buildings -> 1 | U158: =include_buildings -> 1 | W158: 0 | X158: 0 | Y158: =IF(W158,K158,0) -> 0
A159: 8.1.1 | B159: High Quality | C159: =IF(build1_fp>=500,1,0) -> 0 | D159: units | E159: =build1_fp -> 120 | F159: sf | G159: =build1_fp -> 120 | H159: sf | I159: =IF(C159=0,"NA",IF(curve=1,bldg_hi_eq_1,VLOOKUP(build1_fp, bldg_hi_cost_cl,3))) -> NA | J159: -- | K159: =IF($C159=0,"N/A",VLOOKUP(build1_fp,bldg_hi_cost_cl,IF(ss_cat="large",4,5))) -> N/A | L159: 0 | M159: =B154&" - "&B155&" - "&B159 -> Building Structures and HVAC - Building 1 - High Quality | P159: =include_buildings -> 1 | S159: =include_buildings -> 1 | V159: =include_buildings -> 1 | W159: 0 | X159: 0 | Y159: =IF(W159,K159,0) -> 0
A160: 8.2 | B160: ="Heating System"&IF(build1_heat="heat pump"," (included with cooling system)","") -> Heating System | W160: 0 | X160: 0
A161: 8.2.1 | B161: Electric resistance | C161: =IF(build1_heat="heat pump","NA",IF(build1_need_heat,build1_zones,"NA")) -> NA | D161: =IF(C161="NA","","zones") ->  | E161: =IF(C161="NA","NA",build1_heat_mbh) -> NA | F161: =IF(C161="NA","","MBH") ->  | G161: =IF(C161="NA","NA",IF(curve=1,build1_heat_mbh,VLOOKUP(build1_heat_mbh,hvac_elec_cost_cl,2))) -> NA | H161: =IF(C161="NA","","MBH") ->  | I161: =IF(C161="NA","NA",IF(curve=1,hvac_elec_eq_1,VLOOKUP(build1_heat_mbh,hvac_elec_cost_cl,3))) -> NA | J161: =IF(OR(I161="NA",I161="contact vendor"),"--",C161*I161) -> -- | K161: =IF(C161="NA","NA",VLOOKUP(build1_heat_mbh,hvac_elec_cost_cl,IF(ss_cat="large",4,5))) -> NA | M161: =B154&" - "&B155&" - "&B160&" - "&B161 -> Building Structures and HVAC - Building 1 - Heating System - Electric resistance | N161: =IF(include_buildings=0,0,IF(build1_heat=$B161,1,"")) ->  | W161: =IF(ISERROR(K161*L161),0,IF(K161<1,0,L161)) -> 0 | X161: =IF(W161,J161/K161,0) -> 0
A162: 8.2.1 | B162: Natural gas non-condensing furnace | C162: =IF(build1_heat="heat pump","NA",IF(build1_need_heat,build1_zones,"NA")) -> NA | D162: =IF(C162="NA","","zones") ->  | E162: =IF(C162="NA","NA",build1_heat_mbh) -> NA | F162: =IF(C162="NA","","MBH") ->  | G162: =IF(C162="NA","NA",IF(curve=1,build1_heat_mbh,VLOOKUP(build1_heat_mbh,hvac_gas_non_cost_cl,2))) -> NA | H162: =IF(C162="NA","","MBH") ->  | I162: =IF(C162="NA","NA",IF(curve=1,hvac_gas_non_eq_1,VLOOKUP(build1_heat_mbh,hvac_gas_non_cost_cl,3))) -> NA | J162: =IF(OR(I162="NA",I162="contact vendor"),"--",C162*I162) -> -- | K162: =IF(C162="NA","NA",VLOOKUP(build1_heat_mbh,hvac_gas_non_cost_cl,IF(ss_cat="large",4,5))) -> NA | M162: =B154&" - "&B155&" - "&B160&" - "&B162 -> Building Structures and HVAC - Building 1 - Heating System - Natural gas non-condensing furnace | W162: 0 | X162: 0
A163: 8.2.1 | B163: Natural gas condensing furnace | C163: =IF(build1_heat="heat pump","NA",IF(build1_need_heat,build1_zones,"NA")) -> NA | D163: =IF(C163="NA","","zones") ->  | E163: =IF(C163="NA","NA",build1_heat_mbh) -> NA | F163: =IF(C163="NA","","MBH") ->  | G163: =IF(C163="NA","NA",IF(curve=1,build1_heat_mbh,VLOOKUP(build1_heat_mbh,hvac_gas_cost_cl,2))) -> NA | H163: =IF(C163="NA","","MBH") ->  | I163: =IF(C163="NA","NA",IF(curve=1,hvac_gas_eq_1,VLOOKUP(build1_heat_mbh,hvac_gas_cost_cl,3))) -> NA | J163: =IF(OR(I163="NA",I163="contact vendor"),"--",C163*I163) -> -- | K163: =IF(C163="NA","NA",VLOOKUP(build1_heat_mbh,hvac_gas_cost_cl,IF(ss_cat="large",4,5))) -> NA | M163: =B154&" - "&B155&" - "&B160&" - "&B163 -> Building Structures and HVAC - Building 1 - Heating System - Natural gas condensing furnace | W163: 0 | X163: 0
A164: 8.2.1 | B164: Standard efficiency oil furnace | C164: =IF(build1_heat="heat pump","NA",IF(build1_need_heat,build1_zones,"NA")) -> NA | D164: =IF(C164="NA","","zones") ->  | E164: =IF(C164="NA","NA",build1_heat_mbh) -> NA | F164: =IF(C164="NA","","MBH") ->  | G164: =IF(C164="NA","NA",IF(curve=1,build1_heat_mbh,VLOOKUP(E164,hvac_oil_std_cost_cl,2))) -> NA | H164: =IF(C164="NA","","MBH") ->  | I164: =IF(C164="NA","NA",IF(curve=1,hvac_oil_std_eq_1,VLOOKUP(build1_heat_mbh,hvac_oil_std_cost_cl,3))) -> NA | J164: =IF(OR(I164="NA",I164="contact vendor"),"--",C164*I164) -> -- | K164: =IF(C164="NA","NA",VLOOKUP(build1_heat_mbh,hvac_oil_std_cost_cl,IF(ss_cat="large",4,5))) -> NA | M164: =B154&" - "&B155&" - "&B160&" - "&B164 -> Building Structures and HVAC - Building 1 - Heating System - Standard efficiency oil furnace | W164: 0 | X164: 0
A165: 8.2.1 | B165: Mid-efficiency oil furnace | C165: =IF(build1_heat="heat pump","NA",IF(build1_need_heat,build1_zones,"NA")) -> NA | D165: =IF(C165="NA","","zones") ->  | E165: =IF(C165="NA","NA",build1_heat_mbh) -> NA | F165: =IF(C165="NA","","MBH") ->  | G165: =IF(C165="NA","NA",IF(curve=1,build1_heat_mbh,VLOOKUP(build1_heat_mbh,hvac_oil_mid_cost_cl,2))) -> NA | H165: =IF(C165="NA","","MBH") ->  | I165: =IF(C165="NA","NA",IF(curve=1,hvac_oil_mid_eq_1,VLOOKUP(build1_heat_mbh,hvac_oil_mid_cost_cl,3))) -> NA | J165: =IF(OR(I165="NA",I165="contact vendor"),"--",C165*I165) -> -- | K165: =IF(C165="NA","NA",VLOOKUP(build1_heat_mbh,hvac_oil_mid_cost_cl,IF(ss_cat="large",4,5))) -> NA | M165: =B154&" - "&B155&" - "&B160&" - "&B165 -> Building Structures and HVAC - Building 1 - Heating System - Mid-efficiency oil furnace | W165: 0 | X165: 0
A166: 8.3 | B166: =IF(build1_heat="heat pump","Heating and ","")&"Cooling System" -> Cooling System | W166: 0 | X166: 0
A167: 8.3.1 | B167: Air conditioner | C167: =IF(build1_need_cool,build1_zones,"NA") -> NA | D167: =IF(C167="NA","","zones") ->  | E167: =IF(C167="NA","NA",build1_cooling_tons) -> NA | F167: =IF(C167="NA","","tons") ->  | G167: =IF(C167="NA","NA",IF(curve=1,build1_cooling_tons,VLOOKUP(build1_cooling_tons,hvac_ac_cost_cl,2))) -> NA | H167: =IF(C167="NA","","tons") ->  | I167: =IF(C167="NA","NA",IF(curve=1,hvac_ac_eq_1,VLOOKUP(build1_cooling_tons,hvac_ac_cost_cl,3))) -> NA | J167: =IF(OR(I167="NA",I167="contact vendor"),"--",C167*I167) -> -- | K167: =IF(C167="NA","NA",VLOOKUP(build1_cooling_tons,hvac_ac_cost_cl,IF(ss_cat="large",4,5))) -> NA | M167: =B154&" - "&B155&" - "&B166&" - "&B167 -> Building Structures and HVAC - Building 1 - Cooling System - Air conditioner | N167: =IF(build1_cool=$B167,1,"") ->  | O167: =IF(include_buildings=0,0,IF(build1_cool=$B167,1,"")) ->  | W167: 0 | X167: 0
A168: 8.3.1 | B168: Heat pump | C168: =IF(AND(hp_ok_1,build1_need_cool),build1_zones,"NA") -> NA | D168: =IF(C168="NA","","zones") ->  | E168: =IF(C168="NA","NA",build1_cooling_tons) -> NA | F168: =IF(C168="NA","","tons") ->  | G168: =IF(C168="NA","NA",IF(curve=1,build1_cooling_tons,VLOOKUP(build1_cooling_tons,hvac_hp_cost_cl,2))) -> NA | H168: =IF(C168="NA","","tons") ->  | I168: =IF(C168="NA","NA",IF(curve=1,hvac_hp_eq_1,VLOOKUP(build1_cooling_tons,hvac_hp_cost_cl,3))) -> NA | J168: =IF(OR(I168="NA",I168="contact vendor"),"--",C168*I168) -> -- | K168: =IF(C168="NA","NA",VLOOKUP(build1_cooling_tons,hvac_hp_cost_cl,IF(ss_cat="large",4,5))) -> NA | M168: =B154&" - "&B155&" - "&B166&" - "&B168 -> Building Structures and HVAC - Building 1 - Cooling System - Heat pump | W168: 0 | X168: 0
A169: 8.4 | B169: Building 2 | W169: 0 | X169: 0
A170: 8.4.1 | B170: Small Low Cost Shed | C170: =IF(AND(build2_fp>0,build2_fp<500),1,0) -> 0 | D170: units | E170: =build2_fp -> 0 | F170: sf | G170: =build2_fp -> 0 | H170: sf | I170: =IF(C170=0,"NA",VLOOKUP(build2_fp,bldg_shed_cost_cl,3)) -> NA | J170: =IF(OR(I170="NA",I170="contact vendor"),"--",G170*I170) -> -- | K170: =IF($C170=0,"N/A",VLOOKUP(build2_fp,bldg_shed_cost_cl,IF(ss_cat="large",4,5))) -> N/A | M170: =B154&" - "&B169&" - "&B170 -> Building Structures and HVAC - Building 2 - Small Low Cost Shed | N170: =IF(include_buildings=1,2,0) -> 2 | O170: 2 | P170: 2 | Q170: 2 | R170: 2 | S170: 2 | T170: 2 | U170: 2 | V170: 2 | W170: 0 | X170: 0 | Y170: =IF(W170,K170,0) -> 0
A171: 8.4.1 | B171: Low Quality | C171: =IF(build2_fp>=500,1,0) -> 0 | D171: units | E171: =build2_fp -> 0 | F171: sf | G171: =build2_fp -> 0 | H171: sf | I171: =IF(C171=0,"NA",IF(curve=1,bldg_lo_eq_2,VLOOKUP(build2_fp, bldg_lo_cost_cl,3))) -> NA | J171: -- | K171: =IF($C171=0,"N/A",VLOOKUP(build2_fp,bldg_lo_cost_cl,IF(ss_cat="large",4,5))) -> N/A | M171: =B154&" - "&B169&" - "&B171 -> Building Structures and HVAC - Building 2 - Low Quality | N171: =include_buildings -> 1 | Q171: =include_buildings -> 1 | T171: =include_buildings -> 1 | W171: 0 | X171: 0 | Y171: =IF(W171,K171,0) -> 0
A172: 8.4.1 | B172: Medium Quality | C172: =IF(build2_fp>=500,1,0) -> 0 | D172: units | E172: =build2_fp -> 0 | F172: sf | G172: =build2_fp -> 0 | H172: sf | I172: =IF(C172=0,"NA",IF(curve=1,bldg_mid_eq_2,VLOOKUP(build2_fp, bldg_mid_cost_cl,3))) -> NA | J172: -- | K172: =IF($C172=0,"N/A",VLOOKUP(build2_fp,bldg_mid_cost_cl,IF(ss_cat="large",4,5))) -> N/A | M172: =B154&" - "&B169&" - "&B172 -> Building Structures and HVAC - Building 2 - Medium Quality | O172: =include_buildings -> 1 | R172: =include_buildings -> 1 | U172: =include_buildings -> 1 | W172: 0 | X172: 0 | Y172: =IF(W172,K172,0) -> 0
A173: 8.4.1 | B173: High Quality | C173: =IF(build2_fp>=500,1,0) -> 0 | D173: units | E173: =build2_fp -> 0 | F173: sf | G173: =build2_fp -> 0 | H173: sf | I173: =IF(C173=0,"NA",IF(curve=1,bldg_hi_eq_2,VLOOKUP(build2_fp, bldg_hi_cost_cl,3))) -> NA | J173: -- | K173: =IF($C173=0,"N/A",VLOOKUP(build2_fp,bldg_hi_cost_cl,IF(ss_cat="large",4,5))) -> N/A | M173: =B154&" - "&B169&" - "&B173 -> Building Structures and HVAC - Building 2 - High Quality | P173: =include_buildings -> 1 | S173: =include_buildings -> 1 | V173: =include_buildings -> 1 | W173: 0 | X173: 0 | Y173: =IF(W173,K173,0) -> 0
A174: 8.5 | B174: ="Heating System"&IF(build2_heat="heat pump"," (included with cooling system)","") -> Heating System | W174: 0 | X174: 0
A175: 8.5.1 | B175: Electric resistance | C175: =IF(build2_heat="heat pump","NA",IF(build2_need_heat,build2_zones,"NA")) -> NA | D175: =IF(C175="NA","","zones") ->  | E175: =IF(C175="NA","NA",build2_heat_mbh) -> NA | F175: =IF(C175="NA","","MBH") ->  | G175: =IF(C175="NA","NA",IF(curve=1,build2_heat_mbh,VLOOKUP(build2_heat_mbh,hvac_elec_cost_cl,2))) -> NA | H175: =IF(C175="NA","","MBH") ->  | I175: =IF(C175="NA","NA",IF(curve=1,hvac_elec_eq_2,VLOOKUP(build2_heat_mbh,hvac_elec_cost_cl,3))) -> NA | J175: =IF(OR(I175="NA",I175="contact vendor"),"--",C175*I175) -> -- | K175: =IF(C175="NA","NA",VLOOKUP(build2_heat_mbh,hvac_elec_cost_cl,IF(ss_cat="large",4,5))) -> NA | M175: =B154&" - "&B169&" - "&B174&" - "&B175 -> Building Structures and HVAC - Building 2 - Heating System - Electric resistance | N175: =IF(include_buildings=0,0,IF(build2_heat=$B175,1,"")) ->  | W175: 0 | X175: 0
A176: 8.5.1 | B176: Natural gas non-condensing furnace | C176: =IF(build2_heat="heat pump","NA",IF(build2_need_heat,build2_zones,"NA")) -> NA | D176: =IF(C176="NA","","zones") ->  | E176: =IF(C176="NA","NA",build2_heat_mbh) -> NA | F176: =IF(C176="NA","","MBH") ->  | G176: =IF(C176="NA","NA",IF(curve=1,build2_heat_mbh,VLOOKUP(build2_heat_mbh,hvac_gas_non_cost_cl,2))) -> NA | H176: =IF(C176="NA","","MBH") ->  | I176: =IF(C176="NA","NA",IF(curve=1,hvac_gas_non_eq_2,VLOOKUP(build2_heat_mbh,hvac_gas_non_cost_cl,3))) -> NA | J176: =IF(OR(I176="NA",I176="contact vendor"),"--",C176*I176) -> -- | K176: =IF(C176="NA","NA",VLOOKUP(build2_heat_mbh,hvac_gas_non_cost_cl,IF(ss_cat="large",4,5))) -> NA | M176: =B154&" - "&B169&" - "&B174&" - "&B176 -> Building Structures and HVAC - Building 2 - Heating System - Natural gas non-condensing furnace | W176: 0 | X176: 0
A177: 8.5.1 | B177: Natural gas condensing furnace | C177: =IF(build2_heat="heat pump","NA",IF(build2_need_heat,build2_zones,"NA")) -> NA | D177: =IF(C177="NA","","zones") ->  | E177: =IF(C177="NA","NA",build2_heat_mbh) -> NA | F177: =IF(C177="NA","","MBH") ->  | G177: =IF(C177="NA","NA",IF(curve=1,build2_heat_mbh,VLOOKUP(build2_heat_mbh,hvac_gas_cost_cl,2))) -> NA | H177: =IF(C177="NA","","MBH") ->  | I177: =IF(C177="NA","NA",IF(curve=1,hvac_gas_eq_2,VLOOKUP(build2_heat_mbh,hvac_gas_cost_cl,3))) -> NA | J177: =IF(OR(I177="NA",I177="contact vendor"),"--",C177*I177) -> -- | K177: =IF(C177="NA","NA",VLOOKUP(build2_heat_mbh,hvac_gas_cost_cl,IF(ss_cat="large",4,5))) -> NA | M177: =B154&" - "&B169&" - "&B174&" - "&B177 -> Building Structures and HVAC - Building 2 - Heating System - Natural gas condensing furnace | W177: 0 | X177: 0
A178: 8.5.1 | B178: Standard efficiency oil furnace | C178: =IF(build2_heat="heat pump","NA",IF(build2_need_heat,build2_zones,"NA")) -> NA | D178: =IF(C178="NA","","zones") ->  | E178: =IF(C178="NA","NA",build2_heat_mbh) -> NA | F178: =IF(C178="NA","","MBH") ->  | G178: =IF(C178="NA","NA",IF(curve=1,build2_heat_mbh,VLOOKUP(E178,hvac_oil_std_cost_cl,2))) -> NA | H178: =IF(C178="NA","","MBH") ->  | I178: =IF(C178="NA","NA",IF(curve=1,hvac_oil_std_eq_2,VLOOKUP(build2_heat_mbh,hvac_oil_std_cost_cl,3))) -> NA | J178: =IF(OR(I178="NA",I178="contact vendor"),"--",C178*I178) -> -- | K178: =IF(C178="NA","NA",VLOOKUP(build2_heat_mbh,hvac_oil_std_cost_cl,IF(ss_cat="large",4,5))) -> NA | M178: =B154&" - "&B169&" - "&B174&" - "&B178 -> Building Structures and HVAC - Building 2 - Heating System - Standard efficiency oil furnace | W178: 0 | X178: 0
A179: 8.5.1 | B179: Mid-efficiency oil furnace | C179: =IF(build2_heat="heat pump","NA",IF(build2_need_heat,build2_zones,"NA")) -> NA | D179: =IF(C179="NA","","zones") ->  | E179: =IF(C179="NA","NA",build2_heat_mbh) -> NA | F179: =IF(C179="NA","","MBH") ->  | G179: =IF(C179="NA","NA",IF(curve=1,build2_heat_mbh,VLOOKUP(build2_heat_mbh,hvac_oil_mid_cost_cl,2))) -> NA | H179: =IF(C179="NA","","MBH") ->  | I179: =IF(C179="NA","NA",IF(curve=1,hvac_oil_mid_eq_2,VLOOKUP(build2_heat_mbh,hvac_oil_mid_cost_cl,3))) -> NA | J179: =IF(OR(I179="NA",I179="contact vendor"),"--",C179*I179) -> -- | K179: =IF(C179="NA","NA",VLOOKUP(build2_heat_mbh,hvac_oil_mid_cost_cl,IF(ss_cat="large",4,5))) -> NA | M179: =B154&" - "&B169&" - "&B174&" - "&B179 -> Building Structures and HVAC - Building 2 - Heating System - Mid-efficiency oil furnace | W179: 0 | X179: 0
A180: 8.6 | B180: =IF(build2_heat="heat pump","Heating and ","")&"Cooling System" -> Cooling System | W180: 0 | X180: 0
A181: 8.6.1 | B181: Air conditioner | C181: =IF(build2_need_cool,build2_zones,"NA") -> NA | D181: =IF(C181="NA","","zones") ->  | E181: =IF(C181="NA","NA",build2_cooling_tons) -> NA | F181: =IF(C181="NA","","tons") ->  | G181: =IF(C181="NA","NA",IF(curve=1,build2_cooling_tons,VLOOKUP(build2_cooling_tons,hvac_ac_cost_cl,2))) -> NA | H181: =IF(C181="NA","","tons") ->  | I181: =IF(C181="NA","NA",IF(curve=1,hvac_ac_eq_2,VLOOKUP(build2_cooling_tons,hvac_ac_cost_cl,3))) -> NA | J181: =IF(OR(I181="NA",I181="contact vendor"),"--",C181*I181) -> -- | K181: =IF(C181="NA","NA",VLOOKUP(build2_cooling_tons,hvac_ac_cost_cl,IF(ss_cat="large",4,5))) -> NA | M181: =B154&" - "&B169&" - "&B180&" - "&B181 -> Building Structures and HVAC - Building 2 - Cooling System - Air conditioner | N181: =IF(include_buildings=0,0,IF(build2_cool=$B181,1,"")) ->  | W181: 0 | X181: 0
A182: 8.6.1 | B182: Heat pump | C182: =IF(AND(hp_ok_2,build2_need_cool),build2_zones,"NA") -> NA | D182: =IF(C182="NA","","zones") ->  | E182: =IF(C182="NA","NA",build2_cooling_tons) -> NA | F182: =IF(C182="NA","","tons") ->  | G182: =IF(C182="NA","NA",IF(curve=1,build2_cooling_tons,VLOOKUP(build2_cooling_tons,hvac_hp_cost_cl,2))) -> NA | H182: =IF(C182="NA","","tons") ->  | I182: =IF(C182="NA","NA",IF(curve=1,hvac_hp_eq_2,VLOOKUP(build2_cooling_tons,hvac_hp_cost_cl,3))) -> NA | J182: =IF(OR(I182="NA",I182="contact vendor"),"--",C182*I182) -> -- | K182: =IF(C182="NA","NA",VLOOKUP(build2_cooling_tons,hvac_hp_cost_cl,IF(ss_cat="large",4,5))) -> NA | M182: =B154&" - "&B169&" - "&B180&" - "&B182 -> Building Structures and HVAC - Building 2 - Cooling System - Heat pump | W182: 0 | X182: 0
A183: 8.7 | B183: Concrete Pad | C183: 1 | D183: units | E183: =concrete -> 2 | F183: cy | G183: =concrete -> 2 | H183: cy | I183: =VLOOKUP(0,conc_pad_cost_cl,3) -> 627.3046027 | J183: =IF(I183="contact vendor","--",E183*I183) -> 1254.609205 | K183: =VLOOKUP(0,conc_pad_cost_cl,IF(ss_cat="large",4,5)) -> 37 | L183: 1 | M183: =B154&" - "&B183 -> Building Structures and HVAC - Concrete Pad | N183: =include_pad -> 1 | O183: 1 | P183: 1 | Q183: 1 | R183: 1 | S183: 1 | T183: 1 | U183: 1 | V183: 1 | W183: 1 | X183: 33.9083569
W184: direct_for_UL | X184: total_direct_depreciation | Y184: build_UL
A185: Total of direct line items above: | W185: =SUMPRODUCT(W33:W183,J33:J183) -> 143345.2855 | X185: =SUM(X33:X183) -> 7676.014755 | Y185: =MAX(Y156:Y159,Y170:Y173) -> 20
B186: Direct cost category | C186: Total | D186: Guidance
B187: Process costs | C187: =SUMPRODUCT(J33:J153,L33:L153) -> 136746.4705 | D187: Excludes alternate cost line items in italics, without a 1 in the "Use?" column. Includes installation, transportation, and O&P
B188: Building costs | C188: =SUMPRODUCT(J154:J183,L154:L183) -> 6598.815087 | D188: See indirect assumptions sheet to exclude buildings
B189: Total direct capital cost | C189: =process_cost+Building_cost -> 143345.2855 | D189: Total of process and building costs
A191: Add-on Cost Details (See indirect assumptions sheet to exclude individual add-on items)
B192: Add-on Line Item | C192: Total | D192: Guidance
B193: Permits | C193: =include_permits*permit_cost -> 125.25
B194: Pilot Study | C194: =include_pilot*VLOOKUP(tech_name,CHOOSE(ss_cat2,pilot_cost_small_cl,pilot_cost_medium_cl,pilot_cost_large_cl),2,FALSE) -> 15474.92838
B195: Land Cost | C195: =include_land*land_required*land_cost -> 705.7216492 | D195: ="For "&TEXT(land_required,"#0.00")&" acres" -> For 0.04 acres
B196: Total add-on costs | C196: =SUM(C193:C195) -> 16305.90003 | D196: Total of permits, piloting, and land
A198: Indirect Capital Cost Details (See indirect assumptions sheet to exclude individual indirect items)
B199: Indirect Line Item | C199: Total | D199: Percent | E199: Guidance
B200: Mobilization and Demobilization | C200: =(direct_cost+C202+C203+C204+C205+C206+C207+C208+C211)*D200 -> 0 | D200: =IF(design_type=1,mob_pct_pre,CHOOSE(ss_cat2,mob_pct_small,mob_pct_medium,mob_pct_large)) -> 0 | E200: Excluded for pre-engineered packages
B201: Architectural Fees for Treatment Building | C201: =IF(ss_cat2=1,include_arch_small,include_arch)*Building_cost*D201 -> 0 | D201: =VLOOKUP(Building_cost,architectural_table_cl,3) -> 0.09 | E201: Excluded by default for small systems
B202: Installation, Transportatation, and O&P | C202: =direct_cost*D202 -> 0 | D202: =inst_pct -> 0
B203: Site Work | C203: =include_sitework*sitework_cost -> 1488.791209 | E203: Calculated based on system requirements.
B204: Yard Piping | C204: =include_yardpipe*yard_cost -> 1729.430577 | E204: Calculated based on system requirements.
... 88 more rows

Sheet Critical Design Assumptions
A1: Default Critical Design Assumptions
A2: Users may change any of the cells in the Value column; cells in gold are most important and may vary based on contaminant treated and site-specific conditions
A4: Assumption | B4: Range Name | C4: Value | D4: Units | E4: Guidance
A5: Use curve fit for costs | B5: curve | C5: 1 | D5: <-- enter 1 to use cost equations, leave blank to use lookup tables for component costs | E5: Keeping this assumption with a value of 1 is strongly recommended; the cost equations method is more appropriate for national cost estimating and will be more accurate for nearly all user-specified designs
A7: Bypass Flow
A8: Percent of Total Flow that is Bypassed | B8: bp_pct | C8: 0 | E8: Typically, bypass flow ranges between 0% and 50% of inflow. Enter zero to remove bypass piping and components. 0% is default consistent with the type of cost curves that EPA will need for its national cost simulation model.
A10: Pumps and Blowers
A11: Safety factor for pumps | B11: pump_safety_factor | C11: 0.25
A12: Number of redundant pumps | B12: NRD_pumps | C12: 0 | E12: Multiple pump approach eliminates need for redundant pumps.
A13: Blower safety factor | B13: blower_safety_factor | C13: 0.25
A14: Number of redundant blowers | B14: NRD_blowers | C14: 1 | E14: One spare blower is usually provided (Drago peer review comments)
A15: Minimum average flow as percentage of design | B15: min_avg_flow | C15: 0.1 | E15: The minimum ratio of average flow to design flow. If the ratio falls below this value, it will trigger a warning on the INPUT sheet. If this value is zero, no minimum is enforced.
A17: Contact basin design
A18: Maximum air surface loading intensity | B18: max_air_load | C18: 16.5 | D18: cfm/square ft | E18: Maximum should be <16 to 20 cfm/ft2. Recommend 16 to 17 cfm/ft2 (Lowry peer review comments)
A19: Minimum basin length to width ratio | B19: max_ratio | C19: 1.5 | E19: Basins are longer than they are wide
A20: Freeboard | B20: freeboard | C20: 2 | D20: feet | E20: 1 to 3 feet, assuming 2 feet (ASCE/AWWA, 1997, p. 471)
A21: Number of redundant basins | B21: NRD_tanks | C21: 0 | D21: units | E21: According to TDP, basins are not considered for redundancy
A22: Maximum basin length (pre-engineered package) | B22: max_length_package | C22: 12 | D22: feet | E22: Vendor packages supply aboveground basins up to 12 feet long (Lowry peer review comments)
A23: Maximum basin length (custom design) | B23: max_length_custom | C23: 60 | D23: feet | E23: Vendors have custom designed in-ground concrete basins up to 60 feet long (Lowry peer review comments)
A24: Quiescent chamber length as a proportion of stage length | B24: qchamber_ratio | C24: 0.5 | E24: Based on review of vendor schematics, quiescent chamber is approximately half the length of an individual stage
A25: Concrete thickness | B25: conc_thick | C25: 1 | D25: feet
A26: Overexcavation for concrete basins | B26: overexcavate | C26: 4 | D26: ft | E26: 2 feet each side in each dimension. This assumption used only if concrete basins are used.
A27: Diffuser access space | B27: diffuser_access_space | C27: 1 | D27: inches | E27: Added to diffuser length and diameter to allow access
A28: External air piping | B28: air_pipe_add | C28: 1 | D28: times facility length | E28: Additional air piping from blowers to basins
A30: Valves and Instrumentation
A31: See the Valve Table at the bottom of this page for additional assumptions relating to valves
A32: Number of manual valves on influent and treated water line | B32: tot_man_valves | C32: 2 | D32: valves
A34: Number of check valves on treated water line | B34: tot_in_chv | C34: 1 | D34: valves
A35: Number of check valves on bypass line | B35: tot_bp_chv | C35: 1 | D35: valves
A36: Number of check valves on process line per booster pump | B36: proc_chv_pump | C36: 1 | D36: valves
A38: Flow meters for influent and treated water line | B38: tot_fm_in | C38: 1 | D38: units | E38: Influent line only
A39: Flow meters for process line per contact basin | B39: fm_proc | C39: 1 | D39: units/basin
A40: Flow meters for air line per contact basin | B40: fm_air | C40: 1 | D40: units/basin
A41: pH_meters | B41: tot_ph | C41: 2 | D41: units | E41: Included on inlet and outlet because aeration will strip CO2
A42: High/Low alarms per contact basin | B42: alarm_basin | C42: 1 | D42: units/basin
A43: Number of pressure gauges per blower | B43: gauges_blower | C43: 2 | D43: units/blower | E43: On outlet to monitor state of aerators (fouling); on inlet to monitor air filter element (plugging)
A44: Number of electrical enclosures | B44: elec_encl | C44: 0 | D44: units | E44: Required only for technologies with significant electric-powered equipment outside a building
A46: System Controls
A47: See the I/O Port Table at the bottom of this page for additional assumptions relating to system controls
A48: Controllers are used only under full automation
A49: To change the degree of automation, change the number of controllers to zero for the appropriate items.
A50: Drive controllers per booster pump | B50: S_booster_pump | C50: 1
A51: Drive controllers per blower | B51: S_blower | C51: 1
A52: Drive controllers per thermal oxidizer | B52: S_TO | C52: 2 | E52: One for burners, one for secondary air
A53: Drive controllers per catalytic oxidizer | B53: S_CO | C53: 2 | E53: One for burners, one for secondary air
A55: Number of CPUs | B55: plc_cpu | C55: 2 | D55: units | E55: One CPU is needed to run the local and expansion bases and modules (max 8192 I/O); using two to provide redundancy
A56: Ethernet modules | B56: plc_ethernet | C56: 2 | D56: units | E56: One ethernet module is needed; using two to provide redundancy
A57: Operator interfaces | B57: plc_interface | C57: 2 | D57: units | E57: Two to provide redundancy in the event of SCADA node failure
A58: UPSs | B58: ups | C58: 1 | D58: unit | E58: UPS protects the PLC system from undesired outages and surges that can adversely affect the performance of the PLC unit
A59: Computer workstations per x operators | B59: workstation_ratio | C59: 1 | D59: operator/workstation | E59: Minimum will always be one, but larger systems will have multiple workstations to control the system
A60: Number of shifts | B60: shifts_day | C60: 3 | D60: shifts/day | E60: Used to determine number of workstations
A61: Printers per x computer workstations | B61: printer_ratio | C61: 4 | D61: workstations/printer | E61: Minimum will always be one, but larger systems will have multiple printers
A63: Structure/Floorplan
A64: Maximum access space per vessel or tank for custom designed systems | B64: max_space_vessels_cust | C64: 6 | D64: feet | E64: This is the MAXIMUM; space between vessels and tanks defaults to vessel or tank diameter, up to this maximum. Maximum provides space for sandblasting and painting for large vessels (5-8 feet per Richard E. Hubel, Peter Keenan, American Water Works Service Company).
A65: Maximum access space per vessel or tank for pre-engineered systems | B65: max_space_vessels_pre | C65: 1 | D65: feet | E65: Assumes skid-mounting with minimal access space
A66: Access space per pump/blower for custom designed systems | B66: space_pumps_cust | C66: 4 | D66: feet | E66: Used for both pumps and blowers; provide a minimum of 3 ft (1 m) of clear space around each item of equipment (American Water Works Association and American Society of Civil Engineers. Water Treatment Plant Design. Third Edition. New York: McGraw Hill, 1998. Pp. 695).
A67: Access space per pump/blower for pre-engineered packages | B67: space_pumps_pre | C67: 0 | D67: feet | E67: Pumps and blowers on skid for pre-engineered packages, no additional access space
A68: Fire truck buffer requirements | B68: fire_buffer | C68: 40 | D68: feet
A69: Buffer space around other sides of buildings | B69: non_fire_buffer | C69: 10 | D69: feet
A70: Building height | B70: Building_height | C70: 20 | D70: feet
A71: Office space per employee | B71: space_office | C71: 100 | D71: square ft
A72: Office space per employee | B72: space_office_small | C72: 0 | D72: square ft | E72: Small systems do not require office space
A73: Concrete pad thickness | B73: pad_thick | C73: =6/12 -> 0.5 | D73: feet
A74: Concrete pad thickness for small systems | B74: pad_thick_small | C74: =4/12 -> 0.3333333333 | D74: feet
A75: Additional building after… | B75: add_2nd_building | C75: 10000 | D75: sf
A77: Valve Table
A78: Under assumptions below, valves are motorized for fully automated systems, manual for semi-automated and manual systems
A79: To change the degree of automation, the user may replace the numbers in each of the blue columns.
A80: Number of control valves of x type on y line per z | B80: Lookup name | C80: Manual | D80: Semi-auto | E80: Fully Auto | F80: Units
A81: Motor/air operated on process line per contact basin | B81: proc_MOV_basin | C81: 0 | D81: 0 | E81: 2 | F81: valves/basin
A82: Motor/air operated on process line per booster pump | B82: proc_MOV_pump | C82: 0 | D82: 0 | E82: 2 | F82: valves/pump
A83: Motor/air operated on air line per blower | B83: air_MOV_basin | C83: 0 | D83: 0 | E83: 1 | F83: valves/blower
A84: Motor/air operated on bypass line | B84: tot_bp_MOVs | C84: 0 | D84: 0 | E84: 1 | F84: valves
A85: Number of MOVs per offgas control unit | B85: air_MOV_og | C85: 0 | D85: 0 | E85: 1 | F85: valves/unit
A86: Additional MOVs with offgas control | B86: add_MOV_og | C86: 0 | D86: 0 | E86: 1 | F86: valve | G86: For emergency direct venting
A87: Manual on process line per contact basin | B87: proc_man_basin | C87: 2 | D87: 2 | E87: 0 | F87: valves/basin
A88: Manual on process line per booster pump | B88: proc_man_pump | C88: 2 | D88: 2 | E88: 0 | F88: valves/pump
A89: Manual on air line per blower | B89: air_man_basin | C89: 1 | D89: 1 | E89: 0 | F89: valves/blower
A90: Manual on bypass line | B90: tot_bp_man | C90: 1 | D90: 1 | E90: 0 | F90: valves
A91: Number of manual control valves per offgas control unit | B91: air_man_og | C91: 1 | D91: 1 | E91: 0 | F91: valves/unit
A92: Additional manual control valves with offgas control | B92: add_man_og | C92: 1 | D92: 1 | E92: 0 | F92: valve | G92: For emergency direct venting
A94: I/O Port Table
A95: Full automation includes all inputs and outputs, semi-automated uses inputs only, manual control uses neither
A96: To change the degree of automation, the user may replace the numbers in each of the blue columns.
A97: I/O Ports needed per…. | B97: Lookup name | C97: Discrete Inputs | D97: Discrete Outputs | E97: Analog Inputs | F97: Analog Outputs
A98: Alarm (including level switch/alarms, high/low alarms, low alarms) | B98: alarm | C98: 1 | D98: 1 | E98: 0 | F98: 0
A99: Catalytic oxidizer | B99: CO | C99: 3 | D99: 2 | E99: 2 | F99: 1 | G99: Air flow: 2 AI, 1 AO, Temperature controller: 1 DI, 1 DO, Automated shut down: 1 DI, 1 DO, LEL sensor: 1 DI
A100: Air flow meter (rotameter) | B100: flow_air | C100: 0 | D100: 0 | E100: 1 | F100: 0
A101: Magnetic flow meter | B101: flow_mag | C101: 0 | D101: 0 | E101: 1 | F101: 0
A102: Orifice plate flow meter | B102: flow_op | C102: 0 | D102: 0 | E102: 2 | F102: 1 | G102: Additional analog input because flow meters include pressure gauges
A103: Propeller flow meter | B103: flow_prop | C103: 0 | D103: 0 | E103: 1 | F103: 0
A104: Venturi flow meter | B104: flow_ven | C104: 0 | D104: 0 | E104: 2 | F104: 1 | G104: Additional analog input because flow meters include pressure gauges
A105: pH meter | B105: ph | C105: 0 | D105: 0 | E105: 1 | F105: 0
A106: Pressure gauge | B106: press | C106: 0 | D106: 0 | E106: 1 | F106: 0
A107: Drive controller | B107: switch | C107: 3 | D107: 1 | E107: 0 | F107: 0
A108: TDS monitor | B108: TDS | C108: 1 | D108: 0 | E108: 0 | F108: 0
A109: Temperature meter | B109: temp | C109: 0 | D109: 0 | E109: 1 | F109: 0
A110: Thermal oxidizer | B110: TO | C110: 3 | D110: 2 | E110: 2 | F110: 1 | G110: Air flow: 2 AI, 1 AO, Temperature controller: 1 DI, 1 DO, Automated shut down: 1 DI, 1 DO, LEL sensor: 1 DI
A111: Motor/air operated valve | B111: valve | C111: 0 | D111: 0 | E111: 1 | F111: 1

Sheet O&M Assumptions
A1: Default O&M Assumptions
A2: Users may change any of the cells in the Value column
A4: Assumption | B4: Range Name | C4: Value | D4: Units | E4: Guidance
A5: Pump head | B5: pump_head | C5: 75 | D5: psi | E5: Consistent with pumping to distribution at 60-90 psi (Lowry Peer Review Comments)
A6: Efficiency of pumps | B6: pump_effcy | C6: 0.75
A7: Additional blower head above water depth | B7: add_blow_head | C7: 10 | D7: inches
A8: Blower efficiency | B8: blower_effcy | C8: 0.7
A9: Cost for parts & maintenance for pumps and blowers | B9: pump_maint_rate | C9: 0.01 | E9: For calculating cost of actual maintenance materials; not to be confused with depreciation; 5% would be too high (Richard E. Hubel, Peter Keenan, American Water Works Service Company, Inc)
A11: Operating LOE assumptions
A12: Minutes per instrument per day | B12: uloe_inst | C12: 5 | D12: min/day | E12: For manual systems only
A13: Recording operating paramenters for automated systems | B13: uloe_inst_auto | C13: 5 | D13: min/day | E13: For semiautomated and automated systems
A14: Minutes per pump, blower, and offgas unit per day | B14: uloe_pump | C14: 5 | D14: min/day | E14: For manual and semiautomated systems
A15: Minutes per valve per week | B15: uloe_valve | C15: 5 | D15: min/week | E15: For manual and semiautomated systems
A16: Minutes per 100 sf per day | B16: uloe_fp | C16: 1 | D16: min/100 sf/day
A17: Hours per media changeout | B17: uloe_throwaway | C17: 4 | D17: hours/bed/event | E17: For systems with GAC offgas treatment
A19: Mangerial LOE as a percent of average technical labor | B19: Manager_percent | C19: 0.1 | D19: fraction
A20: Administrative LOE as a percent of average technical labor | B20: Clerical_percent | C20: 0.1 | D20: fraction
A22: Maintenance LOE assumptions
A23: For instruments (includes calibration) | B23: uloe_inst_maint | C23: 10 | D23: min/month
A24: For pumps | B24: uloe_pump_maint | C24: 30.25 | D24: hours/year | E24: Based on vendor recommended maintenance activities; applied to large, frequently operated pumps only
A25: For valves | B25: uloe_valve_maint | C25: 5 | D25: min/year | E25: Applied to main process valves only
A27: Lighting and HVAC
A28: Lighting power per sf, low-quality buildings and sheds | B28: lighting_power_low | C28: 1 | D28: W/sf | E28: 1, 2, and 4 W/sf are the assumptions used for building capital costs.
A29: Lighting power per sf, mid-quality buildings | B29: lighting_power_mid | C29: 2 | D29: W/sf
A30: Lighting power per sf, high-quality buildings | B30: lighting_power_high | C30: 4 | D30: W/sf
A32: Ventilation air change rate for contactor | B32: Air_changes_contactor | C32: 3 | D32: air changes/hr
A33: Ventilation air change rate for pump room | B33: Air_changes_pump | C33: 20 | D33: air changes/hr | E33: Could be lower (annual average 3 changes/hr) in a northern climate
A34: Ventilation air change rate for offices | B34: Air_changes_office | C34: 2 | D34: air changes/hr
A35: Pressure drop across the fan | B35: Fan_pressure_drop | C35: 0.25 | D35: lbs/ft2
A36: Number of mechanical ventilation days per year first building (small system) | B36: fan_days_build1_small | C36: 90 | D36: days/year | E36: Number of days per year where natural ventilation is applicable cannot be greater than 365 days
A37: Number of mechanical ventilation days per year 2nd building (small system) | B37: fan_days_build2_small | C37: 90 | D37: days/year | E37: For small systems (<1 MGD)
A38: Number of mechanical ventilation days per year first building (medium system) | B38: fan_days_build1_medium | C38: 120 | D38: days/year | E38: For medium systems (1 - 10 MGD)
A39: Number of mechanical ventilation days per year 2nd building (medium system) | B39: fan_days_build2_medium | C39: 120 | D39: days/year
A40: Number of mechanical ventilation days per year first building (large system) | B40: fan_days_build1_large | C40: 185 | D40: days/year | E40: For large systems (> 10 MGD)
A41: Number of mechanical ventilation days per year 2nd building (large system) | B41: fan_days_build2_large | C41: 185 | D41: days/year
A43: R-value for walls | B43: R_wall | C43: 13 | D43: hr-sf-degF/BTU | E43: Assumes standard building materials. If higher R-value materials are desired, user may also need to adjust the cost of building materials.
A44: R-value for ceilings | B44: R_ceiling | C44: 38 | D44: hr-sf-degF/BTU | E44: Assumes standard building materials. If higher R-value materials are desired, user may also need to adjust the cost of building materials.
A45: Annual heating degree days | B45: heat_DD | C45: 4923 | D45: degree days | E45: Heating and cooling assumptions should be consistent with one another. Assumed values are for a climate that results in a total energy usage for heating and cooling equal to the national median.
A46: Annual cooling degree days | B46: cool_DD | C46: 1697 | D46: degree days | E46: Heating and cooling assumptions should be consistent with one another. Assumed values are for a climate that results in a total energy usage for heating and cooling equal to the national median.
A47: Heating ventilation/infiltration load | B47: heat_viload | C47: 168679 | D47: BTU/cfm | E47: Heating and cooling assumptions should be consistent with one another. Assumed values are for a climate that results in a total energy usage for heating and cooling equal to the national median.
A48: Cooling ventilation/infiltration load | B48: cool_viload | C48: 51771 | D48: BTU/cfm | E48: Heating and cooling assumptions should be consistent with one another. Assumed values are for a climate that results in a total energy usage for heating and cooling equal to the national median.
A49: Electric resistance heating efficiency | B49: resist_eff | C49: 0.98 | E49: See Appendix E
A50: Heat pump heating coefficient of performance | B50: COP | C50: 3.2 | E50: See Appendix E
A51: Natural gas non-condensing furnace efficiency | B51: gas_non_eff | C51: 0.8 | E51: See Appendix E
A52: Natural gas condensing furnace efficiency | B52: gas_eff | C52: 0.95 | E52: See Appendix E
A53: Standard oil furnace efficiency | B53: diesel_non_eff | C53: 0.78 | E53: See Appendix E
A54: Mid-efficiency oil furnace efficiency | B54: diesel_eff | C54: 0.85 | E54: See Appendix E
A55: Air conditioning EER | B55: EER | C55: 11 | D55: Whr/BTU | E55: See Appendix E
A56: Heat pump cooling mode EER | B56: hp_EER | C56: 10.1 | D56: Whr/BTU | E56: See Appendix E
A58: Heating Oil Heat Content | B58: diesel_heat_content | C58: 139000 | D58: BTU/gal | E58: U.S. DOE, Energy Information Administration.

Sheet Indirect Assumptions
A1: Default Assumptions for Indirect and Add-On Costs
A2: Users may change any of the cells in the Value column
A4: Assumption | B4: Range Name | C4: Value | D4: Units | E4: Guidance
A5: Permits
A6: Include permit costs? | B6: include_permits | C6: 1 | D6: <--- enter 1 for yes, 0 for no
A7: Always include NEPA compliance costs? | B7: include_NEPA | C7: 0 | D7: <--- enter 1 for yes, 2 for no | E7: Default of 0 means NEPA compliance is included in the high component cost estimate only. Selecting 1 means NEPA compliance will be included in all estimates. Selecting 0 means NEPA compliance will never be included.
A9: Pilot Study
A10: Include pilot study costs? | B10: include_pilot | C10: 1 | D10: <--- enter 1 for yes, 0 for no
A12: Land
A13: Include land costs? | B13: include_land | C13: 1 | D13: <--- enter 1 for yes, 0 for no
A15: Mobilization and Demobilization
A16: Mobilization percentage for pre-engineered packages | B16: mob_pct_pre | C16: 0 | D16: of direct capital cost | E16: Typically 2-5% of the estimated construction cost. Enter 0% to exclude.
A17: Mobilization percentage for small systems | B17: mob_pct_small | C17: 0.05 | D17: of direct capital cost
A18: Mobilization percentage for medium systems | B18: mob_pct_medium | C18: 0.04 | D18: of direct capital cost
A19: Mobilization percentage for large systems | B19: mob_pct_large | C19: 0.02 | D19: of direct capital cost
A21: Architectural Fees for Treatment Building
A22: Include architectural fee? | B22: include_arch | C22: 1 | D22: <--- enter 1 for yes, 0 for no | E22: Must be added to building cost. Change for special considerations. Includes structural, mechanical, and electrical engineering for building only.
A23: Include architectural fee for small systems? | B23: include_arch_small | C23: 0 | D23: <--- enter 1 for yes, 0 for no
A25: Installation, Transportatation, and O&P
A26: Installation, Transportatation, and O&P percentage | B26: inst_pct | C26: 0 | D26: of direct capital cost | E26: Included in line item unit costs. Add a percentage for special considerations such as a remote site or high cost location.
A28: Sitework
A29: Include sitework costs? | B29: include_sitework | C29: 1 | D29: <--- enter 1 for yes, 0 for no
A31: Yard Piping
A32: Include yard piping costs? | B32: include_yardpipe | C32: 1 | D32: <--- enter 1 for yes, 0 for no
A33: Frost depth | B33: frost | C33: 38 | D33: inches | E33: Should be consistent with (reflect same climate as) heating and cooling assumptions on O&M assumptions page
A34: Minimum trench depth to top of pipe | B34: min_trench_depth | C34: 36 | D34: inches | E34: US Army Corps of Engineers recommended minimum cover for distribution pipes of 2.5 ft in grassed areas, 3 ft if buried under pavement or roadways but not less than frost penetration depth (USACOE 1984)
A35: Soil density | B35: soil_dens | C35: 97 | D35: lb/cubic ft. | E35: Based on soil density of loamy sand (1.55 gm/cc)
A36: Coefficient of passive pressure | B36: Coeff_Kp | C36: 3
A37: Reduction factor | B37: Reduction | C37: 0.467
A38: Bedding depth below pipe | B38: bedding_depth | C38: 6 | D38: inches
A39: Bedding depth surrounding the pipe | B39: bedding_pct | C39: 0.25 | D39: of pipe diameter
A40: Trench inside angle | B40: trench_angle | C40: =RADIANS(45) -> 0.7853981634 | D40: radians
A41: Pipe length from water source to the boundary of the 10 foot buffer | B41: yard_in | C41: 0 | D41: feet | E41: Use if technology is first step in treatment process
A42: Pipe length the boundary of the 10 foot buffer to distribution network | B42: yard_out | C42: 0 | D42: feet | E42: Use if technology is last step in treatment process
A44: Geotechnical
A45: Include geotechnical costs for low cost systems? | B45: include_geo_low | C45: 0 | D45: <--- enter 1 for yes, 0 for no
A46: Include geotechnical costs for medium cost systems? | B46: include_geo_medium | C46: 0 | D46: <--- enter 1 for yes, 0 for no
A47: Include geotechnical costs for high cost systems? | B47: include_geo_high | C47: 1 | D47: <--- enter 1 for yes, 0 for no
A48: Include geotechnical costs for low cost custom systems? | B48: include_geo_low_g | C48: 1 | D48: <--- enter 1 for yes, 0 for no | E48: Geotechnical is always included for custom systems, because of basin excavation
A49: Include geotechnical costs for medium cost custom systems? | B49: include_geo_medium_g | C49: 1 | D49: <--- enter 1 for yes, 0 for no
A50: Include geotechnical costs for high cost custom systems? | B50: include_geo_high_g | C50: 1 | D50: <--- enter 1 for yes, 0 for no
A51: Test pit length | B51: pit_length | C51: 4 | D51: feet
A52: Test pit width | B52: pit_width | C52: 4 | D52: feet
A53: Test pit depth | B53: pit_depth | C53: 7 | D53: feet
A54: Borehole depth (package systems) | B54: bore_depth_p | C54: 10 | D54: feet
A55: Borehole depth for shallow basins | B55: bore_depth_min | C55: 25 | D55: feet
A56: Borehole depth for deep basins | B56: bore_depth_max | C56: 50 | D56: feet
A57: Basin excavation depth above which deeper boreholes are needed | B57: deep_bore_need | C57: 20 | D57: feet | E57: Deeper basins (although unlikely for this technology) would require deeper investigation
A58: Technology footprint above which boreholes are needed | B58: bore_need | C58: 2000 | D58: square feet | E58: Small system geotechnical investigation can be completed with test pits, larger systems require boreholes
A59: Minimum number of boreholes | B59: min_holes | C59: 4
A60: Borehole needed every x square feet | B60: hole_per_sf | C60: 1000 | D60: square feet
A61: Boreholes per job | B61: hole_per_job | C61: 24 | D61: boreholes/job
A62: Linear feet bored per day | B62: hole_per_day | C62: 55.5 | D62: l.f./day | E62: RS Means Costworks 2001
A64: Standby Power
A65: Include standby power costs? | B65: include_standby | C65: 1 | D65: <--- enter 1 for yes, 0 for no
A66: Include standby power costs for small systems? | B66: include_standby_small | C66: 0 | D66: <--- enter 1 for yes, 0 for no
A67: Design safety factor for standby power | B67: std_safety_factor | C67: 0 | E67: Default 0%. Apply a percentage to increase standby power requirements.
A68: Include heating in standby power | B68: need_heat | C68: 0 | D68: <--- enter 1 for yes, 0 for no | E68: If a system uses gas or diesel heat, heating will not be included in standby power, regardless of this assumption.
A69: Include cooling in standby power | B69: need_cool | C69: 0 | D69: <--- enter 1 for yes, 0 for no | E69: If both heating and cooling are included, standby power requirements will be based on the maximum of the two.
A70: Minimum standby power generator size | B70: min_standby | C70: 1.5 | D70: kW
A72: Electrical (including yard wiring)
A73: Electrical percentage | B73: elect_pct | C73: 0.1 | D73: of direct cost
A75: Instrumentation and Control
A76: Instrumentation and control percentage | B76: i_c_pct | C76: 0 | D76: of direct cost | E76: Included as a direct cost line item.
A78: Contingency
A79: Include contingency costs for low cost systems? | B79: include_conting_low | C79: 0 | D79: <--- enter 1 for yes, 0 for no
A80: Include contingency costs for medium cost systems? | B80: include_conting_medium | C80: 0 | D80: <--- enter 1 for yes, 0 for no
A81: Include contingency costs for high cost systems? | B81: include_conting_high | C81: 1 | D81: <--- enter 1 for yes, 0 for no
A82: Technology complexity factor | B82: complexity | C82: 1.5 | E82: Technology-specific factor. See Appendices for details. Low complexity = 0.5; Average complexity = 1.0; High complexity = 1.5; Very high complexity = 2.0.
A84: Process Engineering
A85: Engineering percentage for small systems | B85: eng_pct_small | C85: 0.2 | D85: of direct capital cost | E85: Enter 0% to exclude
A86: Engineering percentage for medium systems | B86: eng_pct_medium | C86: 0.12 | D86: of direct capital cost
A87: Engineering percentage for large systems | B87: eng_pct_large | C87: 0.08 | D87: of direct capital cost
A89: Miscellaneous Allowance
A90: Miscellaneous allowance percentage | B90: misc_pct | C90: 0.1 | D90: of direct capital cost | E90: Enter 0% to exclude
A92: Legal, Fiscal, and Administrative
A93: Legal percentage | B93: legal_pct | C93: 0.02 | D93: of direct capital cost | E93: Enter 0% to exclude. Highly site-specific. Can range from 2-5% of equipment, installation, construction, electrical, and standby power.
A95: Sales Tax
A96: Sales tax percentage | B96: tax_pct | C96: 0 | D96: of direct capital cost | E96: May be exempt if constructed with public funds. May be as high as 7.25% of equipment and construction, with national average 4.75%.
A98: Financing during Construction
A99: Financing percentage | B99: finance_pct | C99: 0.05 | D99: of direct capital cost | E99: Enter 0% to exclude. Typically assumed to be one year's interest on capital cost.
A100: Financing percentage for small systems | B100: finance_pct_small | C100: 0 | D100: of direct capital cost | E100: Small system construction assumed to take less than one year
A102: Construction Management and General Contractor Overhead
A103: Builder's risk insurance percentage | B103: br_ins_pct | C103: 0.0034 | E103: Enter 0% to exclude. 0.34% is national average rate. RSMeans Building Construction Cost Data 2009, reference section R01100-070
A104: Include performance bond cost? | B104: include_bond | C104: 1 | D104: <--- enter 1 for yes, 0 for no
A105: Include construction management cost? | B105: include_cm | C105: 1 | D105: <--- enter 1 for yes, 0 for no
A106: Include construction management cost for pre-engineered packages? | B106: include_cm_pre | C106: 0 | D106: <--- enter 1 for yes, 0 for no
A108: Buildings
A109: Include buildings in total capital cost? | B109: include_buildings | C109: 1 | D109: <--- enter 1 for yes, 0 for no
A110: Include concrete pad in total capital cost? | B110: include_pad | C110: 1 | D110: <--- enter 1 for yes, 0 for no
A112: Heating Table (1=include heating in buildings and O&M, 0 = do not include heating)
A113: Component Level | B113: Range Name | C113: System Size
C114: Small (<1 mgd) | D114: Medium (1-10 mgd) | E114: Large (>10 mgd)
A115: Buildings 500 square feet or greater
A116: low cost | B116: heating_table | C116: 0 | D116: 1 | E116: 1
A117: mid cost | C117: 1 | D117: 1 | E117: 1
A118: high cost | C118: 1 | D118: 1 | E118: 1
A119: Buildings less than 500 ft2 (other than those used for chlorine storage)
A120: low cost | B120: heating_table_shed | C120: 0 | D120: 0 | E120: 1
A121: mid cost | C121: 0 | D121: 0 | E121: 1
A122: high cost | C122: 1 | D122: 1 | E122: 1
A124: Cooling Table (1=include cooling in buildings and O&M, 0 = do not include cooling)
A125: Component Level | B125: Range Name | C125: System Size
C126: Small (<1 mgd) | D126: Medium (1-10 mgd) | E126: Large (>10 mgd)
A127: Buildings 500 square feet or greater
A128: low cost | B128: cooling_table | C128: 0 | D128: 0 | E128: 1
A129: mid cost | C129: 0 | D129: 1 | E129: 1
A130: high cost | C130: 1 | D130: 1 | E130: 1
A131: Buildings less than 500 ft2 (other than those used for chlorine storage)
A132: low cost | B132: cooling_table_shed | C132: 0 | D132: 0 | E132: 0
A133: mid cost | C133: 0 | D133: 0 | E133: 0
A134: high cost | C134: 0 | D134: 0 | E134: 0

Sheet Offgas Assumptions
A1: Default Offgas Assumptions
A2: Users may change any of the cells in the Value column
A4: Assumption | B4: Range Name | C4: Value | D4: Units | E4: Guidance
A5: Specific heat of air | B5: cpa | C5: 1.01 | D5: kJ/kg-deg C | E5: Rough assumption to account for high temperature and relative humidity in this application
A6: Density of air | B6: PA | C6: 1.247 | D6: kg/m3 | E6: Conservatively using value for 10 deg C
A7: Operating temperature | B7: T | C7: 283 | D7: degrees Kelvin | E7: Equilibrium operating temperature. 283 degrees K (10 degrees C) is typical of groundwater.
A9: GAC
A10: GAC Density | B10: GAC_density | C10: 30 | D10: lbs/cu ft | E10: Bulk density, not particle density. GAC density range of 22-30 lb/cubic ft; lignite GAC approximately 22 and bituminous GAC approximately 28 lb/cubic ft (Randal J. Braker, General Manager, Duck River Utility Commission)
A11: Redundant GAC beds | B11: NRD_GAC | C11: 0 | D11: units | E11: Most of the unit costs are for dual bed units, which should provide sufficient redundancy.
A12: Makeup carbon for off-site regeneration | B12: makeup_rate_off | C12: 0.3 | E12: Makeup carbon needs are higher for transport and regeneration off-site -- 30% (Richard E. Hubel, Peter Keenan, American Water Works Service Company).
A13: Miles to non-hazardous solid waste disposal site | B13: non_haz_miles | C13: 10 | D13: miles | E13: For spent carbon disposal
A15: Thermal Oxidizer
A16: Redundant TO units | B16: NRD_TO | C16: 0 | D16: units
A17: Excess air required | B17: TO_ex_air | C17: 2 | E17: Thermal oxidizers typically require 180% to 550% excess air (www.baaqmd.gov/pmt/handbook/s12c05ap.htm)
A18: Recuperative system heat recovery | B18: TO_rec_eff | C18: 0.7 | E18: U.S. EPA, 2006; CMRP, 2000
A19: Regenerative system heat recovery | B19: TO_reg_eff | C19: 0.95 | E19: U.S. EPA, 2006; CMRP, 2000; van der Vaart et al. 1994
A21: Catalytic Oxidizer
A22: Redundant CO units | B22: NRD_CO | C22: 0 | D22: units
A23: Excess air required | B23: CO_ex_air | C23: 2 | E23: Thermal oxidizers typically require 180% to 550% excess air (www.baaqmd.gov/pmt/handbook/s12c05ap.htm)
A24: Recuperative system heat recovery | B24: CO_rec_eff | C24: 0.7 | E24: U.S. EPA, 2006; CMRP, 2000
A25: Regenerative system heat recovery | B25: CO_reg_eff | C25: 0.95 | E25: U.S. EPA, 2006; CMRP, 2000; van der Vaart et al. 1994
A27: Contaminant-Specific Off-gas Assumptions
A28: Contaminant Number | B28: Contaminant | C28: Heating Value | D28: GAC Bed Residence Time | E28: TO Operating Temperature | F28: CO Operating Temperature | G28: Molecular Weight
C29: (BTU/gal) | D29: (sec) | E29: (deg C) | F29: (deg C) | G29: (kg/kilomole)
A30: 1 | B30: Radon | C30: 0 | D30: 0 | E30: 0 | F30: 0 | G30: NA
A31: 2 | B31: TCE | C31: 0 | D31: 6.4 | E31: 1093 | F31: 500 | G31: 131.39
A32: 3 | B32: PCE | C32: 0 | D32: 6.4 | E32: 1093 | F32: 500 | G32: 165.83
A33: 4 | B33: Vinyl Chloride | C33: 0 | D33: 6.4 | E33: 1093 | F33: 500 | G33: 62.5
A34: 5 | B34: Carbon Tetrachloride | C34: 0 | D34: 6.4 | E34: 1093 | F34: 500 | G34: 153.82
A35: 6 | B35: Benzene | C35: 0 | D35: 6.4 | E35: 1093 | F35: 500 | G35: 78.11
A36: 7 | B36: 1,2-Dichloropropane | C36: 0 | D36: 6.4 | E36: 1093 | F36: 500 | G36: 112.99
A37: 8 | B37: Methylene Chloride | C37: 0 | D37: 6.4 | E37: 1093 | F37: 500 | G37: 84.93
A38: 9 | B38: 1,2-Dichloroethane | C38: 0 | D38: 6.4 | E38: 1093 | F38: 500 | G38: 98.96
A39: 10 | B39: 1,3-Butadiene | C39: 0 | D39: 6.4 | E39: 1093 | F39: 500 | G39: 54.09
A40: 11 | B40: 1,1-Dichloroethane | C40: 0 | D40: 6.4 | E40: 1093 | F40: 500 | G40: 98.96
A41: 12 | B41: 1,1,1,2-Tetrachloroethane | C41: 0 | D41: 6.4 | E41: 1093 | F41: 500 | G41: 167.85
A42: 13 | B42: 1,1,2,2-Tetrachloroethane | C42: 0 | D42: 6.4 | E42: 1093 | F42: 500 | G42: 167.85
A43: 14 | B43: 1,2,3-Trichloropropane | C43: 0 | D43: 6.4 | E43: 1093 | F43: 500 | G43: 147.43
A44: 15 | B44: Other

Sheet Basin Constraints
A1: Basin Constraint Calculations
A3: Calculation | B3: Range Name | C3: Value | D3: Units | E3: Guidance
A4: From Inputs
A5: Design Production Flow | B5: design_flow | C5: =IF(df_units="gpm",(1-bp_pct)*design_flow_I*24*60/1000000,(1-bp_pct)*design_flow_I) -> 0.305 | D5: MGD | E5: From input, less bypass
A6: Average Production Flow | B6: average_flow | C6: =(1-bp_pct)*IF(af_units="gpm",average_flow_I*24*60/1000000,IF(af_units="fraction of design flow",average_flow_I*design_flow,average_flow_I)) -> 0.094 | D6: MGD | E6: From input, less bypass
A7: Design Production Flow Rate | B7: design_flow_rate | C7: =design_flow*1000000/(24*60) -> 211.8055556 | D7: gpm | E7: Design flow expressed in gpm
A8: Average Production Flow Rate | B8: average_flow_rate | C8: =average_flow*1000000/(24*60) -> 65.27777778 | D8: gpm | E8: Average flow expressed in gpm
A9: Bypass Flow Rate | B9: bp_flow_rate | C9: =bp_pct/(1-bp_pct)*design_flow_rate -> 0 | D9: gpm
A10: Target Contaminant | B10: contam | C10: 1 | D10: <--- 1 for Radon, 2 for TCE, 3 for PCE, etc.
A12: Contact Basins
A13: Design type | B13: design_type | C13: =IF(design_type_I="pre-engineered package",1,2) -> 1 | D13: 1 = pre-engineered package, 2 = custom design
A14: Design air flow | B14: design_air_flow | C14: =design_flow_rate*air_water_ratio/7.48 -> 566.3250149 | D14: cfm
A15: Diffusers per stage | B15: diffusers_per_stage | C15: =IF(OR(stages=0,num_op_tanks=0),0,ROUNDUP(design_air_flow/(stages*num_op_tanks)/max_diffuser_size,0)) -> 3
A16: Number of diffusers per tank | B16: num_diffusers | C16: =diffusers_per_stage*stages -> 18 | D16: units
A17: Total diffusers | B17: total_diffusers | C17: =num_diffusers*num_tanks -> 18 | D17: units
A18: Diffuser size | B18: diffuser_size | C18: =IF(total_diffusers=0,0,design_air_flow/total_diffusers) -> 31.46250083 | D18: cfm
A19: Stage length required per diffuser | B19: diffuser_diameter | C19: =VLOOKUP(diffuser_size,diffuser_dim_table_cl,3)+diffuser_access_space -> 4.7 | D19: inches | E19: Includes access space
A20: Total stage length required for diffusers | B20: diffuser_space | C20: =diffuser_diameter*diffusers_per_stage -> 14.1 | D20: inches | E20: Includes access space
A21: Width required for diffusers | B21: diffuser_space_width | C21: =VLOOKUP(diffuser_size,diffuser_dim_table_cl,4)+diffuser_access_space -> 40 | D21: inches | E21: Includes access space
A22: Minimum basin area required per basin | B22: tank_area | C22: =IF(num_op_tanks=0,0,design_air_flow/max_air_load/num_op_tanks) -> 34.32272817 | D22: square ft | E22: Based on maximum air surface loading intensity
A23: Width required for diffusers | C23: =diffuser_space_width/12 -> 3.333333333 | E23: Includes access space
A24: Width required by area and ratio | C24: =(tank_area/max_ratio)^(1/2) -> 4.783494411 | E24: Based on minimum area and length to width ratio
A25: Basin width | B25: tank_width | C25: =ROUNDUP(2*MAX(C23:C24),0)/2 -> 5 | D25: feet | E25: Maximum of requirements above, sized in 6" intervals
A26: Length required by area | C26: =tank_area/tank_width -> 6.864545635 | E26: Based on minimum area
A27: Length required by ratio | C27: =tank_width*max_ratio -> 7.5 | E27: Based on length to width ratio
A28: Length required by diffusers | C28: =diffuser_space*(stages+qchamber_ratio)/12 -> 7.6375 | E28: Includes access space and quiescent chamber
A29: Basin length | B29: tank_length | C29: =ROUNDUP(2*MAX(C26:C28),0)/2 -> 8 | D29: feet | E29: Maximum of requirements above, sized in 6" intervals
A30: Maximum basin length | B30: max_length | C30: =IF(design_type=1,max_length_package,max_length_custom) -> 12 | D30: feet | E30: Depends on design type. For input sheet validation.
A31: Length per stage | B31: stage_length | C31: =tank_length/(stages+qchamber_ratio)*12 -> 14.76923077 | D31: inches
A32: Basin depth including freeboard | B32: tank_depth | C32: =max_h2odepth+freeboard -> 5 | D32: feet
A33: Total basin volume | B33: tank_vol | C33: =ROUNDUP(tank_width*tank_length*tank_depth*7.48,0) -> 1496 | D33: gal
A34: Baffle area per baffle | B34: baffle_area | C34: =tank_depth*tank_width -> 25 | D34: square ft | E34: Conservative calculation, assumes baffle covers entire cross-sectional area
A35: Total basin surface area, including baffles | B35: tank_sf | C35: =2*tank_width*tank_length+2*tank_depth*tank_width+2*tank_depth*tank_length+stages*baffle_area -> 360 | D35: square ft | E35: Includes cover and baffle for quiescent chamber at end of basin, assumes baffles cover entire cross-sectional area (conservative)
A36: Total number of basins | B36: num_tanks | C36: =num_op_tanks+IF(NRD_I="",NRD_tanks,NRD_I) -> 1 | D36: units | E36: Including redundancy
A37: Total number of baffles | B37: num_baffles | C37: =stages*num_tanks -> 6 | D37: units | E37: Total for all basins, includes baffles for quiescent chamber at end of basins
A38: Basin concrete volume | B38: conc_volume | C38: =IF(design_type=1,"-",num_tanks*(2*(tank_width+2*conc_thick)*(tank_depth+conc_thick)*conc_thick+2*(tank_length)*(tank_depth+conc_thick)*conc_thick+tank_length*tank_width*conc_thick)/27) -> - | D38: cubic yd | E38: For custom designs only. No common wall design in this technology, because of need for baffle and diffuser access
A39: Excavation volume | B39: excavation_vol | C39: =IF(design_type=1,"-",num_tanks*((tank_width+2*conc_thick+overexcavate)*(tank_length+2*conc_thick+overexcavate)*(tank_depth+conc_thick+overexcavate)+0.5*(3*(tank_depth+conc_thick+overexcavate)*(tank_depth+conc_thick+overexcavate)*(tank_length+2*conc_thick+overexcavate)))/27) -> - | D39: cubic yd | E39: Includes ramping for moving earth out of excavated area, assumes flush with grade (conservative)
A40: Backfill volume | B40: backfill_vol | C40: =IF(design_type=1,"-",excavation_vol-num_tanks*(tank_width+2*conc_thick)*(tank_length+2*conc_thick)*(tank_depth+conc_thick)/27) -> - | D40: cubic yd
A41: Cover area for concrete basins | B41: cover_sf | C41: =num_tanks*(tank_width+2*conc_thick)*(tank_length+2*conc_thick) -> 70 | D41: square ft
A42: Actual air surface loading intensity | C42: =IF(OR(stages=0,num_op_tanks=0),0,design_air_flow/(stage_length/12*stages*tank_width*num_op_tanks)) -> 15.33796915 | D42: cfm/sq ft | E42: For comparison purposes only
A44: Removal Estimate | E44: Estimate only
A45: Basin contact volume | B45: contact_volume | C45: =stage_length*stages/12*tank_width*max_h2odepth -> 110.7692308 | D45: cubic ft
A46: Total detention time | B46: contact_time | C46: =contact_volume*7.48*num_op_tanks/design_flow_rate -> 3.911860782 | D46: minutes | E46: Contact time is not a design parameter, but used in removal estimate
A47: Volumetric air intensity | B47: phi | C47: =IF(num_op_tanks=0,0,design_air_flow/(contact_volume*num_op_tanks)) -> 5.112656384 | D47: cfm/cf
A48: Mass transfer rate | B48: Kla | C48: =IF(contam=1,(36.9*phi^0.8)/60,IF(OR(pilot_k="",pilot_phi=""),"NA",(phi/pilot_phi)*pilot_k)) -> 2.268780078 | D48: 1/min | E48: For radon, based on Drago (2000); for other contaminants, based on optional inputs for pilot data
A49: Percent removal | B49: p_rem | C49: =IF(Kla<>"NA",1-(1+Kla*contact_time/stages)^(-stages),"NA") -> 0.9956933551

Sheet Offgas
A1: Offgas Calculations
A3: Calculation | B3: Range Name | C3: Value | D3: Units | E3: Guidance
A4: From Inputs
A5: Off-gas Pollution Control Technology | B5: Offgas_Tech | C5: =IF(OR(Offgas_Tech_I="none",Offgas_Tech_I=""),0,IF(Offgas_Tech_I="GAC",1,IF(Offgas_Tech_I="thermal oxidation",2,3))) -> 0 | D5: <--- 0 for none, 1 for GAC, 2 for Thermal Oxidation, 3 for Catalytic Oxidation
A6: Heat recovery type | B6: og_opt1 | C6: =IF(OR(Offgas_Tech=2,Offgas_Tech=3),IF(og_opt1_I="none",0,IF(og_opt1_I="recuperative",1,2)),"") ->  | D6: <--- 0 for none, 1 for recuperative, 2 for regenerative
A7: Spent GAC regeneration | B7: og_opt2 | C7: =IF(Offgas_Tech=1,IF(og_opt2_I="throwaway",0,1),"") ->  | D7: <--- 0 for throwaway (no regeneration), 1 for off-site regeneration
A8: Percent removal | B8: p_rem_og | C8: =IF(p_rem="NA",P_REM_I,p_rem) -> 0.9956933551
A10: Off-gas Control System
A11: Molecular Weight of Contaminant | B11: MW | C11: =VLOOKUP(contam,contaminant_lookup,7) -> NA | D11: kg/kilomole | E11: From critical design assumptions for contaminant
A12: Contaminant heating value | B12: BTU_contam | C12: =IF(Offgas_Tech=1,VLOOKUP(contam,contaminant_lookup,3),0) -> 0 | D12: BTU/gal | E12: From critical design assumptions for contaminant
A13: Contaminant release rate | B13: VOC_Release | C13: =(influent_conc*p_rem_og/10^6)*(design_flow*0.04583*60*60*24)*2.205 -> 0 | D13: lbs/day | E13: Based on design flow
A14: Off-gas concentration | C14: =(influent_conc*p_rem_og/1000)*air_water_ratio -> 0 | D14: mg/m3
A15: Off-gas concentration | C15: =IF(MW="NA",0,(C14*T)/(12.187*MW)) -> 0 | D15: ppmv
A16: Off-gas concentration | B16: C_gal | C16: =C15/10^6*1000*3.785 -> 0 | D16: gal/m3
A17: Off-gas flow (design) | C17: =design_air_flow -> 566.3250149 | D17: cfm | E17: Based on design flow
A18: Off-gas flow (design) | B18: Design_air_flow_liters_min | C18: =C17/35.31*1000 -> 16038.65802 | D18: L/min
A19: Off-gas flow (average) | B19: Average_air_flow | C19: =C17*average_flow/design_flow -> 174.5395128 | D19: cfm | E19: Based on average flow
A20: Off-gas flow (average) | B20: Average_air_flow_liters_min | C20: =C18*average_flow/design_flow -> 4943.061817 | D20: L/min
A21: Off-gas flow (average) | B21: DAILY_AIR | C21: =Average_air_flow_liters_min/1000/60 -> 0.08238436362 | D21: m3/s
A23: GAC System
A24: GAC Bed Residence Time | B24: GAC_EBCT | C24: =IF(Offgas_Tech=1,VLOOKUP(contam,contaminant_lookup,4),0) -> 0 | D24: sec | E24: From critical design assumptions for contaminant
A25: Total bed size needed | B25: GAC_tot_bed_size | C25: =IF(Offgas_Tech=1,design_air_flow/60*GAC_EBCT,0) -> 0 | D25: cf
A26: Maximum GAC unit bed size | B26: GAC_max_bed | C26: =MAX(VLOOKUP(10^6,og_gac_cost_cl,1)-0.1) -> 1333.3 | D26: cf | E26: The largest size for which costs are available.
A27: Number of units | B27: op_GAC_beds | C27: =IF(Offgas_Tech=1,ROUNDUP(GAC_tot_bed_size/GAC_max_bed,0),0) -> 0 | D27: units
A28: Total units including redundancy | B28: tot_GAC_beds | C28: =op_GAC_beds+NRD_GAC -> 0 | D28: units
A29: Bed size per unit | B29: GAC_bed_size | C29: =IF(Offgas_Tech=1,GAC_tot_bed_size/op_GAC_beds,0) -> 0 | D29: cf
A30: Total GAC Quantity | B30: GAC | C30: =IF(Offgas_Tech=1,design_air_flow/60*GAC_EBCT*GAC_density,0) -> 0 | D30: lbs
A31: Bed Life | B31: bed_life | C31: =og_opt3 -> 0 | D31: months
A32: GAC use rate | C32: =IF(Offgas_Tech=1,(GAC/bed_life)/(Average_air_flow*60*24*30/1000),0) -> 0 | D32: lb/1,000 cf of air | E32: For comparison purposes
A33: Annual GAC use | B33: GAC_yr | C33: =IF(Offgas_Tech=1,GAC*12/bed_life,0) -> 0 | D33: lbs
A34: Annual Regenerated GAC | B34: regen_yr | C34: =IF(og_opt2=1,(1-makeup_rate_off)*GAC_yr,0) -> 0 | D34: lbs/yr
A35: Annual Regenerated GAC in cubic feet | B35: regen_yr_cf | C35: =regen_yr/GAC_density -> 0 | D35: cubic ft/yr
A36: Annual Virgin GAC | B36: GAC_makeup | C36: =IF(og_opt2=1,makeup_rate_off*GAC_yr,GAC_yr) -> 0 | D36: lbs/yr
A37: Annual Virgin GAC in cubic feet | B37: GAC_makeup_cf | C37: =GAC_makeup/GAC_density -> 0 | D37: cubic ft/yr
A38: Replacement/disposal frequency | B38: disp_freq | C38: =IF(Offgas_Tech=1,12/bed_life,0) -> 0 | D38: times per year
A39: Spent media quantity (total per event) | B39: spent_media | C39: =IF(og_opt2=0,GAC/2000,0) -> 0 | D39: tons
A40: Disposal | C40: =spent_media*disp_freq*nonhaz_disposal_cost_cl -> 0 | D40: $/year
A41: Transportation | C41: =spent_media*disp_freq*non_haz_miles*nonhaz_transportation_cost_cl -> 0 | D41: $/year
A42: Total annual spent media diposal fee | B42: disposal_fee | C42: =C41+C40 -> 0 | D42: $/year
A44: Thermal Oxidizer System
A45: Maximum TO capacity | B45: TO_max_size | C45: =IF(og_opt1=0,TO_max_size_no,IF(og_opt1=1,TO_max_size_rec,TO_max_size_reg)) -> 736000 | D45: scfm
A46: Total capacity needed | B46: TO_tot_size | C46: =IF(Offgas_Tech=2,design_air_flow,0) -> 0 | D46: scfm
A47: Maximum TO capacity (no heat recovery) | B47: TO_max_size_no | C47: =MAX(VLOOKUP(10^6,og_to_cost_cl,1)-1) -> 25000 | D47: scfm | E47: The largest size for which costs are available.
A48: Maximum TO capacity (recuperative) | B48: TO_max_size_rec | C48: =MAX(VLOOKUP(10^6,og_torec_cost_cl,1)-1) -> 7257 | D48: scfm | E48: The largest size for which costs are available.
A49: Maximum TO capacity (regenerative) | B49: TO_max_size_reg | C49: 736000 | D49: scfm | E49: The largest size for which costs are available.
A50: Number of units | B50: op_TOs | C50: =IF(Offgas_Tech=2,ROUNDUP(TO_tot_size/TO_max_size,0),0) -> 0 | D50: units
A51: Total units including redundancy | B51: tot_TOs | C51: =op_TOs+NRD_TO -> 0 | D51: units
A52: Capacity per unit | B52: TO_size | C52: =IF(Offgas_Tech=2,TO_tot_size/op_TOs,0) -> 0 | D52: scfm
A53: TO operating temperature | B53: TO_op_temp | C53: =IF(Offgas_Tech=2,VLOOKUP(contam,contaminant_lookup,5),0) -> 0 | D53: deg C | E53: From critical design assumptions for contaminant
A54: Fuel BTUs required (no heat recovery) | C54: =IF(Offgas_Tech=2,MAX(0,((1+TO_ex_air)*(DAILY_AIR*60*60*24*365))*PA*cpa*(TO_op_temp-(T-273))/1.0545-BTU_contam*C_gal*DAILY_AIR*60*60*24*365),0) -> 0 | D54: BTU/yr | E54: kJ = Q (m3/yr) * p (kg/m3) * cp (kJ/kg-deg C) * delta T (deg C). 1 BTU = 1.0545 kJ
A55: Actual fuel BTUs required | C55: =C54*(1-IF(og_opt1=1,TO_rec_eff,IF(og_opt1=2,TO_reg_eff,0))) -> 0 | D55: BTU/yr
A56: Annual natural gas required | B56: TO_ng_yr | C56: =C55/100000 -> 0 | D56: therms/yr
A57: Excess air blower power | C57: =IF(Offgas_Tech=2,TO_ex_air*(average_flow_rate*air_water_ratio/7.48)*blow_head/(229*blower_effcy),0) -> 0 | D57: HP
A58: Excess air blower energy per year | B58: TO_power_yr | C58: =(24*365*0.7457/1000)*C57 -> 0 | D58: MWhr/yr
A60: Catalytic Oxidizer System
A61: Maximum CO capacity | B61: CO_max_size | C61: =IF(og_opt1=0,CO_max_size_no,IF(og_opt1=1,CO_max_size_rec,CO_max_size_reg)) -> 736000 | D61: scfm
A62: Total capacity needed | B62: CO_tot_size | C62: =IF(Offgas_Tech=3,design_air_flow,0) -> 0 | D62: scfm
A63: Maximum TO capacity (no heat recovery) | B63: CO_max_size_no | C63: =MAX(VLOOKUP(10^6,og_co_cost_cl,1)-1) -> 736000 | D63: scfm | E63: The largest size for which costs are available.
A64: Maximum TO capacity (recuperative) | B64: CO_max_size_rec | C64: =MAX(VLOOKUP(10^6,og_corec_cost_cl,1)-1) -> 736000 | D64: scfm | E64: The largest size for which costs are available.
A65: Maximum TO capacity (regenerative) | B65: CO_max_size_reg | C65: =MAX(VLOOKUP(10^6,og_coreg_cost_cl,1)-1) -> 736000 | D65: scfm | E65: The largest size for which costs are available.
A66: Number of units | B66: op_COs | C66: =IF(Offgas_Tech=3,ROUNDUP(CO_tot_size/CO_max_size,0),0) -> 0 | D66: units
A67: Total units including redundancy | B67: tot_COs | C67: =op_COs+NRD_CO -> 0 | D67: units
A68: Capacity per unit | B68: CO_size | C68: =IF(Offgas_Tech=3,CO_tot_size/op_COs,0) -> 0 | D68: scfm
A69: CO operating temperature | B69: CO_op_temp | C69: =IF(Offgas_Tech=3,VLOOKUP(contam,contaminant_lookup,6),0) -> 0 | D69: deg C
A70: Fuel BTUs required (no heat recovery) | C70: =IF(Offgas_Tech=3,MAX(0,((1+CO_ex_air)*(DAILY_AIR*60*60*24*365))*PA*cpa*(CO_op_temp-(T-273))/1.0545-BTU_contam*C_gal*DAILY_AIR*60*60*24*365),0) -> 0 | D70: BTU/yr | E70: kJ = Q (m3/yr) * p (kg/m3) * cp (kJ/kg-deg C) * delta T (deg C). 1 BTU = 1.0545 kJ
A71: Actual fuel BTUs required | C71: =C70*(1-IF(og_opt1=1,CO_rec_eff,IF(og_opt1=2,CO_reg_eff,0))) -> 0 | D71: BTU/yr
A72: Annual natural gas required | B72: CO_ng_yr | C72: =C71/100000 -> 0 | D72: therms/yr
A73: Excess air blower power | C73: =IF(Offgas_Tech=3,CO_ex_air*(average_flow_rate*air_water_ratio/7.48)*blow_head/(229*blower_effcy),0) -> 0 | D73: HP
A74: Excess air blower energy per year | B74: CO_power_yr | C74: =(24*365*0.7457/1000)*C73 -> 0 | D74: MWhr/yr

Sheet Pumps Pipe Structure
A1: Pumps, Piping, and Structure Calculations
A3: Calculation | B3: Range Name | C3: Value | D3: Units | E3: Guidance
A4: Influent Pumping
A5: Flow of each pump | B5: pump_rating | C5: =IF(num_pumps_I="",MIN(MAX(average_flow_rate+bp_flow_rate*average_flow_rate/design_flow_rate,(design_flow_rate+bp_flow_rate)/2)*(1+pump_safety_factor),max_pump_size),IF(num_pumps_I=0,0,(design_flow_rate+bp_flow_rate)*(1+pump_safety_factor)/num_pumps_I)) -> 132.3784722 | D5: gpm | E5: Includes safety factor
A6: Operating pumps | B6: num_pumps | C6: =IF(pump_rating=0,0,ROUNDUP((design_flow_rate+bp_flow_rate)*(1+pump_safety_factor)/pump_rating,0)) -> 2 | D6: units
A7: Total pumps | B7: total_pumps | C7: =IF(pump_rating=0,0,num_pumps+NRD_pumps) -> 2 | D7: units
A8: Maximum pump size | B8: max_pump_size | C8: =MAX(VLOOKUP(10^6,pump_cost_cl,1)-1,VLOOKUP(10^6,back_pump_cost_cl,1)-1) -> 10000 | D8: gpm | E8: The largest pump size for which costs are available. Applies to booster pumps.
A10: Blowers
A11: Design air flow per basin | B11: air_flow_per_basin | C11: =IF(num_op_tanks=0,0,design_air_flow*(1+blower_safety_factor)/num_op_tanks) -> 707.9062686 | D11: cfm | E11: Includes safety factor
A12: Minimum blowers per basin | B12: blowers_per_basin | C12: =ROUNDUP(air_flow_per_basin/max_blow_size,0) -> 1 | D12: units | E12: For default calculation
A13: Operating blowers | B13: num_blowers | C13: =IF(num_blowers_I="",blowers_per_basin*num_tanks,num_blowers_I) -> 1 | D13: units
A14: Flow of each blower | B14: blower_rating | C14: =IF(blowers_per_basin=0,0,IF(num_blowers_I="",air_flow_per_basin/blowers_per_basin,design_air_flow*(1+blower_safety_factor)/num_blowers_I)) -> 707.9062686 | D14: cfm
A15: Total blowers | B15: total_blowers | C15: =IF(num_blowers=0,0,num_blowers+NRD_blowers) -> 2 | D15: units
A16: Maximum blower size | B16: max_blow_size | C16: =VLOOKUP(10^6,cent_blow_cost_cl,1)-1 -> 5000 | D16: cfm | E16: The largest size for which costs are available.
A18: Piping
A19: Inlet and outlet pipe length | B19: in_out_pipe_length | C19: =2*facil_length -> 40 | D19: linear feet
A20: Inlet and outlet pipe flow | B20: in_out_pipe_flow | C20: =design_flow_rate -> 211.8055556 | D20: gpm
A21: Inlet and outlet piping diameter | B21: in_out_pipe_diam | C21: =VLOOKUP(in_out_pipe_flow,pipe_size_table_cl,2) -> 4 | D21: inches
A22: Process pipe length | B22: h2o_pipe_length | C22: =2*facil_length -> 40 | D22: linear feet
A23: Process pipe diameter | B23: h2o_pipe_diam | C23: =IF(num_op_tanks=0,0,VLOOKUP(design_flow_rate/num_op_tanks,pipe_size_table_cl,2)) -> 4 | D23: inches
A24: Internal air piping | B24: air_pipe_tank | C24: =ROUNDUP(tank_length*num_tanks+max_h2odepth*total_diffusers,0) -> 62 | D24: linear feet | E24: Internal piping spans length of basin + water depth to each diffuser (conservative, as diffuser placement may not be at the bottom)
A25: Total air pipe length | B25: air_pipe_length | C25: =air_pipe_tank+air_pipe_add*facil_length+IF(Offgas_Tech=0,0,facil_length) -> 82 | D25: linear feet | E25: Adds external piping
A26: Air pipe diameter | B26: air_pipe_diam | C26: =h2o_pipe_diam -> 4 | D26: inches | E26: Assume air pipe diameter is same as liquid pipe diameter
A27: Bypass piping length | B27: bp_pipe_length | C27: =IF(bp_pct>0,2.5*facil_length,0) -> 0 | D27: linear feet
A28: Bypass pipe diameter | B28: bp_pipe_diam | C28: =IF(bp_pct>0,VLOOKUP(bp_flow_rate,pipe_size_table_cl,2),0) -> 0 | D28: inches
A30: Building Structure
A31: Maximum access space per basin | B31: max_space_vessels | C31: =IF(ss_cat2=1,max_space_vessels_pre,max_space_vessels_cust) -> 1 | D31: feet
A32: Access space per basin | B32: space_vessels | C32: =IF(ROUNDUP(tank_width,0)>max_space_vessels,max_space_vessels,ROUNDUP(tank_width,0)) -> 1 | D32: feet
A33: Access space per pump/blower | B33: space_pumps | C33: =CHOOSE(design_type,space_pumps_pre,space_pumps_cust) -> 0 | D33: feet
A34: Maximum diffuser size | B34: max_diffuser_size | C34: =MAX(VLOOKUP(10^6,diffuser_cost_cl,1)-1) -> 43.1 | D34: cfm | E34: The largest size for which costs are available.
A35: Footprint for influent pumps | B35: pump_fp | C35: =IF(total_pumps=0,0,ROUNDUP((VLOOKUP(pump_rating,pump_dim_table_cl,3)+space_pumps)*(VLOOKUP(pump_rating,pump_dim_table_cl,3)+2*space_pumps)+(total_pumps-1)*(VLOOKUP(pump_rating,pump_dim_table_cl,3)+space_pumps)*(VLOOKUP(pump_rating,pump_dim_table_cl,3)+space_pumps),0)) -> 13 | D35: square feet
A36: Footprint for blowers | B36: blow_fp | C36: =IF(total_blowers=0,0,ROUNDUP((VLOOKUP(blower_rating,pump_dim_table_cl,3)+space_pumps)*(VLOOKUP(blower_rating,pump_dim_table_cl,3)+2*space_pumps)+(total_blowers-1)*(VLOOKUP(blower_rating,pump_dim_table_cl,3)+space_pumps)*(VLOOKUP(blower_rating,pump_dim_table_cl,3)+space_pumps),0)) -> 29 | D36: square feet
A37: Office space | B37: office_fp | C37: =VLOOKUP(design_flow,labor_table_cl,3)*IF(ss_cat2=1,space_office_small,space_office) -> 0 | D37: square feet
A38: Basin footprint | B38: basin_fp | C38: =ROUNDUP((tank_width+2*space_vessels)*(tank_length+2*space_vessels)+(num_tanks-1)*(tank_width+space_vessels)*(tank_length+2*space_vessels),0) -> 70 | D38: square feet
A39: Offgas treatment system footprint (GAC) | C39: =IF(Offgas_Tech=1,ROUNDUP(((GAC_bed_size/6)^(1/2)+2*space_pumps)*((GAC_bed_size/6)^(1/2)+2*space_pumps)+(tot_GAC_beds-1)*((GAC_bed_size/6)^(1/2)+2*space_pumps)*((GAC_bed_size/6)^(1/2)+space_pumps),0),0) -> 0 | D39: square ft
A40: Offgas treatment system footprint (TO) | C40: =IF(Offgas_Tech=2,ROUNDUP((VLOOKUP(TO_size,to_dim_table_cl,5)+2*space_pumps)*(VLOOKUP(TO_size,to_dim_table_cl,6)+2*space_pumps)+(tot_TOs-1)*(VLOOKUP(TO_size,to_dim_table_cl,5)+2*space_pumps)*(VLOOKUP(TO_size,to_dim_table_cl,6)+space_pumps),0),0) -> 0 | D40: square ft
A41: Offgas treatment system footprint (CO) | C41: =IF(Offgas_Tech=3,ROUNDUP((VLOOKUP(CO_size,co_dim_table_cl,5)+2*space_pumps)*(VLOOKUP(CO_size,co_dim_table_cl,6)+2*space_pumps)+(tot_COs-1)*(VLOOKUP(CO_size,co_dim_table_cl,5)+2*space_pumps)*(VLOOKUP(CO_size,co_dim_table_cl,6)+space_pumps),0),0) -> 0 | D41: square ft
A42: Offgas treatment system footprint | B42: offgas_fp | C42: =SUM(C39:C41) -> 0 | D42: square ft
A43: Exact building footprint required | B43: fp_required | C43: =SUM(C35:C38) -> 112 | D43: square feet | E43: Building does not cover offgas systems
A44: Building 1 footprint | B44: build1_fp | C44: =ROUNDUP(IF(fp_required>add_2nd_building,basin_fp,fp_required),-1) -> 120 | D44: square feet | E44: If total footprint is large, building 1 contains basins only. If total footprint is small, building 1 contains all equipment.
A45: Building 2 footprint | B45: build2_fp | C45: =ROUNDUP(IF(fp_required>add_2nd_building,pump_fp+blow_fp+office_fp,0),-1) -> 0 | D45: square feet | E45: If total footprint is large, a second building is used for pumps and blowers
A46: Total building footprint | B46: total_fp | C46: =build1_fp+build2_fp -> 120 | D46: square feet
A47: Concrete Class A for pad | B47: concrete | C47: =ROUNDUP((pump_fp+blow_fp+IF(design_type=1,basin_fp,0)+offgas_fp)*IF(ss_cat2=1,pad_thick_small,pad_thick)/27,0) -> 2 | D47: cubic yards | E47: Pad underlies basins (in aboveground systems), pumps, blowers, and offgas equipment
A48: Facility dimension assumed square | B48: facil_length | C48: =ROUNDUP((total_fp+offgas_fp)^0.5,-1) -> 20 | D48: feet
A49: Land acquisition required | B49: land_required | C49: =ROUNDUP(((build1_fp)^0.5+(2*non_fire_buffer))*((build1_fp)^0.5+(non_fire_buffer+fire_buffer))+IF(build2_fp=0,0,((build2_fp)^0.5+(2*non_fire_buffer))*((build2_fp)^0.5+(non_fire_buffer+fire_buffer)))+offgas_fp,-2)/43560 -> 0.04361799816 | D49: acres
A50: Land Cost per acre | B50: land_cost | C50: =VLOOKUP(design_flow,land_cost_cl,3) -> 16179.59739 | D50: $/acre

Sheet Instrumentation and Control
A1: Instrumentation and Control Calculations
A3: Calculation | B3: Range Name | C3: Value | D3: Units | E3: Guidance
A4: From Inputs
A5: Component level | B5: component_level | C5: =IF(component_level_I="high cost",2,IF(component_level_I="mid cost",1,"")) ->  | D5: blank = low cost, 1 = mid cost, 2 = high cost
A6: Manual system controls | B6: manual | C6: =IF(manual_I="manual",1,IF(manual_I="semi-automated",2,IF(manual_I="fully automated",3,IF(component_level="",1,IF(component_level=2,3,CHOOSE(ss_cat2,3,3,3)))))) -> 1 | D6: 1 = fully manual system, 2 = semi-automated system, 3 = fully automated system. | E6: Based on system size and component level (see cell comment), unless user overrides on input sheet
A8: Valves and Instrumentation
A9: Size of valves for inlet and outlet lines | B9: in_valve_size | C9: =in_out_pipe_diam -> 4 | D9: inches
A10: Size of valves for process line | B10: tank_valve_size | C10: =h2o_pipe_diam -> 4 | D10: inches
A11: Size of valves for air line | B11: air_valve_size | C11: =air_pipe_diam -> 4 | D11: inches
A12: Size of valves for bypass line | B12: bypass_valve_size | C12: =bp_pipe_diam -> 0 | D12: inches
A14: Number of MOVs for process line | B14: tot_proc_MOVs | C14: =VLOOKUP("proc_MOV_basin",valve_table,manual+1,FALSE)*num_tanks+VLOOKUP("proc_MOV_pump",valve_table,manual+1,FALSE)*total_pumps -> 0 | D14: valves
A15: Number of MOVs for air line | B15: tot_air_MOVs | C15: =VLOOKUP("air_MOV_basin",valve_table,manual+1,FALSE)*total_blowers+VLOOKUP("air_MOV_og",valve_table,manual+1,FALSE)*CHOOSE(Offgas_Tech+1,0,tot_GAC_beds,tot_TOs,tot_COs)+IF(Offgas_Tech=0,0,VLOOKUP("add_MOV_og",valve_table,manual+1,FALSE)) -> 0 | D15: valves
A16: Number of MOVs for bypass line | B16: tot_bp_MOVs | C16: =IF(bp_pct=0,0,VLOOKUP("tot_bp_movs",valve_table,manual+1,FALSE)) -> 0 | D16: valves
A17: Total number of MOVs | B17: tot_MOVs | C17: =tot_air_MOVs+tot_proc_MOVs+tot_bp_MOVs -> 0 | D17: valves
A18: Number of manual valves for process line | B18: tot_proc_man | C18: =VLOOKUP("proc_man_basin",valve_table,manual+1,FALSE)*num_tanks+VLOOKUP("proc_man_pump",valve_table,manual+1,FALSE)*total_pumps -> 6 | D18: valves
A19: Number of manual valves for air line | B19: tot_air_man | C19: =VLOOKUP("air_man_basin",valve_table,manual+1,FALSE)*total_blowers+VLOOKUP("air_man_og",valve_table,manual+1,FALSE)*CHOOSE(Offgas_Tech+1,0,tot_GAC_beds,tot_TOs,tot_COs)+IF(Offgas_Tech=0,0,VLOOKUP("add_man_og",valve_table,manual+1,FALSE)) -> 2 | D19: valves
A20: Number of manual valves for bypass line | B20: tot_bp_man | C20: =IF(bp_pct=0,0,VLOOKUP("tot_bp_man",valve_table,manual+1,FALSE)) -> 0 | D20: valves
A22: Number of check valves for process line | B22: tot_proc_chv | C22: =proc_chv_pump*total_pumps -> 2 | D22: valves
A24: Size of flow meters for influent line | B24: in_meter_size | C24: =in_out_pipe_diam -> 4 | D24: inches
A25: Size of flow meters for process line | B25: proc_meter_size | C25: =h2o_pipe_diam -> 4 | D25: inches
A26: Number of flow meters for process line | B26: tot_fm_proc | C26: =fm_proc*num_tanks -> 1 | D26: units
A27: Number of flow meters for air line | B27: tot_fm_air | C27: =fm_air*num_tanks -> 1 | D27: units
A29: Total high/low alarms | B29: tot_basin_alarm | C29: =alarm_basin*num_tanks -> 1 | D29: units
A30: Total pressure gauges | B30: tot_gauges | C30: =gauges_blower*total_blowers -> 4 | D30: units
A31: Total drive controllers | B31: tot_switches | C31: =IF(manual=2,0,S_booster_pump*total_pumps+S_blower*total_blowers+S_TO*tot_TOs+S_CO*tot_COs) -> 4 | D31: units
A33: System Controls
A34: Flow meter lookup code - inlet/outlet | B34: fm_lkp_io | C34: =IF(OUTPUT!L108=1,"flow_op",IF(OUTPUT!L109=1,"flow_prop",IF(OUTPUT!L110=1,"flow_ven","flow_mag"))) -> flow_prop | E34: These codes are used to look up SCADA requirements, which depend on the type of flow meter selected.
A35: Flow meter lookup code - process | B35: fm_lkp_proc | C35: =IF(OUTPUT!L113=1,"flow_op",IF(OUTPUT!L114=1,"flow_prop",IF(OUTPUT!L115=1,"flow_ven","flow_mag"))) -> flow_prop
A36: Total discrete inputs | B36: discrete_inputs | C36: =VLOOKUP(fm_lkp_io,port_table,2,FALSE)*tot_fm_in+VLOOKUP(fm_lkp_proc,port_table,2,FALSE)*tot_fm_proc+VLOOKUP("flow_air",port_table,2,FALSE)*tot_fm_air+VLOOKUP("alarm",port_table,2,FALSE)*tot_basin_alarm+VLOOKUP("switch",port_table,2,FALSE)*tot_switches+VLOOKUP("valve",port_table,2,FALSE)*tot_MOVs+VLOOKUP("pH",port_table,2,FALSE)*tot_ph+VLOOKUP("press",port_table,2,FALSE)*tot_gauges+VLOOKUP("TO",port_table,2,FALSE)*tot_TOs+VLOOKUP("CO",port_table,2,FALSE)*tot_COs -> 13 | D36: units
A37: Total discrete outputs | B37: discrete_outputs | C37: =IF(manual=2,0,VLOOKUP(fm_lkp_io,port_table,3,FALSE)*tot_fm_in+VLOOKUP(fm_lkp_proc,port_table,3,FALSE)+VLOOKUP("flow_air",port_table,3,FALSE)*tot_fm_air+VLOOKUP("alarm",port_table,3,FALSE)*tot_basin_alarm+VLOOKUP("switch",port_table,3,FALSE)*tot_switches+VLOOKUP("valve",port_table,3,FALSE)*tot_MOVs+VLOOKUP("pH",port_table,3,FALSE)*tot_ph+VLOOKUP("press",port_table,3,FALSE)*tot_gauges+VLOOKUP("TO",port_table,3,FALSE)*tot_TOs+VLOOKUP("CO",port_table,3,FALSE)*tot_COs) -> 5 | D37: units
A38: Total analog inputs | B38: analog_inputs | C38: =VLOOKUP(fm_lkp_io,port_table,4,FALSE)*tot_fm_in+VLOOKUP(fm_lkp_proc,port_table,4,FALSE)*tot_fm_proc+VLOOKUP("flow_air",port_table,4,FALSE)*tot_fm_air+VLOOKUP("alarm",port_table,4,FALSE)*tot_basin_alarm+VLOOKUP("switch",port_table,4,FALSE)*tot_switches+VLOOKUP("valve",port_table,4,FALSE)*tot_MOVs+VLOOKUP("pH",port_table,4,FALSE)*tot_ph+VLOOKUP("press",port_table,4,FALSE)*tot_gauges+VLOOKUP("TO",port_table,4,FALSE)*tot_TOs+VLOOKUP("CO",port_table,4,FALSE)*tot_COs -> 9 | D38: units
A39: Total analog outputs | B39: analog_outputs | C39: =IF(manual=2,0,VLOOKUP(fm_lkp_io,port_table,5,FALSE)*tot_fm_in+VLOOKUP(fm_lkp_proc,port_table,5,FALSE)*tot_fm_proc+VLOOKUP("flow_air",port_table,5,FALSE)*tot_fm_air+VLOOKUP("alarm",port_table,5,FALSE)*tot_basin_alarm+VLOOKUP("switch",port_table,5,FALSE)*tot_switches+VLOOKUP("valve",port_table,5,FALSE)*tot_MOVs+VLOOKUP("pH",port_table,5,FALSE)*tot_ph+VLOOKUP("press",port_table,5,FALSE)*tot_gauges+VLOOKUP("TO",port_table,5,FALSE)*tot_TOs+VLOOKUP("CO",port_table,5,FALSE)*tot_COs) -> 0 | D39: units
A41: I/O Discrete Output Modules | B41: plc_discrete_output | C41: =ROUNDUP(discrete_outputs/32,0) -> 1 | D41: units
A42: I/O Discrete Input Modules | B42: plc_discrete_input | C42: =ROUNDUP(discrete_inputs/32,0) -> 1 | D42: units
A43: I/O Combination Analog Modules | B43: plc_combination_analog | C43: =ROUNDUP((analog_inputs + analog_outputs)/12,0) -> 1 | D43: units
A44: Total number of PLC slots used | B44: plc_slots | C44: =plc_cpu + plc_ethernet + plc_discrete_input + plc_discrete_output + plc_combination_analog -> 7 | D44: units
A45: Expansions required | B45: plc_expansions | C45: =IF(plc_slots<=9,0,ROUNDUP((plc_slots-9)/8,0)) -> 0 | D45: units
A46: PLC Rack/Power Supplies | B46: plc_rack | C46: =1+plc_expansions -> 1 | D46: units
A47: Base Expansion Modules | B47: plc_base_expansion | C47: =plc_expansions -> 0 | D47: units
A48: Base Expansion Controller Modules | B48: plc_base_expansion_controller | C48: =plc_expansions -> 0 | D48: units
A49: Number of computer workstations | B49: workstations | C49: =ROUNDUP(Operator_LOE/2080/shifts_day/workstation_ratio,0) -> 1 | D49: units
A50: Number of printers | B50: printers | C50: =ROUNDUP(workstations/printer_ratio,0) -> 1 | D50: units

Sheet O&M
A1: Operation and Maintenance Calculations
A3: Calculation | B3: Range Name | C3: Value | D3: Units | E3: Guidance
A4: Materials
A5: Maintenance Materials
A6: Pumps | B6: pump_materials | C6: =pump_maint_rate*OUTPUT!J45 -> 148.2322805 | D6: /yr
A7: Blowers | B7: blower_materials | C7: =IF(num_blowers=0,0,pump_maint_rate*SUMPRODUCT(OUTPUT!J46:J46,OUTPUT!L46:L46)) -> 793.5014367 | D7: /yr
A9: Labor
A10: General Labor
A11: Number of process instruments for operation | B11: tot_inst | C11: =tot_fm_in+tot_fm_proc+tot_fm_air+tot_ph -> 5 | E11: Instruments requiring daily observation
A12: Total number of instruments for maintenance | B12: tot_inst_maint | C12: =tot_fm_in+tot_fm_proc+tot_fm_air+tot_ph+tot_basin_alarm -> 6 | E12: All instruments for preventative maintenance
A13: Number of process pumps, blowers, offgas units for operation | B13: tot_pumps | C13: =num_pumps+num_blowers+CHOOSE(Offgas_Tech+1,0,op_GAC_beds,op_TOs,op_COs) -> 3 | E13: Pumps requiring daily observation/adjustment; includes blowers & offgas units in this technology
A14: Total number of pumps for maintenance | B14: tot_pumps_maint | C14: =num_pumps+num_blowers -> 3 | E14: Large, frequently operated pumps require preventative maintenance; includes blowers in this technology
A15: Number of process valves | B15: tot_valves | C15: =tot_proc_MOVs+tot_proc_man+tot_air_MOVs+tot_air_man+tot_bp_MOVs+tot_bp_man -> 8 | E15: Main process valves require frequent operation and preventative maintenance
A16: Media changeouts per year | B16: media_changes | C16: =IF(Offgas_Tech=1,op_GAC_beds*12/bed_life,0) -> 0 | E16: For offgas GAC
A18: Record system operating parameters (includes routine sampling) | C18: =IF(manual=1,tot_inst*uloe_inst*365/60,uloe_inst_auto*365/60) -> 152.0833333 | D18: hr/yr
A19: Preventative maintenance and calibration of instruments | C19: =tot_inst_maint*uloe_inst_maint*12/60 -> 12 | D19: hr/yr
A20: Verify/adjust pump operating parameters | C20: =IF(OR(manual=1,manual=2),tot_pumps*uloe_pump*365/60,0) -> 91.25 | D20: hr/yr
A21: Preventative maintenance of pumps | C21: =tot_pumps_maint*uloe_pump_maint -> 90.75 | D21: hr/yr
A22: Verify/adjust valve positions | C22: =IF(OR(manual=1,manual=2),tot_valves*uloe_valve*52/60,0) -> 34.66666667 | D22: hr/yr
A23: Preventative maintenance and inspection of valves | C23: =tot_valves*uloe_valve_maint/60 -> 0.6666666667 | D23: hr/yr
A24: Visual inspection of facility | C24: =(total_fp+offgas_fp)/100*uloe_fp*365/60 -> 7.3 | D24: hr/yr
A25: Managing media changeouts | C25: =media_changes*uloe_throwaway -> 0 | D25: hr/yr | E25: For offgas GAC
A26: General Operator Labor | B26: General_Oper_Labor | C26: =SUM(C18:C25) -> 388.7166667 | D26: hr/yr
A27: Annual Operator LOE | B27: Operator_LOE | C27: =General_Oper_Labor -> 388.7166667 | D27: hr/yr
A29: Annual Manager LOE | B29: Manager_LOE | C29: =Operator_LOE*Manager_percent -> 38.87166667 | D29: hr/yr | E29: Based on general operator labor and percentages in critical design assumptions
A30: Annual Administrative LOE | B30: Clerical_LOE | C30: =Operator_LOE*Clerical_percent -> 38.87166667 | D30: hr/yr | E30: Based on general operator labor and percentages in critical design assumptions
A32: Building Maintenance
A33: Cost for all buildings, excluding heating and cooling | C33: =building_matl_rate_cl*total_fp -> 677.2068567 | D33: /yr | E33: Labor and materials; includes routine in-house maintenance and major repairs
A34: Cost to maintain heating system, building 1 | C34: =build1_need_heat*heating_matl_rate_cl*build1_fp -> 0 | D34: /yr
A35: Cost to maintain cooling system, building 1 | C35: =build1_need_cool*cooling_matl_rate_cl*build1_fp -> 0 | D35: /yr
A36: Cost to maintain heating system, building 2 | C36: =build2_need_heat*heating_matl_rate_cl*build2_fp -> 0 | D36: /yr
A37: Cost to maintain cooling system, building 2 | C37: =build2_need_cool*cooling_matl_rate_cl*build2_fp -> 0 | D37: /yr
A38: Annual maintenance for all buildings | B38: bldg_maint_cost | C38: =SUM(C33:C37) -> 677.2068567 | E38: Includes labor and materials
A40: Energy
A41: Booster Pumps
A42: Pump operating horsepower (all pumps) | B42: pump_energy_hp | C42: =(average_flow_rate+bp_flow_rate*average_flow_rate/design_flow_rate)*pump_head/pump_effcy/14.7*33.9*8.34/550/60 -> 3.804519687 | D42: hp
A43: Energy for all active booster pumps | B43: pump_energy | C43: =IF(num_pumps=0,0,(0.7457/1000*24*365)*pump_energy_hp) -> 24.85238569 | D43: MWh/yr
A45: Blowers
A46: Blower operating pressure | B46: blow_head | C46: =(max_h2odepth+add_blow_head/12)/2.307 -> 1.661609594 | D46: psi
A47: Total blower operating horsepower | B47: blower_hp | C47: =(average_flow_rate*air_water_ratio/7.48)*blow_head/(229*blower_effcy) -> 1.809211035 | D47: HP
A48: Energy | B48: blower_energy | C48: =(24*365*0.7457/1000)*blower_hp -> 11.81836714 | D48: MWh/yr
A50: Building Lighting
A51: Lighting power per sf, building 1 | B51: lighting_energy_1 | C51: =IF(OR(build1_fp<500,component_level=""),lighting_power_low,CHOOSE(component_level,lighting_power_mid,lighting_power_high))*24*365/1000 -> 8.76 | D51: kWh/sf/yr
A52: Lighting power per sf, building 2 | B52: lighting_energy_2 | C52: =IF(OR(build2_fp<500,component_level=""),lighting_power_low,CHOOSE(component_level,lighting_power_mid,lighting_power_high))*24*365/1000 -> 8.76 | D52: kWh/sf/yr
A53: Lighting | B53: lighting | C53: =MIN(1,Operator_LOE/(24*365))*(build1_fp*lighting_energy_1+build2_fp*lighting_energy_2)/1000 -> 0.046646 | D53: MWh/yr
A55: HVAC
A56: Heating energy usage for:
A57: Electric resistance | B57: heating | C57: =IF(build1_heat=A57,VLOOKUP(A57,build1_heat_options, 7,FALSE),0)+IF(build2_heat=A57,VLOOKUP(A57,build2_heat_options, 7,FALSE),0) -> 0 | D57: MWh/yr
A58: Natural gas non-condensing furnace | B58: heating_gas_non | C58: 0 | D58: therms/yr
A59: Natural gas condensing furnace | B59: heating_gas | C59: 0 | D59: therms/yr
A60: Standard efficiency oil furnace | B60: heating_diesel_non | C60: 0 | D60: gal/yr
A61: Mid-efficiency oil furnace | B61: heating_diesel | C61: 0 | D61: gal/yr
A62: Heat pump | B62: heating_hp | C62: 0 | D62: MWh/yr
A64: Cooling energy usage for:
A65: Air conditioner | B65: cooling | C65: =IF(build1_cool=A65,VLOOKUP(A65,build1_cool_options, 7,FALSE),0)+IF(build2_cool=A65,VLOOKUP(A65,build2_cool_options, 7,FALSE),0) -> 0 | D65: MWh/yr
A66: Heat pump | B66: cooling_hp | C66: =IF(build1_cool=A66,VLOOKUP(A66,build1_cool_options, 7,FALSE),0)+IF(build2_cool=A66,VLOOKUP(A66,build2_cool_options, 7,FALSE),0) -> 0 | D66: MWh/yr

Sheet HVAC
A1: Building Heating, Ventilating, and Air Conditioning Calculations
A3: Calculation | B3: Range Name | C3: Value | D3: Units | E3: Guidance
A4: General information
A5: System size | B5: ss_cat2 | C5: =IF(design_flow<1,1,IF(design_flow<10,2,3)) -> 1 | D5: 1 indicates small system, 2 indicates medium, 3 indicates large | E5: ss_cat2 is used to select ventilation requirements and building type
A6: Buiding 1 length and width | B6: build1_side | C6: =build1_fp^0.5 -> 10.95445115 | D6: ft
A7: Building 2 length and width | B7: build2_side | C7: =build2_fp^0.5 -> 0 | D7: ft
A9: Ventilation
A10: Building 1 weighted average air changes | B10: air_changes_build1 | C10: =IF(build2_fp=0,(Air_changes_contactor*basin_fp+Air_changes_pump*pump_fp+Air_changes_pump*blower_hp+Air_changes_office*office_fp)/build1_fp,Air_changes_contactor) -> 4.218201839 | D10: air changes/hr
A11: Building 2 weighted average air changes | B11: air_changes_build2 | C11: =IF(build2_fp=0,0,(Air_changes_pump*pump_fp+Air_changes_pump*blow_fp+Air_changes_office*office_fp)/build2_fp) -> 0 | D11: air changes/hr
A12: Building 1 ventilation | C12: =CHOOSE(ss_cat2,fan_days_build1_small,fan_days_build1_medium,fan_days_build1_large)*24*0.746*Fan_pressure_drop*build1_fp*Building_height*air_changes_build1/33000 -> 123.5825766 | D12: kWh/yr
A13: Building 2 ventilation | C13: =CHOOSE(ss_cat2,fan_days_build2_small,fan_days_build2_medium,fan_days_build2_large)*24*0.746*Fan_pressure_drop*build2_fp*Building_height*air_changes_build2/33000 -> 0 | D13: kWh/yr
A14: Total ventilation | B14: ventilation | C14: =SUM(C12:C13)/1000 -> 0.1235825766 | D14: MWh/yr
A16: Building 1 air exchange rate | B16: build1_cfm | C16: =build1_fp*Building_height*air_changes_build1/60 -> 168.7280736 | D16: cfm
A17: Building 2 air exchange rate | B17: build2_cfm | C17: =build2_fp*Building_height*air_changes_build2/60 -> 0 | D17: cfm
A19: Heating and Cooling
A20: Include heating for building 1 | B20: build1_need_heat | C20: =VLOOKUP(IF(component_level_I="","low cost",component_level_I),IF(build1_fp<500,heating_table_shed,heating_table),ss_cat2+2,FALSE) -> 0 | D20: 1 for yes, 0 for no | E20: Based on system size, building floorplan, and component level input.
A21: Include cooling for building 1 | B21: build1_need_cool | C21: =VLOOKUP(IF(component_level_I="","low cost",component_level_I),IF(build1_fp<500,cooling_table_shed,cooling_table),ss_cat2+2,FALSE) -> 0 | D21: 1 for yes, 0 for no
A22: Include heating for building 2 | B22: build2_need_heat | C22: =IF(build2_fp=0,0,VLOOKUP(IF(component_level_I="","low cost",component_level_I),IF(build2_fp<500,heating_table_shed,heating_table),ss_cat2+2,FALSE)) -> 0 | D22: 1 for yes, 0 for no
A23: Include cooling for building 2 | B23: build2_need_cool | C23: =IF(build2_fp=0,0,VLOOKUP(IF(component_level_I="","low cost",component_level_I),IF(build2_fp<500,cooling_table_shed,cooling_table),ss_cat2+2,FALSE)) -> 0 | D23: 1 for yes, 0 for no
A25: Heating Requirements
A26: Building 1 side conductance heat loss | C26: =4*build1_side*Building_height*heat_DD*24/R_wall -> 7964863.46 | D26: BTU/yr
A27: Buiding 1 ceiling conductance heat loss | C27: =build1_fp*heat_DD*24/R_ceiling -> 373111.5789 | D27: BTU/yr
A28: Building 1 air exchange heat loss | C28: =build1_cfm*heat_viload -> 28460882.72 | D28: BTU/yr
A29: Building 1 total annual heat loss | B29: build1_heat_loss_yr | C29: =SUM(C26:C28) -> 36798857.76 | D29: BTU/yr
A30: Building 1 heating requirement in thousand BTU/hr | B30: build1_heat_mbh | C30: =build1_heat_loss_yr/365.25/24/1000 -> 4.19790757 | D30: MBH | E30: thousands of BTU per hour
A31: Building 1 number of heating zones | B31: build1_heat_zones | C31: =ROUNDUP(build1_heat_mbh/max_heat_cl,0) -> 1
A33: Building 2 side conductance heat loss | C33: =4*build2_side*Building_height*heat_DD*24/R_wall -> 0 | D33: BTU/yr
A34: Buiding 2 ceiling conductance heat loss | C34: =build2_fp*heat_DD*24/R_ceiling -> 0 | D34: BTU/yr
A35: Building 2 air exchange heat loss | C35: =build2_cfm*heat_viload -> 0 | D35: BTU/yr
A36: Building 2 total annual heat loss | B36: build2_heat_loss_yr | C36: =SUM(C33:C35) -> 0 | D36: BTU/yr
A37: Building 2 heating requirement in thousand BTU/hr | B37: build2_heat_mbh | C37: =build2_heat_loss_yr/365.25/24/1000 -> 0 | D37: MBH
A38: Building 2 number of heating zones | B38: build2_heat_zones | C38: =ROUNDUP(build2_heat_mbh/max_heat_cl,0) -> 0
A40: Cooling Requirements
A41: Power lost: booster pumps | B41: eloss_pumps | C41: =pump_energy_hp*(1-pump_effcy)*0.7457 -> 0.7092575826 | D41: kW
A42: Waste heat: booster pumps | B42: waste_heat_pumps | C42: =eloss_pumps*3415 -> 2422.114645 | D42: BTU/hr
A43: Power lost: blowers | B43: eloss_blow | C43: =blower_hp*(1-blower_effcy)*0.7457 -> 0.4047386007 | D43: kW
A44: Waste heat: blowers | B44: waste_heat_blow | C44: =eloss_blow*3415 -> 1382.182321 | D44: BTU/hr
A46: Building 1 side conductance cooling loss | C46: =4*build1_side*Building_height*cool_DD*24/R_wall -> 2745556.224 | D46: BTU/yr
A47: Buiding 1 ceiling conductance cooling loss | C47: =build1_fp*cool_DD*24/R_ceiling -> 128614.7368 | D47: BTU/yr
A48: Building 1 air exchange cooling loss | C48: =build1_cfm*cool_viload -> 8735221.097 | D48: BTU/yr
A49: Building 1 total annual cooling loss | B49: build1_cooling_loss_yr | C49: =SUM(C46:C48) -> 11609392.06 | D49: BTU/yr
A50: Building 1 cooling loss per hour | B50: build1_cooling_loss_hr | C50: =build1_cooling_loss_yr/365.25/24 -> 1324.365966 | D50: BTU/hr
A52: Building 1 total cooling requirement | B52: build1_cooling_req | C52: =build1_cooling_loss_hr+IF(fp_required<add_2nd_building,waste_heat_pumps+waste_heat_blow,0) -> 5128.662932 | D52: BTU/hr
A53: Building 1 annual cooling requirement | B53: build1_cooling_yr | C53: =build1_cooling_req*365.25*24 -> 44957859.26 | D53: BTU/yr
A54: Building 1 total cooling requirement in tons | B54: build1_cooling_tons | C54: =build1_cooling_req/12000 -> 0.4273885777 | D54: tons | E54: 1 ton cooling = 12,000 BTU/hr
A55: Building 1 number of cooling zones | B55: build1_cool_zones | C55: =ROUNDUP(build1_cooling_tons/max_cool_cl,0) -> 1
A57: Building 2 side conductance cooling loss | C57: =4*build2_side*Building_height*cool_DD*24/R_wall -> 0 | D57: BTU/yr
A58: Buiding 2 ceiling conductance cooling loss | C58: =build2_fp*cool_DD*24/R_ceiling -> 0 | D58: BTU/yr
A59: Building 2 air exchange cooling loss | C59: =build2_cfm*cool_viload -> 0 | D59: BTU/yr
A60: Building 2 total annual cooling loss | B60: build2_cooling_loss_yr | C60: =SUM(C57:C59) -> 0 | D60: BTU/yr
A61: Building 2 cooling loss per hour | B61: build2_cooling_loss_hr | C61: =build2_cooling_loss_yr/365.25/24 -> 0 | D61: BTU/hr
A63: Building 2 total cooling requirement | B63: build2_cooling_req | C63: =build2_cooling_loss_hr+IF(fp_required<add_2nd_building,0,waste_heat_pumps+waste_heat_blow) -> 0 | D63: BTU/hr
A64: Building 2 annual cooling requirement | B64: build2_cooling_yr | C64: =build2_cooling_req*365.25*24 -> 0 | D64: BTU/yr
A65: Building 2 total cooling requirement in tons | B65: build2_cooling_tons | C65: =build2_cooling_req/12000 -> 0 | D65: tons | E65: 1 ton cooling = 12,000 BTU/hr
A66: Building 2 number of cooling zones | B66: build2_cool_zones | C66: =ROUNDUP(build2_cooling_tons/max_cool_cl,0) -> 0
A68: Heating Options
A70: Building 1 number of HVAC zones | B70: build1_zones | C70: =MAX(build1_heat_zones, build1_cool_zones) -> 1
A71: Building 2 number of HVAC zones | B71: build2_zones | C71: =MAX(build2_heat_zones, build2_cool_zones) -> 0
A73: Heat pump OK for building 1? | B73: hp_ok_1 | C73: =AND(build1_heat_mbh<=hp_max_heat_cl,build1_cooling_tons<=hp_max_cool_cl) -> TRUE | E73: For heat pumps, we check both heating and cooling capacities.
A74: Heat pump OK for building 2? | B74: hp_ok_2 | C74: =AND(build2_heat_mbh<=hp_max_heat_cl,build2_cooling_tons<=hp_max_cool_cl) -> TRUE
A76: Building 1 | B76: build1_heat_options
A77: Option | B77: Size needed per zone (MBH) | C77: Size selected (MBH) | D77: Direct Cost Per Zone | E77: Useful Life (yrs) | F77: Annualized Capital Cost, All Zones | G77: Energy/Yr | I77: Energy Unit Cost | K77: Annual Energy Cost | L77: Total Annual Cost
A78: Electric resistance | B78: =build1_heat_mbh/build1_zones -> 4.19790757 | C78: =IF(curve=1,B78,VLOOKUP(B78,hvac_elec_cost_cl,2)) -> 4.19790757 | D78: =IF(curve=1,hvac_elec_eq_1,VLOOKUP(B78,hvac_elec_cost_cl,3)) -> 4117.620105 | E78: =VLOOKUP(B78,hvac_elec_cost_cl,IF(ss_cat="large",4,5)) -> 20 | F78: =IF(D78="contact vendor","n/a",-PMT(Discount_rate,E78,D78)*build1_zones) -> 388.6742088 | G78: =build1_heat_loss_yr/3412000/resist_eff -> 11.00523296 | H78: MWh/yr | I78: =energy_cost_cl -> 0.1076152672 | J78: /kwh | K78: =I78*G78*1000 -> 1184.331085 | L78: =IF(OR(F78="n/a",K78="n/a"),"n/a",F78+K78) -> 1573.005294
A79: Heat pump | B79: capital costs are in the cooling table | F79: n/a | G79: =IF(hp_ok_1,build1_heat_loss_yr/3412000/COP,"n/a") -> 3.370352594 | H79: MWh/yr | I79: =energy_cost_cl -> 0.1076152672 | J79: /kwh | K79: =IF(G79="n/a","n/a",I79*G79*1000) -> 362.7013949 | L79: n/a
A80: Natural gas non-condensing furnace | B80: =build1_heat_mbh/build1_zones -> 4.19790757 | C80: =IF(curve=1,B80,VLOOKUP(B80,hvac_gas_non_cost_cl,2)) -> 4.19790757 | D80: =IF(curve=1,hvac_gas_non_eq_1,VLOOKUP(B80,hvac_gas_non_cost_cl,3)) -> 2385.047087 | E80: =VLOOKUP(B80,hvac_gas_non_cost_cl,IF(ss_cat="large",4,5)) -> 20 | F80: =IF(D80="contact vendor","n/a",-PMT(Discount_rate,E80,D80)*build1_zones) -> 225.1315726 | G80: =build1_heat_loss_yr/100000/gas_non_eff -> 459.985722 | H80: therms/yr | I80: =gas_cost_cl -> 0.6435404387 | J80: /therm | K80: =I80*G80 -> 296.0194133 | L80: 521.1509859
A81: Natural gas condensing furnace | B81: =build1_heat_mbh/build1_zones -> 4.19790757 | C81: =IF(curve=1,B81,VLOOKUP(B81,hvac_gas_cost_cl,2)) -> 4.19790757 | D81: =IF(curve=1,hvac_gas_eq_1,VLOOKUP(B81,hvac_gas_cost_cl,3)) -> 2385.047087 | E81: =VLOOKUP(B81,hvac_gas_cost_cl,IF(ss_cat="large",4,5)) -> 20 | F81: =IF(D81="contact vendor","n/a",-PMT(Discount_rate,E81,D81)*build1_zones) -> 225.1315726 | G81: =build1_heat_loss_yr/100000/gas_eff -> 387.3563975 | H81: therms/yr | I81: =gas_cost_cl -> 0.6435404387 | J81: /therm | K81: =I81*G81 -> 249.279506 | L81: 474.4110785
A82: Standard efficiency oil furnace | B82: =build1_heat_mbh/build1_zones -> 4.19790757 | C82: =IF(curve=1,B82,VLOOKUP(B82,hvac_oil_std_cost_cl,2)) -> 4.19790757 | D82: =IF(curve=1,hvac_oil_std_eq_1,VLOOKUP(B82,hvac_oil_std_cost_cl,3)) -> 2766.216772 | E82: =VLOOKUP(B82,hvac_oil_std_cost_cl,IF(ss_cat="large",4,5)) -> 20 | F82: =IF(D82="contact vendor","n/a",-PMT(Discount_rate,E82,D82)*build1_zones) -> 261.1112944 | G82: =build1_heat_loss_yr/diesel_heat_content/diesel_non_eff -> 339.4102358 | H82: gal/yr | I82: =diesel_cost_cl -> 1.940023187 | J82: /gal | K82: =I82*G82 -> 658.4637274 | L82: 919.5750218
A83: Mid-efficiency oil furnace | B83: =build1_heat_mbh/build1_zones -> 4.19790757 | C83: =IF(curve=1,B83,VLOOKUP(B83,hvac_oil_mid_cost_cl,2)) -> 4.19790757 | D83: =IF(curve=1,hvac_oil_mid_eq_1,VLOOKUP(B83,hvac_oil_mid_cost_cl,3)) -> 2766.216772 | E83: =VLOOKUP(B83,hvac_oil_mid_cost_cl,IF(ss_cat="large",4,5)) -> 20 | F83: =IF(D83="contact vendor","n/a",-PMT(Discount_rate,E83,D83)*build1_zones) -> 261.1112944 | G83: =build1_heat_loss_yr/diesel_heat_content/diesel_eff -> 311.4588046 | H83: gal/yr | I83: =diesel_cost_cl -> 1.940023187 | J83: /gal | K83: =I83*G83 -> 604.2373028 | L83: 865.3485972
A85: Building 2 | B85: build2_heat_options
A86: Option | B86: Size needed per zone (MBH) | C86: Size selected (MBH) | D86: Direct Cost Per Zone | E86: Useful Life (yrs) | F86: Annualized Capital Cost, All Zones | G86: Energy/Yr | I86: Energy Unit Cost | K86: Annual Energy Cost | L86: Total Annual Cost
A87: Electric resistance | B87: =IF(build2_zones=0,0,build2_heat_mbh/build2_zones) -> 0 | C87: =IF(curve=1,B87,VLOOKUP(B87,hvac_elec_cost_cl,2)) -> 0 | D87: =IF(curve=1,hvac_elec_eq_2,VLOOKUP(B87,hvac_elec_cost_cl,3)) -> 0 | E87: =VLOOKUP(B87,hvac_elec_cost_cl,IF(ss_cat="large",4,5)) -> 20 | F87: =IF(D87="contact vendor","n/a",-PMT(Discount_rate,E87,D87)*build2_zones) -> 0 | G87: =build2_heat_loss_yr/3412000/resist_eff -> 0 | H87: MWh/yr | I87: =energy_cost_cl -> 0.1076152672 | J87: /kwh | K87: =I87*G87*1000 -> 0 | L87: =IF(F87="n/a","n/a",F87+K87) -> 0
A88: Heat pump | B88: capital costs are in the cooling table | F88: n/a | G88: =IF(hp_ok_2,build2_heat_loss_yr/3412000/COP,"n/a") -> 0 | H88: MWh/yr | I88: =energy_cost_cl -> 0.1076152672 | J88: /kwh | K88: =IF(G88="n/a","n/a",I88*G88*1000) -> 0 | L88: =IF(OR(F88="n/a",K88="n/a"),"n/a",F88+K88) -> n/a
A89: Natural gas non-condensing furnace | B89: =IF(build2_zones=0,0,build2_heat_mbh/build2_zones) -> 0 | C89: =IF(curve=1,B89,VLOOKUP(B89,hvac_gas_non_cost_cl,2)) -> 0 | D89: =IF(curve=1,hvac_gas_non_eq_2,VLOOKUP(B89,hvac_gas_non_cost_cl,3)) -> 0 | E89: =VLOOKUP(B89,hvac_gas_non_cost_cl,IF(ss_cat="large",4,5)) -> 20 | F89: =IF(D89="contact vendor","n/a",-PMT(Discount_rate,E89,D89)*build2_zones) -> 0 | G89: =build2_heat_loss_yr/100000/gas_non_eff -> 0 | H89: therms/yr | I89: =gas_cost_cl -> 0.6435404387 | J89: /therm | K89: =I89*G89 -> 0 | L89: =IF(F89="n/a","n/a",F89+K89) -> 0
A90: Natural gas condensing furnace | B90: =IF(build2_zones=0,0,build2_heat_mbh/build2_zones) -> 0 | C90: =IF(curve=1,B90,VLOOKUP(B90,hvac_gas_cost_cl,2)) -> 0 | D90: =IF(curve=1,hvac_gas_eq_2,VLOOKUP(B90,hvac_gas_cost_cl,3)) -> 0 | E90: =VLOOKUP(B90,hvac_gas_cost_cl,IF(ss_cat="large",4,5)) -> 20 | F90: =IF(D90="contact vendor","n/a",-PMT(Discount_rate,E90,D90)*build2_zones) -> 0 | G90: =build2_heat_loss_yr/100000/gas_eff -> 0 | H90: therms/yr | I90: =gas_cost_cl -> 0.6435404387 | J90: /therm | K90: =I90*G90 -> 0 | L90: =IF(F90="n/a","n/a",F90+K90) -> 0
A91: Standard efficiency oil furnace | B91: =IF(build2_zones=0,0,build2_heat_mbh/build2_zones) -> 0 | C91: =IF(curve=1,B91,VLOOKUP(B91,hvac_oil_std_cost_cl,2)) -> 0 | D91: =IF(curve=1,hvac_oil_std_eq_2,VLOOKUP(B91,hvac_oil_std_cost_cl,3)) -> 0 | E91: =VLOOKUP(B91,hvac_oil_std_cost_cl,IF(ss_cat="large",4,5)) -> 20 | F91: =IF(D91="contact vendor","n/a",-PMT(Discount_rate,E91,D91)*build2_zones) -> 0 | G91: =build2_heat_loss_yr/diesel_heat_content/diesel_non_eff -> 0 | H91: gal/yr | I91: =diesel_cost_cl -> 1.940023187 | J91: /gal | K91: =I91*G91 -> 0 | L91: =IF(F91="n/a","n/a",F91+K91) -> 0
A92: Mid-efficiency oil furnace | B92: =IF(build2_zones=0,0,build2_heat_mbh/build2_zones) -> 0 | C92: =IF(curve=1,B92,VLOOKUP(B92,hvac_oil_mid_cost_cl,2)) -> 0 | D92: =IF(curve=1,hvac_oil_mid_eq_2,VLOOKUP(B92,hvac_oil_mid_cost_cl,3)) -> 0 | E92: =VLOOKUP(B92,hvac_oil_mid_cost_cl,IF(ss_cat="large",4,5)) -> 20 | F92: =IF(D92="contact vendor","n/a",-PMT(Discount_rate,E92,D92)*build2_zones) -> 0 | G92: =build2_heat_loss_yr/diesel_heat_content/diesel_eff -> 0 | H92: gal/yr | I92: =diesel_cost_cl -> 1.940023187 | J92: /gal | K92: =I92*G92 -> 0 | L92: =IF(F92="n/a","n/a",F92+K92) -> 0
A94: Cooling Options
A95: Building 1 | B95: build1_cool_options
A96: Option | B96: Size needed per zone (tons) | C96: Size selected (tons) | D96: Direct Cost Per Zone | E96: Useful Life (yrs) | F96: Annualized Capital Cost, All Zones | G96: Energy/Yr | I96: Energy Unit Cost | K96: Annual Energy Cost | L96: Total Annual Cost
A97: Air conditioner | B97: =build1_cooling_tons/build1_zones -> 0.4273885777 | C97: =IF(curve=1,B97,VLOOKUP(B97,hvac_ac_cost_cl,2)) -> 0.4273885777 | D97: =IF(curve=1,hvac_ac_eq_1,VLOOKUP(B97,hvac_ac_cost_cl,3)) -> 931.9462054 | E97: =VLOOKUP(B97,hvac_ac_cost_cl,IF(ss_cat="large",4,5)) -> 20 | F97: =IF(D97="contact vendor","n/a",-PMT(Discount_rate,E97,D97)*build1_zones) -> 87.96912896 | G97: =build1_cooling_yr/EER/10^6 -> 4.087078115 | H97: MWh/yr | I97: =energy_cost_cl -> 0.1076152672 | J97: /kwh | K97: =I97*G97*1000 -> 439.8320033 | L97: =IF(F97="n/a","n/a",F97+K97) -> 527.8011322
A98: Heat pump | B98: =build1_cooling_tons/build1_zones -> 0.4273885777 | C98: =IF(hp_ok_1,IF(curve=1,B98,VLOOKUP(B98,hvac_hp_cost_cl,2)),"n/a") -> 0.4273885777 | D98: =IF(C98="n/a","n/a",IF(curve=1,hvac_hp_eq_1,VLOOKUP(B98,hvac_hp_cost_cl,3))) -> 3372.087685 | E98: =IF(C98="n/a","n/a",VLOOKUP(B98,hvac_hp_cost_cl,IF(ss_cat="large",4,5))) -> 20 | F98: =IF(OR(D98="contact vendor",D98="n/a"),"n/a",-PMT(Discount_rate,E98,D98)*build1_zones) -> 318.3012224 | G98: =IF(C98="n/a","n/a",build1_cooling_yr/hp_EER/10^6) -> 4.451273194 | H98: MWh/yr | I98: =energy_cost_cl -> 0.1076152672 | J98: /kwh | K98: =IF(C98="n/a","n/a",I98*G98*1000) -> 479.0249541 | L98: =IF(F98="n/a","n/a",F98+K98) -> 797.3261765
A100: Building 2 | B100: build2_cool_options
A101: Option | B101: Size needed per zone (tons) | C101: Size selected (tons) | D101: Direct Cost Per Zone | E101: Useful Life (yrs) | F101: Annualized Capital Cost, All Zones | G101: Energy/Yr | I101: Energy Unit Cost | K101: Annual Energy Cost | L101: Total Annual Cost
A102: Air conditioner | B102: =IF(build2_zones=0,0,build2_cooling_tons/build2_zones) -> 0 | C102: =IF(curve=1,B102,VLOOKUP(B102,hvac_ac_cost_cl,2)) -> 0 | D102: =IF(curve=1,hvac_ac_eq_2,VLOOKUP(B102,hvac_ac_cost_cl,3)) -> 0 | E102: =VLOOKUP(B102,hvac_ac_cost_cl,IF(ss_cat="large",4,5)) -> 20 | F102: =IF(D102="contact vendor","n/a",-PMT(Discount_rate,E102,D102)*build2_zones) -> 0 | G102: =build2_cooling_yr/EER/10^6 -> 0 | H102: MWh/yr | I102: =energy_cost_cl -> 0.1076152672 | J102: /kwh | K102: =I102*G102*1000 -> 0 | L102: =IF(F102="n/a","n/a",F102+K102) -> 0
A103: Heat pump | B103: =IF(build2_zones=0,0,build2_cooling_tons/build2_zones) -> 0 | C103: =IF(hp_ok_2,IF(curve=1,B103,VLOOKUP(B103,hvac_hp_cost_cl,2)),"n/a") -> 0 | D103: =IF(C103="n/a","n/a",IF(curve=1,hvac_hp_eq_2,VLOOKUP(B103,hvac_hp_cost_cl,3))) -> 0 | E103: =IF(C103="n/a","n/a",VLOOKUP(B103,hvac_hp_cost_cl,IF(ss_cat="large",4,5))) -> 20 | F103: =IF(OR(D103="contact vendor",D103="n/a"),"n/a",-PMT(Discount_rate,E103,D103)*build2_zones) -> 0 | G103: =IF(C103="n/a","n/a",build2_cooling_yr/hp_EER/10^6) -> 0 | H103: MWh/yr | I103: =energy_cost_cl -> 0.1076152672 | J103: /kwh | K103: =IF(C103="n/a","n/a",I103*G103*1000) -> 0 | L103: =IF(F103="n/a","n/a",F103+K103) -> 0
A106: Heating and Cooling Selection | E106: We will select the option with the lowest annual cost for each building.
A108: Building 1 Selection
A109: Heating option | B109: Annual cost | C109: Cooling option | D109: Annual cost | E109: Total annual cost
A110: Electric resistance | B110: =IF(build1_need_heat,VLOOKUP(A110,build1_heat_options,12,FALSE),0) -> 0 | C110: Air conditioner | D110: =IF(build1_need_cool,VLOOKUP(C110,build1_cool_options,12,FALSE),0) -> 0 | E110: =IF(OR(B110="n/a",D110="n/a"),"n/a",ROUND(B110+D110,0)) -> 0
A111: Natural gas non-condensing furnace | B111: =IF(build1_need_heat,VLOOKUP(A111,build1_heat_options,12,FALSE),0) -> 0 | C111: Air conditioner | D111: =IF(build1_need_cool,VLOOKUP(C111,build1_cool_options,12,FALSE),0) -> 0 | E111: 0
A112: Natural gas condensing furnace | B112: =IF(build1_need_heat,VLOOKUP(A112,build1_heat_options,12,FALSE),0) -> 0 | C112: Air conditioner | D112: =IF(build1_need_cool,VLOOKUP(C112,build1_cool_options,12,FALSE),0) -> 0 | E112: 0
A113: Standard efficiency oil furnace | B113: =IF(build1_need_heat,VLOOKUP(A113,build1_heat_options,12,FALSE),0) -> 0 | C113: Air conditioner | D113: =IF(build1_need_cool,VLOOKUP(C113,build1_cool_options,12,FALSE),0) -> 0 | E113: 0
A114: Mid-efficiency oil furnace | B114: =IF(build1_need_heat,VLOOKUP(A114,build1_heat_options,12,FALSE),0) -> 0 | C114: Air conditioner | D114: =IF(build1_need_cool,VLOOKUP(C114,build1_cool_options,12,FALSE),0) -> 0 | E114: 0
A115: Heat pump | B115: =IF(AND(build1_need_heat, build1_need_cool),K79,"n/a") -> n/a | C115: Heat pump | D115: =IF(AND(build1_need_heat,build1_need_cool),VLOOKUP(C115,build1_cool_options,12,FALSE),0) -> 0 | E115: n/a
A117: Row selected | B117: build1_row | C117: =MATCH(MIN(E110:E115),E110:E115,0) -> 1
A118: Building 1 heating selection | B118: build1_heat | C118: =IF(build1_need_heat,INDEX(A110:A115,build1_row),"n/a") -> n/a
A119: Building 1 cooling selection | B119: build1_cool | C119: =IF(build1_need_cool,INDEX(C110:C115,build1_row),"n/a") -> n/a
A122: Building 2 Selection
A123: Heating option | B123: Annual cost | C123: Cooling option | D123: Annual cost | E123: Total annual cost
A124: Electric resistance | B124: =IF(build2_need_heat,VLOOKUP(A124,build2_heat_options,12,FALSE),0) -> 0 | C124: Air conditioner | D124: =IF(build2_need_cool,VLOOKUP(C124,build2_cool_options,12,FALSE),0) -> 0 | E124: =IF(OR(B124="n/a",D124="n/a"),"n/a",ROUND(B124+D124,0)) -> 0
A125: Natural gas non-condensing furnace | B125: =IF(build2_need_heat,VLOOKUP(A125,build2_heat_options,12,FALSE),0) -> 0 | C125: Air conditioner | D125: =IF(build2_need_cool,VLOOKUP(C125,build2_cool_options,12,FALSE),0) -> 0 | E125: 0
A126: Natural gas condensing furnace | B126: =IF(build2_need_heat,VLOOKUP(A126,build2_heat_options,12,FALSE),0) -> 0 | C126: Air conditioner | D126: =IF(build2_need_cool,VLOOKUP(C126,build2_cool_options,12,FALSE),0) -> 0 | E126: 0
A127: Standard efficiency oil furnace | B127: =IF(build2_need_heat,VLOOKUP(A127,build2_heat_options,12,FALSE),0) -> 0 | C127: Air conditioner | D127: =IF(build2_need_cool,VLOOKUP(C127,build2_cool_options,12,FALSE),0) -> 0 | E127: 0
A128: Mid-efficiency oil furnace | B128: =IF(build2_need_heat,VLOOKUP(A128,build2_heat_options,12,FALSE),0) -> 0 | C128: Air conditioner | D128: =IF(build2_need_cool,VLOOKUP(C128,build2_cool_options,12,FALSE),0) -> 0 | E128: 0
A129: Heat pump | B129: =IF(AND(build2_need_heat, build2_need_cool),K88,"n/a") -> n/a | C129: Heat pump | D129: =IF(AND(build1_need_heat,build2_need_cool),VLOOKUP(C129,build2_cool_options,12,FALSE),0) -> 0 | E129: n/a
A131: Row selected | B131: build2_row | C131: =MATCH(MIN(E124:E129),E124:E129,0) -> 1
A132: Building 2 heating selection | B132: build2_heat | C132: =IF(build2_need_heat,INDEX(A124:A129,build2_row),"n/a") -> n/a
A133: Building 2 cooling selection | B133: build2_cool | C133: =IF(build2_need_cool,INDEX(C124:C129,build2_row),"n/a") -> n/a

Sheet Indirect
A1: Indirect and Add-on Cost Calculations
A3: Calculation | B3: Range Name | C3: Value | D3: Units | E3: Guidance
A4: Standby Power
A5: Blowers | C5: =blower_energy*design_flow/average_flow/365/24*1000 -> 4.377491958 | D5: kW
A6: Pumps | C6: =pump_energy*design_flow/average_flow/365/24*1000 -> 9.205257987 | D6: kW
A7: Offgas blowers | C7: =IF(Offgas_Tech=2,TO_power_yr,IF(Offgas_Tech=3,CO_power_yr,0))*design_flow/average_flow/365/24*1000 -> 0 | D7: kW
A8: Lighting | C8: =(build1_fp*lighting_energy_1+build2_fp*lighting_energy_2)/365/24 -> 0.12 | D8: kW
A9: Building 1 ventilation | C9: =0.746*Fan_pressure_drop*build1_fp*Building_height*air_changes_build1/33000 -> 0.05721415586 | D9: kW
A10: Building 2 ventilation | C10: =0.746*Fan_pressure_drop*build2_fp*Building_height*air_changes_build2/33000 -> 0 | D10: kW
A11: Total base standby power requirement | B11: std_base | C11: =SUM(C5:C10) -> 13.7599641 | D11: kW
A13: Electric heating for Building 1? | B13: build1_elec_heat | C13: =IF(build1_need_heat=1,VLOOKUP(build1_heat,build1_heat_options,8,FALSE)="MWh/yr",FALSE) -> FALSE
A14: Power to heat Building 1 | B14: build1_elec_heat_power | C14: =IF(build1_elec_heat,VLOOKUP(build1_heat,build1_heat_options,7,FALSE),0)*365.25*24/1000 -> 0 | D14: kW
A15: Electric heating for Building 2? | B15: build2_elec_heat | C15: =IF(build2_need_heat,(VLOOKUP(build2_heat,build2_heat_options,8,FALSE)="MWh/yr"),FALSE) -> FALSE
A16: Power to heat Building 2 | B16: build2_elec_heat_power | C16: =IF(build2_elec_heat,VLOOKUP(build2_heat,build2_heat_options,7,FALSE),0)*365.25*24/1000 -> 0 | D16: kW
A17: Standby power for heating | B17: std_heat | C17: =build1_elec_heat_power+build2_elec_heat_power -> 0 | D17: kW
A19: Electric cooling for Building 1? | B19: build1_elec_cool | C19: =IF(build1_need_cool,(VLOOKUP(build1_cool,build1_cool_options,8,FALSE)="MWh/yr"),FALSE) -> FALSE
A20: Power to cool Building 1 | B20: build1_elec_cool_power | C20: =IF(build1_elec_cool,VLOOKUP(build1_cool,build1_cool_options,7,FALSE),0)*365.25*24/1000 -> 0 | D20: kW
A21: Electric cooling for Building 2? | B21: build2_elec_cool | C21: =IF(build2_need_cool,(VLOOKUP(build2_cool,build2_cool_options,8,FALSE)="MWh/yr"),FALSE) -> FALSE
A22: Power to cool Building 2 | B22: build2_elec_cool_power | C22: =IF(build2_elec_cool,VLOOKUP(build2_cool,build2_cool_options,7,FALSE),0)*365.25*24/1000 -> 0 | D22: kW
A23: Standby power for cooling | B23: std_cool | C23: =build1_elec_cool_power+build2_elec_cool_power -> 0 | D23: kW
A25: Total standby power requirements | B25: std_power | C25: =ROUNDUP(2*MAX(min_standby,(IF(AND(need_heat=1,need_cool=1),MAX(std_heat,std_cool),need_heat*std_heat+need_cool*std_cool)+std_base)*(1+std_safety_factor)),0)/2 -> 14 | D25: kW
A26: Total standby power cost | B26: std_power_cost | C26: =VLOOKUP(std_power,std_gen_cost_cl,3)*std_power -> 7176.601134
A28: Geotechnical & Sitework
A29: Total technology footprint | B29: tech_fp | C29: =total_fp+offgas_fp -> 120 | D29: square feet
A30: Maximum basin excavation depth | B30: max_excav_depth | C30: =IF(design_type=1,0,tank_depth+conc_thick+overexcavate) -> 0 | D30: feet
A31: Borehole depth | B31: bore_depth | C31: =IF(design_type=1,bore_depth_p,IF(max_excav_depth>deep_bore_need,bore_depth_max,bore_depth_min)) -> 10 | D31: feet
A32: Number of test pits | B32: num_pits | C32: =IF(OR(design_type=2,tech_fp>bore_need),0,ROUNDUP(tech_fp/hole_per_sf,0)) -> 1
A33: Number of boreholes | B33: num_holes | C33: =IF(AND(design_type=1,tech_fp<bore_need),0,IF(ROUNDUP(tech_fp/hole_per_sf,0)<min_holes,min_holes,ROUNDUP(tech_fp/hole_per_sf,0))) -> 0
A35: Costs
A36: Borings, initial field stake out & determination of elevations | C36: =IF(num_pits>0,1,ROUNDUP(num_holes/hole_per_job,0))*VLOOKUP(0,stake_out_cost_cl,3) -> 1380.637897
A37: Borings, drawings showing boring details | C37: =ROUNDUP(num_holes/hole_per_job,0)*VLOOKUP(0,bore_draw_cost_cl,3) -> 0
A38: Borings, report and recommendations from P.E. | C38: =IF(num_pits>0,1,ROUNDUP(num_holes/hole_per_job,0))*VLOOKUP(0,bore_report_cost_cl,3) -> 1050.367655
A39: Borings, mobilization and demobilization, minimum | C39: =IF(num_pits>0,0,1)*VLOOKUP(0,bore_mob_cost_cl,3) -> 0
A40: Borings, drill rig and crew with truck mounted auger | C40: =ROUNDUP(bore_depth*num_holes/hole_per_day,0)*VLOOKUP(0,bore_rig_cost_cl,3) -> 0
A41: Borings, cased borings in earth, w/samples, 2.5" dia | C41: =num_holes*bore_depth*VLOOKUP(0,bore_cost_cl,3) -> 0
A42: Test pits | C42: =pit_width*pit_length*pit_depth/27*num_pits*VLOOKUP(0,pit_cost_cl,3) -> 1064.565064
A43: Total geotechnical cost | B43: geotech_cost | C43: =SUM(C36:C42) -> 3495.570616
A45: Total sitework cost | B45: sitework_cost | C45: =tech_fp*sitework_sf_cl -> 1488.791209
A47: Yard Piping
A48: Actual yard piping diameter | B48: yard_pipe_diam | C48: =SUMPRODUCT(OUTPUT!G61:G65,OUTPUT!L61:L65) -> 4 | D48: in. diam | E48: Based on output sheet selection for inlet and outlet pipe
A49: Trench depth to top of pipe | B49: trench_depth | C49: =MAX(frost,min_trench_depth) -> 38 | D49: inches
A50: Thrust force | B50: thrust_force | C50: =VLOOKUP(yard_pipe_diam,thrust_block_table_cl,2)*2.2 -> 2772.019237 | D50: lbs
A51: Bearing Area (L x H) | B51: bearing_area | C51: =1.5*thrust_force/(soil_dens*(trench_depth/12+yard_pipe_diam/12)*Coeff_Kp*Reduction) -> 8.741975499 | D51: square ft
A52: L | C52: =bearing_area/C53 -> 4.18138147 | D52: ft
A53: H | C53: =(bearing_area/2)^0.5 -> 2.090690735 | D53: ft
A54: F | C54: =MAX(0.5,yard_pipe_diam/12) -> 0.5 | D54: ft | E54: Pipe diameter with a minimum of 6 inches
A55: T | C55: =C52/2 -> 2.090690735 | D55: ft
A56: Thrust block volume | B56: block_vol | C56: =(C55+(yard_pipe_diam/12)/2)*(C52+C54)/2*C53/27 -> 0.4091385408 | D56: cy
A57: Trench Cross-section Area | B57: trench_area | C57: =(yard_pipe_diam/12+2)*(bedding_depth/12+yard_pipe_diam/12+trench_depth/12)+(bedding_depth/12+yard_pipe_diam/12+trench_depth/12)^2*TAN(trench_angle) -> 25.33333333 | D57: square ft
A58: Trench Volume Source Water | C58: =trench_area*yard_in/27 -> 0 | D58: cy
A59: Trench Volume Inlet & Outlet | C59: =((2*non_fire_buffer)+2*(total_fp^0.5)/4)*trench_area/27 -> 23.90455733 | D59: cy
A60: Trench Volume Between Buildings | C60: =IF(build2_fp=0,0,((2*non_fire_buffer)+2*(build2_fp^0.5)/4)*trench_area/27) -> 0 | D60: cy
A61: Trench Volume to Distribution Network | C61: =trench_area*yard_out/27 -> 0 | D61: cy
A62: Trench Volume total | B62: trench_vol | C62: =SUM(C58:C61)+block_vol -> 24.31369587 | D62: cy
A63: Equivalent pipe length | B63: yard_pipe_length | C63: =yard_in+yard_out+2*((2*non_fire_buffer)+2*(build1_fp^0.5)/4+IF(build2_fp=0,0,((2*non_fire_buffer)+2*(build2_fp^0.5)/4))+2*(trench_depth+yard_pipe_diam)/12) -> 64.95445115 | D63: lf
A64: Bedding cross sectional surface area | C64: =(yard_pipe_diam/12+2)*(bedding_depth/12+yard_pipe_diam/12*bedding_pct)+(bedding_depth/12+yard_pipe_diam/12*bedding_pct)^2*TAN(trench_angle)-((yard_pipe_diam/12/2)^2*ACOS((yard_pipe_diam/12/2-bedding_pct*yard_pipe_diam/12)/(yard_pipe_diam/12/2))-(yard_pipe_diam/12/2-yard_pipe_diam/12*bedding_pct)*((2*yard_pipe_diam/12/2*yard_pipe_diam/12*bedding_pct-(yard_pipe_diam/12*bedding_pct)^2)^0.5)) -> 1.684328199 | D64: square ft
A65: Bedding volume | B65: bedding_vol | C65: =C64*yard_pipe_length/2/27 -> 2.026011365 | D65: cy
A67: Costs
A68: Bedding cost | C68: =VLOOKUP(0,bedding_cost_cl,3)*bedding_vol -> 109.2548752
A69: Excavation cost | C69: =trench_vol*VLOOKUP(0,excavate_cost_cl,3) -> 731.436576
A70: Backfill cost | C70: =trench_vol*VLOOKUP(0,backfill_cost_cl,3) -> 339.096363
A71: Thrust block cost | C71: =block_vol*VLOOKUP(0,conc_basin_cost_cl,3) -> 238.1536848
A72: Pipe cost | C72: =yard_pipe_length*SUMPRODUCT(OUTPUT!I61:I65,OUTPUT!L61:L65) -> 311.4890776 | E72: Based on output sheet selection for inlet and outlet pipe
A73: Total yard piping cost | B73: yard_cost | C73: =SUM(C68:C72) -> 1729.430577
A75: Permits
A76: Building #1 value | C76: =SUMPRODUCT(OUTPUT!J155:J168,OUTPUT!L155:L168) -> 5344.205881 | E76: Determined using Use? Column of output sheet
A77: Building #2 value | C77: =SUMPRODUCT(OUTPUT!J169:J182,OUTPUT!L169:L182) -> 0 | E77: Determined using Use? Column of output sheet
A78: Building permit cost | C78: =BPCost_UBC97(C77)+BPCost_UBC97(C76) -> 125.25
A79: Storm water permit cost | C79: =VLOOKUP(land_required,SW_permit_cost_cl,2) -> 0 | E79: Applies to systems requiring 1 acre of land or greater
A80: Risk management plan | C80: 0 | E80: Not required for this technology
A81: NEPA compliance | C81: =IF(include_NEPA=2,0,IF(OR(component_level=2,include_NEPA=1),VLOOKUP(land_required,NEPA_cost_cl,2),0)) -> 0 | E81: Included only for high cost estimates, unless assumption "include_NEPA" is changed on CDA sheet
A82: Total permit cost | B82: permit_cost | C82: =SUM(C78:C81) -> 125.25
A84: Construction Management and General Contractor Job Overhead
A85: Builder's risk insurance percentage | C85: =br_ins_pct*direct_cost -> 487.3739708
A86: Performance bond cost | C86: =include_bond*(VLOOKUP(direct_cost,performance_bond_table_cl,3)+VLOOKUP(direct_cost,performance_bond_table_cl,4)*(direct_cost-VLOOKUP(direct_cost,performance_bond_table_cl,5))) -> 3150.179283 | E86: Bracket determined from direct capital cost
A87: Construction management percentage | C87: =VLOOKUP(direct_cost,construction_mgt_table_cl,3) -> 0.09 | E87: Looked up from direct capital cost
A88: Construction management fee | C88: =CHOOSE(design_type,include_cm_pre,include_cm)*C87*direct_cost -> 0
A89: Total construction management/job overhead cost | B89: cm_cost | C89: =SUM(C85:C86,C88) -> 3637.553254

Sheet Standard Inputs
A1: Standard Designs
A2: Default inputs represent typical options used to generate national average compliance costs.
A6: Design Indices | C6: System Size | G6: System Configuration | N6: Offgas | U6: Optional
A7: Contaminant Selection | B7: Design # | C7: Design flow (mgd) | D7: Design Flow Units | E7: Average Flow | F7: Average flow units | G7: Design Type | H7: Number of Operating Basins | I7: Air to Water Ratio | J7: Maximum Water Depth | K7: # of Stages | L7: Pilot rate constant (Kla) | M7: Pilot air intensity (AI) | N7: Influent water concentration (ug/L) | O7: Percent removal | P7: VOC Release Limit (lbs/day) | Q7: Off-gas Pollution Control Technology | R7: Heat Recovery Type | S7: GAC Regeneration | T7: GAC Bed Life | U7: Number of Pumps | V7: Number of Blowers | W7: Number of Redundant Basins | X7: Component level | Y7: System Automation | Z7: Contaminant Name | AA7: Internal Use
C8: design_flow_I | D8: df_units | E8: average_flow_I | F8: af_units | G8: design_type_I | H8: num_op_tanks | I8: air_water_ratio | J8: max_h2odepth | K8: stages | L8: pilot_k | M8: pilot_phi | N8: influent_conc | O8: P_REM_I | P8: max_VOC_release | Q8: Offgas_tech_I | R8: og_opt1_I | S8: og_opt2_I | T8: og_opt3 | U8: num_pumps_I | V8: num_blowers_I | W8: NRD_I | X8: component_level_I | Y8: manual_I
A9: 1 | B9: 1 | C9: 0.03 | D9: MGD | E9: 0.007 | F9: MGD | G9: pre-engineered package | H9: 1 | I9: 20 | J9: 3 | K9: 6 | Z9: Radon | AA9: =AND(C9:Y9=inp_used) -> FALSE | AB9: =AND(C9:F9=inp_used_minimal) -> FALSE
A10: 1 | B10: 2 | C10: 0.124 | D10: MGD | E10: 0.035 | F10: MGD | G10: pre-engineered package | H10: 1 | I10: 20 | J10: 3 | K10: 6 | AA10: =AND(C10:Y10=inp_used) -> FALSE | AB10: =AND(C10:F10=inp_used_minimal) -> FALSE
A11: 1 | B11: 3 | C11: 0.305 | D11: MGD | E11: 0.094 | F11: MGD | G11: pre-engineered package | H11: 1 | I11: 20 | J11: 3 | K11: 6 | AA11: =AND(C11:Y11=inp_used) -> TRUE | AB11: =AND(C11:F11=inp_used_minimal) -> TRUE
A12: 1 | B12: 4 | C12: 0.74 | D12: MGD | E12: 0.251 | F12: MGD | G12: pre-engineered package | H12: 2 | I12: 20 | J12: 3 | K12: 6 | AA12: =AND(C12:Y12=inp_used) -> FALSE | AB12: =AND(C12:F12=inp_used_minimal) -> FALSE
A13: 1 | B13: 5 | C13: 2.152 | D13: MGD | E13: 0.819 | F13: MGD | G13: custom design | H13: 1 | I13: 20 | J13: 3 | K13: 6 | AA13: =AND(C13:Y13=inp_used) -> FALSE | AB13: =AND(C13:F13=inp_used_minimal) -> FALSE
A14: 1 | B14: 6 | C14: 7.365 | D14: MGD | E14: 3.2 | F14: MGD | G14: custom design | H14: 3 | I14: 20 | J14: 3 | K14: 6 | AA14: =AND(C14:Y14=inp_used) -> FALSE | AB14: =AND(C14:F14=inp_used_minimal) -> FALSE
A15: 1 | B15: 7 | C15: 22.614 | D15: MGD | E15: 11.066 | F15: MGD | G15: custom design | H15: 8 | I15: 20 | J15: 3 | K15: 6 | AA15: =AND(C15:Y15=inp_used) -> FALSE | AB15: =AND(C15:F15=inp_used_minimal) -> FALSE
A16: 1 | B16: 8 | C16: 75.072 | D16: MGD | E16: 37.536 | F16: MGD | G16: custom design | H16: 24 | I16: 20 | J16: 3 | K16: 6 | AA16: =AND(C16:Y16=inp_used) -> FALSE | AB16: =AND(C16:F16=inp_used_minimal) -> FALSE
A17: 2 | B17: 1 | C17: 0.03 | D17: MGD | E17: 0.007 | F17: MGD | G17: pre-engineered package | H17: 1 | I17: 40 | J17: 3 | K17: 8 | L17: 0.17 | M17: 2.54 | N17: 5 | P17: 1 | Q17: none | Y17: fully automated | Z17: TCE | AA17: =AND(C17:Y17=inp_used) -> FALSE | AB17: =AND(C17:F17=inp_used_minimal) -> FALSE
A18: 2 | B18: 2 | C18: 0.124 | D18: MGD | E18: 0.035 | F18: MGD | G18: pre-engineered package | H18: 1 | I18: 40 | J18: 3 | K18: 8 | L18: 0.17 | M18: 2.54 | N18: 5 | P18: 1 | Q18: none | Y18: fully automated | AA18: =AND(C18:Y18=inp_used) -> FALSE | AB18: =AND(C18:F18=inp_used_minimal) -> FALSE
A19: 2 | B19: 3 | C19: 0.305 | D19: MGD | E19: 0.094 | F19: MGD | G19: pre-engineered package | H19: 2 | I19: 40 | J19: 3 | K19: 8 | L19: 0.17 | M19: 2.54 | N19: 5 | P19: 1 | Q19: none | Y19: fully automated | AA19: =AND(C19:Y19=inp_used) -> FALSE | AB19: =AND(C19:F19=inp_used_minimal) -> TRUE
A20: 2 | B20: 4 | C20: 0.74 | D20: MGD | E20: 0.251 | F20: MGD | G20: pre-engineered package | H20: 3 | I20: 40 | J20: 3 | K20: 8 | L20: 0.17 | M20: 2.54 | N20: 5 | P20: 1 | Q20: none | Y20: fully automated | AA20: =AND(C20:Y20=inp_used) -> FALSE | AB20: =AND(C20:F20=inp_used_minimal) -> FALSE
A21: 2 | B21: 5 | C21: 2.152 | D21: MGD | E21: 0.819 | F21: MGD | AA21: =AND(C21:Y21=inp_used) -> FALSE | AB21: =AND(C21:F21=inp_used_minimal) -> FALSE
A22: 2 | B22: 6 | C22: 7.365 | D22: MGD | E22: 3.2 | F22: MGD | AA22: =AND(C22:Y22=inp_used) -> FALSE | AB22: =AND(C22:F22=inp_used_minimal) -> FALSE
A23: 2 | B23: 7 | C23: 22.614 | D23: MGD | E23: 11.066 | F23: MGD | AA23: =AND(C23:Y23=inp_used) -> FALSE | AB23: =AND(C23:F23=inp_used_minimal) -> FALSE
A24: 2 | B24: 8 | C24: 75.072 | D24: MGD | E24: 37.536 | F24: MGD | AA24: =AND(C24:Y24=inp_used) -> FALSE | AB24: =AND(C24:F24=inp_used_minimal) -> FALSE
A25: 3 | B25: 1 | C25: 0.03 | D25: MGD | E25: 0.007 | F25: MGD | G25: pre-engineered package | H25: 1 | I25: 18 | J25: 3 | K25: 8 | L25: 0.389 | M25: 2.54 | N25: 5 | P25: 1 | Q25: none | Y25: fully automated | Z25: PCE | AA25: =AND(C25:Y25=inp_used) -> FALSE | AB25: =AND(C25:F25=inp_used_minimal) -> FALSE
A26: 3 | B26: 2 | C26: 0.124 | D26: MGD | E26: 0.035 | F26: MGD | G26: pre-engineered package | H26: 1 | I26: 18 | J26: 3 | K26: 8 | L26: 0.389 | M26: 2.54 | N26: 5 | P26: 1 | Q26: none | Y26: fully automated | AA26: =AND(C26:Y26=inp_used) -> FALSE | AB26: =AND(C26:F26=inp_used_minimal) -> FALSE
A27: 3 | B27: 3 | C27: 0.305 | D27: MGD | E27: 0.094 | F27: MGD | G27: pre-engineered package | H27: 1 | I27: 18 | J27: 3 | K27: 8 | L27: 0.389 | M27: 2.54 | N27: 5 | P27: 1 | Q27: none | Y27: fully automated | AA27: =AND(C27:Y27=inp_used) -> FALSE | AB27: =AND(C27:F27=inp_used_minimal) -> TRUE
A28: 3 | B28: 4 | C28: 0.74 | D28: MGD | E28: 0.251 | F28: MGD | G28: pre-engineered package | H28: 2 | I28: 18 | J28: 3 | K28: 8 | L28: 0.389 | M28: 2.54 | N28: 5 | P28: 1 | Q28: none | Y28: fully automated | AA28: =AND(C28:Y28=inp_used) -> FALSE | AB28: =AND(C28:F28=inp_used_minimal) -> FALSE
A29: 3 | B29: 5 | C29: 2.152 | D29: MGD | E29: 0.819 | F29: MGD | AA29: =AND(C29:Y29=inp_used) -> FALSE | AB29: =AND(C29:F29=inp_used_minimal) -> FALSE
A30: 3 | B30: 6 | C30: 7.365 | D30: MGD | E30: 3.2 | F30: MGD | AA30: =AND(C30:Y30=inp_used) -> FALSE | AB30: =AND(C30:F30=inp_used_minimal) -> FALSE
A31: 3 | B31: 7 | C31: 22.614 | D31: MGD | E31: 11.066 | F31: MGD | AA31: =AND(C31:Y31=inp_used) -> FALSE | AB31: =AND(C31:F31=inp_used_minimal) -> FALSE
A32: 3 | B32: 8 | C32: 75.072 | D32: MGD | E32: 37.536 | F32: MGD | AA32: =AND(C32:Y32=inp_used) -> FALSE | AB32: =AND(C32:F32=inp_used_minimal) -> FALSE
A33: 4 | B33: 1 | C33: 0.03 | D33: MGD | E33: 0.007 | F33: MGD | G33: pre-engineered package | H33: 1 | I33: 6 | J33: 3 | K33: 8 | L33: 0.647 | M33: 2.54 | N33: 2 | P33: 1 | Q33: none | Y33: fully automated | Z33: Vinyl Chloride | AA33: =AND(C33:Y33=inp_used) -> FALSE | AB33: =AND(C33:F33=inp_used_minimal) -> FALSE
A34: 4 | B34: 2 | C34: 0.124 | D34: MGD | E34: 0.035 | F34: MGD | G34: pre-engineered package | H34: 1 | I34: 6 | J34: 3 | K34: 8 | L34: 0.647 | M34: 2.54 | N34: 2 | P34: 1 | Q34: none | Y34: fully automated | AA34: =AND(C34:Y34=inp_used) -> FALSE | AB34: =AND(C34:F34=inp_used_minimal) -> FALSE
A35: 4 | B35: 3 | C35: 0.305 | D35: MGD | E35: 0.094 | F35: MGD | G35: pre-engineered package | H35: 1 | I35: 6 | J35: 3 | K35: 8 | L35: 0.647 | M35: 2.54 | N35: 2 | P35: 1 | Q35: none | Y35: fully automated | AA35: =AND(C35:Y35=inp_used) -> FALSE | AB35: =AND(C35:F35=inp_used_minimal) -> TRUE
A36: 4 | B36: 4 | C36: 0.74 | D36: MGD | E36: 0.251 | F36: MGD | G36: pre-engineered package | H36: 1 | I36: 6 | J36: 3 | K36: 8 | L36: 0.647 | M36: 2.54 | N36: 2 | P36: 1 | Q36: none | Y36: fully automated | AA36: =AND(C36:Y36=inp_used) -> FALSE | AB36: =AND(C36:F36=inp_used_minimal) -> FALSE
A37: 4 | B37: 5 | C37: 2.152 | D37: MGD | E37: 0.819 | F37: MGD | AA37: =AND(C37:Y37=inp_used) -> FALSE | AB37: =AND(C37:F37=inp_used_minimal) -> FALSE
A38: 4 | B38: 6 | C38: 7.365 | D38: MGD | E38: 3.2 | F38: MGD | AA38: =AND(C38:Y38=inp_used) -> FALSE | AB38: =AND(C38:F38=inp_used_minimal) -> FALSE
A39: 4 | B39: 7 | C39: 22.614 | D39: MGD | E39: 11.066 | F39: MGD | AA39: =AND(C39:Y39=inp_used) -> FALSE | AB39: =AND(C39:F39=inp_used_minimal) -> FALSE
A40: 4 | B40: 8 | C40: 75.072 | D40: MGD | E40: 37.536 | F40: MGD | AA40: =AND(C40:Y40=inp_used) -> FALSE | AB40: =AND(C40:F40=inp_used_minimal) -> FALSE
A41: 5 | B41: 1 | C41: 0.03 | D41: MGD | E41: 0.007 | F41: MGD | G41: pre-engineered package | H41: 1 | I41: 12 | J41: 3 | K41: 8 | L41: 0.569 | M41: 2.54 | N41: 5 | P41: 1 | Q41: none | Y41: fully automated | Z41: Carbon Tetrachloride | AA41: =AND(C41:Y41=inp_used) -> FALSE | AB41: =AND(C41:F41=inp_used_minimal) -> FALSE
A42: 5 | B42: 2 | C42: 0.124 | D42: MGD | E42: 0.035 | F42: MGD | G42: pre-engineered package | H42: 1 | I42: 12 | J42: 3 | K42: 8 | L42: 0.569 | M42: 2.54 | N42: 5 | P42: 1 | Q42: none | Y42: fully automated | AA42: =AND(C42:Y42=inp_used) -> FALSE | AB42: =AND(C42:F42=inp_used_minimal) -> FALSE
A43: 5 | B43: 3 | C43: 0.305 | D43: MGD | E43: 0.094 | F43: MGD | G43: pre-engineered package | H43: 1 | I43: 12 | J43: 3 | K43: 8 | L43: 0.569 | M43: 2.54 | N43: 5 | P43: 1 | Q43: none | Y43: fully automated | AA43: =AND(C43:Y43=inp_used) -> FALSE | AB43: =AND(C43:F43=inp_used_minimal) -> TRUE
A44: 5 | B44: 4 | C44: 0.74 | D44: MGD | E44: 0.251 | F44: MGD | G44: pre-engineered package | H44: 1 | I44: 12 | J44: 3 | K44: 8 | L44: 0.569 | M44: 2.54 | N44: 5 | P44: 1 | Q44: none | Y44: fully automated | AA44: =AND(C44:Y44=inp_used) -> FALSE | AB44: =AND(C44:F44=inp_used_minimal) -> FALSE
A45: 5 | B45: 5 | C45: 2.152 | D45: MGD | E45: 0.819 | F45: MGD | AA45: =AND(C45:Y45=inp_used) -> FALSE | AB45: =AND(C45:F45=inp_used_minimal) -> FALSE
A46: 5 | B46: 6 | C46: 7.365 | D46: MGD | E46: 3.2 | F46: MGD | AA46: =AND(C46:Y46=inp_used) -> FALSE | AB46: =AND(C46:F46=inp_used_minimal) -> FALSE
A47: 5 | B47: 7 | C47: 22.614 | D47: MGD | E47: 11.066 | F47: MGD | AA47: =AND(C47:Y47=inp_used) -> FALSE | AB47: =AND(C47:F47=inp_used_minimal) -> FALSE
A48: 5 | B48: 8 | C48: 75.072 | D48: MGD | E48: 37.536 | F48: MGD | AA48: =AND(C48:Y48=inp_used) -> FALSE | AB48: =AND(C48:F48=inp_used_minimal) -> FALSE
A49: 6 | B49: 1 | C49: 0.03 | D49: MGD | E49: 0.007 | F49: MGD | G49: pre-engineered package | H49: 1 | I49: 29 | J49: 3 | K49: 8 | L49: 0.236 | M49: 2.54 | N49: 5 | P49: 1 | Q49: none | Y49: fully automated | Z49: Benzene | AA49: =AND(C49:Y49=inp_used) -> FALSE | AB49: =AND(C49:F49=inp_used_minimal) -> FALSE
A50: 6 | B50: 2 | C50: 0.124 | D50: MGD | E50: 0.035 | F50: MGD | G50: pre-engineered package | H50: 1 | I50: 29 | J50: 3 | K50: 8 | L50: 0.236 | M50: 2.54 | N50: 5 | P50: 1 | Q50: none | Y50: fully automated | AA50: =AND(C50:Y50=inp_used) -> FALSE | AB50: =AND(C50:F50=inp_used_minimal) -> FALSE
A51: 6 | B51: 3 | C51: 0.305 | D51: MGD | E51: 0.094 | F51: MGD | G51: pre-engineered package | H51: 1 | I51: 29 | J51: 3 | K51: 8 | L51: 0.236 | M51: 2.54 | N51: 5 | P51: 1 | Q51: none | Y51: fully automated | AA51: =AND(C51:Y51=inp_used) -> FALSE | AB51: =AND(C51:F51=inp_used_minimal) -> TRUE
A52: 6 | B52: 4 | C52: 0.74 | D52: MGD | E52: 0.251 | F52: MGD | G52: pre-engineered package | H52: 2 | I52: 29 | J52: 3 | K52: 8 | L52: 0.236 | M52: 2.54 | N52: 5 | P52: 1 | Q52: none | Y52: fully automated | AA52: =AND(C52:Y52=inp_used) -> FALSE | AB52: =AND(C52:F52=inp_used_minimal) -> FALSE
A53: 6 | B53: 5 | C53: 2.152 | D53: MGD | E53: 0.819 | F53: MGD | AA53: =AND(C53:Y53=inp_used) -> FALSE | AB53: =AND(C53:F53=inp_used_minimal) -> FALSE
A54: 6 | B54: 6 | C54: 7.365 | D54: MGD | E54: 3.2 | F54: MGD | AA54: =AND(C54:Y54=inp_used) -> FALSE | AB54: =AND(C54:F54=inp_used_minimal) -> FALSE
A55: 6 | B55: 7 | C55: 22.614 | D55: MGD | E55: 11.066 | F55: MGD | AA55: =AND(C55:Y55=inp_used) -> FALSE | AB55: =AND(C55:F55=inp_used_minimal) -> FALSE
A56: 6 | B56: 8 | C56: 75.072 | D56: MGD | E56: 37.536 | F56: MGD | AA56: =AND(C56:Y56=inp_used) -> FALSE | AB56: =AND(C56:F56=inp_used_minimal) -> FALSE
A57: 7 | B57: 1 | C57: 0.03 | D57: MGD | E57: 0.007 | F57: MGD | G57: pre-engineered package | H57: 1 | I57: 66 | J57: 3 | K57: 8 | L57: 0.13 | M57: 3.17 | N57: 5 | P57: 1 | Q57: none | Y57: fully automated | Z57: 1,2-DCP | AA57: =AND(C57:Y57=inp_used) -> FALSE | AB57: =AND(C57:F57=inp_used_minimal) -> FALSE
A58: 7 | B58: 2 | C58: 0.124 | D58: MGD | E58: 0.035 | F58: MGD | G58: pre-engineered package | H58: 1 | I58: 66 | J58: 3 | K58: 8 | L58: 0.13 | M58: 3.17 | N58: 5 | P58: 1 | Q58: none | Y58: fully automated | AA58: =AND(C58:Y58=inp_used) -> FALSE | AB58: =AND(C58:F58=inp_used_minimal) -> FALSE
A59: 7 | B59: 3 | C59: 0.305 | D59: MGD | E59: 0.094 | F59: MGD | G59: pre-engineered package | H59: 2 | I59: 66 | J59: 3 | K59: 8 | L59: 0.13 | M59: 3.17 | N59: 5 | P59: 1 | Q59: none | Y59: fully automated | AA59: =AND(C59:Y59=inp_used) -> FALSE | AB59: =AND(C59:F59=inp_used_minimal) -> TRUE
A60: 7 | B60: 4 | C60: 0.74 | D60: MGD | E60: 0.251 | F60: MGD | G60: pre-engineered package | H60: 5 | I60: 66 | J60: 3 | K60: 8 | L60: 0.13 | M60: 3.17 | N60: 5 | P60: 1 | Q60: none | Y60: fully automated | AA60: =AND(C60:Y60=inp_used) -> FALSE | AB60: =AND(C60:F60=inp_used_minimal) -> FALSE
A61: 7 | B61: 5 | C61: 2.152 | D61: MGD | E61: 0.819 | F61: MGD | AA61: =AND(C61:Y61=inp_used) -> FALSE | AB61: =AND(C61:F61=inp_used_minimal) -> FALSE
A62: 7 | B62: 6 | C62: 7.365 | D62: MGD | E62: 3.2 | F62: MGD | AA62: =AND(C62:Y62=inp_used) -> FALSE | AB62: =AND(C62:F62=inp_used_minimal) -> FALSE
A63: 7 | B63: 7 | C63: 22.614 | D63: MGD | E63: 11.066 | F63: MGD | AA63: =AND(C63:Y63=inp_used) -> FALSE | AB63: =AND(C63:F63=inp_used_minimal) -> FALSE
A64: 7 | B64: 8 | C64: 75.072 | D64: MGD | E64: 37.536 | F64: MGD | AA64: =AND(C64:Y64=inp_used) -> FALSE | AB64: =AND(C64:F64=inp_used_minimal) -> FALSE
A65: 8 | B65: 1 | C65: 0.03 | D65: MGD | E65: 0.007 | F65: MGD | G65: pre-engineered package | H65: 1 | I65: 60 | J65: 3 | K65: 8 | L65: 0.142 | M65: 3.17 | N65: 5 | P65: 1 | Q65: none | Y65: fully automated | Z65: Methylene Chloride | AA65: =AND(C65:Y65=inp_used) -> FALSE | AB65: =AND(C65:F65=inp_used_minimal) -> FALSE
A66: 8 | B66: 2 | C66: 0.124 | D66: MGD | E66: 0.035 | F66: MGD | G66: pre-engineered package | H66: 1 | I66: 60 | J66: 3 | K66: 8 | L66: 0.142 | M66: 3.17 | N66: 5 | P66: 1 | Q66: none | Y66: fully automated | AA66: =AND(C66:Y66=inp_used) -> FALSE | AB66: =AND(C66:F66=inp_used_minimal) -> FALSE
A67: 8 | B67: 3 | C67: 0.305 | D67: MGD | E67: 0.094 | F67: MGD | G67: pre-engineered package | H67: 2 | I67: 60 | J67: 3 | K67: 8 | L67: 0.142 | M67: 3.17 | N67: 5 | P67: 1 | Q67: none | Y67: fully automated | AA67: =AND(C67:Y67=inp_used) -> FALSE | AB67: =AND(C67:F67=inp_used_minimal) -> TRUE
A68: 8 | B68: 4 | C68: 0.74 | D68: MGD | E68: 0.251 | F68: MGD | G68: pre-engineered package | H68: 4 | I68: 60 | J68: 3 | K68: 8 | L68: 0.142 | M68: 3.17 | N68: 5 | P68: 1 | Q68: none | Y68: fully automated | AA68: =AND(C68:Y68=inp_used) -> FALSE | AB68: =AND(C68:F68=inp_used_minimal) -> FALSE
A69: 8 | B69: 5 | C69: 2.152 | D69: MGD | E69: 0.819 | F69: MGD | AA69: =AND(C69:Y69=inp_used) -> FALSE | AB69: =AND(C69:F69=inp_used_minimal) -> FALSE
A70: 8 | B70: 6 | C70: 7.365 | D70: MGD | E70: 3.2 | F70: MGD | AA70: =AND(C70:Y70=inp_used) -> FALSE | AB70: =AND(C70:F70=inp_used_minimal) -> FALSE
A71: 8 | B71: 7 | C71: 22.614 | D71: MGD | E71: 11.066 | F71: MGD | AA71: =AND(C71:Y71=inp_used) -> FALSE | AB71: =AND(C71:F71=inp_used_minimal) -> FALSE
A72: 8 | B72: 8 | C72: 75.072 | D72: MGD | E72: 37.536 | F72: MGD | AA72: =AND(C72:Y72=inp_used) -> FALSE | AB72: =AND(C72:F72=inp_used_minimal) -> FALSE
A73: 9 | B73: 1 | C73: 0.03 | D73: MGD | E73: 0.007 | F73: MGD | G73: pre-engineered package | H73: 1 | I73: 104 | J73: 3 | K73: 8 | L73: 0.082 | M73: 3.17 | N73: 5 | P73: 1 | Q73: none | Y73: fully automated | Z73: 1,2-DCA | AA73: =AND(C73:Y73=inp_used) -> FALSE | AB73: =AND(C73:F73=inp_used_minimal) -> FALSE
A74: 9 | B74: 2 | C74: 0.124 | D74: MGD | E74: 0.035 | F74: MGD | G74: pre-engineered package | H74: 2 | I74: 104 | J74: 3 | K74: 8 | L74: 0.082 | M74: 3.17 | N74: 5 | P74: 1 | Q74: none | Y74: fully automated | AA74: =AND(C74:Y74=inp_used) -> FALSE | AB74: =AND(C74:F74=inp_used_minimal) -> FALSE
A75: 9 | B75: 3 | C75: 0.305 | D75: MGD | E75: 0.094 | F75: MGD | G75: pre-engineered package | H75: 3 | I75: 104 | J75: 3 | K75: 8 | L75: 0.082 | M75: 3.17 | N75: 5 | P75: 1 | Q75: none | Y75: fully automated | AA75: =AND(C75:Y75=inp_used) -> FALSE | AB75: =AND(C75:F75=inp_used_minimal) -> TRUE
A76: 9 | B76: 4 | C76: 0.74 | D76: MGD | E76: 0.251 | F76: MGD | G76: pre-engineered package | H76: 7 | I76: 104 | J76: 3 | K76: 8 | L76: 0.082 | M76: 3.17 | N76: 5 | P76: 1 | Q76: none | Y76: fully automated | AA76: =AND(C76:Y76=inp_used) -> FALSE | AB76: =AND(C76:F76=inp_used_minimal) -> FALSE
A77: 9 | B77: 5 | C77: 2.152 | D77: MGD | E77: 0.819 | F77: MGD | AA77: =AND(C77:Y77=inp_used) -> FALSE | AB77: =AND(C77:F77=inp_used_minimal) -> FALSE
A78: 9 | B78: 6 | C78: 7.365 | D78: MGD | E78: 3.2 | F78: MGD | AA78: =AND(C78:Y78=inp_used) -> FALSE | AB78: =AND(C78:F78=inp_used_minimal) -> FALSE
A79: 9 | B79: 7 | C79: 22.614 | D79: MGD | E79: 11.066 | F79: MGD | AA79: =AND(C79:Y79=inp_used) -> FALSE | AB79: =AND(C79:F79=inp_used_minimal) -> FALSE
A80: 9 | B80: 8 | C80: 75.072 | D80: MGD | E80: 37.536 | F80: MGD | AA80: =AND(C80:Y80=inp_used) -> FALSE | AB80: =AND(C80:F80=inp_used_minimal) -> FALSE
A81: 10 | B81: 1 | C81: 0.03 | D81: MGD | E81: 0.007 | F81: MGD | G81: pre-engineered package | H81: 1 | I81: 7 | J81: 3 | K81: 8 | L81: 0.975 | M81: 2.54 | N81: 5 | P81: 1 | Q81: none | Y81: fully automated | Z81: 1,3-Butadiene | AA81: =AND(C81:Y81=inp_used) -> FALSE | AB81: =AND(C81:F81=inp_used_minimal) -> FALSE
A82: 10 | B82: 2 | C82: 0.124 | D82: MGD | E82: 0.035 | F82: MGD | G82: pre-engineered package | H82: 1 | I82: 7 | J82: 3 | K82: 8 | L82: 0.975 | M82: 2.54 | N82: 5 | P82: 1 | Q82: none | Y82: fully automated | AA82: =AND(C82:Y82=inp_used) -> FALSE | AB82: =AND(C82:F82=inp_used_minimal) -> FALSE
A83: 10 | B83: 3 | C83: 0.305 | D83: MGD | E83: 0.094 | F83: MGD | G83: pre-engineered package | H83: 1 | I83: 7 | J83: 3 | K83: 8 | L83: 0.975 | M83: 2.54 | N83: 5 | P83: 1 | Q83: none | Y83: fully automated | AA83: =AND(C83:Y83=inp_used) -> FALSE | AB83: =AND(C83:F83=inp_used_minimal) -> TRUE
A84: 10 | B84: 4 | C84: 0.74 | D84: MGD | E84: 0.251 | F84: MGD | G84: pre-engineered package | H84: 1 | I84: 7 | J84: 3 | K84: 8 | L84: 0.975 | M84: 2.54 | N84: 5 | P84: 1 | Q84: none | Y84: fully automated | AA84: =AND(C84:Y84=inp_used) -> FALSE | AB84: =AND(C84:F84=inp_used_minimal) -> FALSE
A85: 10 | B85: 5 | C85: 2.152 | D85: MGD | E85: 0.819 | F85: MGD | AA85: =AND(C85:Y85=inp_used) -> FALSE | AB85: =AND(C85:F85=inp_used_minimal) -> FALSE
A86: 10 | B86: 6 | C86: 7.365 | D86: MGD | E86: 3.2 | F86: MGD | AA86: =AND(C86:Y86=inp_used) -> FALSE | AB86: =AND(C86:F86=inp_used_minimal) -> FALSE
A87: 10 | B87: 7 | C87: 22.614 | D87: MGD | E87: 11.066 | F87: MGD | AA87: =AND(C87:Y87=inp_used) -> FALSE | AB87: =AND(C87:F87=inp_used_minimal) -> FALSE
A88: 10 | B88: 8 | C88: 75.072 | D88: MGD | E88: 37.536 | F88: MGD | AA88: =AND(C88:Y88=inp_used) -> FALSE | AB88: =AND(C88:F88=inp_used_minimal) -> FALSE
A89: 11 | B89: 1 | C89: 0.03 | D89: MGD | E89: 0.007 | F89: MGD | G89: pre-engineered package | H89: 1 | I89: 32 | J89: 3 | K89: 8 | L89: 0.266 | M89: 3.17 | N89: 5 | P89: 1 | Q89: none | Y89: fully automated | Z89: 1,1-DCA | AA89: =AND(C89:Y89=inp_used) -> FALSE | AB89: =AND(C89:F89=inp_used_minimal) -> FALSE
A90: 11 | B90: 2 | C90: 0.124 | D90: MGD | E90: 0.035 | F90: MGD | G90: pre-engineered package | H90: 1 | I90: 32 | J90: 3 | K90: 8 | L90: 0.266 | M90: 3.17 | N90: 5 | P90: 1 | Q90: none | Y90: fully automated | AA90: =AND(C90:Y90=inp_used) -> FALSE | AB90: =AND(C90:F90=inp_used_minimal) -> FALSE
A91: 11 | B91: 3 | C91: 0.305 | D91: MGD | E91: 0.094 | F91: MGD | G91: pre-engineered package | H91: 1 | I91: 32 | J91: 3 | K91: 8 | L91: 0.266 | M91: 3.17 | N91: 5 | P91: 1 | Q91: none | Y91: fully automated | AA91: =AND(C91:Y91=inp_used) -> FALSE | AB91: =AND(C91:F91=inp_used_minimal) -> TRUE
A92: 11 | B92: 4 | C92: 0.74 | D92: MGD | E92: 0.251 | F92: MGD | G92: pre-engineered package | H92: 3 | I92: 32 | J92: 3 | K92: 8 | L92: 0.266 | M92: 3.17 | N92: 5 | P92: 1 | Q92: none | Y92: fully automated | AA92: =AND(C92:Y92=inp_used) -> FALSE | AB92: =AND(C92:F92=inp_used_minimal) -> FALSE
A93: 11 | B93: 5 | C93: 2.152 | D93: MGD | E93: 0.819 | F93: MGD | AA93: =AND(C93:Y93=inp_used) -> FALSE | AB93: =AND(C93:F93=inp_used_minimal) -> FALSE
A94: 11 | B94: 6 | C94: 7.365 | D94: MGD | E94: 3.2 | F94: MGD | AA94: =AND(C94:Y94=inp_used) -> FALSE | AB94: =AND(C94:F94=inp_used_minimal) -> FALSE
A95: 11 | B95: 7 | C95: 22.614 | D95: MGD | E95: 11.066 | F95: MGD | AA95: =AND(C95:Y95=inp_used) -> FALSE | AB95: =AND(C95:F95=inp_used_minimal) -> FALSE
A96: 11 | B96: 8 | C96: 75.072 | D96: MGD | E96: 37.536 | F96: MGD | AA96: =AND(C96:Y96=inp_used) -> FALSE | AB96: =AND(C96:F96=inp_used_minimal) -> FALSE
A97: 12 | B97: 1 | C97: 0.03 | D97: MGD | E97: 0.007 | F97: MGD | G97: pre-engineered package | H97: 1 | I97: 60 | J97: 3 | K97: 8 | L97: 0.142 | M97: 3.17 | N97: 5 | P97: 1 | Q97: none | Y97: fully automated | Z97: 1,1,1,2-TCA | AA97: =AND(C97:Y97=inp_used) -> FALSE | AB97: =AND(C97:F97=inp_used_minimal) -> FALSE
A98: 12 | B98: 2 | C98: 0.124 | D98: MGD | E98: 0.035 | F98: MGD | G98: pre-engineered package | H98: 1 | I98: 60 | J98: 3 | K98: 8 | L98: 0.142 | M98: 3.17 | N98: 5 | P98: 1 | Q98: none | Y98: fully automated | AA98: =AND(C98:Y98=inp_used) -> FALSE | AB98: =AND(C98:F98=inp_used_minimal) -> FALSE
A99: 12 | B99: 3 | C99: 0.305 | D99: MGD | E99: 0.094 | F99: MGD | G99: pre-engineered package | H99: 3 | I99: 60 | J99: 3 | K99: 8 | L99: 0.142 | M99: 3.17 | N99: 5 | P99: 1 | Q99: none | Y99: fully automated | AA99: =AND(C99:Y99=inp_used) -> FALSE | AB99: =AND(C99:F99=inp_used_minimal) -> TRUE
A100: 12 | B100: 4 | C100: 0.74 | D100: MGD | E100: 0.251 | F100: MGD | G100: pre-engineered package | H100: 4 | I100: 60 | J100: 3 | K100: 8 | L100: 0.142 | M100: 3.17 | N100: 5 | P100: 1 | Q100: none | Y100: fully automated | AA100: =AND(C100:Y100=inp_used) -> FALSE | AB100: =AND(C100:F100=inp_used_minimal) -> FALSE
A101: 12 | B101: 5 | C101: 2.152 | D101: MGD | E101: 0.819 | F101: MGD | AA101: =AND(C101:Y101=inp_used) -> FALSE | AB101: =AND(C101:F101=inp_used_minimal) -> FALSE
A102: 12 | B102: 6 | C102: 7.365 | D102: MGD | E102: 3.2 | F102: MGD | AA102: =AND(C102:Y102=inp_used) -> FALSE | AB102: =AND(C102:F102=inp_used_minimal) -> FALSE
A103: 12 | B103: 7 | C103: 22.614 | D103: MGD | E103: 11.066 | F103: MGD | AA103: =AND(C103:Y103=inp_used) -> FALSE | AB103: =AND(C103:F103=inp_used_minimal) -> FALSE
A104: 12 | B104: 8 | C104: 75.072 | D104: MGD | E104: 37.536 | F104: MGD | AA104: =AND(C104:Y104=inp_used) -> FALSE | AB104: =AND(C104:F104=inp_used_minimal) -> FALSE
A105: 13 | B105: 1 | C105: 0.03 | D105: MGD | E105: 0.007 | F105: MGD | G105: pre-engineered package | H105: 1 | I105: 270 | J105: 3 | K105: 8 | L105: 0.046 | M105: 5.23 | N105: 5 | P105: 1 | Q105: none | Y105: fully automated | Z105: 1,1,2,2-TCA | AA105: =AND(C105:Y105=inp_used) -> FALSE | AB105: =AND(C105:F105=inp_used_minimal) -> FALSE
A106: 13 | B106: 2 | C106: 0.124 | D106: MGD | E106: 0.035 | F106: MGD | G106: pre-engineered package | H106: 4 | I106: 270 | J106: 3 | K106: 8 | L106: 0.046 | M106: 5.23 | N106: 5 | P106: 1 | Q106: none | Y106: fully automated | AA106: =AND(C106:Y106=inp_used) -> FALSE | AB106: =AND(C106:F106=inp_used_minimal) -> FALSE
A107: 13 | B107: 3 | C107: 0.305 | D107: MGD | E107: 0.094 | F107: MGD | G107: pre-engineered package | H107: 8 | I107: 270 | J107: 3 | K107: 8 | L107: 0.046 | M107: 5.23 | N107: 5 | P107: 1 | Q107: none | Y107: fully automated | AA107: =AND(C107:Y107=inp_used) -> FALSE | AB107: =AND(C107:F107=inp_used_minimal) -> TRUE
A108: 13 | B108: 4 | C108: 0.74 | D108: MGD | E108: 0.251 | F108: MGD | G108: pre-engineered package | H108: 18 | I108: 270 | J108: 3 | K108: 8 | L108: 0.046 | M108: 5.23 | N108: 5 | P108: 1 | Q108: none | Y108: fully automated | AA108: =AND(C108:Y108=inp_used) -> FALSE | AB108: =AND(C108:F108=inp_used_minimal) -> FALSE
A109: 13 | B109: 5 | C109: 2.152 | D109: MGD | E109: 0.819 | F109: MGD | AA109: =AND(C109:Y109=inp_used) -> FALSE | AB109: =AND(C109:F109=inp_used_minimal) -> FALSE
A110: 13 | B110: 6 | C110: 7.365 | D110: MGD | E110: 3.2 | F110: MGD | AA110: =AND(C110:Y110=inp_used) -> FALSE | AB110: =AND(C110:F110=inp_used_minimal) -> FALSE
A111: 13 | B111: 7 | C111: 22.614 | D111: MGD | E111: 11.066 | F111: MGD | AA111: =AND(C111:Y111=inp_used) -> FALSE | AB111: =AND(C111:F111=inp_used_minimal) -> FALSE
A112: 13 | B112: 8 | C112: 75.072 | D112: MGD | E112: 37.536 | F112: MGD | AA112: =AND(C112:Y112=inp_used) -> FALSE | AB112: =AND(C112:F112=inp_used_minimal) -> FALSE
A113: 14 | B113: 1 | C113: 0.03 | D113: MGD | E113: 0.007 | F113: MGD | G113: pre-engineered package | H113: 1 | I113: 253 | J113: 3 | K113: 8 | L113: 0.019 | M113: 3.17 | N113: 5 | P113: 1 | Q113: none | Y113: fully automated | Z113: 1,2,3-TCP | AA113: =AND(C113:Y113=inp_used) -> FALSE | AB113: =AND(C113:F113=inp_used_minimal) -> FALSE
A114: 14 | B114: 2 | C114: 0.124 | D114: MGD | E114: 0.035 | F114: MGD | G114: pre-engineered package | H114: 3 | I114: 253 | J114: 3 | K114: 8 | L114: 0.019 | M114: 3.17 | N114: 5 | P114: 1 | Q114: none | Y114: fully automated | AA114: =AND(C114:Y114=inp_used) -> FALSE | AB114: =AND(C114:F114=inp_used_minimal) -> FALSE
A115: 14 | B115: 3 | C115: 0.305 | D115: MGD | E115: 0.094 | F115: MGD | G115: pre-engineered package | H115: 7 | I115: 253 | J115: 3 | K115: 8 | L115: 0.019 | M115: 3.17 | N115: 5 | P115: 1 | Q115: none | Y115: fully automated | AA115: =AND(C115:Y115=inp_used) -> FALSE | AB115: =AND(C115:F115=inp_used_minimal) -> TRUE
A116: 14 | B116: 4 | C116: 0.74 | D116: MGD | E116: 0.251 | F116: MGD | G116: pre-engineered package | H116: 17 | I116: 253 | J116: 3 | K116: 8 | L116: 0.019 | M116: 3.17 | N116: 5 | P116: 1 | Q116: none | Y116: fully automated | AA116: =AND(C116:Y116=inp_used) -> FALSE | AB116: =AND(C116:F116=inp_used_minimal) -> FALSE
A117: 14 | B117: 5 | C117: 2.152 | D117: MGD | E117: 0.819 | F117: MGD | AA117: =AND(C117:Y117=inp_used) -> FALSE | AB117: =AND(C117:F117=inp_used_minimal) -> FALSE
A118: 14 | B118: 6 | C118: 7.365 | D118: MGD | E118: 3.2 | F118: MGD | AA118: =AND(C118:Y118=inp_used) -> FALSE | AB118: =AND(C118:F118=inp_used_minimal) -> FALSE
A119: 14 | B119: 7 | C119: 22.614 | D119: MGD | E119: 11.066 | F119: MGD | AA119: =AND(C119:Y119=inp_used) -> FALSE | AB119: =AND(C119:F119=inp_used_minimal) -> FALSE
A120: 14 | B120: 8 | C120: 75.072 | D120: MGD | E120: 37.536 | F120: MGD | AA120: =AND(C120:Y120=inp_used) -> FALSE | AB120: =AND(C120:F120=inp_used_minimal) -> FALSE
A121: 15 | B121: 1 | C121: 0.03 | D121: MGD | E121: 0.007 | F121: MGD | AA121: =AND(C121:Y121=inp_used) -> FALSE | AB121: =AND(C121:F121=inp_used_minimal) -> FALSE
A122: 15 | B122: 2 | C122: 0.124 | D122: MGD | E122: 0.035 | F122: MGD | AA122: =AND(C122:Y122=inp_used) -> FALSE | AB122: =AND(C122:F122=inp_used_minimal) -> FALSE
A123: 15 | B123: 3 | C123: 0.305 | D123: MGD | E123: 0.094 | F123: MGD | AA123: =AND(C123:Y123=inp_used) -> FALSE | AB123: =AND(C123:F123=inp_used_minimal) -> TRUE
A124: 15 | B124: 4 | C124: 0.74 | D124: MGD | E124: 0.251 | F124: MGD | AA124: =AND(C124:Y124=inp_used) -> FALSE | AB124: =AND(C124:F124=inp_used_minimal) -> FALSE
A125: 15 | B125: 5 | C125: 2.152 | D125: MGD | E125: 0.819 | F125: MGD | AA125: =AND(C125:Y125=inp_used) -> FALSE | AB125: =AND(C125:F125=inp_used_minimal) -> FALSE
A126: 15 | B126: 6 | C126: 7.365 | D126: MGD | E126: 3.2 | F126: MGD | AA126: =AND(C126:Y126=inp_used) -> FALSE | AB126: =AND(C126:F126=inp_used_minimal) -> FALSE
A127: 15 | B127: 7 | C127: 22.614 | D127: MGD | E127: 11.066 | F127: MGD | AA127: =AND(C127:Y127=inp_used) -> FALSE | AB127: =AND(C127:F127=inp_used_minimal) -> FALSE
A128: 15 | B128: 8 | C128: 75.072 | D128: MGD | E128: 37.536 | F128: MGD | AA128: =AND(C128:Y128=inp_used) -> FALSE | AB128: =AND(C128:F128=inp_used_minimal) -> FALSE
A130: =IF(LEN(contam)=0,"",contam) -> 1 | C130: =IF(LEN(design_flow_I)=0,"",design_flow_I) -> 0.305 | D130: =IF(LEN(df_units)=0,"",df_units) -> MGD | E130: =IF(LEN(average_flow_I)=0,"",average_flow_I) -> 0.094 | F130: =IF(LEN(af_units)=0,"",af_units) -> MGD | G130: =IF(LEN(design_type_I)=0,"",design_type_I) -> pre-engineered package | H130: =IF(LEN(num_op_tanks)=0,"",num_op_tanks) -> 1 | I130: =IF(LEN(air_water_ratio)=0,"",air_water_ratio) -> 20 | J130: =IF(LEN(max_h2odepth)=0,"",max_h2odepth) -> 3 | K130: =IF(LEN(stages)=0,"",stages) -> 6 | L130: =IF(LEN(pilot_k)=0,"",pilot_k) ->  | M130: =IF(LEN(pilot_phi)=0,"",pilot_phi) ->  | N130: =IF(LEN(influent_conc)=0,"",influent_conc) ->  | O130: =IF(LEN(P_REM_I)=0,"",P_REM_I) ->  | P130: =IF(LEN(max_VOC_release)=0,"",max_VOC_release) ->  | Q130: =IF(LEN(Offgas_Tech_I)=0,"",Offgas_Tech_I) ->  | R130: =IF(LEN(og_opt1_I)=0,"",og_opt1_I) ->  | S130: =IF(LEN(og_opt2_I)=0,"",og_opt2_I) ->  | T130: =IF(LEN(og_opt3)=0,"",og_opt3) ->  | U130: =IF(LEN(num_pumps_I)=0,"",num_pumps_I) ->  | V130: =IF(LEN(num_blowers_I)=0,"",num_blowers_I) ->  | W130: =IF(LEN(NRD_I)=0,"",NRD_I) ->  | X130: =IF(LEN(component_level_I)=0,"",component_level_I) ->  | Y130: =IF(LEN(manual_I)=0,"",manual_I) ->  | Z130: <--current inputs
C131: 0.305 | D131: MGD | E131: 0.094 | F131: MGD | G131: pre-engineered package | H131: 1 | I131: 20 | J131: 3 | K131: 6 | Z131: <--inputs used at last "Generate Results" | AA131: =AND(C131:Y131=inp_used) -> TRUE

Sheet Cost Equations
A1: Cost Equations
A2: This sheet is used internally to calculate component costs using the cost equations method; see model documentation for more details on the development of cost equations
A4: Component | C4: Result | D4: Variable | F4: 2 | G4: 3 | H4: 4 | I4: 5 | J4: 6 | K4: 7 | L4: 8 | M4: 9 | N4: 10 | O4: 11 | P4: 16 | Q4: 17
A5: Aeration Basins
A6: Custom Designed
A7: Concrete, excavation and backfill, cover | B7: no equation
A8: Baffles | B8: baffle_eq | C8: =IF(OR(D8>P8,D8<Q8),"contact vendor",F8*D8^G8+H8*LN(D8)+I8+J8*EXP(K8*D8)+L8*D8^3+M8*D8^2+N8*D8+O8) -> 180.2828805 | D8: =baffle_area -> 25 | E8: baffle_eq | F8: =VLOOKUP($E8,eq_table_cl,F$4,FALSE) -> 0 | G8: 0 | H8: 0 | I8: 0 | J8: 0 | K8: 0 | L8: 1.5e-08 | M8: -0.000276367 | N8: 4.600018993 | O8: 65.45490071 | P8: 9963.76 | Q8: 0
A9: Pre-engineered package
A10: Stainless Steel | B10: ss_tank_eq | C10: =IF(D10=0,0,IF(OR(D10>P10,D10<Q10),"contact vendor",F10*D10^G10+H10*LN(D10)+I10+J10*EXP(K10*D10)+L10*D10^3+M10*D10^2+N10*D10+O10)) -> 34947.51164 | D10: =tank_sf -> 360 | E10: ss_basin_eq | F10: =VLOOKUP($E10,eq_table_cl,F$4,FALSE) -> 0 | G10: 0 | H10: 0 | I10: 0 | J10: 0 | K10: 0 | L10: 0.001231781 | M10: -1.01945011 | N10: 300.5095625 | O10: 1414.82906 | P10: 1200 | Q10: 0
A11: Plastic | B11: pl_tank_eq | C11: =IF(D11=0,0,IF(OR(D11>P11,D11<Q11),"contact vendor",F11*D11^G11+H11*LN(D11)+I11+J11*EXP(K11*D11)+L11*D11^3+M11*D11^2+N11*D11+O11)) -> contact vendor | D11: =tank_sf -> 360 | E11: pl_basin_eq | F11: 0.453238925 | G11: 1.948695284 | H11: 0 | I11: 0 | J11: 0 | K11: 0 | L11: 0 | M11: 0 | N11: 0 | O11: 0 | P11: 239 | Q11: 0
A12: Fiberglass | B12: fg_tank_eq | C12: 17989.94938 | D12: =tank_sf -> 360 | E12: fg_basin_eq | F12: 159.3766214 | G12: 0.802958697 | H12: 0 | I12: 0 | J12: 0 | K12: 0 | L12: 0 | M12: 0 | N12: 0 | O12: 0 | P12: 1200 | Q12: 0
A13: Aerators
A14: Diffusers | B14: diffuser_eq | C14: =IF(D14=0,0,IF(OR(D14>P14,D14<Q14),"contact vendor",F14*D14^G14+H14*LN(D14)+I14+J14*EXP(K14*D14)+L14*D14^3+M14*D14^2+N14*D14+O14)) -> 55.47102214 | D14: =diffuser_size -> 31.46250083 | E14: diffuser_eq | F14: =VLOOKUP($E14,eq_table_cl,F$4,FALSE) -> 0 | G14: 0 | H14: 0 | I14: 0 | J14: 43.72154201 | K14: 0.007565191 | L14: 0 | M14: 0 | N14: 0 | O14: 0 | P14: 44.1 | Q14: 0
A15: Pumps and Blowers
A16: Booster Pumps | B16: pump_eq | C16: =IF(D16=0,0,IF(OR(D16>P16,D16<Q16),"contact vendor",F16*D16^G16+H16*LN(D16)+I16+J16*EXP(K16*D16)+L16*D16^3+M16*D16^2+N16*D16+O16)) -> 7411.614025 | D16: =pump_rating -> 132.3784722 | E16: dis75_pump_eq | F16: =VLOOKUP($E16,eq_table_cl,F$4,FALSE) -> 0 | G16: 0 | H16: 0 | I16: 0 | J16: 0 | K16: 0 | L16: 0 | M16: -0.000790817 | N16: 18.71623925 | O16: 4947.845192 | P16: 10001 | Q16: 0
A17: Centrifugal Blowers | B17: cent_blow_eq | C17: 39675.07184 | D17: =blower_rating -> 707.9062686 | E17: cent_blow_eq | F17: 0 | G17: 0 | H17: 0 | I17: 0 | J17: 0 | K17: 0 | L17: 8.57e-07 | M17: -0.005755101 | N17: 20.87065432 | O17: 27480.64182 | P17: 5001 | Q17: 0
A18: Piping
A19: Process Piping
A20: Ductile Iron | B20: di_pipe_eq_h2o | C20: =IF(D20=0,0,IF(OR(D20>P20,D20<Q20),"contact vendor",F20*D20^G20+H20*LN(D20)+I20+J20*EXP(K20*D20)+L20*D20^3+M20*D20^2+N20*D20+O20)) -> 32.40624467 | D20: =h2o_pipe_diam -> 4 | E20: di_pipe_eq | F20: =VLOOKUP($E20,eq_table_cl,F$4,FALSE) -> 0 | G20: 0 | H20: 0 | I20: 0 | J20: 0 | K20: 0 | L20: 0 | M20: 0.0947759 | N20: 4.790327955 | O20: 11.72851845 | P20: 48.1 | Q20: 4
A21: CPVC | B21: cpvc_pipe_eq_h2o | C21: 22.32621518 | D21: =h2o_pipe_diam -> 4 | E21: cpvc_pipe_eq | F21: 0 | G21: 0 | H21: 0 | I21: 0 | J21: 0 | K21: 0 | L21: 0.00925292 | M21: 0.543237018 | N21: 3.024366182 | O21: 0.944771283 | P21: 18.1 | Q21: 0
A22: PVC | B22: pvc_pipe_eq_h2o | C22: 4.795500109 | D22: =h2o_pipe_diam -> 4 | E22: pvc_pipe_eq | F22: 0 | G22: 0 | H22: 0 | I22: 0 | J22: 0 | K22: 0 | L22: 0 | M22: 0.104376414 | N22: 0.212173712 | O22: 2.276782637 | P22: 48.1 | Q22: 0
A23: Stainless Steel | B23: ss_pipe_eq_h2o | C23: 119.1310618 | D23: =h2o_pipe_diam -> 4 | E23: ss_pipe_eq | F23: 30.64548851 | G23: 0.979401509 | H23: 0 | I23: 0 | J23: 0 | K23: 0 | L23: 0 | M23: 0 | N23: 0 | O23: 0 | P23: 48.1 | Q23: 0
A24: Steel | B24: st_pipe_eq_h2o | C24: 69.32333845 | D24: =h2o_pipe_diam -> 4 | E24: st_pipe_eq | F24: 0 | G24: 0 | H24: 0 | I24: 0 | J24: 0 | K24: 0 | L24: 0.006634131 | M24: -0.638131479 | N24: 21.06271018 | O24: -5.141982997 | P24: 48.1 | Q24: 1
A25: Air Piping
A26: Ductile Iron | B26: di_pipe_eq_air | C26: =IF(D26=0,0,IF(OR(D26>P26,D26<Q26),"contact vendor",F26*D26^G26+H26*LN(D26)+I26+J26*EXP(K26*D26)+L26*D26^3+M26*D26^2+N26*D26+O26)) -> 32.40624467 | D26: =air_pipe_diam -> 4 | E26: di_pipe_eq | F26: =VLOOKUP($E26,eq_table_cl,F$4,FALSE) -> 0 | G26: 0 | H26: 0 | I26: 0 | J26: 0 | K26: 0 | L26: 0 | M26: 0.0947759 | N26: 4.790327955 | O26: 11.72851845 | P26: 48.1 | Q26: 4
A27: CPVC | B27: cpvc_pipe_eq_air | C27: 22.32621518 | D27: =air_pipe_diam -> 4 | E27: cpvc_pipe_eq | F27: 0 | G27: 0 | H27: 0 | I27: 0 | J27: 0 | K27: 0 | L27: 0.00925292 | M27: 0.543237018 | N27: 3.024366182 | O27: 0.944771283 | P27: 18.1 | Q27: 0
A28: PVC | B28: pvc_pipe_eq_air | C28: 4.795500109 | D28: =air_pipe_diam -> 4 | E28: pvc_pipe_eq | F28: 0 | G28: 0 | H28: 0 | I28: 0 | J28: 0 | K28: 0 | L28: 0 | M28: 0.104376414 | N28: 0.212173712 | O28: 2.276782637 | P28: 48.1 | Q28: 0
A29: Stainless Steel | B29: ss_pipe_eq_air | C29: 119.1310618 | D29: =air_pipe_diam -> 4 | E29: ss_pipe_eq | F29: 30.64548851 | G29: 0.979401509 | H29: 0 | I29: 0 | J29: 0 | K29: 0 | L29: 0 | M29: 0 | N29: 0 | O29: 0 | P29: 48.1 | Q29: 0
A30: Steel | B30: st_pipe_eq_air | C30: 69.32333845 | D30: =air_pipe_diam -> 4 | E30: st_pipe_eq | F30: 0 | G30: 0 | H30: 0 | I30: 0 | J30: 0 | K30: 0 | L30: 0.006634131 | M30: -0.638131479 | N30: 21.06271018 | O30: -5.141982997 | P30: 48.1 | Q30: 1
A31: Inlet and Outlet Piping
A32: Ductile Iron | B32: di_pipe_eq_in_out | C32: =IF(D32=0,0,IF(OR(D32>P32,D32<Q32),"contact vendor",F32*D32^G32+H32*LN(D32)+I32+J32*EXP(K32*D32)+L32*D32^3+M32*D32^2+N32*D32+O32)) -> 32.40624467 | D32: =in_out_pipe_diam -> 4 | E32: di_pipe_eq | F32: =VLOOKUP($E32,eq_table_cl,F$4,FALSE) -> 0 | G32: 0 | H32: 0 | I32: 0 | J32: 0 | K32: 0 | L32: 0 | M32: 0.0947759 | N32: 4.790327955 | O32: 11.72851845 | P32: 48.1 | Q32: 4
A33: CPVC | B33: cpvc_pipe_eq_in_out | C33: 22.32621518 | D33: =in_out_pipe_diam -> 4 | E33: cpvc_pipe_eq | F33: 0 | G33: 0 | H33: 0 | I33: 0 | J33: 0 | K33: 0 | L33: 0.00925292 | M33: 0.543237018 | N33: 3.024366182 | O33: 0.944771283 | P33: 18.1 | Q33: 0
A34: PVC | B34: pvc_pipe_eq_in_out | C34: 4.795500109 | D34: =in_out_pipe_diam -> 4 | E34: pvc_pipe_eq | F34: 0 | G34: 0 | H34: 0 | I34: 0 | J34: 0 | K34: 0 | L34: 0 | M34: 0.104376414 | N34: 0.212173712 | O34: 2.276782637 | P34: 48.1 | Q34: 0
A35: Stainless Steel | B35: ss_pipe_eq_in_out | C35: 119.1310618 | D35: =in_out_pipe_diam -> 4 | E35: ss_pipe_eq | F35: 30.64548851 | G35: 0.979401509 | H35: 0 | I35: 0 | J35: 0 | K35: 0 | L35: 0 | M35: 0 | N35: 0 | O35: 0 | P35: 48.1 | Q35: 0
A36: Steel | B36: st_pipe_eq_in_out | C36: 69.32333845 | D36: =in_out_pipe_diam -> 4 | E36: st_pipe_eq | F36: 0 | G36: 0 | H36: 0 | I36: 0 | J36: 0 | K36: 0 | L36: 0.006634131 | M36: -0.638131479 | N36: 21.06271018 | O36: -5.141982997 | P36: 48.1 | Q36: 1
A37: Bypass Piping
A38: Ductile Iron | B38: di_pipe_eq_bp | C38: =IF(D38=0,0,IF(OR(D38>P38,D38<Q38),"contact vendor",F38*D38^G38+H38*LN(D38)+I38+J38*EXP(K38*D38)+L38*D38^3+M38*D38^2+N38*D38+O38)) -> 0 | D38: =bp_pipe_diam -> 0 | E38: di_pipe_eq | F38: =VLOOKUP($E38,eq_table_cl,F$4,FALSE) -> 0 | G38: 0 | H38: 0 | I38: 0 | J38: 0 | K38: 0 | L38: 0 | M38: 0.0947759 | N38: 4.790327955 | O38: 11.72851845 | P38: 48.1 | Q38: 4
A39: CPVC | B39: cpvc_pipe_eq_bp | C39: 0 | D39: =bp_pipe_diam -> 0 | E39: cpvc_pipe_eq | F39: 0 | G39: 0 | H39: 0 | I39: 0 | J39: 0 | K39: 0 | L39: 0.00925292 | M39: 0.543237018 | N39: 3.024366182 | O39: 0.944771283 | P39: 18.1 | Q39: 0
A40: PVC | B40: pvc_pipe_eq_bp | C40: 0 | D40: =bp_pipe_diam -> 0 | E40: pvc_pipe_eq | F40: 0 | G40: 0 | H40: 0 | I40: 0 | J40: 0 | K40: 0 | L40: 0 | M40: 0.104376414 | N40: 0.212173712 | O40: 2.276782637 | P40: 48.1 | Q40: 0
A41: Stainless Steel | B41: ss_pipe_eq_bp | C41: 0 | D41: =bp_pipe_diam -> 0 | E41: ss_pipe_eq | F41: 30.64548851 | G41: 0.979401509 | H41: 0 | I41: 0 | J41: 0 | K41: 0 | L41: 0 | M41: 0 | N41: 0 | O41: 0 | P41: 48.1 | Q41: 0
A42: Steel | B42: st_pipe_eq_bp | C42: 0 | D42: =bp_pipe_diam -> 0 | E42: st_pipe_eq | F42: 0 | G42: 0 | H42: 0 | I42: 0 | J42: 0 | K42: 0 | L42: 0.006634131 | M42: -0.638131479 | N42: 21.06271018 | O42: -5.141982997 | P42: 48.1 | Q42: 1
A43: Valves
A44: Motor/Air Operated
A45: Polypropylene/PVC - Process | B45: pp_mov_eq_tank | C45: =IF(D45=0,0,IF(OR(D45>P45,D45<Q45),"contact vendor",F45*D45^G45+H45*LN(D45)+I45+J45*EXP(K45*D45)+L45*D45^3+M45*D45^2+N45*D45+O45)) -> 1028.684602 | D45: =tank_valve_size -> 4 | E45: =IF(D45>12,"pp_mov_eq_large","pp_mov_eq_small") -> pp_mov_eq_small | F45: =VLOOKUP($E45,eq_table_cl,F$4,FALSE) -> 0 | G45: 0 | H45: 0 | I45: 0 | J45: 439.3853472 | K45: 0.212664842 | L45: 0 | M45: 0 | N45: 0 | O45: 0 | P45: 12 | Q45: 0
A46: Stainless Steel - Process | B46: ss_mov_eq_tank | C46: 2957.580562 | D46: =tank_valve_size -> 4 | E46: ss_mov_eq | F46: 0 | G46: 0 | H46: 0 | I46: 0 | J46: 0 | K46: 0 | L46: 0 | M46: 75.65821756 | N46: 386.9778023 | O46: 199.1378722 | P46: 48.1 | Q46: 0
A47: Cast Iron - Process | B47: ci_mov_eq_tank | C47: 1742.297568 | D47: =tank_valve_size -> 4 | E47: ci_mov_eq | F47: 0 | G47: 0 | H47: 0 | I47: 0 | J47: 0 | K47: 0 | L47: -0.064880837 | M47: 28.44450095 | N47: 68.99684845 | O47: 1015.350532 | P47: 48.1 | Q47: 1
A48: Polypropylene/PVC - Air | B48: pp_mov_eq_air | C48: 1028.684602 | D48: =air_valve_size -> 4 | E48: =IF(D48>12,"pp_mov_eq_large","pp_mov_eq_small") -> pp_mov_eq_small | F48: 0 | G48: 0 | H48: 0 | I48: 0 | J48: 439.3853472 | K48: 0.212664842 | L48: 0 | M48: 0 | N48: 0 | O48: 0 | P48: 12 | Q48: 0
A49: Stainless Steel - Air | B49: ss_mov_eq_air | C49: 2957.580562 | D49: =air_valve_size -> 4 | E49: ss_mov_eq | F49: 0 | G49: 0 | H49: 0 | I49: 0 | J49: 0 | K49: 0 | L49: 0 | M49: 75.65821756 | N49: 386.9778023 | O49: 199.1378722 | P49: 48.1 | Q49: 0
A50: Cast Iron - Air | B50: ci_mov_eq_air | C50: 1742.297568 | D50: =air_valve_size -> 4 | E50: ci_mov_eq | F50: 0 | G50: 0 | H50: 0 | I50: 0 | J50: 0 | K50: 0 | L50: -0.064880837 | M50: 28.44450095 | N50: 68.99684845 | O50: 1015.350532 | P50: 48.1 | Q50: 1
A51: Polypropylene/PVC - Bypass | B51: pp_mov_eq_bp | C51: 0 | D51: =bypass_valve_size -> 0 | E51: =IF(D51>12,"pp_mov_eq_large","pp_mov_eq_small") -> pp_mov_eq_small | F51: 0 | G51: 0 | H51: 0 | I51: 0 | J51: 439.3853472 | K51: 0.212664842 | L51: 0 | M51: 0 | N51: 0 | O51: 0 | P51: 12 | Q51: 0
A52: Stainless Steel - Bypass | B52: ss_mov_eq_bp | C52: 0 | D52: =bypass_valve_size -> 0 | E52: ss_mov_eq | F52: 0 | G52: 0 | H52: 0 | I52: 0 | J52: 0 | K52: 0 | L52: 0 | M52: 75.65821756 | N52: 386.9778023 | O52: 199.1378722 | P52: 48.1 | Q52: 0
A53: Cast Iron - Bypass | B53: ci_mov_eq_bp | C53: 0 | D53: =bypass_valve_size -> 0 | E53: ci_mov_eq | F53: 0 | G53: 0 | H53: 0 | I53: 0 | J53: 0 | K53: 0 | L53: -0.064880837 | M53: 28.44450095 | N53: 68.99684845 | O53: 1015.350532 | P53: 48.1 | Q53: 1
A54: Manual
A55: Polypropylene/PVC - Inlet and Outlet | B55: pp_man_eq | C55: =IF(D55=0,0,IF(OR(D55>P55,D55<Q55),"contact vendor",F55*D55^G55+H55*LN(D55)+I55+J55*EXP(K55*D55)+L55*D55^3+M55*D55^2+N55*D55+O55)) -> 445.9825708 | D55: =in_valve_size -> 4 | E55: =IF(D55>12,"pp_man_eq_large","pp_man_eq_small") -> pp_man_eq_small | F55: =VLOOKUP($E55,eq_table_cl,F$4,FALSE) -> 0 | G55: 0 | H55: 0 | I55: 0 | J55: 0 | K55: 0 | L55: 2.727129527 | M55: -29.26938628 | N55: 178.3802096 | O55: 26.23562316 | P55: 12 | Q55: 0
A56: Stainless Steel - Inlet and Outlet | B56: ss_man_eq | C56: 2273.066221 | D56: =in_valve_size -> 4 | E56: ss_man_eq | F56: 219.9087906 | G56: 1.684831267 | H56: 0 | I56: 0 | J56: 0 | K56: 0 | L56: 0 | M56: 0 | N56: 0 | O56: 0 | P56: 12.1 | Q56: 1
A57: Cast Iron - Inlet and Outlet | B57: ci_bfv_eq | C57: 692.6912178 | D57: =in_valve_size -> 4 | E57: =IF(D57>12,"ci_bfv_eq_large","ci_bfv_eq_small") -> ci_bfv_eq_small | F57: 0 | G57: 0 | H57: 0 | I57: 0 | J57: 0 | K57: 0 | L57: -0.443473112 | M57: 12.76880242 | N57: 121.7001439 | O57: 29.97208276 | P57: 12 | Q57: 1
A58: Polypropylene/PVC - Process | B58: pp_man_eq_tank | C58: 445.9825708 | D58: =tank_valve_size -> 4 | E58: =IF(D58>12,"pp_man_eq_large","pp_man_eq_small") -> pp_man_eq_small | F58: 0 | G58: 0 | H58: 0 | I58: 0 | J58: 0 | K58: 0 | L58: 2.727129527 | M58: -29.26938628 | N58: 178.3802096 | O58: 26.23562316 | P58: 12 | Q58: 0
A59: Stainless Steel - Process | B59: ss_man_eq_tank | C59: 2273.066221 | D59: =tank_valve_size -> 4 | E59: ss_man_eq | F59: 219.9087906 | G59: 1.684831267 | H59: 0 | I59: 0 | J59: 0 | K59: 0 | L59: 0 | M59: 0 | N59: 0 | O59: 0 | P59: 12.1 | Q59: 1
A60: Cast Iron - Process | B60: ci_bfv_eq_tank | C60: 692.6912178 | D60: =tank_valve_size -> 4 | E60: =IF(D60>12,"ci_bfv_eq_large","ci_bfv_eq_small") -> ci_bfv_eq_small | F60: 0 | G60: 0 | H60: 0 | I60: 0 | J60: 0 | K60: 0 | L60: -0.443473112 | M60: 12.76880242 | N60: 121.7001439 | O60: 29.97208276 | P60: 12 | Q60: 1
A61: Polypropylene/PVC - Air | B61: pp_man_eq_air | C61: 445.9825708 | D61: =air_valve_size -> 4 | E61: =IF(D61>12,"pp_man_eq_large","pp_man_eq_small") -> pp_man_eq_small | F61: 0 | G61: 0 | H61: 0 | I61: 0 | J61: 0 | K61: 0 | L61: 2.727129527 | M61: -29.26938628 | N61: 178.3802096 | O61: 26.23562316 | P61: 12 | Q61: 0
A62: Stainless Steel - Air | B62: ss_man_eq_air | C62: 2273.066221 | D62: =air_valve_size -> 4 | E62: ss_man_eq | F62: 219.9087906 | G62: 1.684831267 | H62: 0 | I62: 0 | J62: 0 | K62: 0 | L62: 0 | M62: 0 | N62: 0 | O62: 0 | P62: 12.1 | Q62: 1
A63: Cast Iron - Air | B63: ci_bfv_eq_air | C63: 692.6912178 | D63: =air_valve_size -> 4 | E63: =IF(D63>12,"ci_bfv_eq_large","ci_bfv_eq_small") -> ci_bfv_eq_small | F63: 0 | G63: 0 | H63: 0 | I63: 0 | J63: 0 | K63: 0 | L63: -0.443473112 | M63: 12.76880242 | N63: 121.7001439 | O63: 29.97208276 | P63: 12 | Q63: 1
A64: Polypropylene/PVC - Bypass | B64: pp_man_eq_bp | C64: 0 | D64: =bypass_valve_size -> 0 | E64: =IF(D64>12,"pp_man_eq_large","pp_man_eq_small") -> pp_man_eq_small | F64: 0 | G64: 0 | H64: 0 | I64: 0 | J64: 0 | K64: 0 | L64: 2.727129527 | M64: -29.26938628 | N64: 178.3802096 | O64: 26.23562316 | P64: 12 | Q64: 0
A65: Stainless Steel - Bypass | B65: ss_man_eq_bp | C65: 0 | D65: =bypass_valve_size -> 0 | E65: ss_man_eq | F65: 219.9087906 | G65: 1.684831267 | H65: 0 | I65: 0 | J65: 0 | K65: 0 | L65: 0 | M65: 0 | N65: 0 | O65: 0 | P65: 12.1 | Q65: 1
A66: Cast Iron - Bypass | B66: ci_man_eq_bp | C66: 0 | D66: =bypass_valve_size -> 0 | E66: =IF(D66>12,"ci_bfv_eq_large","ci_bfv_eq_small") -> ci_bfv_eq_small | F66: 0 | G66: 0 | H66: 0 | I66: 0 | J66: 0 | K66: 0 | L66: -0.443473112 | M66: 12.76880242 | N66: 121.7001439 | O66: 29.97208276 | P66: 12 | Q66: 1
A67: Check
A68: Polypropylene/PVC - Inlet and Outlet | B68: pp_chv_eq | C68: =IF(D68=0,0,IF(OR(D68>P68,D68<Q68),"contact vendor",F68*D68^G68+H68*LN(D68)+I68+J68*EXP(K68*D68)+L68*D68^3+M68*D68^2+N68*D68+O68)) -> 671.5356291 | D68: =in_valve_size -> 4 | E68: pp_chv_eq | F68: =VLOOKUP($E68,eq_table_cl,F$4,FALSE) -> 0 | G68: 0 | H68: 0 | I68: 0 | J68: 0 | K68: 0 | L68: 0 | M68: 29.05743239 | N68: 41.15718672 | O68: 41.98796389 | P68: 12.1 | Q68: 0
A69: Stainless Steel - Inlet and Outlet | B69: ss_chv_eq | C69: 1798.496048 | D69: =in_valve_size -> 4 | E69: ss_chv_eq | F69: 0 | G69: 0 | H69: 0 | I69: 0 | J69: 0 | K69: 0 | L69: 0 | M69: 31.22016133 | N69: 300.8432045 | O69: 95.60064806 | P69: 48.1 | Q69: 0
A70: Cast Iron - Inlet and Outlet | B70: ci_chv_eq | C70: 1066.736968 | D70: =in_valve_size -> 4 | E70: ci_chv_eq | F70: 0 | G70: 0 | H70: 0 | I70: 0 | J70: 0 | K70: 0 | L70: 0.998552278 | M70: -6.098668912 | N70: 403.850148 | O70: -514.9922671 | P70: 24.1 | Q70: 2
A71: Polypropylene/PVC - Inlet and Outlet | B71: pp_chv_eq_proc | C71: 671.5356291 | D71: =tank_valve_size -> 4 | E71: pp_chv_eq | F71: 0 | G71: 0 | H71: 0 | I71: 0 | J71: 0 | K71: 0 | L71: 0 | M71: 29.05743239 | N71: 41.15718672 | O71: 41.98796389 | P71: 12.1 | Q71: 0
A72: Stainless Steel - Inlet and Outlet | B72: ss_chv_eq_proc | C72: 1798.496048 | D72: =tank_valve_size -> 4 | E72: ss_chv_eq | F72: 0 | G72: 0 | H72: 0 | I72: 0 | J72: 0 | K72: 0 | L72: 0 | M72: 31.22016133 | N72: 300.8432045 | O72: 95.60064806 | P72: 48.1 | Q72: 0
A73: Cast Iron - Inlet and Outlet | B73: ci_chv_eq_proc | C73: 1066.736968 | D73: =tank_valve_size -> 4 | E73: ci_chv_eq | F73: 0 | G73: 0 | H73: 0 | I73: 0 | J73: 0 | K73: 0 | L73: 0.998552278 | M73: -6.098668912 | N73: 403.850148 | O73: -514.9922671 | P73: 24.1 | Q73: 2
A74: Polypropylene/PVC - bypass | B74: pp_chv_eq_bp | C74: 0 | D74: =bypass_valve_size -> 0 | E74: pp_chv_eq | F74: 0 | G74: 0 | H74: 0 | I74: 0 | J74: 0 | K74: 0 | L74: 0 | M74: 29.05743239 | N74: 41.15718672 | O74: 41.98796389 | P74: 12.1 | Q74: 0
A75: Stainless Steel - bypass | B75: ss_chv_eq_bp | C75: 0 | D75: =bypass_valve_size -> 0 | E75: ss_chv_eq | F75: 0 | G75: 0 | H75: 0 | I75: 0 | J75: 0 | K75: 0 | L75: 0 | M75: 31.22016133 | N75: 300.8432045 | O75: 95.60064806 | P75: 48.1 | Q75: 0
A76: Cast Iron - bypass | B76: ci_chv_eq_bp | C76: 0 | D76: =bypass_valve_size -> 0 | E76: ci_chv_eq | F76: 0 | G76: 0 | H76: 0 | I76: 0 | J76: 0 | K76: 0 | L76: 0.998552278 | M76: -6.098668912 | N76: 403.850148 | O76: -514.9922671 | P76: 24.1 | Q76: 2
A77: Instrumentation
A78: Flow Meters - Inlet and Outlet
A79: Orifice Plate | B79: op_fm_eq_in | C79: =IF(D79=0,0,IF(OR(D79>P79,D79<Q79),"contact vendor",F79*D79^G79+H79*LN(D79)+I79+J79*EXP(K79*D79)+L79*D79^3+M79*D79^2+N79*D79+O79)) -> 3896.676865 | D79: =in_meter_size -> 4 | E79: op_fm_eq | F79: =VLOOKUP($E79,eq_table_cl,F$4,FALSE) -> 0 | G79: 0 | H79: 0 | I79: 0 | J79: 0 | K79: 0 | L79: 0.097957253 | M79: -4.383599187 | N79: 363.6476941 | O79: 2505.954411 | P79: 60.1 | Q79: 0
A80: Propeller | B80: prop_fm_eq_in | C80: 3570.984261 | D80: =in_meter_size -> 4 | E80: prop_fm_eq | F80: 0 | G80: 0 | H80: 0 | I80: 0 | J80: 0 | K80: 0 | L80: 8.745107924 | M80: -168.9746008 | N80: 1267.944728 | O80: 643.1120557 | P80: 14.1 | Q80: 0
A81: Venturi | B81: ven_fm_eq_in | C81: 9485.852485 | D81: =in_meter_size -> 4 | E81: ven_fm_eq | F81: 0 | G81: 0 | H81: 0 | I81: 0 | J81: 0 | K81: 0 | L81: 8.228279249 | M81: -257.2857211 | N81: 3322.365777 | O81: -213.6489575 | P81: 24.1 | Q81: 0
A82: Magnetic | B82: mag_fm_eq_in | C82: 5194.119959 | D82: =in_meter_size -> 4 | E82: mag_fm_eq | F82: 0 | G82: 0 | H82: 0 | I82: 0 | J82: 0 | K82: 0 | L82: 0 | M82: 56.41874171 | N82: 185.4434934 | O82: 3549.646118 | P82: 20.1 | Q82: 0
A83: Flow Meters - Process
A84: Orifice Plate | B84: op_fm_eq_proc | C84: =IF(D84=0,0,IF(OR(D84>P84,D84<Q84),"contact vendor",F84*D84^G84+H84*LN(D84)+I84+J84*EXP(K84*D84)+L84*D84^3+M84*D84^2+N84*D84+O84)) -> 3896.676865 | D84: =proc_meter_size -> 4 | E84: op_fm_eq | F84: =VLOOKUP($E84,eq_table_cl,F$4,FALSE) -> 0 | G84: 0 | H84: 0 | I84: 0 | J84: 0 | K84: 0 | L84: 0.097957253 | M84: -4.383599187 | N84: 363.6476941 | O84: 2505.954411 | P84: 60.1 | Q84: 0
A85: Propeller | B85: prop_fm_eq_proc | C85: 3570.984261 | D85: =proc_meter_size -> 4 | E85: prop_fm_eq | F85: 0 | G85: 0 | H85: 0 | I85: 0 | J85: 0 | K85: 0 | L85: 8.745107924 | M85: -168.9746008 | N85: 1267.944728 | O85: 643.1120557 | P85: 14.1 | Q85: 0
A86: Venturi | B86: ven_fm_eq_proc | C86: 9485.852485 | D86: =proc_meter_size -> 4 | E86: ven_fm_eq | F86: 0 | G86: 0 | H86: 0 | I86: 0 | J86: 0 | K86: 0 | L86: 8.228279249 | M86: -257.2857211 | N86: 3322.365777 | O86: -213.6489575 | P86: 24.1 | Q86: 0
A87: Magnetic | B87: mag_fm_eq_proc | C87: 5194.119959 | D87: =proc_meter_size -> 4 | E87: mag_fm_eq | F87: 0 | G87: 0 | H87: 0 | I87: 0 | J87: 0 | K87: 0 | L87: 0 | M87: 56.41874171 | N87: 185.4434934 | O87: 3549.646118 | P87: 20.1 | Q87: 0
A88: Offgas Pollution Control Equipment
A89: Gas-phase GAC Adsorber | B89: og_gac_eq | C89: =IF(D89=0,0,IF(OR(D89>P89,D89<Q89),"contact vendor",F89*D89^G89+H89*LN(D89)+I89+J89*EXP(K89*D89)+L89*D89^3+M89*D89^2+N89*D89+O89)) -> 0 | D89: =GAC_bed_size -> 0 | E89: og_gac_eq | F89: =VLOOKUP($E89,eq_table_cl,F$4,FALSE) -> 0 | G89: 0 | H89: 0 | I89: 0 | J89: 0 | K89: 0 | L89: 0 | M89: -0.021812607 | N89: 74.08960489 | O89: 8121.570178 | P89: 1333.4 | Q89: 0
A90: Thermal Oxidizer - No Heat Recovery | B90: og_TO_eq | C90: 0 | D90: =TO_size -> 0 | E90: og_TO_eq | F90: 0 | G90: 0 | H90: 0 | I90: 0 | J90: 0 | K90: 0 | L90: 3.5e-08 | M90: -0.002125412 | N90: 52.36108591 | O90: 30681.11702 | P90: 25001 | Q90: 0
A91: Thermal Oxidizer - Recuperative | B91: og_torec_eq | C91: 0 | D91: =TO_size -> 0 | E91: og_torec_eq | F91: 0 | G91: 0 | H91: 0 | I91: 0 | J91: 0 | K91: 0 | L91: 0 | M91: 0.002686275 | N91: 45.22362993 | O91: 46950.6738 | P91: 7258 | Q91: 0
A92: Thermal Oxidizer - Regenerative/Flameless | B92: og_toreg_eq | C92: 0 | D92: =TO_size -> 0 | E92: og_toreg_eq | F92: 0 | G92: 0 | H92: 0 | I92: 0 | J92: 0 | K92: 0 | L92: 0 | M92: 5.9304e-05 | N92: 26.21005734 | O92: 122071.8558 | P92: 736001 | Q92: 0
A93: Catalytic Oxidizer - No Heat Recovery | B93: og_co_eq | C93: 0 | D93: =CO_size -> 0 | E93: og_co_eq | F93: 0 | G93: 0 | H93: 0 | I93: 0 | J93: 0 | K93: 0 | L93: 0 | M93: 3.155e-06 | N93: 67.69534244 | O93: 25787.16035 | P93: 736001 | Q93: 0
A94: Catalytic Oxidizer - Recuperative | B94: og_corec_eq | C94: 0 | D94: =CO_size -> 0 | E94: og_corec_eq | F94: 0 | G94: 0 | H94: 0 | I94: 0 | J94: 0 | K94: 0 | L94: 0 | M94: 0.000103841 | N94: 75.33948855 | O94: 34677.90084 | P94: 736001 | Q94: 0
A95: Catalytic Oxidizer - Regenerative | B95: og_coreg_eq | C95: 0 | D95: =CO_size -> 0 | E95: og_coreg_eq | F95: 0 | G95: 0 | H95: 0 | I95: 0 | J95: 0 | K95: 0 | L95: 0 | M95: 0.000105624 | N95: 86.17670734 | O95: 39578.61323 | P95: 736001 | Q95: 0
A96: Initial GAC charge | B96: gac_eq | C96: 0 | D96: =IF(GAC>P96,P96,GAC) -> 0 | E96: gac_eq | F96: 0 | G96: 0 | H96: 0 | I96: 0 | J96: 0 | K96: 0 | L96: 0 | M96: 0 | N96: -6.341e-06 | O96: 1.904824233 | P96: 40000 | Q96: 0
A98: O&M Chemicals
A99: Virgin GAC | B99: replace_gac_eq | C99: =IF(D99=0,0,IF(OR(D99>P99,D99<Q99),"contact vendor",F99*D99^G99+H99*LN(D99)+I99+J99*EXP(K99*D99)+L99*D99^3+M99*D99^2+N99*D99+O99)) -> 0 | D99: =IF(GAC_makeup>P99,P99,GAC_makeup) -> 0 | E99: gac_eq | F99: =VLOOKUP($E99,eq_table_cl,F$4,FALSE) -> 0 | G99: 0 | H99: 0 | I99: 0 | J99: 0 | K99: 0 | L99: 0 | M99: 0 | N99: -6.341e-06 | O99: 1.904824233 | P99: 40000 | Q99: 0
A100: Off-site GAC regeneration | B100: off_regen_eq | C100: 0 | D100: =IF(regen_yr>P100,P100,regen_yr) -> 0 | E100: off_regen_eq | F100: 0 | G100: 0 | H100: 0 | I100: 0 | J100: 0 | K100: 0 | L100: 0 | M100: 0 | N100: -5.2e-06 | O100: 1.221341695 | P100: 40000 | Q100: 0
A102: Building Structures and HVAC
A103: Building 1
A104: Low Quality Structure | B104: bldg_lo_eq_1 | C104: =IF(D104=0,0,IF(OR(D104>P104,D104<Q104),"contact vendor",F104*D104^G104+H104*LN(D104)+I104+J104*EXP(K104*D104)+L104*D104^3+M104*D104^2+N104*D104+O104)) -> 94.60480835 | D104: =build1_fp -> 120 | E104: bldg_lo_eq | F104: =VLOOKUP($E104,eq_table_cl,F$4,FALSE) -> 150.4663907 | G104: -0.096925794 | H104: 0 | I104: 0 | J104: 0 | K104: 0 | L104: 0 | M104: 0 | N104: 0 | O104: 0 | P104: 200000.1 | Q104: 0
A105: Medium Quality Structure | B105: bldg_mid_eq_1 | C105: 115.387376 | D105: =build1_fp -> 120 | E105: bldg_mid_eq | F105: 184.6789937 | G105: -0.09824021 | H105: 0 | I105: 0 | J105: 0 | K105: 0 | L105: 0 | M105: 0 | N105: 0 | O105: 0 | P105: 200000.1 | Q105: 0
A106: High Quality Structure | B106: bldg_hi_eq_1 | C106: 172.0734832 | D106: =build1_fp -> 120 | E106: bldg_hi_eq | F106: 324.1826469 | G106: -0.132300065 | H106: 0 | I106: 0 | J106: 0 | K106: 0 | L106: 0 | M106: 0 | N106: 0 | O106: 0 | P106: 200000.1 | Q106: 0
A107: Heating System
A108: Electric resistance | B108: hvac_elec_eq_1 | C108: =IF(D108=0,0,IF(OR(D108>P108,D108<Q108),"contact vendor",F108*D108^G108+H108*LN(D108)+I108+J108*EXP(K108*D108)+L108*D108^3+M108*D108^2+N108*D108+O108)) -> 4117.620105 | D108: =build1_heat_mbh/build1_zones -> 4.19790757 | E108: hvac_elec_eq | F108: =VLOOKUP($E108,eq_table_cl,F$4,FALSE) -> 1399.015433 | G108: 0.752486412 | H108: 0 | I108: 0 | J108: 0 | K108: 0 | L108: 0 | M108: 0 | N108: 0 | O108: 0 | P108: 6148.1 | Q108: 0
A109: Natural gas non-condensing furnace | B109: hvac_gas_non_eq_1 | C109: 2385.047087 | D109: =build1_heat_mbh/build1_zones -> 4.19790757 | E109: hvac_gas_non_eq | F109: 780.319943 | G109: 0.778810032 | H109: 0 | I109: 0 | J109: 0 | K109: 0 | L109: 0 | M109: 0 | N109: 0 | O109: 0 | P109: 5032.1 | Q109: 0
A110: Natural gas condensing furnace | B110: hvac_gas_eq_1 | C110: 2385.047087 | D110: =build1_heat_mbh/build1_zones -> 4.19790757 | E110: hvac_gas_eq | F110: 780.319943 | G110: 0.778810032 | H110: 0 | I110: 0 | J110: 0 | K110: 0 | L110: 0 | M110: 0 | N110: 0 | O110: 0 | P110: 5032.1 | Q110: 0
A111: Standard efficiency oil furnace | B111: hvac_oil_std_eq_1 | C111: 2766.216772 | D111: =build1_heat_mbh/build1_zones -> 4.19790757 | E111: hvac_oil_std_eq | F111: 931.1841008 | G111: 0.758949775 | H111: 0 | I111: 0 | J111: 0 | K111: 0 | L111: 0 | M111: 0 | N111: 0 | O111: 0 | P111: 3350.1 | Q111: 0
A112: Mid-efficiency oil furnace | B112: hvac_oil_mid_eq_1 | C112: 2766.216772 | D112: =build1_heat_mbh/build1_zones -> 4.19790757 | E112: hvac_oil_mid_eq | F112: 931.1841008 | G112: 0.758949775 | H112: 0 | I112: 0 | J112: 0 | K112: 0 | L112: 0 | M112: 0 | N112: 0 | O112: 0 | P112: 3350.1 | Q112: 0
A113: Cooling System
A114: Air conditioning system | B114: hvac_ac_eq_1 | C114: =IF(D114=0,0,IF(OR(D114>P114,D114<Q114),"contact vendor",F114*D114^G114+H114*LN(D114)+I114+J114*EXP(K114*D114)+L114*D114^3+M114*D114^2+N114*D114+O114)) -> 931.9462054 | D114: =build1_cooling_tons/build1_zones -> 0.4273885777 | E114: hvac_ac_eq | F114: =VLOOKUP($E114,eq_table_cl,F$4,FALSE) -> 2517.03808 | G114: 1.168812894 | H114: 0 | I114: 0 | J114: 0 | K114: 0 | L114: 0 | M114: 0 | N114: 0 | O114: 0 | P114: 113.33 | Q114: 0
A115: Heat pump | B115: hvac_hp_eq_1 | C115: 3372.087685 | D115: =build1_cooling_tons/build1_zones -> 0.4273885777 | E115: =IF(D115>12,"hvac_hp_eq_large","hvac_hp_eq_small") -> hvac_hp_eq_small | F115: 0 | G115: 0 | H115: 0 | I115: 0 | J115: 3162.065483 | K115: 0.150464002 | L115: 0 | M115: 0 | N115: 0 | O115: 0 | P115: 12 | Q115: 0
A116: Building 2
A117: Low Quality Structure | B117: bldg_lo_eq_2 | C117: =IF(D117=0,0,IF(OR(D117>P117,D117<Q117),"contact vendor",F117*D117^G117+H117*LN(D117)+I117+J117*EXP(K117*D117)+L117*D117^3+M117*D117^2+N117*D117+O117)) -> 0 | D117: =build2_fp -> 0 | E117: bldg_lo_eq | F117: =VLOOKUP($E117,eq_table_cl,F$4,FALSE) -> 150.4663907 | G117: -0.096925794 | H117: 0 | I117: 0 | J117: 0 | K117: 0 | L117: 0 | M117: 0 | N117: 0 | O117: 0 | P117: 200000.1 | Q117: 0
A118: Medium Quality Structure | B118: bldg_mid_eq_2 | C118: 0 | D118: =build2_fp -> 0 | E118: bldg_mid_eq | F118: 184.6789937 | G118: -0.09824021 | H118: 0 | I118: 0 | J118: 0 | K118: 0 | L118: 0 | M118: 0 | N118: 0 | O118: 0 | P118: 200000.1 | Q118: 0
A119: High Quality Structure | B119: bldg_hi_eq_2 | C119: 0 | D119: =build2_fp -> 0 | E119: bldg_hi_eq | F119: 324.1826469 | G119: -0.132300065 | H119: 0 | I119: 0 | J119: 0 | K119: 0 | L119: 0 | M119: 0 | N119: 0 | O119: 0 | P119: 200000.1 | Q119: 0
A120: Heating System
A121: Electric resistance | B121: hvac_elec_eq_2 | C121: 0 | D121: =IF(build2_zones=0,0,build2_heat_mbh/build2_zones) -> 0 | E121: hvac_elec_eq | F121: =VLOOKUP($E121,eq_table_cl,F$4,FALSE) -> 1399.015433 | G121: 0.752486412 | H121: 0 | I121: 0 | J121: 0 | K121: 0 | L121: 0 | M121: 0 | N121: 0 | O121: 0 | P121: 6148.1 | Q121: 0
A122: Natural gas non-condensing furnace | B122: hvac_gas_non_eq_2 | C122: 0 | D122: =IF(build2_zones=0,0,build2_heat_mbh/build2_zones) -> 0 | E122: hvac_gas_non_eq | F122: 780.319943 | G122: 0.778810032 | H122: 0 | I122: 0 | J122: 0 | K122: 0 | L122: 0 | M122: 0 | N122: 0 | O122: 0 | P122: 5032.1 | Q122: 0
A123: Natural gas condensing furnace | B123: hvac_gas_eq_2 | C123: 0 | D123: =IF(build2_zones=0,0,build2_heat_mbh/build2_zones) -> 0 | E123: hvac_gas_eq | F123: 780.319943 | G123: 0.778810032 | H123: 0 | I123: 0 | J123: 0 | K123: 0 | L123: 0 | M123: 0 | N123: 0 | O123: 0 | P123: 5032.1 | Q123: 0
A124: Standard efficiency oil furnace | B124: hvac_oil_std_eq_2 | C124: 0 | D124: =IF(build2_zones=0,0,build2_heat_mbh/build2_zones) -> 0 | E124: hvac_oil_std_eq | F124: 931.1841008 | G124: 0.758949775 | H124: 0 | I124: 0 | J124: 0 | K124: 0 | L124: 0 | M124: 0 | N124: 0 | O124: 0 | P124: 3350.1 | Q124: 0
A125: Mid-efficiency oil furnace | B125: hvac_oil_mid_eq_2 | C125: 0 | D125: =IF(build2_zones=0,0,build2_heat_mbh/build2_zones) -> 0 | E125: hvac_oil_mid_eq | F125: 931.1841008 | G125: 0.758949775 | H125: 0 | I125: 0 | J125: 0 | K125: 0 | L125: 0 | M125: 0 | N125: 0 | O125: 0 | P125: 3350.1 | Q125: 0
A126: Cooling System
A127: Air conditioning system | B127: hvac_ac_eq_2 | C127: 0 | D127: =IF(build2_zones=0,0,build2_cooling_tons/build2_zones) -> 0 | E127: hvac_ac_eq | F127: =VLOOKUP($E127,eq_table_cl,F$4,FALSE) -> 2517.03808 | G127: 1.168812894 | H127: 0 | I127: 0 | J127: 0 | K127: 0 | L127: 0 | M127: 0 | N127: 0 | O127: 0 | P127: 113.33 | Q127: 0
A128: Heat pump | B128: hvac_hp_eq_2 | C128: 0 | D128: =IF(build2_zones=0,0,build2_cooling_tons/build2_zones) -> 0 | E128: =IF(D128>12,"hvac_hp_eq_large","hvac_hp_eq_small") -> hvac_hp_eq_small | F128: 0 | G128: 0 | H128: 0 | I128: 0 | J128: 3162.065483 | K128: 0.150464002 | L128: 0 | M128: 0 | N128: 0 | O128: 0 | P128: 12 | Q128: 0

Sheet Cost Coefficients
A1: Coefficients for Component Cost Equations
A2: This sheet is used internally to calculate component costs using the cost equations method; see model documentation for more details on the development of cost equations
B4: Power: C1*x^C2 | D4: Logarithmic: C3*Ln(x) + C4 | F4: Exponential: C5*e^(C6*x) | H4: Polynomial: C7*x^3 + C8*x^2 + C9*x + C10 | L4: NOTES
A5: Equation Lookup Name | B5: C1 | C5: C2 | D5: C3 | E5: C4 | F5: C5 | G5: C6 | H5: C7 | I5: C8 | J5: C9 | K5: C10 | L5: Pct deviation of fit equation | M5: Modified by | N5: Last modified | O5: Rsq of fit equation | P5: max size used to gen curve | Q5: min size for which curve fits are valid
A6: baffle_eq | B6: 0 | C6: 0 | D6: 0 | E6: 0 | F6: 0 | G6: 0 | H6: 1.5e-08 | I6: -0.000276367 | J6: 4.600018993 | K6: 65.45490071 | L6: 0.07597586628 | N6: 6/23/2017 2:09:51 PM | O6: 0.998955686 | P6: 9963.76 | Q6: 0
A7: bldg_hi_eq | B7: 324.1826469 | C7: -0.132300065 | D7: 0 | E7: 0 | F7: 0 | G7: 0 | H7: 0 | I7: 0 | J7: 0 | K7: 0 | L7: 0.03989110045 | N7: 6/23/2017 3:04:02 PM | O7: 0.9529228821 | P7: 200000.1 | Q7: 0
A8: bldg_lo_eq | B8: 150.4663907 | C8: -0.096925794 | D8: 0 | E8: 0 | F8: 0 | G8: 0 | H8: 0 | I8: 0 | J8: 0 | K8: 0 | L8: 0.02551820762 | N8: 6/23/2017 3:03:10 PM | O8: 0.9671472933 | P8: 200000.1 | Q8: 0
A9: bldg_mid_eq | B9: 184.6789937 | C9: -0.09824021 | D9: 0 | E9: 0 | F9: 0 | G9: 0 | H9: 0 | I9: 0 | J9: 0 | K9: 0 | L9: 0.02751136169 | N9: 6/23/2017 3:03:32 PM | O9: 0.9638824778 | P9: 200000.1 | Q9: 0
A10: cent_blow_eq | B10: 0 | C10: 0 | D10: 0 | E10: 0 | F10: 0 | G10: 0 | H10: 8.57e-07 | I10: -0.005755101 | J10: 20.87065432 | K10: 27480.64182 | L10: 0.01831405707 | N10: 6/21/2017 4:27:51 PM | O10: 0.9987999388 | P10: 5001 | Q10: 0
A11: ci_bfv_eq_large | B11: 50.76512698 | C11: 1.589939094 | D11: 0 | E11: 0 | F11: 0 | G11: 0 | H11: 0 | I11: 0 | J11: 0 | K11: 0 | L11: 0.06054020728 | N11: 6/21/2017 3:59:11 PM | O11: 0.9891399078 | P11: 48.1 | Q11: 14
A12: ci_bfv_eq_small | B12: 0 | C12: 0 | D12: 0 | E12: 0 | F12: 0 | G12: 0 | H12: -0.443473112 | I12: 12.76880242 | J12: 121.7001439 | K12: 29.97208276 | L12: 0.04424038894 | N12: 6/21/2017 3:58:12 PM | O12: 0.9901726846 | P12: 12 | Q12: 1
A13: ci_chv_eq | B13: 0 | C13: 0 | D13: 0 | E13: 0 | F13: 0 | G13: 0 | H13: 0.998552278 | I13: -6.098668912 | J13: 403.850148 | K13: -514.9922671 | L13: 0.1050066034 | N13: 6/21/2017 4:03:19 PM | O13: 0.9942727085 | P13: 24.1 | Q13: 2
A14: ci_mov_eq | B14: 0 | C14: 0 | D14: 0 | E14: 0 | F14: 0 | G14: 0 | H14: -0.064880837 | I14: 28.44450095 | J14: 68.99684845 | K14: 1015.350532 | L14: 0.09867646481 | N14: 6/23/2017 10:28:52 AM | O14: 0.9702491032 | P14: 48.1 | Q14: 1
A15: cpvc_pipe_eq | B15: 0 | C15: 0 | D15: 0 | E15: 0 | F15: 0 | G15: 0 | H15: 0.00925292 | I15: 0.543237018 | J15: 3.024366182 | K15: 0.944771283 | L15: 0.09948024845 | N15: 6/21/2017 12:21:08 PM | O15: 0.9969575204 | P15: 18.1 | Q15: 0
A16: di_pipe_eq | B16: 0 | C16: 0 | D16: 0 | E16: 0 | F16: 0 | G16: 0 | H16: 0 | I16: 0.0947759 | J16: 4.790327955 | K16: 11.72851845 | L16: 0.05557118334 | N16: 6/21/2017 10:56:31 AM | O16: 0.989821708 | P16: 48.1 | Q16: 4
A17: diffuser_eq | B17: 0 | C17: 0 | D17: 0 | E17: 0 | F17: 43.72154201 | G17: 0.007565191 | H17: 0 | I17: 0 | J17: 0 | K17: 0 | L17: 0.1416648352 | N17: 6/23/2017 2:09:05 PM | O17: 0.3136337227 | P17: 44.1 | Q17: 0
A18: dis75_pump_eq | B18: 0 | C18: 0 | D18: 0 | E18: 0 | F18: 0 | G18: 0 | H18: 0 | I18: -0.000790817 | J18: 18.71623925 | K18: 4947.845192 | L18: 0.2237897884 | N18: 6/21/2017 4:12:10 PM | O18: 0.9488362396 | P18: 10001 | Q18: 0
A19: fg_basin_eq | B19: 159.3766214 | C19: 0.802958697 | D19: 0 | E19: 0 | F19: 0 | G19: 0 | H19: 0 | I19: 0 | J19: 0 | K19: 0 | L19: 0.05653277853 | N19: 6/23/2017 2:10:44 PM | O19: 0.9479922883 | P19: 1200 | Q19: 0
A20: gac_eq | B20: 0 | C20: 0 | D20: 0 | E20: 0 | F20: 0 | G20: 0 | H20: 0 | I20: 0 | J20: -6.341e-06 | K20: 1.904824233 | L20: 0.0006525025386 | N20: 6/23/2017 1:27:52 PM | O20: 0.9998684064 | P20: 40000 | Q20: 0
A21: hvac_ac_eq | B21: 2517.03808 | C21: 1.168812894 | D21: 0 | E21: 0 | F21: 0 | G21: 0 | H21: 0 | I21: 0 | J21: 0 | K21: 0 | L21: 0.04440250804 | N21: 10/17/2017 10:32:24 AM | O21: 0.994059247 | P21: 113.33 | Q21: 0
A22: hvac_elec_eq | B22: 1399.015433 | C22: 0.752486412 | D22: 0 | E22: 0 | F22: 0 | G22: 0 | H22: 0 | I22: 0 | J22: 0 | K22: 0 | L22: 0.1993648078 | N22: 10/17/2017 10:33:04 AM | O22: 0.9722807925 | P22: 6148.1 | Q22: 0
A23: hvac_gas_eq | B23: 780.319943 | C23: 0.778810032 | D23: 0 | E23: 0 | F23: 0 | G23: 0 | H23: 0 | I23: 0 | J23: 0 | K23: 0 | L23: 0.1337070138 | N23: 10/17/2017 10:34:00 AM | O23: 0.9423197509 | P23: 5032.1 | Q23: 0
A24: hvac_gas_non_eq | B24: 780.319943 | C24: 0.778810032 | D24: 0 | E24: 0 | F24: 0 | G24: 0 | H24: 0 | I24: 0 | J24: 0 | K24: 0 | L24: 0.1337070138 | N24: 10/17/2017 10:33:37 AM | O24: 0.9423197509 | P24: 5032.1 | Q24: 0
A25: hvac_hp_eq_large | B25: 2100.955742 | C25: 0.874996813 | D25: 0 | E25: 0 | F25: 0 | G25: 0 | H25: 0 | I25: 0 | J25: 0 | K25: 0 | L25: 0.05269244265 | N25: 6/23/2017 3:08:16 PM | O25: 0.9865271457 | P25: 50.01 | Q25: 12
A26: hvac_hp_eq_small | B26: 0 | C26: 0 | D26: 0 | E26: 0 | F26: 3162.065483 | G26: 0.150464002 | H26: 0 | I26: 0 | J26: 0 | K26: 0 | L26: 0.08947680136 | N26: 6/23/2017 3:07:28 PM | O26: 0.9732481126 | P26: 12 | Q26: 0
A27: hvac_oil_mid_eq | B27: 931.1841008 | C27: 0.758949775 | D27: 0 | E27: 0 | F27: 0 | G27: 0 | H27: 0 | I27: 0 | J27: 0 | K27: 0 | L27: 0.08496079976 | N27: 10/17/2017 10:34:48 AM | O27: 0.9879638665 | P27: 3350.1 | Q27: 0
A28: hvac_oil_std_eq | B28: 931.1841008 | C28: 0.758949775 | D28: 0 | E28: 0 | F28: 0 | G28: 0 | H28: 0 | I28: 0 | J28: 0 | K28: 0 | L28: 0.08496079976 | N28: 10/17/2017 10:34:25 AM | O28: 0.9879638665 | P28: 3350.1 | Q28: 0
A29: mag_fm_eq | B29: 0 | C29: 0 | D29: 0 | E29: 0 | F29: 0 | G29: 0 | H29: 0 | I29: 56.41874171 | J29: 185.4434934 | K29: 3549.646118 | L29: 0.0984595714 | N29: 6/23/2017 1:20:53 PM | O29: 0.9892387372 | P29: 20.1 | Q29: 0
A30: off_regen_eq | B30: 0 | C30: 0 | D30: 0 | E30: 0 | F30: 0 | G30: 0 | H30: 0 | I30: 0 | J30: -5.2e-06 | K30: 1.221341695 | L30: 0.001098917687 | N30: 6/23/2017 1:29:08 PM | O30: 0.9997784831 | P30: 40000 | Q30: 0
A31: og_co_eq | B31: 0 | C31: 0 | D31: 0 | E31: 0 | F31: 0 | G31: 0 | H31: 0 | I31: 3.155e-06 | J31: 67.69534244 | K31: 25787.16035 | L31: 0.08397837263 | N31: 6/23/2017 2:40:14 PM | O31: 0.9979803146 | P31: 736001 | Q31: 0
A32: og_corec_eq | B32: 0 | C32: 0 | D32: 0 | E32: 0 | F32: 0 | G32: 0 | H32: 0 | I32: 0.000103841 | J32: 75.33948855 | K32: 34677.90084 | L32: 0.09067844329 | N32: 6/23/2017 2:46:47 PM | O32: 0.9999340947 | P32: 736001 | Q32: 0
A33: og_coreg_eq | B33: 0 | C33: 0 | D33: 0 | E33: 0 | F33: 0 | G33: 0 | H33: 0 | I33: 0.000105624 | J33: 86.17670734 | K33: 39578.61323 | L33: 0.08054539283 | N33: 6/23/2017 2:46:09 PM | O33: 0.9999575892 | P33: 736001 | Q33: 0
A34: og_gac_eq | B34: 0 | C34: 0 | D34: 0 | E34: 0 | F34: 0 | G34: 0 | H34: 0 | I34: -0.021812607 | J34: 74.08960489 | K34: 8121.570178 | L34: 0.1413957098 | N34: 6/23/2017 2:31:15 PM | O34: 0.9552483296 | P34: 1333.4 | Q34: 0
A35: og_to_eq | B35: 0 | C35: 0 | D35: 0 | E35: 0 | F35: 0 | G35: 0 | H35: 3.5e-08 | I35: -0.002125412 | J35: 52.36108591 | K35: 30681.11702 | L35: 0.1145411192 | N35: 6/23/2017 2:31:52 PM | O35: 0.9494574129 | P35: 25001 | Q35: 0
A36: og_torec_eq | B36: 0 | C36: 0 | D36: 0 | E36: 0 | F36: 0 | G36: 0 | H36: 0 | I36: 0.002686275 | J36: 45.22362993 | K36: 46950.6738 | L36: 0.0969424361 | N36: 6/23/2017 2:32:11 PM | O36: 0.9867713731 | P36: 7258 | Q36: 0
A37: og_toreg_eq | B37: 0 | C37: 0 | D37: 0 | E37: 0 | F37: 0 | G37: 0 | H37: 0 | I37: 5.9304e-05 | J37: 26.21005734 | K37: 122071.8558 | L37: 0.3740727251 | N37: 6/23/2017 2:33:05 PM | O37: 0.9734827665 | P37: 736001 | Q37: 0
A38: op_fm_eq | B38: 0 | C38: 0 | D38: 0 | E38: 0 | F38: 0 | G38: 0 | H38: 0.097957253 | I38: -4.383599187 | J38: 363.6476941 | K38: 2505.954411 | L38: 0.04779130951 | N38: 6/23/2017 1:19:01 PM | O38: 0.9993164981 | P38: 60.1 | Q38: 0
A39: pl_basin_eq | B39: 0.453238925 | C39: 1.948695284 | D39: 0 | E39: 0 | F39: 0 | G39: 0 | H39: 0 | I39: 0 | J39: 0 | K39: 0 | L39: 0.4416501312 | N39: 6/23/2017 2:10:20 PM | O39: 0.7730223231 | P39: 239 | Q39: 0
A40: pp_chv_eq | B40: 0 | C40: 0 | D40: 0 | E40: 0 | F40: 0 | G40: 0 | H40: 0 | I40: 29.05743239 | J40: 41.15718672 | K40: 41.98796389 | L40: 0.1975839597 | N40: 6/21/2017 4:02:12 PM | O40: 0.9823045579 | P40: 12.1 | Q40: 0
A41: pp_man_eq_large | B41: 0 | C41: 0 | D41: 0 | E41: 0 | F41: 0 | G41: 0 | H41: 22.30025789 | I41: -1282.044463 | J41: 25673.26432 | K41: -162055.4444 | L41: 0.01271112132 | N41: 6/21/2017 3:55:57 PM | O41: 0.9988482232 | P41: 24.1 | Q41: 14
A42: pp_man_eq_small | B42: 0 | C42: 0 | D42: 0 | E42: 0 | F42: 0 | G42: 0 | H42: 2.727129527 | I42: -29.26938628 | J42: 178.3802096 | K42: 26.23562316 | L42: 0.1358516175 | N42: 6/21/2017 3:55:11 PM | O42: 0.9721462422 | P42: 12 | Q42: 0
A43: pp_mov_eq_large | B43: 0 | C43: 0 | D43: 0 | E43: 0 | F43: 0 | G43: 0 | H43: 9.39851643 | I43: -558.7274647 | J43: 12544.51358 | K43: -82391.1311 | L43: 0.013437678 | N43: 6/23/2017 11:56:12 AM | O43: 0.9984129384 | P43: 24.1 | Q43: 14
A44: pp_mov_eq_small | B44: 0 | C44: 0 | D44: 0 | E44: 0 | F44: 439.3853472 | G44: 0.212664842 | H44: 0 | I44: 0 | J44: 0 | K44: 0 | L44: 0.1305345223 | N44: 6/23/2017 11:55:40 AM | O44: 0.9748614921 | P44: 12 | Q44: 0
A45: prop_fm_eq | B45: 0 | C45: 0 | D45: 0 | E45: 0 | F45: 0 | G45: 0 | H45: 8.745107924 | I45: -168.9746008 | J45: 1267.944728 | K45: 643.1120557 | L45: 0.1052688931 | N45: 6/23/2017 1:19:43 PM | O45: 0.919995351 | P45: 14.1 | Q45: 0
A46: pvc_pipe_eq | B46: 0 | C46: 0 | D46: 0 | E46: 0 | F46: 0 | G46: 0 | H46: 0 | I46: 0.104376414 | J46: 0.212173712 | K46: 2.276782637 | L46: 0.3254887166 | N46: 6/21/2017 11:02:23 AM | O46: 0.9950735431 | P46: 48.1 | Q46: 0
A47: ss_basin_eq | B47: 0 | C47: 0 | D47: 0 | E47: 0 | F47: 0 | G47: 0 | H47: 0.001231781 | I47: -1.01945011 | J47: 300.5095625 | K47: 1414.82906 | L47: 0.0402522374 | N47: 6/23/2017 2:11:38 PM | O47: 0.9917457657 | P47: 1200 | Q47: 0
A48: ss_chv_eq | B48: 0 | C48: 0 | D48: 0 | E48: 0 | F48: 0 | G48: 0 | H48: 0 | I48: 31.22016133 | J48: 300.8432045 | K48: 95.60064806 | L48: 0.1838996852 | N48: 6/21/2017 4:01:20 PM | O48: 0.9931010155 | P48: 48.1 | Q48: 0
A49: ss_man_eq | B49: 219.9087906 | C49: 1.684831267 | D49: 0 | E49: 0 | F49: 0 | G49: 0 | H49: 0 | I49: 0 | J49: 0 | K49: 0 | L49: 0.4317309909 | N49: 6/21/2017 3:40:26 PM | O49: 0.9068607386 | P49: 12.1 | Q49: 1
A50: ss_mov_eq | B50: 0 | C50: 0 | D50: 0 | E50: 0 | F50: 0 | G50: 0 | H50: 0 | I50: 75.65821756 | J50: 386.9778023 | K50: 199.1378722 | L50: 0.1575041928 | N50: 6/23/2017 12:02:57 PM | O50: 0.9960594782 | P50: 48.1 | Q50: 0
A51: ss_pipe_eq | B51: 30.64548851 | C51: 0.979401509 | D51: 0 | E51: 0 | F51: 0 | G51: 0 | H51: 0 | I51: 0 | J51: 0 | K51: 0 | L51: 0.48766313 | N51: 6/21/2017 11:03:32 AM | O51: 0.9303880308 | P51: 48.1 | Q51: 0
A52: st_pipe_eq | B52: 0 | C52: 0 | D52: 0 | E52: 0 | F52: 0 | G52: 0 | H52: 0.006634131 | I52: -0.638131479 | J52: 21.06271018 | K52: -5.141982997 | L52: 0.1380906562 | N52: 6/21/2017 11:04:26 AM | O52: 0.9400086149 | P52: 48.1 | Q52: 1
A53: ven_fm_eq | B53: 0 | C53: 0 | D53: 0 | E53: 0 | F53: 0 | G53: 0 | H53: 8.228279249 | I53: -257.2857211 | J53: 3322.365777 | K53: -213.6489575 | L53: 0.02790457973 | N53: 6/23/2017 1:19:18 PM | O53: 0.9996736837 | P53: 24.1 | Q53: 0

Sheet Cost Data
A1: Cost Data
A2: This sheet is used internally and contains component cost data extracted from the central cost database
A3: To maintain vendor confidentiality, the central cost database itself is not provided here
A5: bls118 | B5: Alarms (High/Low Pressure Alarms, Level Switch/Alarms, Low Alarms)
A6: 43 | D6: Unit Cost | E6: Useful Life (large) | F6: Useful Life (small)
A7: alarm_cost_cl | B7: 0 | C7: 0 | D7: 580.5871131 | E7: 15 | F7: 14
A10: bls1141 | B10: Centrifugal Pumps (Backwash)
A11: 30 | B11: Size needed (gpm) | C11: Size selected (gpm) | D11: Avg. Unit Cost | E11: Useful Life (large) | F11: Useful Life (small)
A12: back_pump_cost_cl | B12: 0 | C12: 10 | D12: 5569.388496 | E12: 20 | F12: 17
B13: 11 | C13: 30 | D13: 5795.550741 | E13: 20 | F13: 17
B14: 31 | C14: 50 | D14: 6608.478366 | E14: 20 | F14: 17
B15: 51 | C15: 55 | D15: 7767.85994 | E15: 20 | F15: 17
B16: 56 | C16: 75 | D16: 8244.055403 | E16: 20 | F16: 17
B17: 76 | C17: 100 | D17: 8244.055403 | E17: 20 | F17: 17
B18: 101 | C18: 120 | D18: 10543.37327 | E18: 20 | F18: 17
B19: 121 | C19: 125 | D19: 8886.118795 | E19: 20 | F19: 17
B20: 126 | C20: 140 | D20: 10543.37327 | E20: 20 | F20: 17
B21: 141 | C21: 200 | D21: 9860.855335 | E21: 20 | F21: 17
B22: 201 | C22: 250 | D22: 10403.83191 | E22: 20 | F22: 17
B23: 251 | C23: 300 | D23: 10950.75652 | E23: 20 | F23: 17
B24: 301 | C24: 500 | D24: 14817.74953 | E24: 20 | F24: 17
B25: 501 | C25: 750 | D25: 15245.23446 | E25: 20 | F25: 17
B26: 751 | C26: 1000 | D26: 17479.38093 | E26: 20 | F26: 17
B27: 1001 | C27: 1500 | D27: 20907.30316 | E27: 20 | F27: 17
B28: 1501 | C28: 2000 | D28: 31037.80061 | E28: 20 | F28: 17
B29: 2001 | C29: 3000 | D29: 35660.8961 | E29: 20 | F29: 17
B30: 3001 | C30: 3500 | D30: 40615.4545 | E30: 20 | F30: 17
B31: 3501 | C31: 4000 | D31: 42599.85822 | E31: 20 | F31: 17
B32: 4001 | C32: 6000 | D32: 88269.2219 | E32: 20 | F32: 17
B33: 6001 | C33: 10000 | D33: 79060.74737 | E33: 20 | F33: 17
B34: 10001 | C34: contact vendor | D34: contact vendor | E34: 20 | F34: 17
A37: BCI | B37: Backfill and Compaction
A38: 3 | D38: Avg. Unit Cost (per cy) | E38: Useful Life (large) | F38: Useful Life (small)
A39: backfill_cost_cl | B39: 0 | C39: 0 | D39: 13.94672224 | E39: N/A | F39: N/A
A42: BCI | B42: Baffles (used for chlorine and hypochlorite contact tanks and multistage bubble aeration tanks)
A43: 3 | B43: Size needed (sf) | C43: Size Selected (sf) | D43: Avg. Unit Cost | E43: Useful Life (large) | F43: Useful Life (small)
A44: baffle_cost_cl | B44: 0 | C44: 2.42 | D44: 82.8626762 | E44: 10 | F44: 7
B45: 2.43 | C45: 3.38 | D45: 85.96950975 | E45: 10 | F45: 7
B46: 3.39 | C46: 8 | D46: 100.7250966 | E46: 10 | F46: 7
B47: 8.01 | C47: 12.5 | D47: 110.79928 | E47: 10 | F47: 7
B48: 12.51 | C48: 14.58 | D48: 122.7827777 | E48: 10 | F48: 7
B49: 14.59 | C49: 121.2 | D49: 719.2989642 | E49: 10 | F49: 7
B50: 121.21 | C50: 238.25 | D50: 1243.191284 | E50: 10 | F50: 7
B51: 238.26 | C51: 390 | D51: 1674.616768 | E51: 10 | F51: 7
B52: 390.01 | C52: 606.55 | D52: 2570.956721 | E52: 10 | F52: 7
B53: 606.56 | C53: 1193.675 | D53: 5479.099875 | E53: 10 | F53: 7
B54: 1193.685 | C54: 2421.25 | D54: 10523.39189 | E54: 10 | F54: 7
B55: 2421.26 | C55: 4700.5 | D55: 16469.62167 | E55: 10 | F55: 7
B56: 4700.51 | C56: 9963.75 | D56: 33735.4427 | E56: 10 | F56: 7
B57: 9963.76 | C57: contact vendor | D57: contact vendor | E57: 10 | F57: 7
A60: CCI | B60: Pipe bedding costs (crushed stone and sand)
A61: 2 | D61: Avg. Unit Cost (per day) | E61: Useful Life (large) | F61: Useful Life (small)
A62: bedding_cost_cl | B62: 0 | C62: 0 | D62: 53.92609197 | E62: N/A | F62: N/A
A65: bore_rig_cost | B65: 0 | C65: 0 | D65: 2896.63245 | E65: N/A | F65: N/A
B66: Borings, cased borings in earth, w/samples, 2.5" dia | D66: Avg. Unit Cost (per lf) | E66: Useful Life (large) | F66: Useful Life (small)
A67: bore_cost_cl | B67: 0 | C67: 0 | D67: 77.96543417 | E67: N/A | F67: N/A
A70: stake_out_cost | B70: 0 | C70: 0 | D70: 1380.637897 | E70: N/A | F70: N/A
B71: Borings, drawings showing boring details | D71: Avg. Unit Cost (per job) | E71: Useful Life (large) | F71: Useful Life (small)
A72: bore_draw_cost_cl | B72: 0 | C72: 0 | D72: 460.2126322 | E72: N/A | F72: N/A
A75: bore_report_cost | B75: 0 | C75: 0 | D75: 1050.367655 | E75: N/A | F75: N/A
B76: Borings, mobilization and demobilization, minimum | D76: Avg. Unit Cost | E76: Useful Life (large) | F76: Useful Life (small)
A77: bore_mob_cost_cl | B77: 0 | C77: 0 | D77: 725.5116791 | E77: N/A | F77: N/A
A80: bore_draw_cost | B80: 0 | C80: 0 | D80: 460.2126322 | E80: N/A | F80: N/A
B81: Borings, report and recommendations from P.E. | D81: Avg. Unit Cost (per job) | E81: Useful Life (large) | F81: Useful Life (small)
A82: bore_report_cost_cl | B82: 0 | C82: 0 | D82: 1050.367655 | E82: N/A | F82: N/A
A85: bore_mob_cost | B85: 0 | C85: 0 | D85: 725.5116791 | E85: N/A | F85: N/A
B86: Borings, drill rig and crew with truck mounted auger | D86: Avg. Unit Cost (per day) | E86: Useful Life (large) | F86: Useful Life (small)
A87: bore_rig_cost_cl | B87: 0 | C87: 0 | D87: 2896.63245 | E87: N/A | F87: N/A
A90: bls11470145 | B90: Centrifugal Blowers
A91: 33 | B91: Size needed (cfm) | C91: Size selected (cfm) | D91: Avg. Unit Cost | E91: Useful Life (large) | F91: Useful Life (small)
A92: cent_blow_cost_cl | B92: 0 | C92: 40 | D92: 28502.99141 | E92: 25 | F92: 20
B93: 41 | C93: 70 | D93: 28876.45833 | E93: 25 | F93: 20
B94: 71 | C94: 290 | D94: 31978.52025 | E94: 25 | F94: 20
B95: 291 | C95: 500 | D95: 37851.49587 | E95: 25 | F95: 20
B96: 501 | C96: 710 | D96: 40641.32851 | E96: 25 | F96: 20
B97: 711 | C97: 860 | D97: 41551.04189 | E97: 25 | F97: 20
B98: 861 | C98: 1000 | D98: 42600.34805 | E98: 25 | F98: 20
B99: 1001 | C99: 2500 | D99: 56825.16082 | E99: 25 | F99: 20
B100: 2501 | C100: 3750 | D100: 70489.90775 | E100: 25 | F100: 20
B101: 3751 | C101: 5000 | D101: 94885.07067 | E101: 25 | F101: 20
B102: 5001 | C102: contact vendor | D102: contact vendor | E102: 25 | F102: 20
A105: bls1149 | B105: Cast Iron Manual Valves
A106: 35 | B106: Size needed (in. diam) | C106: Size selected (in. diam) | D106: Avg. Unit Cost | E106: Useful Life (large) | F106: Useful Life (small)
A107: ci_bfv_cost_cl | B107: 0 | C107: 1 | D107: 163.4146502 | E107: 25 | F107: 20
B108: 1.1 | C108: 2 | D108: 326.2838173 | E108: 25 | F108: 20
B109: 2.1 | C109: 2.5 | D109: 396.6047496 | E109: 25 | F109: 20
B110: 2.6 | C110: 3 | D110: 520.876489 | E110: 25 | F110: 20
B111: 3.1 | C111: 4 | D111: 668.0271023 | E111: 25 | F111: 20
B112: 4.1 | C112: 6 | D112: 1153.642012 | E112: 25 | F112: 20
B113: 6.1 | C113: 8 | D113: 1503.306714 | E113: 25 | F113: 20
B114: 8.1 | C114: 10 | D114: 2285.976923 | E114: 25 | F114: 20
B115: 10.1 | C115: 12 | D115: 2485.067658 | E115: 25 | F115: 20
B116: 12.1 | C116: 14 | D116: 3443.166074 | E116: 25 | F116: 20
B117: 14.1 | C117: 16 | D117: 4148.383124 | E117: 25 | F117: 20
B118: 16.1 | C118: 18 | D118: 4890.059414 | E118: 25 | F118: 20
B119: 18.1 | C119: 20 | D119: 6530.081188 | E119: 25 | F119: 20
B120: 20.1 | C120: 24 | D120: 7632.040095 | E120: 25 | F120: 20
B121: 24.1 | C121: 30 | D121: 10234.20215 | E121: 25 | F121: 20
B122: 30.1 | C122: 48 | D122: 25372.68641 | E122: 25 | F122: 20
B123: 48.1 | C123: contact vendor | D123: contact vendor | E123: 25 | F123: 20
A126: bls1149 | B126: Cast Iron Check Valves
A127: 35 | B127: Size needed (in. diam) | C127: Size selected (in. diam) | D127: Avg. Unit Cost | E127: Useful Life (large) | F127: Useful Life (small)
A128: ci_chv_cost_cl | B128: 0 | C128: 2 | D128: 293.385041 | E128: 25 | F128: 20
B129: 2.1 | C129: 2.5 | D129: 447.1987005 | E129: 25 | F129: 20
B130: 2.6 | C130: 3 | D130: 583.916715 | E130: 25 | F130: 20
B131: 3.1 | C131: 4 | D131: 1411.989796 | E131: 25 | F131: 20
B132: 4.1 | C132: 6 | D132: 1908.80102 | E132: 25 | F132: 20
B133: 6.1 | C133: 8 | D133: 2980.867347 | E133: 25 | F133: 20
B134: 8.1 | C134: 12 | D134: 4758.928571 | E134: 25 | F134: 20
B135: 12.1 | C135: 16 | D135: 8105.867347 | E135: 25 | F135: 20
B136: 16.1 | C136: 18 | D136: 11818.87755 | E136: 25 | F136: 20
B137: 18.1 | C137: 24 | D137: 19244.89796 | E137: 25 | F137: 20
B138: 24.1 | C138: contact vendor | D138: contact vendor | E138: 25 | F138: 20
